Workbook

Sheet cuprins proiecte
C3: Denumire proiect | D3: Program arhitectural
B4: A
B5: B
B6: C
B7: D
B8: E
B9: F
B10: G
B11: H
B12: I
B13: J
B14: K
B15: L
B16: M
B17: N
B18: O
B19: P
B20: Q
B21: R
B22: S
B23: T
B24: U
B25: V
B26: W
B27: X
B28: Y
B29: Z

Sheet fisa lunara (template) (hidden)
A4: Misiuni de baza / misiuni suplimentare | B4: 1 | C4: 2 | D4: 3 | E4: 4 | F4: 5 | G4: 6 | H4: 7 | I4: 8 | J4: 9 | K4: 10 | L4: 11 | M4: 12 | N4: 13 | O4: 14 | P4: 15 | Q4: 16 | R4: 17 | S4: 18 | T4: 19 | U4: 20 | V4: 21 | W4: 22 | X4: 23 | Y4: 24 | Z4: 25 | AA4: 26 | AB4: 27 | AC4: 28 | AD4: 29 | AE4: 30 | AF4: 31 | AG4: Total luna (h) | AH4: Total luna (%) | AP4: Doctrinare | AQ4: Tehnice | AR4: Ecologice | AS4: Relationale | AT4: Manageriale | AU4: Economice | AV4: Juridice
A5: 1.1.1. Tema pentru ofertare | B5: 07:30:00 | C5: 00:00:00 | D5: 00:00:00 | E5: 00:00:00 | F5: 00:00:00 | G5: 00:00:00 | H5: 00:00:00 | I5: 00:00:00 | J5: 00:00:00 | K5: 00:00:00 | L5: 00:00:00 | M5: 00:00:00 | N5: 00:00:00 | O5: 00:00:00 | P5: 00:00:00 | Q5: 00:00:00 | R5: 00:00:00 | S5: 00:00:00 | T5: 00:00:00 | U5: 00:00:00 | V5: 00:00:00 | W5: 00:00:00 | X5: 00:00:00 | Y5: 00:00:00 | Z5: 00:00:00 | AA5: 00:00:00 | AB5: 00:00:00 | AC5: 00:00:00 | AD5: 00:00:00 | AE5: 00:00:00 | AF5: 00:00:00 | AG5: =SUM(B5:AF5) -> 0.3125 | AH5: =AG5/SUM($AG$5:$AG$136) -> 0.02487562189 | AP5: =$AG5*'puncte misiuni-competente'!B5/'puncte misiuni-competente'!B$4/(3744/122*0.875) -> 0 | AQ5: =$AG5*'puncte misiuni-competente'!C5/'puncte misiuni-competente'!C$4/(3744/122*0.875) -> 0.0004655067155 | AR5: =$AG5*'puncte misiuni-competente'!D5/'puncte misiuni-competente'!D$4/(3744/122*0.875) -> 0 | AS5: =$AG5*'puncte misiuni-competente'!E5/'puncte misiuni-competente'!E$4/(3744/122*0.875) -> 0.0005818833944 | AT5: =$AG5*'puncte misiuni-competente'!F5/'puncte misiuni-competente'!F$4/(3744/122*0.875) -> 0.0003879222629 | AU5: =$AG5*'puncte misiuni-competente'!G5/'puncte misiuni-competente'!G$4/(3744/122*0.875) -> 0 | AV5: =$AG5*'puncte misiuni-competente'!H5/'puncte misiuni-competente'!H$4/(3744/122*0.875) -> 0.001057969808
B6: B
A7: 1.1.2. Oferta economica | B7: 00:00:00 | C7: 08:00:00 | D7: 03:00:00 | E7: 00:00:00 | F7: 07:00:00 | G7: 00:00:00 | H7: 00:00:00 | I7: 00:00:00 | J7: 00:00:00 | K7: 00:00:00 | L7: 00:00:00 | M7: 00:00:00 | N7: 00:00:00 | O7: 00:00:00 | P7: 00:00:00 | Q7: 00:00:00 | R7: 00:00:00 | S7: 00:00:00 | T7: 00:00:00 | U7: 00:00:00 | V7: 00:00:00 | W7: 00:00:00 | X7: 08:00:00 | Y7: 02:00:00 | Z7: 00:00:00 | AA7: 00:00:00 | AB7: 00:00:00 | AC7: 00:00:00 | AD7: 00:00:00 | AE7: 00:00:00 | AF7: 00:00:00 | AG7: =SUM(B7:AF7) -> 1.166666667 | AH7: =AG7/SUM($AG$5:$AG$136) -> 0.09286898839 | AP7: =$AG7*'puncte misiuni-competente'!B7/'puncte misiuni-competente'!B$4/(3744/122*0.875) -> 0 | AQ7: =$AG7*'puncte misiuni-competente'!C7/'puncte misiuni-competente'!C$4/(3744/122*0.875) -> 0 | AR7: =$AG7*'puncte misiuni-competente'!D7/'puncte misiuni-competente'!D$4/(3744/122*0.875) -> 0 | AS7: =$AG7*'puncte misiuni-competente'!E7/'puncte misiuni-competente'!E$4/(3744/122*0.875) -> 0.002172364672 | AT7: =$AG7*'puncte misiuni-competente'!F7/'puncte misiuni-competente'!F$4/(3744/122*0.875) -> 0.001448243115 | AU7: =$AG7*'puncte misiuni-competente'!G7/'puncte misiuni-competente'!G$4/(3744/122*0.875) -> 0.002555723144 | AV7: =$AG7*'puncte misiuni-competente'!H7/'puncte misiuni-competente'!H$4/(3744/122*0.875) -> 0.00394975395
C8: A | D8: B | F8: A | X8: B | Y8: A
A9: 1.1.3 Acceptarea ofertei si încheierea contractului de proiectare | B9: 00:00:00 | C9: 00:00:00 | D9: 00:00:00 | E9: 00:00:00 | F9: 00:00:00 | G9: 00:00:00 | H9: 00:00:00 | I9: 00:00:00 | J9: 00:00:00 | K9: 00:00:00 | L9: 00:00:00 | M9: 00:00:00 | N9: 00:00:00 | O9: 00:00:00 | P9: 00:00:00 | Q9: 00:00:00 | R9: 00:00:00 | S9: 00:00:00 | T9: 00:00:00 | U9: 00:00:00 | V9: 05:30:00 | W9: 00:00:00 | X9: 00:00:00 | Y9: 00:00:00 | Z9: 00:00:00 | AA9: 00:00:00 | AB9: 00:00:00 | AC9: 00:00:00 | AD9: 00:00:00 | AE9: 00:00:00 | AF9: 00:00:00 | AG9: =SUM(B9:AF9) -> 0.2291666667 | AH9: =AG9/SUM($AG$5:$AG$136) -> 0.01824212272 | AP9: =$AG9*'puncte misiuni-competente'!B9/'puncte misiuni-competente'!B$4/(3744/122*0.875) -> 0 | AQ9: =$AG9*'puncte misiuni-competente'!C9/'puncte misiuni-competente'!C$4/(3744/122*0.875) -> 0 | AR9: =$AG9*'puncte misiuni-competente'!D9/'puncte misiuni-competente'!D$4/(3744/122*0.875) -> 0 | AS9: =$AG9*'puncte misiuni-competente'!E9/'puncte misiuni-competente'!E$4/(3744/122*0.875) -> 0.0004267144892 | AT9: =$AG9*'puncte misiuni-competente'!F9/'puncte misiuni-competente'!F$4/(3744/122*0.875) -> 0.0002844763261 | AU9: =$AG9*'puncte misiuni-competente'!G9/'puncte misiuni-competente'!G$4/(3744/122*0.875) -> 0.0005020170461 | AV9: =$AG9*'puncte misiuni-competente'!H9/'puncte misiuni-competente'!H$4/(3744/122*0.875) -> 0.0007758445258
V10: A
A11: 1.1.4. Analiza contextului urbanistic, tehnic, si legislativ | B11: 00:00:00 | C11: 00:00:00 | D11: 00:00:00 | E11: 00:00:00 | F11: 00:00:00 | G11: 00:00:00 | H11: 00:00:00 | I11: 00:00:00 | J11: 00:00:00 | K11: 00:00:00 | L11: 00:00:00 | M11: 00:00:00 | N11: 00:00:00 | O11: 00:00:00 | P11: 00:00:00 | Q11: 00:00:00 | R11: 00:00:00 | S11: 00:00:00 | T11: 00:00:00 | U11: 00:00:00 | V11: 00:00:00 | W11: 00:00:00 | X11: 00:00:00 | Y11: 00:00:00 | Z11: 00:00:00 | AA11: 00:00:00 | AB11: 00:00:00 | AC11: 00:00:00 | AD11: 00:00:00 | AE11: 00:00:00 | AF11: 00:00:00 | AG11: =SUM(B11:AF11) -> 0 | AH11: =AG11/SUM($AG$5:$AG$136) -> 0 | AP11: =$AG11*'puncte misiuni-competente'!B11/'puncte misiuni-competente'!B$4/(3744/122*0.875) -> 0 | AQ11: =$AG11*'puncte misiuni-competente'!C11/'puncte misiuni-competente'!C$4/(3744/122*0.875) -> 0 | AR11: =$AG11*'puncte misiuni-competente'!D11/'puncte misiuni-competente'!D$4/(3744/122*0.875) -> 0 | AS11: =$AG11*'puncte misiuni-competente'!E11/'puncte misiuni-competente'!E$4/(3744/122*0.875) -> 0 | AT11: =$AG11*'puncte misiuni-competente'!F11/'puncte misiuni-competente'!F$4/(3744/122*0.875) -> 0 | AU11: =$AG11*'puncte misiuni-competente'!G11/'puncte misiuni-competente'!G$4/(3744/122*0.875) -> 0 | AV11: =$AG11*'puncte misiuni-competente'!H11/'puncte misiuni-competente'!H$4/(3744/122*0.875) -> 0
A13: 1.2.1. Consultanta imobiliara | B13: 00:00:00 | C13: 00:00:00 | D13: 00:00:00 | E13: 00:00:00 | F13: 00:00:00 | G13: 00:00:00 | H13: 00:00:00 | I13: 00:00:00 | J13: 00:00:00 | K13: 00:00:00 | L13: 00:00:00 | M13: 00:00:00 | N13: 00:00:00 | O13: 00:00:00 | P13: 00:00:00 | Q13: 00:00:00 | R13: 00:00:00 | S13: 00:00:00 | T13: 00:00:00 | U13: 00:00:00 | V13: 00:00:00 | W13: 00:00:00 | X13: 00:00:00 | Y13: 00:00:00 | Z13: 00:00:00 | AA13: 00:00:00 | AB13: 00:00:00 | AC13: 00:00:00 | AD13: 00:00:00 | AE13: 00:00:00 | AF13: 00:00:00 | AG13: =SUM(B13:AF13) -> 0 | AH13: =AG13/SUM($AG$5:$AG$136) -> 0 | AP13: =$AG13*'puncte misiuni-competente'!B13/'puncte misiuni-competente'!B$4/(3744/122*0.875) -> 0 | AQ13: =$AG13*'puncte misiuni-competente'!C13/'puncte misiuni-competente'!C$4/(3744/122*0.875) -> 0 | AR13: =$AG13*'puncte misiuni-competente'!D13/'puncte misiuni-competente'!D$4/(3744/122*0.875) -> 0 | AS13: =$AG13*'puncte misiuni-competente'!E13/'puncte misiuni-competente'!E$4/(3744/122*0.875) -> 0 | AT13: =$AG13*'puncte misiuni-competente'!F13/'puncte misiuni-competente'!F$4/(3744/122*0.875) -> 0 | AU13: =$AG13*'puncte misiuni-competente'!G13/'puncte misiuni-competente'!G$4/(3744/122*0.875) -> 0 | AV13: =$AG13*'puncte misiuni-competente'!H13/'puncte misiuni-competente'!H$4/(3744/122*0.875) -> 0
A15: 1.2.2. Ilustrarea de tema in scop de ofertare | B15: 00:00:00 | C15: 00:00:00 | D15: 00:00:00 | E15: 00:00:00 | F15: 00:00:00 | G15: 00:00:00 | H15: 00:00:00 | I15: 00:00:00 | J15: 00:00:00 | K15: 00:00:00 | L15: 00:00:00 | M15: 00:00:00 | N15: 00:00:00 | O15: 00:00:00 | P15: 00:00:00 | Q15: 00:00:00 | R15: 00:00:00 | S15: 00:00:00 | T15: 00:00:00 | U15: 00:00:00 | V15: 00:00:00 | W15: 01:00:00 | X15: 00:00:00 | Y15: 00:00:00 | Z15: 00:00:00 | AA15: 00:00:00 | AB15: 00:00:00 | AC15: 00:00:00 | AD15: 00:00:00 | AE15: 00:00:00 | AF15: 00:00:00 | AG15: =SUM(B15:AF15) -> 0.04166666667 | AH15: =AG15/SUM($AG$5:$AG$136) -> 0.003316749585 | AP15: =$AG15*'puncte misiuni-competente'!B15/'puncte misiuni-competente'!B$4/(3744/122*0.875) -> 0.0002216698645 | AQ15: =$AG15*'puncte misiuni-competente'!C15/'puncte misiuni-competente'!C$4/(3744/122*0.875) -> 6.206756207e-05 | AR15: =$AG15*'puncte misiuni-competente'!D15/'puncte misiuni-competente'!D$4/(3744/122*0.875) -> 0.000129307421 | AS15: =$AG15*'puncte misiuni-competente'!E15/'puncte misiuni-competente'!E$4/(3744/122*0.875) -> 7.758445258e-05 | AT15: =$AG15*'puncte misiuni-competente'!F15/'puncte misiuni-competente'!F$4/(3744/122*0.875) -> 5.172296839e-05 | AU15: =$AG15*'puncte misiuni-competente'!G15/'puncte misiuni-competente'!G$4/(3744/122*0.875) -> 0 | AV15: =$AG15*'puncte misiuni-competente'!H15/'puncte misiuni-competente'!H$4/(3744/122*0.875) -> 0
W16: B
A17: 1.2.3. Studiul de prefezabilitate | B17: 00:00:00 | C17: 00:00:00 | D17: 02:30:00 | E17: 00:00:00 | F17: 00:00:00 | G17: 00:00:00 | H17: 00:00:00 | I17: 00:00:00 | J17: 00:00:00 | K17: 00:00:00 | L17: 00:00:00 | M17: 00:00:00 | N17: 00:00:00 | O17: 00:00:00 | P17: 00:00:00 | Q17: 00:00:00 | R17: 00:00:00 | S17: 00:00:00 | T17: 00:00:00 | U17: 00:00:00 | V17: 00:00:00 | W17: 00:00:00 | X17: 00:00:00 | Y17: 00:00:00 | Z17: 00:00:00 | AA17: 00:00:00 | AB17: 00:00:00 | AC17: 00:00:00 | AD17: 00:00:00 | AE17: 00:00:00 | AF17: 00:00:00 | AG17: =SUM(B17:AF17) -> 0.1041666667 | AH17: =AG17/SUM($AG$5:$AG$136) -> 0.008291873964 | AP17: =$AG17*'puncte misiuni-competente'!B17/'puncte misiuni-competente'!B$4/(3744/122*0.875) -> 0 | AQ17: =$AG17*'puncte misiuni-competente'!C17/'puncte misiuni-competente'!C$4/(3744/122*0.875) -> 0.0001551689052 | AR17: =$AG17*'puncte misiuni-competente'!D17/'puncte misiuni-competente'!D$4/(3744/122*0.875) -> 0 | AS17: =$AG17*'puncte misiuni-competente'!E17/'puncte misiuni-competente'!E$4/(3744/122*0.875) -> 0.0001939611315 | AT17: =$AG17*'puncte misiuni-competente'!F17/'puncte misiuni-competente'!F$4/(3744/122*0.875) -> 0.000129307421 | AU17: =$AG17*'puncte misiuni-competente'!G17/'puncte misiuni-competente'!G$4/(3744/122*0.875) -> 0.0002281895664 | AV17: =$AG17*'puncte misiuni-competente'!H17/'puncte misiuni-competente'!H$4/(3744/122*0.875) -> 0
D18: A
A19: 2.1.1. Tema preliminara de proiectare | B19: 00:00:00 | C19: 00:00:00 | D19: 00:00:00 | E19: 00:00:00 | F19: 00:00:00 | G19: 00:00:00 | H19: 00:00:00 | I19: 00:00:00 | J19: 00:00:00 | K19: 00:00:00 | L19: 00:00:00 | M19: 00:00:00 | N19: 00:00:00 | O19: 00:00:00 | P19: 00:00:00 | Q19: 00:00:00 | R19: 00:00:00 | S19: 00:00:00 | T19: 00:00:00 | U19: 00:00:00 | V19: 00:00:00 | W19: 00:00:00 | X19: 00:00:00 | Y19: 00:00:00 | Z19: 00:00:00 | AA19: 00:00:00 | AB19: 00:00:00 | AC19: 00:00:00 | AD19: 00:00:00 | AE19: 00:00:00 | AF19: 00:00:00 | AG19: =SUM(B19:AF19) -> 0 | AH19: =AG19/SUM($AG$5:$AG$136) -> 0 | AP19: =$AG19*'puncte misiuni-competente'!B19/'puncte misiuni-competente'!B$4/(3744/122*0.875) -> 0 | AQ19: =$AG19*'puncte misiuni-competente'!C19/'puncte misiuni-competente'!C$4/(3744/122*0.875) -> 0 | AR19: =$AG19*'puncte misiuni-competente'!D19/'puncte misiuni-competente'!D$4/(3744/122*0.875) -> 0 | AS19: =$AG19*'puncte misiuni-competente'!E19/'puncte misiuni-competente'!E$4/(3744/122*0.875) -> 0 | AT19: =$AG19*'puncte misiuni-competente'!F19/'puncte misiuni-competente'!F$4/(3744/122*0.875) -> 0 | AU19: =$AG19*'puncte misiuni-competente'!G19/'puncte misiuni-competente'!G$4/(3744/122*0.875) -> 0 | AV19: =$AG19*'puncte misiuni-competente'!H19/'puncte misiuni-competente'!H$4/(3744/122*0.875) -> 0
A21: 2.1.2. Documente si studii necesare | B21: 00:00:00 | C21: 00:00:00 | D21: 00:00:00 | E21: 00:00:00 | F21: 00:00:00 | G21: 00:00:00 | H21: 00:00:00 | I21: 00:00:00 | J21: 00:00:00 | K21: 00:00:00 | L21: 00:00:00 | M21: 00:00:00 | N21: 00:00:00 | O21: 00:00:00 | P21: 00:00:00 | Q21: 00:00:00 | R21: 00:00:00 | S21: 00:00:00 | T21: 00:00:00 | U21: 00:00:00 | V21: 00:00:00 | W21: 00:00:00 | X21: 00:00:00 | Y21: 00:00:00 | Z21: 00:00:00 | AA21: 00:00:00 | AB21: 00:00:00 | AC21: 00:00:00 | AD21: 00:00:00 | AE21: 00:00:00 | AF21: 00:00:00 | AG21: =SUM(B21:AF21) -> 0 | AH21: =AG21/SUM($AG$5:$AG$136) -> 0 | AP21: =$AG21*'puncte misiuni-competente'!B21/'puncte misiuni-competente'!B$4/(3744/122*0.875) -> 0 | AQ21: =$AG21*'puncte misiuni-competente'!C21/'puncte misiuni-competente'!C$4/(3744/122*0.875) -> 0 | AR21: =$AG21*'puncte misiuni-competente'!D21/'puncte misiuni-competente'!D$4/(3744/122*0.875) -> 0 | AS21: =$AG21*'puncte misiuni-competente'!E21/'puncte misiuni-competente'!E$4/(3744/122*0.875) -> 0 | AT21: =$AG21*'puncte misiuni-competente'!F21/'puncte misiuni-competente'!F$4/(3744/122*0.875) -> 0 | AU21: =$AG21*'puncte misiuni-competente'!G21/'puncte misiuni-competente'!G$4/(3744/122*0.875) -> 0 | AV21: =$AG21*'puncte misiuni-competente'!H21/'puncte misiuni-competente'!H$4/(3744/122*0.875) -> 0
A23: 2.1.3. Specialiști necesar a fi implicati in elaborarea proiectului | B23: 00:00:00 | C23: 00:00:00 | D23: 00:00:00 | E23: 00:00:00 | F23: 00:00:00 | G23: 00:00:00 | H23: 00:00:00 | I23: 00:00:00 | J23: 00:00:00 | K23: 00:00:00 | L23: 00:00:00 | M23: 00:00:00 | N23: 00:00:00 | O23: 00:00:00 | P23: 00:00:00 | Q23: 00:00:00 | R23: 00:00:00 | S23: 00:00:00 | T23: 00:00:00 | U23: 00:00:00 | V23: 00:00:00 | W23: 00:00:00 | X23: 00:00:00 | Y23: 00:00:00 | Z23: 00:00:00 | AA23: 00:00:00 | AB23: 00:00:00 | AC23: 00:00:00 | AD23: 00:00:00 | AE23: 00:00:00 | AF23: 00:00:00 | AG23: =SUM(B23:AF23) -> 0 | AH23: =AG23/SUM($AG$5:$AG$136) -> 0 | AP23: =$AG23*'puncte misiuni-competente'!B23/'puncte misiuni-competente'!B$4/(3744/122*0.875) -> 0 | AQ23: =$AG23*'puncte misiuni-competente'!C23/'puncte misiuni-competente'!C$4/(3744/122*0.875) -> 0 | AR23: =$AG23*'puncte misiuni-competente'!D23/'puncte misiuni-competente'!D$4/(3744/122*0.875) -> 0 | AS23: =$AG23*'puncte misiuni-competente'!E23/'puncte misiuni-competente'!E$4/(3744/122*0.875) -> 0 | AT23: =$AG23*'puncte misiuni-competente'!F23/'puncte misiuni-competente'!F$4/(3744/122*0.875) -> 0 | AU23: =$AG23*'puncte misiuni-competente'!G23/'puncte misiuni-competente'!G$4/(3744/122*0.875) -> 0 | AV23: =$AG23*'puncte misiuni-competente'!H23/'puncte misiuni-competente'!H$4/(3744/122*0.875) -> 0
A25: 2.1.4. Ilustrare de tema | B25: 00:00:00 | C25: 00:00:00 | D25: 00:00:00 | E25: 00:00:00 | F25: 00:00:00 | G25: 00:00:00 | H25: 00:00:00 | I25: 00:00:00 | J25: 00:00:00 | K25: 00:00:00 | L25: 00:00:00 | M25: 00:00:00 | N25: 00:00:00 | O25: 00:00:00 | P25: 00:00:00 | Q25: 00:00:00 | R25: 00:00:00 | S25: 00:00:00 | T25: 00:00:00 | U25: 00:00:00 | V25: 00:00:00 | W25: 00:00:00 | X25: 00:00:00 | Y25: 00:00:00 | Z25: 00:00:00 | AA25: 00:00:00 | AB25: 00:00:00 | AC25: 00:00:00 | AD25: 00:00:00 | AE25: 00:00:00 | AF25: 00:00:00 | AG25: =SUM(B25:AF25) -> 0 | AH25: =AG25/SUM($AG$5:$AG$136) -> 0 | AP25: =$AG25*'puncte misiuni-competente'!B25/'puncte misiuni-competente'!B$4/(3744/122*0.875) -> 0 | AQ25: =$AG25*'puncte misiuni-competente'!C25/'puncte misiuni-competente'!C$4/(3744/122*0.875) -> 0 | AR25: =$AG25*'puncte misiuni-competente'!D25/'puncte misiuni-competente'!D$4/(3744/122*0.875) -> 0 | AS25: =$AG25*'puncte misiuni-competente'!E25/'puncte misiuni-competente'!E$4/(3744/122*0.875) -> 0 | AT25: =$AG25*'puncte misiuni-competente'!F25/'puncte misiuni-competente'!F$4/(3744/122*0.875) -> 0 | AU25: =$AG25*'puncte misiuni-competente'!G25/'puncte misiuni-competente'!G$4/(3744/122*0.875) -> 0 | AV25: =$AG25*'puncte misiuni-competente'!H25/'puncte misiuni-competente'!H$4/(3744/122*0.875) -> 0
A27: 2.1.5. Bugetare costuri de investitie | B27: 00:00:00 | C27: 00:00:00 | D27: 00:00:00 | E27: 00:00:00 | F27: 00:00:00 | G27: 00:00:00 | H27: 00:00:00 | I27: 00:00:00 | J27: 00:00:00 | K27: 00:00:00 | L27: 00:00:00 | M27: 00:00:00 | N27: 00:00:00 | O27: 00:00:00 | P27: 00:00:00 | Q27: 00:00:00 | R27: 00:00:00 | S27: 00:00:00 | T27: 00:00:00 | U27: 00:00:00 | V27: 00:00:00 | W27: 00:00:00 | X27: 00:00:00 | Y27: 00:00:00 | Z27: 00:00:00 | AA27: 00:00:00 | AB27: 00:00:00 | AC27: 00:00:00 | AD27: 00:00:00 | AE27: 00:00:00 | AF27: 00:00:00 | AG27: =SUM(B27:AF27) -> 0 | AH27: =AG27/SUM($AG$5:$AG$136) -> 0 | AP27: =$AG27*'puncte misiuni-competente'!B27/'puncte misiuni-competente'!B$4/(3744/122*0.875) -> 0 | AQ27: =$AG27*'puncte misiuni-competente'!C27/'puncte misiuni-competente'!C$4/(3744/122*0.875) -> 0 | AR27: =$AG27*'puncte misiuni-competente'!D27/'puncte misiuni-competente'!D$4/(3744/122*0.875) -> 0 | AS27: =$AG27*'puncte misiuni-competente'!E27/'puncte misiuni-competente'!E$4/(3744/122*0.875) -> 0 | AT27: =$AG27*'puncte misiuni-competente'!F27/'puncte misiuni-competente'!F$4/(3744/122*0.875) -> 0 | AU27: =$AG27*'puncte misiuni-competente'!G27/'puncte misiuni-competente'!G$4/(3744/122*0.875) -> 0 | AV27: =$AG27*'puncte misiuni-competente'!H27/'puncte misiuni-competente'!H$4/(3744/122*0.875) -> 0
A29: 2.1.6. Planificarea desfasurarii investitiei | B29: 00:00:00 | C29: 00:00:00 | D29: 00:00:00 | E29: 00:00:00 | F29: 00:00:00 | G29: 00:00:00 | H29: 00:00:00 | I29: 00:00:00 | J29: 00:00:00 | K29: 00:00:00 | L29: 00:00:00 | M29: 00:00:00 | N29: 00:00:00 | O29: 00:00:00 | P29: 00:00:00 | Q29: 00:00:00 | R29: 00:00:00 | S29: 00:00:00 | T29: 00:00:00 | U29: 00:00:00 | V29: 00:00:00 | W29: 00:00:00 | X29: 00:00:00 | Y29: 00:00:00 | Z29: 00:00:00 | AA29: 00:00:00 | AB29: 00:00:00 | AC29: 00:00:00 | AD29: 00:00:00 | AE29: 00:00:00 | AF29: 00:00:00 | AG29: =SUM(B29:AF29) -> 0 | AH29: =AG29/SUM($AG$5:$AG$136) -> 0 | AP29: =$AG29*'puncte misiuni-competente'!B29/'puncte misiuni-competente'!B$4/(3744/122*0.875) -> 0 | AQ29: =$AG29*'puncte misiuni-competente'!C29/'puncte misiuni-competente'!C$4/(3744/122*0.875) -> 0 | AR29: =$AG29*'puncte misiuni-competente'!D29/'puncte misiuni-competente'!D$4/(3744/122*0.875) -> 0 | AS29: =$AG29*'puncte misiuni-competente'!E29/'puncte misiuni-competente'!E$4/(3744/122*0.875) -> 0 | AT29: =$AG29*'puncte misiuni-competente'!F29/'puncte misiuni-competente'!F$4/(3744/122*0.875) -> 0 | AU29: =$AG29*'puncte misiuni-competente'!G29/'puncte misiuni-competente'!G$4/(3744/122*0.875) -> 0 | AV29: =$AG29*'puncte misiuni-competente'!H29/'puncte misiuni-competente'!H$4/(3744/122*0.875) -> 0
A31: 2.1.7. Releveu | B31: 00:00:00 | C31: 00:00:00 | D31: 00:00:00 | E31: 00:00:00 | F31: 00:00:00 | G31: 00:00:00 | H31: 00:00:00 | I31: 00:00:00 | J31: 00:00:00 | K31: 00:00:00 | L31: 00:00:00 | M31: 00:00:00 | N31: 00:00:00 | O31: 00:00:00 | P31: 00:00:00 | Q31: 00:00:00 | R31: 00:00:00 | S31: 00:00:00 | T31: 00:00:00 | U31: 00:00:00 | V31: 00:00:00 | W31: 00:00:00 | X31: 00:00:00 | Y31: 00:00:00 | Z31: 00:00:00 | AA31: 00:00:00 | AB31: 00:00:00 | AC31: 00:00:00 | AD31: 00:00:00 | AE31: 00:00:00 | AF31: 00:00:00 | AG31: =SUM(B31:AF31) -> 0 | AH31: =AG31/SUM($AG$5:$AG$136) -> 0 | AP31: =$AG31*'puncte misiuni-competente'!B31/'puncte misiuni-competente'!B$4/(3744/122*0.875) -> 0 | AQ31: =$AG31*'puncte misiuni-competente'!C31/'puncte misiuni-competente'!C$4/(3744/122*0.875) -> 0 | AR31: =$AG31*'puncte misiuni-competente'!D31/'puncte misiuni-competente'!D$4/(3744/122*0.875) -> 0 | AS31: =$AG31*'puncte misiuni-competente'!E31/'puncte misiuni-competente'!E$4/(3744/122*0.875) -> 0 | AT31: =$AG31*'puncte misiuni-competente'!F31/'puncte misiuni-competente'!F$4/(3744/122*0.875) -> 0 | AU31: =$AG31*'puncte misiuni-competente'!G31/'puncte misiuni-competente'!G$4/(3744/122*0.875) -> 0 | AV31: =$AG31*'puncte misiuni-competente'!H31/'puncte misiuni-competente'!H$4/(3744/122*0.875) -> 0
A33: 2.2.1. Studiu de ilustrare comparativ | B33: 00:00:00 | C33: 00:00:00 | D33: 00:00:00 | E33: 00:00:00 | F33: 00:00:00 | G33: 00:00:00 | H33: 00:00:00 | I33: 00:00:00 | J33: 00:00:00 | K33: 00:00:00 | L33: 00:00:00 | M33: 00:00:00 | N33: 00:00:00 | O33: 00:00:00 | P33: 00:00:00 | Q33: 00:00:00 | R33: 00:00:00 | S33: 00:00:00 | T33: 00:00:00 | U33: 00:00:00 | V33: 00:00:00 | W33: 00:00:00 | X33: 00:00:00 | Y33: 00:00:00 | Z33: 00:00:00 | AA33: 00:00:00 | AB33: 00:00:00 | AC33: 00:00:00 | AD33: 00:00:00 | AE33: 00:00:00 | AF33: 00:00:00 | AG33: =SUM(B33:AF33) -> 0 | AH33: =AG33/SUM($AG$5:$AG$136) -> 0 | AP33: =$AG33*'puncte misiuni-competente'!B33/'puncte misiuni-competente'!B$4/(3744/122*0.875) -> 0 | AQ33: =$AG33*'puncte misiuni-competente'!C33/'puncte misiuni-competente'!C$4/(3744/122*0.875) -> 0 | AR33: =$AG33*'puncte misiuni-competente'!D33/'puncte misiuni-competente'!D$4/(3744/122*0.875) -> 0 | AS33: =$AG33*'puncte misiuni-competente'!E33/'puncte misiuni-competente'!E$4/(3744/122*0.875) -> 0 | AT33: =$AG33*'puncte misiuni-competente'!F33/'puncte misiuni-competente'!F$4/(3744/122*0.875) -> 0 | AU33: =$AG33*'puncte misiuni-competente'!G33/'puncte misiuni-competente'!G$4/(3744/122*0.875) -> 0 | AV33: =$AG33*'puncte misiuni-competente'!H33/'puncte misiuni-competente'!H$4/(3744/122*0.875) -> 0
A35: 2.2.2. Solicitarea, urmarirea stadiului de elaborare si ridicarea certificatului de urbanism si a avizelor | B35: 00:00:00 | C35: 00:00:00 | D35: 00:00:00 | E35: 00:00:00 | F35: 00:00:00 | G35: 00:00:00 | H35: 00:00:00 | I35: 00:00:00 | J35: 00:00:00 | K35: 00:00:00 | L35: 00:00:00 | M35: 00:00:00 | N35: 00:00:00 | O35: 00:00:00 | P35: 00:00:00 | Q35: 00:00:00 | R35: 00:00:00 | S35: 00:00:00 | T35: 00:00:00 | U35: 00:00:00 | V35: 00:00:00 | W35: 00:00:00 | X35: 00:00:00 | Y35: 00:00:00 | Z35: 00:00:00 | AA35: 00:00:00 | AB35: 00:00:00 | AC35: 00:00:00 | AD35: 00:00:00 | AE35: 00:00:00 | AF35: 00:00:00 | AG35: =SUM(B35:AF35) -> 0 | AH35: =AG35/SUM($AG$5:$AG$136) -> 0 | AP35: =$AG35*'puncte misiuni-competente'!B35/'puncte misiuni-competente'!B$4/(3744/122*0.875) -> 0 | AQ35: =$AG35*'puncte misiuni-competente'!C35/'puncte misiuni-competente'!C$4/(3744/122*0.875) -> 0 | AR35: =$AG35*'puncte misiuni-competente'!D35/'puncte misiuni-competente'!D$4/(3744/122*0.875) -> 0 | AS35: =$AG35*'puncte misiuni-competente'!E35/'puncte misiuni-competente'!E$4/(3744/122*0.875) -> 0 | AT35: =$AG35*'puncte misiuni-competente'!F35/'puncte misiuni-competente'!F$4/(3744/122*0.875) -> 0 | AU35: =$AG35*'puncte misiuni-competente'!G35/'puncte misiuni-competente'!G$4/(3744/122*0.875) -> 0 | AV35: =$AG35*'puncte misiuni-competente'!H35/'puncte misiuni-competente'!H$4/(3744/122*0.875) -> 0
A37: 2.2.3. Bugetare costuri de operare | B37: 00:00:00 | C37: 00:00:00 | D37: 00:00:00 | E37: 00:00:00 | F37: 00:00:00 | G37: 00:00:00 | H37: 00:00:00 | I37: 00:00:00 | J37: 00:00:00 | K37: 00:00:00 | L37: 00:00:00 | M37: 00:00:00 | N37: 00:00:00 | O37: 00:00:00 | P37: 00:00:00 | Q37: 00:00:00 | R37: 00:00:00 | S37: 00:00:00 | T37: 00:00:00 | U37: 00:00:00 | V37: 00:00:00 | W37: 00:00:00 | X37: 00:00:00 | Y37: 00:00:00 | Z37: 00:00:00 | AA37: 00:00:00 | AB37: 00:00:00 | AC37: 00:00:00 | AD37: 00:00:00 | AE37: 00:00:00 | AF37: 00:00:00 | AG37: =SUM(B37:AF37) -> 0 | AH37: =AG37/SUM($AG$5:$AG$136) -> 0 | AP37: =$AG37*'puncte misiuni-competente'!B37/'puncte misiuni-competente'!B$4/(3744/122*0.875) -> 0 | AQ37: =$AG37*'puncte misiuni-competente'!C37/'puncte misiuni-competente'!C$4/(3744/122*0.875) -> 0 | AR37: =$AG37*'puncte misiuni-competente'!D37/'puncte misiuni-competente'!D$4/(3744/122*0.875) -> 0 | AS37: =$AG37*'puncte misiuni-competente'!E37/'puncte misiuni-competente'!E$4/(3744/122*0.875) -> 0 | AT37: =$AG37*'puncte misiuni-competente'!F37/'puncte misiuni-competente'!F$4/(3744/122*0.875) -> 0 | AU37: =$AG37*'puncte misiuni-competente'!G37/'puncte misiuni-competente'!G$4/(3744/122*0.875) -> 0 | AV37: =$AG37*'puncte misiuni-competente'!H37/'puncte misiuni-competente'!H$4/(3744/122*0.875) -> 0
A39: 2.2.4. Consultanta privind modalitatea de modificare a regimului tehnic si economic al imobilului | B39: 00:00:00 | C39: 00:00:00 | D39: 00:00:00 | E39: 00:00:00 | F39: 00:00:00 | G39: 00:00:00 | H39: 00:00:00 | I39: 00:00:00 | J39: 00:00:00 | K39: 00:00:00 | L39: 00:00:00 | M39: 00:00:00 | N39: 00:00:00 | O39: 00:00:00 | P39: 00:00:00 | Q39: 00:00:00 | R39: 00:00:00 | S39: 00:00:00 | T39: 00:00:00 | U39: 00:00:00 | V39: 00:00:00 | W39: 00:00:00 | X39: 00:00:00 | Y39: 00:00:00 | Z39: 00:00:00 | AA39: 00:00:00 | AB39: 00:00:00 | AC39: 00:00:00 | AD39: 00:00:00 | AE39: 00:00:00 | AF39: 00:00:00 | AG39: =SUM(B39:AF39) -> 0 | AH39: =AG39/SUM($AG$5:$AG$136) -> 0 | AP39: =$AG39*'puncte misiuni-competente'!B39/'puncte misiuni-competente'!B$4/(3744/122*0.875) -> 0 | AQ39: =$AG39*'puncte misiuni-competente'!C39/'puncte misiuni-competente'!C$4/(3744/122*0.875) -> 0 | AR39: =$AG39*'puncte misiuni-competente'!D39/'puncte misiuni-competente'!D$4/(3744/122*0.875) -> 0 | AS39: =$AG39*'puncte misiuni-competente'!E39/'puncte misiuni-competente'!E$4/(3744/122*0.875) -> 0 | AT39: =$AG39*'puncte misiuni-competente'!F39/'puncte misiuni-competente'!F$4/(3744/122*0.875) -> 0 | AU39: =$AG39*'puncte misiuni-competente'!G39/'puncte misiuni-competente'!G$4/(3744/122*0.875) -> 0 | AV39: =$AG39*'puncte misiuni-competente'!H39/'puncte misiuni-competente'!H$4/(3744/122*0.875) -> 0
A41: 3.1.1. Concept general si de arhitectura | B41: 00:00:00 | C41: 00:00:00 | D41: 00:00:00 | E41: 00:00:00 | F41: 00:00:00 | G41: 00:00:00 | H41: 08:00:00 | I41: 08:00:00 | J41: 08:00:00 | K41: 08:00:00 | L41: 08:00:00 | M41: 08:00:00 | N41: 08:00:00 | O41: 08:00:00 | P41: 00:00:00 | Q41: 00:00:00 | R41: 00:00:00 | S41: 00:00:00 | T41: 00:00:00 | U41: 00:00:00 | V41: 00:00:00 | W41: 00:00:00 | X41: 00:00:00 | Y41: 00:00:00 | Z41: 00:00:00 | AA41: 00:00:00 | AB41: 00:00:00 | AC41: 00:00:00 | AD41: 00:00:00 | AE41: 00:00:00 | AF41: 00:00:00 | AG41: =SUM(B41:AF41) -> 2.666666667 | AH41: =AG41/SUM($AG$5:$AG$136) -> 0.2122719735 | AP41: =$AG41*'puncte misiuni-competente'!B41/'puncte misiuni-competente'!B$4/(3744/122*0.875) -> 0.01418687133 | AQ41: =$AG41*'puncte misiuni-competente'!C41/'puncte misiuni-competente'!C$4/(3744/122*0.875) -> 0.003972323972 | AR41: =$AG41*'puncte misiuni-competente'!D41/'puncte misiuni-competente'!D$4/(3744/122*0.875) -> 0.008275674942 | AS41: =$AG41*'puncte misiuni-competente'!E41/'puncte misiuni-competente'!E$4/(3744/122*0.875) -> 0.004965404965 | AT41: =$AG41*'puncte misiuni-competente'!F41/'puncte misiuni-competente'!F$4/(3744/122*0.875) -> 0.003310269977 | AU41: =$AG41*'puncte misiuni-competente'!G41/'puncte misiuni-competente'!G$4/(3744/122*0.875) -> 0.0058416529 | AV41: =$AG41*'puncte misiuni-competente'!H41/'puncte misiuni-competente'!H$4/(3744/122*0.875) -> 0
H42: A | I42: A | J42: A | K42: A | L42: A | M42: A | N42: A | O42: A
A43: 3.1.2. Planificarea desfasurarii investitiei | B43: 00:00:00 | C43: 00:00:00 | D43: 00:00:00 | E43: 00:00:00 | F43: 00:00:00 | G43: 00:00:00 | H43: 00:00:00 | I43: 00:00:00 | J43: 00:00:00 | K43: 00:00:00 | L43: 00:00:00 | M43: 00:00:00 | N43: 00:00:00 | O43: 00:00:00 | P43: 00:00:00 | Q43: 00:00:00 | R43: 00:00:00 | S43: 00:00:00 | T43: 00:00:00 | U43: 00:00:00 | V43: 00:00:00 | W43: 00:00:00 | X43: 00:00:00 | Y43: 00:00:00 | Z43: 00:00:00 | AA43: 00:00:00 | AB43: 00:00:00 | AC43: 00:00:00 | AD43: 00:00:00 | AE43: 00:00:00 | AF43: 00:00:00 | AG43: =SUM(B43:AF43) -> 0 | AH43: =AG43/SUM($AG$5:$AG$136) -> 0 | AP43: =$AG43*'puncte misiuni-competente'!B43/'puncte misiuni-competente'!B$4/(3744/122*0.875) -> 0 | AQ43: =$AG43*'puncte misiuni-competente'!C43/'puncte misiuni-competente'!C$4/(3744/122*0.875) -> 0 | AR43: =$AG43*'puncte misiuni-competente'!D43/'puncte misiuni-competente'!D$4/(3744/122*0.875) -> 0 | AS43: =$AG43*'puncte misiuni-competente'!E43/'puncte misiuni-competente'!E$4/(3744/122*0.875) -> 0 | AT43: =$AG43*'puncte misiuni-competente'!F43/'puncte misiuni-competente'!F$4/(3744/122*0.875) -> 0 | AU43: =$AG43*'puncte misiuni-competente'!G43/'puncte misiuni-competente'!G$4/(3744/122*0.875) -> 0 | AV43: =$AG43*'puncte misiuni-competente'!H43/'puncte misiuni-competente'!H$4/(3744/122*0.875) -> 0
A45: 3.2.1. Realizare de variante suplimentare | B45: 00:00:00 | C45: 00:00:00 | D45: 00:00:00 | E45: 00:00:00 | F45: 00:00:00 | G45: 00:00:00 | H45: 00:00:00 | I45: 00:00:00 | J45: 00:00:00 | K45: 00:00:00 | L45: 00:00:00 | M45: 00:00:00 | N45: 00:00:00 | O45: 00:00:00 | P45: 00:00:00 | Q45: 00:00:00 | R45: 00:00:00 | S45: 00:00:00 | T45: 00:00:00 | U45: 00:00:00 | V45: 00:00:00 | W45: 00:00:00 | X45: 00:00:00 | Y45: 00:00:00 | Z45: 00:00:00 | AA45: 00:00:00 | AB45: 00:00:00 | AC45: 00:00:00 | AD45: 00:00:00 | AE45: 00:00:00 | AF45: 00:00:00 | AG45: =SUM(B45:AF45) -> 0 | AH45: =AG45/SUM($AG$5:$AG$136) -> 0 | AP45: =$AG45*'puncte misiuni-competente'!B45/'puncte misiuni-competente'!B$4/(3744/122*0.875) -> 0 | AQ45: =$AG45*'puncte misiuni-competente'!C45/'puncte misiuni-competente'!C$4/(3744/122*0.875) -> 0 | AR45: =$AG45*'puncte misiuni-competente'!D45/'puncte misiuni-competente'!D$4/(3744/122*0.875) -> 0 | AS45: =$AG45*'puncte misiuni-competente'!E45/'puncte misiuni-competente'!E$4/(3744/122*0.875) -> 0 | AT45: =$AG45*'puncte misiuni-competente'!F45/'puncte misiuni-competente'!F$4/(3744/122*0.875) -> 0 | AU45: =$AG45*'puncte misiuni-competente'!G45/'puncte misiuni-competente'!G$4/(3744/122*0.875) -> 0 | AV45: =$AG45*'puncte misiuni-competente'!H45/'puncte misiuni-competente'!H$4/(3744/122*0.875) -> 0
A47: 3.2.2. Verificarea de incadrare in buget | B47: 00:00:00 | C47: 00:00:00 | D47: 00:00:00 | E47: 00:00:00 | F47: 00:00:00 | G47: 00:00:00 | H47: 00:00:00 | I47: 00:00:00 | J47: 00:00:00 | K47: 00:00:00 | L47: 00:00:00 | M47: 00:00:00 | N47: 00:00:00 | O47: 00:00:00 | P47: 00:00:00 | Q47: 00:00:00 | R47: 00:00:00 | S47: 00:00:00 | T47: 00:00:00 | U47: 00:00:00 | V47: 00:00:00 | W47: 00:00:00 | X47: 00:00:00 | Y47: 00:00:00 | Z47: 00:00:00 | AA47: 00:00:00 | AB47: 00:00:00 | AC47: 00:00:00 | AD47: 00:00:00 | AE47: 00:00:00 | AF47: 00:00:00 | AG47: =SUM(B47:AF47) -> 0 | AH47: =AG47/SUM($AG$5:$AG$136) -> 0 | AP47: =$AG47*'puncte misiuni-competente'!B47/'puncte misiuni-competente'!B$4/(3744/122*0.875) -> 0 | AQ47: =$AG47*'puncte misiuni-competente'!C47/'puncte misiuni-competente'!C$4/(3744/122*0.875) -> 0 | AR47: =$AG47*'puncte misiuni-competente'!D47/'puncte misiuni-competente'!D$4/(3744/122*0.875) -> 0 | AS47: =$AG47*'puncte misiuni-competente'!E47/'puncte misiuni-competente'!E$4/(3744/122*0.875) -> 0 | AT47: =$AG47*'puncte misiuni-competente'!F47/'puncte misiuni-competente'!F$4/(3744/122*0.875) -> 0 | AU47: =$AG47*'puncte misiuni-competente'!G47/'puncte misiuni-competente'!G$4/(3744/122*0.875) -> 0 | AV47: =$AG47*'puncte misiuni-competente'!H47/'puncte misiuni-competente'!H$4/(3744/122*0.875) -> 0
A49: 3.2.3. Estimarea costului investitiei | B49: 00:00:00 | C49: 00:00:00 | D49: 00:00:00 | E49: 00:00:00 | F49: 00:00:00 | G49: 00:00:00 | H49: 00:00:00 | I49: 00:00:00 | J49: 00:00:00 | K49: 00:00:00 | L49: 00:00:00 | M49: 00:00:00 | N49: 00:00:00 | O49: 00:00:00 | P49: 00:00:00 | Q49: 00:00:00 | R49: 00:00:00 | S49: 00:00:00 | T49: 00:00:00 | U49: 00:00:00 | V49: 00:00:00 | W49: 00:00:00 | X49: 00:00:00 | Y49: 00:00:00 | Z49: 00:00:00 | AA49: 00:00:00 | AB49: 00:00:00 | AC49: 00:00:00 | AD49: 00:00:00 | AE49: 00:00:00 | AF49: 00:00:00 | AG49: =SUM(B49:AF49) -> 0 | AH49: =AG49/SUM($AG$5:$AG$136) -> 0 | AP49: =$AG49*'puncte misiuni-competente'!B49/'puncte misiuni-competente'!B$4/(3744/122*0.875) -> 0 | AQ49: =$AG49*'puncte misiuni-competente'!C49/'puncte misiuni-competente'!C$4/(3744/122*0.875) -> 0 | AR49: =$AG49*'puncte misiuni-competente'!D49/'puncte misiuni-competente'!D$4/(3744/122*0.875) -> 0 | AS49: =$AG49*'puncte misiuni-competente'!E49/'puncte misiuni-competente'!E$4/(3744/122*0.875) -> 0 | AT49: =$AG49*'puncte misiuni-competente'!F49/'puncte misiuni-competente'!F$4/(3744/122*0.875) -> 0 | AU49: =$AG49*'puncte misiuni-competente'!G49/'puncte misiuni-competente'!G$4/(3744/122*0.875) -> 0 | AV49: =$AG49*'puncte misiuni-competente'!H49/'puncte misiuni-competente'!H$4/(3744/122*0.875) -> 0
A51: 3.2.4. Estimarea costului de operare | B51: 00:00:00 | C51: 00:00:00 | D51: 00:00:00 | E51: 00:00:00 | F51: 00:00:00 | G51: 00:00:00 | H51: 00:00:00 | I51: 00:00:00 | J51: 00:00:00 | K51: 00:00:00 | L51: 00:00:00 | M51: 00:00:00 | N51: 00:00:00 | O51: 00:00:00 | P51: 00:00:00 | Q51: 00:00:00 | R51: 00:00:00 | S51: 00:00:00 | T51: 00:00:00 | U51: 00:00:00 | V51: 00:00:00 | W51: 00:00:00 | X51: 00:00:00 | Y51: 00:00:00 | Z51: 00:00:00 | AA51: 00:00:00 | AB51: 00:00:00 | AC51: 00:00:00 | AD51: 00:00:00 | AE51: 00:00:00 | AF51: 00:00:00 | AG51: =SUM(B51:AF51) -> 0 | AH51: =AG51/SUM($AG$5:$AG$136) -> 0 | AP51: =$AG51*'puncte misiuni-competente'!B51/'puncte misiuni-competente'!B$4/(3744/122*0.875) -> 0 | AQ51: =$AG51*'puncte misiuni-competente'!C51/'puncte misiuni-competente'!C$4/(3744/122*0.875) -> 0 | AR51: =$AG51*'puncte misiuni-competente'!D51/'puncte misiuni-competente'!D$4/(3744/122*0.875) -> 0 | AS51: =$AG51*'puncte misiuni-competente'!E51/'puncte misiuni-competente'!E$4/(3744/122*0.875) -> 0 | AT51: =$AG51*'puncte misiuni-competente'!F51/'puncte misiuni-competente'!F$4/(3744/122*0.875) -> 0 | AU51: =$AG51*'puncte misiuni-competente'!G51/'puncte misiuni-competente'!G$4/(3744/122*0.875) -> 0 | AV51: =$AG51*'puncte misiuni-competente'!H51/'puncte misiuni-competente'!H$4/(3744/122*0.875) -> 0
A53: 3.2.5. Proiectare pentru un impact redus asupra mediului | B53: 00:00:00 | C53: 03:00:00 | D53: 00:00:00 | E53: 00:00:00 | F53: 00:00:00 | G53: 00:00:00 | H53: 00:00:00 | I53: 00:00:00 | J53: 00:00:00 | K53: 00:00:00 | L53: 00:00:00 | M53: 00:00:00 | N53: 00:00:00 | O53: 00:00:00 | P53: 00:00:00 | Q53: 00:00:00 | R53: 00:00:00 | S53: 00:00:00 | T53: 00:00:00 | U53: 00:00:00 | V53: 00:00:00 | W53: 00:00:00 | X53: 00:00:00 | Y53: 00:00:00 | Z53: 00:00:00 | AA53: 00:00:00 | AB53: 00:00:00 | AC53: 00:00:00 | AD53: 00:00:00 | AE53: 00:00:00 | AF53: 00:00:00 | AG53: =SUM(B53:AF53) -> 0.125 | AH53: =AG53/SUM($AG$5:$AG$136) -> 0.009950248756 | AP53: =$AG53*'puncte misiuni-competente'!B53/'puncte misiuni-competente'!B$4/(3744/122*0.875) -> 0 | AQ53: =$AG53*'puncte misiuni-competente'!C53/'puncte misiuni-competente'!C$4/(3744/122*0.875) -> 0.0001862026862 | AR53: =$AG53*'puncte misiuni-competente'!D53/'puncte misiuni-competente'!D$4/(3744/122*0.875) -> 0.0003879222629 | AS53: =$AG53*'puncte misiuni-competente'!E53/'puncte misiuni-competente'!E$4/(3744/122*0.875) -> 0.0002327533578 | AT53: =$AG53*'puncte misiuni-competente'!F53/'puncte misiuni-competente'!F$4/(3744/122*0.875) -> 0.0001551689052 | AU53: =$AG53*'puncte misiuni-competente'!G53/'puncte misiuni-competente'!G$4/(3744/122*0.875) -> 0 | AV53: =$AG53*'puncte misiuni-competente'!H53/'puncte misiuni-competente'!H$4/(3744/122*0.875) -> 0
C54: B
A55: 4.1.1. Tema detaliata (definitiva) | B55: 00:00:00 | C55: 00:00:00 | D55: 00:00:00 | E55: 00:00:00 | F55: 00:00:00 | G55: 00:00:00 | H55: 00:00:00 | I55: 00:00:00 | J55: 00:00:00 | K55: 00:00:00 | L55: 00:00:00 | M55: 00:00:00 | N55: 00:00:00 | O55: 00:00:00 | P55: 00:00:00 | Q55: 00:00:00 | R55: 00:00:00 | S55: 00:00:00 | T55: 00:00:00 | U55: 00:00:00 | V55: 00:00:00 | W55: 00:00:00 | X55: 00:00:00 | Y55: 00:00:00 | Z55: 00:00:00 | AA55: 00:00:00 | AB55: 00:00:00 | AC55: 00:00:00 | AD55: 00:00:00 | AE55: 00:00:00 | AF55: 00:00:00 | AG55: =SUM(B55:AF55) -> 0 | AH55: =AG55/SUM($AG$5:$AG$136) -> 0 | AP55: =$AG55*'puncte misiuni-competente'!B55/'puncte misiuni-competente'!B$4/(3744/122*0.875) -> 0 | AQ55: =$AG55*'puncte misiuni-competente'!C55/'puncte misiuni-competente'!C$4/(3744/122*0.875) -> 0 | AR55: =$AG55*'puncte misiuni-competente'!D55/'puncte misiuni-competente'!D$4/(3744/122*0.875) -> 0 | AS55: =$AG55*'puncte misiuni-competente'!E55/'puncte misiuni-competente'!E$4/(3744/122*0.875) -> 0 | AT55: =$AG55*'puncte misiuni-competente'!F55/'puncte misiuni-competente'!F$4/(3744/122*0.875) -> 0 | AU55: =$AG55*'puncte misiuni-competente'!G55/'puncte misiuni-competente'!G$4/(3744/122*0.875) -> 0 | AV55: =$AG55*'puncte misiuni-competente'!H55/'puncte misiuni-competente'!H$4/(3744/122*0.875) -> 0
A57: 4.1.2. Proiectul definitiv prezentat la nivel schematic | B57: 00:00:00 | C57: 00:00:00 | D57: 00:00:00 | E57: 00:00:00 | F57: 00:00:00 | G57: 00:00:00 | H57: 00:00:00 | I57: 00:00:00 | J57: 00:00:00 | K57: 00:00:00 | L57: 00:00:00 | M57: 00:00:00 | N57: 00:00:00 | O57: 00:00:00 | P57: 00:00:00 | Q57: 00:00:00 | R57: 00:00:00 | S57: 00:00:00 | T57: 00:00:00 | U57: 00:00:00 | V57: 00:00:00 | W57: 00:00:00 | X57: 00:00:00 | Y57: 00:00:00 | Z57: 00:00:00 | AA57: 00:00:00 | AB57: 00:00:00 | AC57: 00:00:00 | AD57: 00:00:00 | AE57: 00:00:00 | AF57: 00:00:00 | AG57: =SUM(B57:AF57) -> 0 | AH57: =AG57/SUM($AG$5:$AG$136) -> 0 | AP57: =$AG57*'puncte misiuni-competente'!B57/'puncte misiuni-competente'!B$4/(3744/122*0.875) -> 0 | AQ57: =$AG57*'puncte misiuni-competente'!C57/'puncte misiuni-competente'!C$4/(3744/122*0.875) -> 0 | AR57: =$AG57*'puncte misiuni-competente'!D57/'puncte misiuni-competente'!D$4/(3744/122*0.875) -> 0 | AS57: =$AG57*'puncte misiuni-competente'!E57/'puncte misiuni-competente'!E$4/(3744/122*0.875) -> 0 | AT57: =$AG57*'puncte misiuni-competente'!F57/'puncte misiuni-competente'!F$4/(3744/122*0.875) -> 0 | AU57: =$AG57*'puncte misiuni-competente'!G57/'puncte misiuni-competente'!G$4/(3744/122*0.875) -> 0 | AV57: =$AG57*'puncte misiuni-competente'!H57/'puncte misiuni-competente'!H$4/(3744/122*0.875) -> 0
A59: 4.1.3. Planificarea desfasurarii investitiei | B59: 00:00:00 | C59: 00:00:00 | D59: 00:00:00 | E59: 00:00:00 | F59: 00:00:00 | G59: 00:00:00 | H59: 00:00:00 | I59: 00:00:00 | J59: 00:00:00 | K59: 00:00:00 | L59: 00:00:00 | M59: 00:00:00 | N59: 00:00:00 | O59: 00:00:00 | P59: 00:00:00 | Q59: 00:00:00 | R59: 00:00:00 | S59: 00:00:00 | T59: 00:00:00 | U59: 00:00:00 | V59: 00:00:00 | W59: 00:00:00 | X59: 00:00:00 | Y59: 00:00:00 | Z59: 00:00:00 | AA59: 00:00:00 | AB59: 00:00:00 | AC59: 00:00:00 | AD59: 00:00:00 | AE59: 00:00:00 | AF59: 00:00:00 | AG59: =SUM(B59:AF59) -> 0 | AH59: =AG59/SUM($AG$5:$AG$136) -> 0 | AP59: =$AG59*'puncte misiuni-competente'!B59/'puncte misiuni-competente'!B$4/(3744/122*0.875) -> 0 | AQ59: =$AG59*'puncte misiuni-competente'!C59/'puncte misiuni-competente'!C$4/(3744/122*0.875) -> 0 | AR59: =$AG59*'puncte misiuni-competente'!D59/'puncte misiuni-competente'!D$4/(3744/122*0.875) -> 0 | AS59: =$AG59*'puncte misiuni-competente'!E59/'puncte misiuni-competente'!E$4/(3744/122*0.875) -> 0 | AT59: =$AG59*'puncte misiuni-competente'!F59/'puncte misiuni-competente'!F$4/(3744/122*0.875) -> 0 | AU59: =$AG59*'puncte misiuni-competente'!G59/'puncte misiuni-competente'!G$4/(3744/122*0.875) -> 0 | AV59: =$AG59*'puncte misiuni-competente'!H59/'puncte misiuni-competente'!H$4/(3744/122*0.875) -> 0
A61: 4.1.4. Teme pentru realizarea proiectelor de specialitate | B61: 00:00:00 | C61: 00:00:00 | D61: 00:00:00 | E61: 00:00:00 | F61: 00:00:00 | G61: 00:00:00 | H61: 00:00:00 | I61: 00:00:00 | J61: 00:00:00 | K61: 00:00:00 | L61: 00:00:00 | M61: 00:00:00 | N61: 00:00:00 | O61: 00:00:00 | P61: 00:00:00 | Q61: 00:00:00 | R61: 00:00:00 | S61: 00:00:00 | T61: 00:00:00 | U61: 00:00:00 | V61: 00:00:00 | W61: 00:00:00 | X61: 00:00:00 | Y61: 00:00:00 | Z61: 00:00:00 | AA61: 00:00:00 | AB61: 00:00:00 | AC61: 00:00:00 | AD61: 00:00:00 | AE61: 00:00:00 | AF61: 00:00:00 | AG61: =SUM(B61:AF61) -> 0 | AH61: =AG61/SUM($AG$5:$AG$136) -> 0 | AP61: =$AG61*'puncte misiuni-competente'!B61/'puncte misiuni-competente'!B$4/(3744/122*0.875) -> 0 | AQ61: =$AG61*'puncte misiuni-competente'!C61/'puncte misiuni-competente'!C$4/(3744/122*0.875) -> 0 | AR61: =$AG61*'puncte misiuni-competente'!D61/'puncte misiuni-competente'!D$4/(3744/122*0.875) -> 0 | AS61: =$AG61*'puncte misiuni-competente'!E61/'puncte misiuni-competente'!E$4/(3744/122*0.875) -> 0 | AT61: =$AG61*'puncte misiuni-competente'!F61/'puncte misiuni-competente'!F$4/(3744/122*0.875) -> 0 | AU61: =$AG61*'puncte misiuni-competente'!G61/'puncte misiuni-competente'!G$4/(3744/122*0.875) -> 0 | AV61: =$AG61*'puncte misiuni-competente'!H61/'puncte misiuni-competente'!H$4/(3744/122*0.875) -> 0
A63: 4.1.5. Coordonarea preliminara a proiectului | B63: 00:00:00 | C63: 00:00:00 | D63: 00:00:00 | E63: 00:00:00 | F63: 00:00:00 | G63: 00:00:00 | H63: 00:00:00 | I63: 00:00:00 | J63: 00:00:00 | K63: 00:00:00 | L63: 00:00:00 | M63: 00:00:00 | N63: 00:00:00 | O63: 00:00:00 | P63: 00:00:00 | Q63: 00:00:00 | R63: 00:00:00 | S63: 00:00:00 | T63: 00:00:00 | U63: 00:00:00 | V63: 00:00:00 | W63: 00:00:00 | X63: 00:00:00 | Y63: 00:00:00 | Z63: 00:00:00 | AA63: 00:00:00 | AB63: 00:00:00 | AC63: 00:00:00 | AD63: 00:00:00 | AE63: 00:00:00 | AF63: 00:00:00 | AG63: =SUM(B63:AF63) -> 0 | AH63: =AG63/SUM($AG$5:$AG$136) -> 0 | AP63: =$AG63*'puncte misiuni-competente'!B63/'puncte misiuni-competente'!B$4/(3744/122*0.875) -> 0 | AQ63: =$AG63*'puncte misiuni-competente'!C63/'puncte misiuni-competente'!C$4/(3744/122*0.875) -> 0 | AR63: =$AG63*'puncte misiuni-competente'!D63/'puncte misiuni-competente'!D$4/(3744/122*0.875) -> 0 | AS63: =$AG63*'puncte misiuni-competente'!E63/'puncte misiuni-competente'!E$4/(3744/122*0.875) -> 0 | AT63: =$AG63*'puncte misiuni-competente'!F63/'puncte misiuni-competente'!F$4/(3744/122*0.875) -> 0 | AU63: =$AG63*'puncte misiuni-competente'!G63/'puncte misiuni-competente'!G$4/(3744/122*0.875) -> 0 | AV63: =$AG63*'puncte misiuni-competente'!H63/'puncte misiuni-competente'!H$4/(3744/122*0.875) -> 0
A65: 4.2.1. Calcularea fezabilitatii investitiei sau DALI | B65: 00:00:00 | C65: 00:00:00 | D65: 00:00:00 | E65: 00:00:00 | F65: 00:00:00 | G65: 00:00:00 | H65: 00:00:00 | I65: 00:00:00 | J65: 00:00:00 | K65: 00:00:00 | L65: 00:00:00 | M65: 00:00:00 | N65: 00:00:00 | O65: 00:00:00 | P65: 00:00:00 | Q65: 00:00:00 | R65: 00:00:00 | S65: 00:00:00 | T65: 00:00:00 | U65: 00:00:00 | V65: 00:00:00 | W65: 00:00:00 | X65: 00:00:00 | Y65: 00:00:00 | Z65: 00:00:00 | AA65: 00:00:00 | AB65: 00:00:00 | AC65: 00:00:00 | AD65: 00:00:00 | AE65: 00:00:00 | AF65: 00:00:00 | AG65: =SUM(B65:AF65) -> 0 | AH65: =AG65/SUM($AG$5:$AG$136) -> 0 | AP65: =$AG65*'puncte misiuni-competente'!B65/'puncte misiuni-competente'!B$4/(3744/122*0.875) -> 0 | AQ65: =$AG65*'puncte misiuni-competente'!C65/'puncte misiuni-competente'!C$4/(3744/122*0.875) -> 0 | AR65: =$AG65*'puncte misiuni-competente'!D65/'puncte misiuni-competente'!D$4/(3744/122*0.875) -> 0 | AS65: =$AG65*'puncte misiuni-competente'!E65/'puncte misiuni-competente'!E$4/(3744/122*0.875) -> 0 | AT65: =$AG65*'puncte misiuni-competente'!F65/'puncte misiuni-competente'!F$4/(3744/122*0.875) -> 0 | AU65: =$AG65*'puncte misiuni-competente'!G65/'puncte misiuni-competente'!G$4/(3744/122*0.875) -> 0 | AV65: =$AG65*'puncte misiuni-competente'!H65/'puncte misiuni-competente'!H$4/(3744/122*0.875) -> 0
A67: 4.2.2. Solicitarea, urmarirea stadiului de elaborare si ridicarea de avize si acorduri | B67: 00:00:00 | C67: 00:00:00 | D67: 00:00:00 | E67: 00:00:00 | F67: 00:00:00 | G67: 00:00:00 | H67: 00:00:00 | I67: 00:00:00 | J67: 00:00:00 | K67: 00:00:00 | L67: 00:00:00 | M67: 00:00:00 | N67: 00:00:00 | O67: 00:00:00 | P67: 00:00:00 | Q67: 00:00:00 | R67: 00:00:00 | S67: 00:00:00 | T67: 00:00:00 | U67: 00:00:00 | V67: 00:00:00 | W67: 00:00:00 | X67: 00:00:00 | Y67: 00:00:00 | Z67: 00:00:00 | AA67: 00:00:00 | AB67: 00:00:00 | AC67: 00:00:00 | AD67: 00:00:00 | AE67: 00:00:00 | AF67: 00:00:00 | AG67: =SUM(B67:AF67) -> 0 | AH67: =AG67/SUM($AG$5:$AG$136) -> 0 | AP67: =$AG67*'puncte misiuni-competente'!B67/'puncte misiuni-competente'!B$4/(3744/122*0.875) -> 0 | AQ67: =$AG67*'puncte misiuni-competente'!C67/'puncte misiuni-competente'!C$4/(3744/122*0.875) -> 0 | AR67: =$AG67*'puncte misiuni-competente'!D67/'puncte misiuni-competente'!D$4/(3744/122*0.875) -> 0 | AS67: =$AG67*'puncte misiuni-competente'!E67/'puncte misiuni-competente'!E$4/(3744/122*0.875) -> 0 | AT67: =$AG67*'puncte misiuni-competente'!F67/'puncte misiuni-competente'!F$4/(3744/122*0.875) -> 0 | AU67: =$AG67*'puncte misiuni-competente'!G67/'puncte misiuni-competente'!G$4/(3744/122*0.875) -> 0 | AV67: =$AG67*'puncte misiuni-competente'!H67/'puncte misiuni-competente'!H$4/(3744/122*0.875) -> 0
A69: 4.2.3. Verificare incadrarii in buget | B69: 00:00:00 | C69: 00:00:00 | D69: 00:00:00 | E69: 00:00:00 | F69: 00:00:00 | G69: 00:00:00 | H69: 00:00:00 | I69: 00:00:00 | J69: 00:00:00 | K69: 00:00:00 | L69: 00:00:00 | M69: 00:00:00 | N69: 00:00:00 | O69: 00:00:00 | P69: 00:00:00 | Q69: 00:00:00 | R69: 00:00:00 | S69: 00:00:00 | T69: 00:00:00 | U69: 00:00:00 | V69: 00:00:00 | W69: 00:00:00 | X69: 00:00:00 | Y69: 00:00:00 | Z69: 00:00:00 | AA69: 00:00:00 | AB69: 00:00:00 | AC69: 00:00:00 | AD69: 00:00:00 | AE69: 00:00:00 | AF69: 00:00:00 | AG69: =SUM(B69:AF69) -> 0 | AH69: =AG69/SUM($AG$5:$AG$136) -> 0 | AP69: =$AG69*'puncte misiuni-competente'!B69/'puncte misiuni-competente'!B$4/(3744/122*0.875) -> 0 | AQ69: =$AG69*'puncte misiuni-competente'!C69/'puncte misiuni-competente'!C$4/(3744/122*0.875) -> 0 | AR69: =$AG69*'puncte misiuni-competente'!D69/'puncte misiuni-competente'!D$4/(3744/122*0.875) -> 0 | AS69: =$AG69*'puncte misiuni-competente'!E69/'puncte misiuni-competente'!E$4/(3744/122*0.875) -> 0 | AT69: =$AG69*'puncte misiuni-competente'!F69/'puncte misiuni-competente'!F$4/(3744/122*0.875) -> 0 | AU69: =$AG69*'puncte misiuni-competente'!G69/'puncte misiuni-competente'!G$4/(3744/122*0.875) -> 0 | AV69: =$AG69*'puncte misiuni-competente'!H69/'puncte misiuni-competente'!H$4/(3744/122*0.875) -> 0
A71: 4.2.4. Estimarea costului investitiei | B71: 00:00:00 | C71: 00:00:00 | D71: 00:00:00 | E71: 00:00:00 | F71: 00:00:00 | G71: 00:00:00 | H71: 00:00:00 | I71: 00:00:00 | J71: 00:00:00 | K71: 00:00:00 | L71: 00:00:00 | M71: 00:00:00 | N71: 00:00:00 | O71: 00:00:00 | P71: 00:00:00 | Q71: 00:00:00 | R71: 00:00:00 | S71: 00:00:00 | T71: 00:00:00 | U71: 00:00:00 | V71: 00:00:00 | W71: 00:00:00 | X71: 00:00:00 | Y71: 00:00:00 | Z71: 00:00:00 | AA71: 00:00:00 | AB71: 00:00:00 | AC71: 00:00:00 | AD71: 00:00:00 | AE71: 00:00:00 | AF71: 00:00:00 | AG71: =SUM(B71:AF71) -> 0 | AH71: =AG71/SUM($AG$5:$AG$136) -> 0 | AP71: =$AG71*'puncte misiuni-competente'!B71/'puncte misiuni-competente'!B$4/(3744/122*0.875) -> 0 | AQ71: =$AG71*'puncte misiuni-competente'!C71/'puncte misiuni-competente'!C$4/(3744/122*0.875) -> 0 | AR71: =$AG71*'puncte misiuni-competente'!D71/'puncte misiuni-competente'!D$4/(3744/122*0.875) -> 0 | AS71: =$AG71*'puncte misiuni-competente'!E71/'puncte misiuni-competente'!E$4/(3744/122*0.875) -> 0 | AT71: =$AG71*'puncte misiuni-competente'!F71/'puncte misiuni-competente'!F$4/(3744/122*0.875) -> 0 | AU71: =$AG71*'puncte misiuni-competente'!G71/'puncte misiuni-competente'!G$4/(3744/122*0.875) -> 0 | AV71: =$AG71*'puncte misiuni-competente'!H71/'puncte misiuni-competente'!H$4/(3744/122*0.875) -> 0
A73: 4.2.5. Indicarea in proiect a producatorilor, produselor si furnizorilor | B73: 00:00:00 | C73: 00:00:00 | D73: 00:00:00 | E73: 00:00:00 | F73: 00:00:00 | G73: 00:00:00 | H73: 00:00:00 | I73: 00:00:00 | J73: 00:00:00 | K73: 00:00:00 | L73: 00:00:00 | M73: 00:00:00 | N73: 00:00:00 | O73: 00:00:00 | P73: 00:00:00 | Q73: 00:00:00 | R73: 00:00:00 | S73: 00:00:00 | T73: 00:00:00 | U73: 00:00:00 | V73: 00:00:00 | W73: 00:00:00 | X73: 00:00:00 | Y73: 00:00:00 | Z73: 00:00:00 | AA73: 00:00:00 | AB73: 00:00:00 | AC73: 00:00:00 | AD73: 00:00:00 | AE73: 00:00:00 | AF73: 00:00:00 | AG73: =SUM(B73:AF73) -> 0 | AH73: =AG73/SUM($AG$5:$AG$136) -> 0 | AP73: =$AG73*'puncte misiuni-competente'!B73/'puncte misiuni-competente'!B$4/(3744/122*0.875) -> 0 | AQ73: =$AG73*'puncte misiuni-competente'!C73/'puncte misiuni-competente'!C$4/(3744/122*0.875) -> 0 | AR73: =$AG73*'puncte misiuni-competente'!D73/'puncte misiuni-competente'!D$4/(3744/122*0.875) -> 0 | AS73: =$AG73*'puncte misiuni-competente'!E73/'puncte misiuni-competente'!E$4/(3744/122*0.875) -> 0 | AT73: =$AG73*'puncte misiuni-competente'!F73/'puncte misiuni-competente'!F$4/(3744/122*0.875) -> 0 | AU73: =$AG73*'puncte misiuni-competente'!G73/'puncte misiuni-competente'!G$4/(3744/122*0.875) -> 0 | AV73: =$AG73*'puncte misiuni-competente'!H73/'puncte misiuni-competente'!H$4/(3744/122*0.875) -> 0
A75: 5.1.1. Proiectare pentru autorizare | B75: 00:00:00 | C75: 00:00:00 | D75: 00:00:00 | E75: 00:00:00 | F75: 00:00:00 | G75: 00:00:00 | H75: 00:00:00 | I75: 00:00:00 | J75: 00:00:00 | K75: 00:00:00 | L75: 00:00:00 | M75: 00:00:00 | N75: 00:00:00 | O75: 00:00:00 | P75: 00:00:00 | Q75: 00:00:00 | R75: 00:00:00 | S75: 00:00:00 | T75: 00:00:00 | U75: 00:00:00 | V75: 00:00:00 | W75: 00:00:00 | X75: 00:00:00 | Y75: 00:00:00 | Z75: 00:00:00 | AA75: 00:00:00 | AB75: 00:00:00 | AC75: 00:00:00 | AD75: 00:00:00 | AE75: 00:00:00 | AF75: 00:00:00 | AG75: =SUM(B75:AF75) -> 0 | AH75: =AG75/SUM($AG$5:$AG$136) -> 0 | AP75: =$AG75*'puncte misiuni-competente'!B75/'puncte misiuni-competente'!B$4/(3744/122*0.875) -> 0 | AQ75: =$AG75*'puncte misiuni-competente'!C75/'puncte misiuni-competente'!C$4/(3744/122*0.875) -> 0 | AR75: =$AG75*'puncte misiuni-competente'!D75/'puncte misiuni-competente'!D$4/(3744/122*0.875) -> 0 | AS75: =$AG75*'puncte misiuni-competente'!E75/'puncte misiuni-competente'!E$4/(3744/122*0.875) -> 0 | AT75: =$AG75*'puncte misiuni-competente'!F75/'puncte misiuni-competente'!F$4/(3744/122*0.875) -> 0 | AU75: =$AG75*'puncte misiuni-competente'!G75/'puncte misiuni-competente'!G$4/(3744/122*0.875) -> 0 | AV75: =$AG75*'puncte misiuni-competente'!H75/'puncte misiuni-competente'!H$4/(3744/122*0.875) -> 0
A77: 5.1.2. Estimarea costurilor de constructie | B77: 00:00:00 | C77: 00:00:00 | D77: 00:00:00 | E77: 00:00:00 | F77: 00:00:00 | G77: 00:00:00 | H77: 00:00:00 | I77: 00:00:00 | J77: 00:00:00 | K77: 00:00:00 | L77: 00:00:00 | M77: 00:00:00 | N77: 00:00:00 | O77: 00:00:00 | P77: 00:00:00 | Q77: 00:00:00 | R77: 00:00:00 | S77: 00:00:00 | T77: 00:00:00 | U77: 00:00:00 | V77: 00:00:00 | W77: 00:00:00 | X77: 00:00:00 | Y77: 00:00:00 | Z77: 00:00:00 | AA77: 00:00:00 | AB77: 00:00:00 | AC77: 00:00:00 | AD77: 00:00:00 | AE77: 00:00:00 | AF77: 00:00:00 | AG77: =SUM(B77:AF77) -> 0 | AH77: =AG77/SUM($AG$5:$AG$136) -> 0 | AP77: =$AG77*'puncte misiuni-competente'!B77/'puncte misiuni-competente'!B$4/(3744/122*0.875) -> 0 | AQ77: =$AG77*'puncte misiuni-competente'!C77/'puncte misiuni-competente'!C$4/(3744/122*0.875) -> 0 | AR77: =$AG77*'puncte misiuni-competente'!D77/'puncte misiuni-competente'!D$4/(3744/122*0.875) -> 0 | AS77: =$AG77*'puncte misiuni-competente'!E77/'puncte misiuni-competente'!E$4/(3744/122*0.875) -> 0 | AT77: =$AG77*'puncte misiuni-competente'!F77/'puncte misiuni-competente'!F$4/(3744/122*0.875) -> 0 | AU77: =$AG77*'puncte misiuni-competente'!G77/'puncte misiuni-competente'!G$4/(3744/122*0.875) -> 0 | AV77: =$AG77*'puncte misiuni-competente'!H77/'puncte misiuni-competente'!H$4/(3744/122*0.875) -> 0
A79: 5.2.1. Depunerea documentatiilor, urmarirea stadiului de elaborare si ridicarea avizelor si a autorizatiei de construire | B79: 00:00:00 | C79: 00:00:00 | D79: 00:00:00 | E79: 00:00:00 | F79: 00:00:00 | G79: 00:00:00 | H79: 00:00:00 | I79: 00:00:00 | J79: 00:00:00 | K79: 00:00:00 | L79: 00:00:00 | M79: 00:00:00 | N79: 00:00:00 | O79: 00:00:00 | P79: 00:00:00 | Q79: 00:00:00 | R79: 00:00:00 | S79: 00:00:00 | T79: 00:00:00 | U79: 00:00:00 | V79: 00:00:00 | W79: 00:00:00 | X79: 00:00:00 | Y79: 00:00:00 | Z79: 00:00:00 | AA79: 00:00:00 | AB79: 00:00:00 | AC79: 00:00:00 | AD79: 00:00:00 | AE79: 00:00:00 | AF79: 00:00:00 | AG79: =SUM(B79:AF79) -> 0 | AH79: =AG79/SUM($AG$5:$AG$136) -> 0 | AP79: =$AG79*'puncte misiuni-competente'!B79/'puncte misiuni-competente'!B$4/(3744/122*0.875) -> 0 | AQ79: =$AG79*'puncte misiuni-competente'!C79/'puncte misiuni-competente'!C$4/(3744/122*0.875) -> 0 | AR79: =$AG79*'puncte misiuni-competente'!D79/'puncte misiuni-competente'!D$4/(3744/122*0.875) -> 0 | AS79: =$AG79*'puncte misiuni-competente'!E79/'puncte misiuni-competente'!E$4/(3744/122*0.875) -> 0 | AT79: =$AG79*'puncte misiuni-competente'!F79/'puncte misiuni-competente'!F$4/(3744/122*0.875) -> 0 | AU79: =$AG79*'puncte misiuni-competente'!G79/'puncte misiuni-competente'!G$4/(3744/122*0.875) -> 0 | AV79: =$AG79*'puncte misiuni-competente'!H79/'puncte misiuni-competente'!H$4/(3744/122*0.875) -> 0
A81: 6.1.1. Proiectare tehnica | B81: 00:00:00 | C81: 00:00:00 | D81: 00:00:00 | E81: 00:00:00 | F81: 00:00:00 | G81: 00:00:00 | H81: 00:00:00 | I81: 00:00:00 | J81: 00:00:00 | K81: 00:00:00 | L81: 00:00:00 | M81: 00:00:00 | N81: 00:00:00 | O81: 00:00:00 | P81: 00:00:00 | Q81: 00:00:00 | R81: 00:00:00 | S81: 00:00:00 | T81: 00:00:00 | U81: 00:00:00 | V81: 00:00:00 | W81: 00:00:00 | X81: 00:00:00 | Y81: 00:00:00 | Z81: 00:00:00 | AA81: 00:00:00 | AB81: 00:00:00 | AC81: 00:00:00 | AD81: 00:00:00 | AE81: 00:00:00 | AF81: 00:00:00 | AG81: =SUM(B81:AF81) -> 0 | AH81: =AG81/SUM($AG$5:$AG$136) -> 0 | AP81: =$AG81*'puncte misiuni-competente'!B81/'puncte misiuni-competente'!B$4/(3744/122*0.875) -> 0 | AQ81: =$AG81*'puncte misiuni-competente'!C81/'puncte misiuni-competente'!C$4/(3744/122*0.875) -> 0 | AR81: =$AG81*'puncte misiuni-competente'!D81/'puncte misiuni-competente'!D$4/(3744/122*0.875) -> 0 | AS81: =$AG81*'puncte misiuni-competente'!E81/'puncte misiuni-competente'!E$4/(3744/122*0.875) -> 0 | AT81: =$AG81*'puncte misiuni-competente'!F81/'puncte misiuni-competente'!F$4/(3744/122*0.875) -> 0 | AU81: =$AG81*'puncte misiuni-competente'!G81/'puncte misiuni-competente'!G$4/(3744/122*0.875) -> 0 | AV81: =$AG81*'puncte misiuni-competente'!H81/'puncte misiuni-competente'!H$4/(3744/122*0.875) -> 0
A83: 6.1.2. Coordonarea tehnica a proiectelor de specialitate | B83: 00:00:00 | C83: 00:00:00 | D83: 00:00:00 | E83: 00:00:00 | F83: 00:00:00 | G83: 00:00:00 | H83: 00:00:00 | I83: 00:00:00 | J83: 00:00:00 | K83: 00:00:00 | L83: 00:00:00 | M83: 00:00:00 | N83: 00:00:00 | O83: 00:00:00 | P83: 00:00:00 | Q83: 00:00:00 | R83: 00:00:00 | S83: 00:00:00 | T83: 00:00:00 | U83: 00:00:00 | V83: 00:00:00 | W83: 00:00:00 | X83: 00:00:00 | Y83: 00:00:00 | Z83: 00:00:00 | AA83: 00:00:00 | AB83: 00:00:00 | AC83: 00:00:00 | AD83: 00:00:00 | AE83: 00:00:00 | AF83: 00:00:00 | AG83: =SUM(B83:AF83) -> 0 | AH83: =AG83/SUM($AG$5:$AG$136) -> 0 | AP83: =$AG83*'puncte misiuni-competente'!B83/'puncte misiuni-competente'!B$4/(3744/122*0.875) -> 0 | AQ83: =$AG83*'puncte misiuni-competente'!C83/'puncte misiuni-competente'!C$4/(3744/122*0.875) -> 0 | AR83: =$AG83*'puncte misiuni-competente'!D83/'puncte misiuni-competente'!D$4/(3744/122*0.875) -> 0 | AS83: =$AG83*'puncte misiuni-competente'!E83/'puncte misiuni-competente'!E$4/(3744/122*0.875) -> 0 | AT83: =$AG83*'puncte misiuni-competente'!F83/'puncte misiuni-competente'!F$4/(3744/122*0.875) -> 0 | AU83: =$AG83*'puncte misiuni-competente'!G83/'puncte misiuni-competente'!G$4/(3744/122*0.875) -> 0 | AV83: =$AG83*'puncte misiuni-competente'!H83/'puncte misiuni-competente'!H$4/(3744/122*0.875) -> 0
A85: 6.2.1. Estimarea costurilor investitiei | B85: 00:00:00 | C85: 00:00:00 | D85: 00:00:00 | E85: 00:00:00 | F85: 00:00:00 | G85: 00:00:00 | H85: 00:00:00 | I85: 00:00:00 | J85: 00:00:00 | K85: 00:00:00 | L85: 00:00:00 | M85: 00:00:00 | N85: 00:00:00 | O85: 00:00:00 | P85: 00:00:00 | Q85: 00:00:00 | R85: 00:00:00 | S85: 00:00:00 | T85: 00:00:00 | U85: 00:00:00 | V85: 00:00:00 | W85: 00:00:00 | X85: 00:00:00 | Y85: 00:00:00 | Z85: 00:00:00 | AA85: 00:00:00 | AB85: 00:00:00 | AC85: 00:00:00 | AD85: 00:00:00 | AE85: 00:00:00 | AF85: 00:00:00 | AG85: =SUM(B85:AF85) -> 0 | AH85: =AG85/SUM($AG$5:$AG$136) -> 0 | AP85: =$AG85*'puncte misiuni-competente'!B85/'puncte misiuni-competente'!B$4/(3744/122*0.875) -> 0 | AQ85: =$AG85*'puncte misiuni-competente'!C85/'puncte misiuni-competente'!C$4/(3744/122*0.875) -> 0 | AR85: =$AG85*'puncte misiuni-competente'!D85/'puncte misiuni-competente'!D$4/(3744/122*0.875) -> 0 | AS85: =$AG85*'puncte misiuni-competente'!E85/'puncte misiuni-competente'!E$4/(3744/122*0.875) -> 0 | AT85: =$AG85*'puncte misiuni-competente'!F85/'puncte misiuni-competente'!F$4/(3744/122*0.875) -> 0 | AU85: =$AG85*'puncte misiuni-competente'!G85/'puncte misiuni-competente'!G$4/(3744/122*0.875) -> 0 | AV85: =$AG85*'puncte misiuni-competente'!H85/'puncte misiuni-competente'!H$4/(3744/122*0.875) -> 0
A87: 6.2.2. Verificare de incadrare in buget | B87: 00:00:00 | C87: 00:00:00 | D87: 00:00:00 | E87: 00:00:00 | F87: 00:00:00 | G87: 00:00:00 | H87: 00:00:00 | I87: 00:00:00 | J87: 00:00:00 | K87: 00:00:00 | L87: 00:00:00 | M87: 00:00:00 | N87: 00:00:00 | O87: 00:00:00 | P87: 00:00:00 | Q87: 00:00:00 | R87: 00:00:00 | S87: 00:00:00 | T87: 00:00:00 | U87: 00:00:00 | V87: 00:00:00 | W87: 00:00:00 | X87: 00:00:00 | Y87: 00:00:00 | Z87: 00:00:00 | AA87: 00:00:00 | AB87: 00:00:00 | AC87: 00:00:00 | AD87: 00:00:00 | AE87: 00:00:00 | AF87: 00:00:00 | AG87: =SUM(B87:AF87) -> 0 | AH87: =AG87/SUM($AG$5:$AG$136) -> 0 | AP87: =$AG87*'puncte misiuni-competente'!B87/'puncte misiuni-competente'!B$4/(3744/122*0.875) -> 0 | AQ87: =$AG87*'puncte misiuni-competente'!C87/'puncte misiuni-competente'!C$4/(3744/122*0.875) -> 0 | AR87: =$AG87*'puncte misiuni-competente'!D87/'puncte misiuni-competente'!D$4/(3744/122*0.875) -> 0 | AS87: =$AG87*'puncte misiuni-competente'!E87/'puncte misiuni-competente'!E$4/(3744/122*0.875) -> 0 | AT87: =$AG87*'puncte misiuni-competente'!F87/'puncte misiuni-competente'!F$4/(3744/122*0.875) -> 0 | AU87: =$AG87*'puncte misiuni-competente'!G87/'puncte misiuni-competente'!G$4/(3744/122*0.875) -> 0 | AV87: =$AG87*'puncte misiuni-competente'!H87/'puncte misiuni-competente'!H$4/(3744/122*0.875) -> 0
A89: 6.2.3. Estimarea costurilor de operare | B89: 00:00:00 | C89: 00:00:00 | D89: 00:00:00 | E89: 00:00:00 | F89: 00:00:00 | G89: 00:00:00 | H89: 00:00:00 | I89: 00:00:00 | J89: 00:00:00 | K89: 00:00:00 | L89: 00:00:00 | M89: 00:00:00 | N89: 00:00:00 | O89: 00:00:00 | P89: 00:00:00 | Q89: 00:00:00 | R89: 00:00:00 | S89: 00:00:00 | T89: 00:00:00 | U89: 00:00:00 | V89: 00:00:00 | W89: 00:00:00 | X89: 00:00:00 | Y89: 00:00:00 | Z89: 00:00:00 | AA89: 00:00:00 | AB89: 00:00:00 | AC89: 00:00:00 | AD89: 00:00:00 | AE89: 00:00:00 | AF89: 00:00:00 | AG89: =SUM(B89:AF89) -> 0 | AH89: =AG89/SUM($AG$5:$AG$136) -> 0 | AP89: =$AG89*'puncte misiuni-competente'!B89/'puncte misiuni-competente'!B$4/(3744/122*0.875) -> 0 | AQ89: =$AG89*'puncte misiuni-competente'!C89/'puncte misiuni-competente'!C$4/(3744/122*0.875) -> 0 | AR89: =$AG89*'puncte misiuni-competente'!D89/'puncte misiuni-competente'!D$4/(3744/122*0.875) -> 0 | AS89: =$AG89*'puncte misiuni-competente'!E89/'puncte misiuni-competente'!E$4/(3744/122*0.875) -> 0 | AT89: =$AG89*'puncte misiuni-competente'!F89/'puncte misiuni-competente'!F$4/(3744/122*0.875) -> 0 | AU89: =$AG89*'puncte misiuni-competente'!G89/'puncte misiuni-competente'!G$4/(3744/122*0.875) -> 0 | AV89: =$AG89*'puncte misiuni-competente'!H89/'puncte misiuni-competente'!H$4/(3744/122*0.875) -> 0
A91: 6.2.4. Indicarea in proiect a producatorilor, produselor si furnizorilor | B91: 00:00:00 | C91: 00:00:00 | D91: 00:00:00 | E91: 00:00:00 | F91: 00:00:00 | G91: 00:00:00 | H91: 00:00:00 | I91: 00:00:00 | J91: 00:00:00 | K91: 00:00:00 | L91: 00:00:00 | M91: 00:00:00 | N91: 00:00:00 | O91: 00:00:00 | P91: 00:00:00 | Q91: 00:00:00 | R91: 00:00:00 | S91: 00:00:00 | T91: 00:00:00 | U91: 00:00:00 | V91: 00:00:00 | W91: 00:00:00 | X91: 00:00:00 | Y91: 00:00:00 | Z91: 00:00:00 | AA91: 00:00:00 | AB91: 00:00:00 | AC91: 00:00:00 | AD91: 00:00:00 | AE91: 00:00:00 | AF91: 00:00:00 | AG91: =SUM(B91:AF91) -> 0 | AH91: =AG91/SUM($AG$5:$AG$136) -> 0 | AP91: =$AG91*'puncte misiuni-competente'!B91/'puncte misiuni-competente'!B$4/(3744/122*0.875) -> 0 | AQ91: =$AG91*'puncte misiuni-competente'!C91/'puncte misiuni-competente'!C$4/(3744/122*0.875) -> 0 | AR91: =$AG91*'puncte misiuni-competente'!D91/'puncte misiuni-competente'!D$4/(3744/122*0.875) -> 0 | AS91: =$AG91*'puncte misiuni-competente'!E91/'puncte misiuni-competente'!E$4/(3744/122*0.875) -> 0 | AT91: =$AG91*'puncte misiuni-competente'!F91/'puncte misiuni-competente'!F$4/(3744/122*0.875) -> 0 | AU91: =$AG91*'puncte misiuni-competente'!G91/'puncte misiuni-competente'!G$4/(3744/122*0.875) -> 0 | AV91: =$AG91*'puncte misiuni-competente'!H91/'puncte misiuni-competente'!H$4/(3744/122*0.875) -> 0
A93: 7.1.1. Proiectare de detaliu | B93: 00:00:00 | C93: 00:00:00 | D93: 00:00:00 | E93: 00:00:00 | F93: 01:00:00 | G93: 08:00:00 | H93: 08:00:00 | I93: 08:00:00 | J93: 08:00:00 | K93: 08:00:00 | L93: 08:00:00 | M93: 08:00:00 | N93: 08:00:00 | O93: 08:00:00 | P93: 08:00:00 | Q93: 08:00:00 | R93: 08:00:00 | S93: 08:00:00 | T93: 08:00:00 | U93: 08:00:00 | V93: 08:00:00 | W93: 08:00:00 | X93: 08:00:00 | Y93: 08:00:00 | Z93: 08:00:00 | AA93: 08:00:00 | AB93: 08:00:00 | AC93: 00:00:00 | AD93: 00:00:00 | AE93: 00:00:00 | AF93: 00:00:00 | AG93: =SUM(B93:AF93) -> 7.375 | AH93: =AG93/SUM($AG$5:$AG$136) -> 0.5870646766 | AP93: =$AG93*'puncte misiuni-competente'!B93/'puncte misiuni-competente'!B$4/(3744/122*0.875) -> 0.03923556602 | AQ93: =$AG93*'puncte misiuni-competente'!C93/'puncte misiuni-competente'!C$4/(3744/122*0.875) -> 0.01098595849 | AR93: =$AG93*'puncte misiuni-competente'!D93/'puncte misiuni-competente'!D$4/(3744/122*0.875) -> 0.02288741351 | AS93: =$AG93*'puncte misiuni-competente'!E93/'puncte misiuni-competente'!E$4/(3744/122*0.875) -> 0.01373244811 | AT93: =$AG93*'puncte misiuni-competente'!F93/'puncte misiuni-competente'!F$4/(3744/122*0.875) -> 0.009154965405 | AU93: =$AG93*'puncte misiuni-competente'!G93/'puncte misiuni-competente'!G$4/(3744/122*0.875) -> 0.0161558213 | AV93: =$AG93*'puncte misiuni-competente'!H93/'puncte misiuni-competente'!H$4/(3744/122*0.875) -> 0.02496808747
F94: A | G94: B | H94: B | I94: B | J94: B | K94: B | L94: B | M94: B | N94: B | O94: B | P94: B | Q94: B | R94: B | S94: B | T94: B | U94: B | V94: B | W94: B | X94: B | Y94: B | Z94: B | AA94: B | AB94: B
A95: 7.1.2. Coordonarea de detaliu a proiectelor | B95: 00:00:00 | C95: 00:00:00 | D95: 00:00:00 | E95: 00:00:00 | F95: 00:00:00 | G95: 00:00:00 | H95: 00:00:00 | I95: 00:00:00 | J95: 00:00:00 | K95: 00:00:00 | L95: 00:00:00 | M95: 00:00:00 | N95: 00:00:00 | O95: 00:00:00 | P95: 00:00:00 | Q95: 00:00:00 | R95: 00:00:00 | S95: 00:00:00 | T95: 00:00:00 | U95: 00:00:00 | V95: 00:00:00 | W95: 00:00:00 | X95: 00:00:00 | Y95: 00:00:00 | Z95: 00:00:00 | AA95: 00:00:00 | AB95: 00:00:00 | AC95: 00:00:00 | AD95: 00:00:00 | AE95: 00:00:00 | AF95: 00:00:00 | AG95: =SUM(B95:AF95) -> 0 | AH95: =AG95/SUM($AG$5:$AG$136) -> 0 | AP95: =$AG95*'puncte misiuni-competente'!B95/'puncte misiuni-competente'!B$4/(3744/122*0.875) -> 0 | AQ95: =$AG95*'puncte misiuni-competente'!C95/'puncte misiuni-competente'!C$4/(3744/122*0.875) -> 0 | AR95: =$AG95*'puncte misiuni-competente'!D95/'puncte misiuni-competente'!D$4/(3744/122*0.875) -> 0 | AS95: =$AG95*'puncte misiuni-competente'!E95/'puncte misiuni-competente'!E$4/(3744/122*0.875) -> 0 | AT95: =$AG95*'puncte misiuni-competente'!F95/'puncte misiuni-competente'!F$4/(3744/122*0.875) -> 0 | AU95: =$AG95*'puncte misiuni-competente'!G95/'puncte misiuni-competente'!G$4/(3744/122*0.875) -> 0 | AV95: =$AG95*'puncte misiuni-competente'!H95/'puncte misiuni-competente'!H$4/(3744/122*0.875) -> 0
A97: 7.1.3. Plan de sanatate si securitate in munca | B97: 00:00:00 | C97: 00:00:00 | D97: 00:00:00 | E97: 00:00:00 | F97: 00:00:00 | G97: 00:00:00 | H97: 00:00:00 | I97: 00:00:00 | J97: 00:00:00 | K97: 00:00:00 | L97: 00:00:00 | M97: 00:00:00 | N97: 00:00:00 | O97: 00:00:00 | P97: 00:00:00 | Q97: 00:00:00 | R97: 00:00:00 | S97: 00:00:00 | T97: 00:00:00 | U97: 00:00:00 | V97: 00:00:00 | W97: 00:00:00 | X97: 00:00:00 | Y97: 00:00:00 | Z97: 00:00:00 | AA97: 00:00:00 | AB97: 00:00:00 | AC97: 00:00:00 | AD97: 00:00:00 | AE97: 00:00:00 | AF97: 00:00:00 | AG97: =SUM(B97:AF97) -> 0 | AH97: =AG97/SUM($AG$5:$AG$136) -> 0 | AP97: =$AG97*'puncte misiuni-competente'!B97/'puncte misiuni-competente'!B$4/(3744/122*0.875) -> 0 | AQ97: =$AG97*'puncte misiuni-competente'!C97/'puncte misiuni-competente'!C$4/(3744/122*0.875) -> 0 | AR97: =$AG97*'puncte misiuni-competente'!D97/'puncte misiuni-competente'!D$4/(3744/122*0.875) -> 0 | AS97: =$AG97*'puncte misiuni-competente'!E97/'puncte misiuni-competente'!E$4/(3744/122*0.875) -> 0 | AT97: =$AG97*'puncte misiuni-competente'!F97/'puncte misiuni-competente'!F$4/(3744/122*0.875) -> 0 | AU97: =$AG97*'puncte misiuni-competente'!G97/'puncte misiuni-competente'!G$4/(3744/122*0.875) -> 0 | AV97: =$AG97*'puncte misiuni-competente'!H97/'puncte misiuni-competente'!H$4/(3744/122*0.875) -> 0
A99: 7.2.1. Indicarea in proiect a producatorilor, produselor si furnizorilor | B99: 00:00:00 | C99: 00:00:00 | D99: 00:00:00 | E99: 00:00:00 | F99: 00:00:00 | G99: 00:00:00 | H99: 00:00:00 | I99: 00:00:00 | J99: 00:00:00 | K99: 00:00:00 | L99: 00:00:00 | M99: 00:00:00 | N99: 00:00:00 | O99: 00:00:00 | P99: 00:00:00 | Q99: 00:00:00 | R99: 00:00:00 | S99: 00:00:00 | T99: 00:00:00 | U99: 00:00:00 | V99: 00:00:00 | W99: 00:00:00 | X99: 00:00:00 | Y99: 00:00:00 | Z99: 00:00:00 | AA99: 00:00:00 | AB99: 00:00:00 | AC99: 00:00:00 | AD99: 00:00:00 | AE99: 00:00:00 | AF99: 00:00:00 | AG99: =SUM(B99:AF99) -> 0 | AH99: =AG99/SUM($AG$5:$AG$136) -> 0 | AP99: =$AG99*'puncte misiuni-competente'!B99/'puncte misiuni-competente'!B$4/(3744/122*0.875) -> 0 | AQ99: =$AG99*'puncte misiuni-competente'!C99/'puncte misiuni-competente'!C$4/(3744/122*0.875) -> 0 | AR99: =$AG99*'puncte misiuni-competente'!D99/'puncte misiuni-competente'!D$4/(3744/122*0.875) -> 0 | AS99: =$AG99*'puncte misiuni-competente'!E99/'puncte misiuni-competente'!E$4/(3744/122*0.875) -> 0 | AT99: =$AG99*'puncte misiuni-competente'!F99/'puncte misiuni-competente'!F$4/(3744/122*0.875) -> 0 | AU99: =$AG99*'puncte misiuni-competente'!G99/'puncte misiuni-competente'!G$4/(3744/122*0.875) -> 0 | AV99: =$AG99*'puncte misiuni-competente'!H99/'puncte misiuni-competente'!H$4/(3744/122*0.875) -> 0
A101: 8.1.1. Organizarea documentatiei de licitatie | B101: 00:00:00 | C101: 00:00:00 | D101: 00:00:00 | E101: 00:00:00 | F101: 00:00:00 | G101: 00:00:00 | H101: 00:00:00 | I101: 00:00:00 | J101: 00:00:00 | K101: 00:00:00 | L101: 00:00:00 | M101: 00:00:00 | N101: 00:00:00 | O101: 00:00:00 | P101: 00:00:00 | Q101: 00:00:00 | R101: 00:00:00 | S101: 00:00:00 | T101: 00:00:00 | U101: 00:00:00 | V101: 00:00:00 | W101: 00:00:00 | X101: 00:00:00 | Y101: 00:00:00 | Z101: 00:00:00 | AA101: 00:00:00 | AB101: 00:00:00 | AC101: 00:00:00 | AD101: 00:00:00 | AE101: 00:00:00 | AF101: 00:00:00 | AG101: =SUM(B101:AF101) -> 0 | AH101: =AG101/SUM($AG$5:$AG$136) -> 0 | AP101: =$AG101*'puncte misiuni-competente'!B101/'puncte misiuni-competente'!B$4/(3744/122*0.875) -> 0 | AQ101: =$AG101*'puncte misiuni-competente'!C101/'puncte misiuni-competente'!C$4/(3744/122*0.875) -> 0 | AR101: =$AG101*'puncte misiuni-competente'!D101/'puncte misiuni-competente'!D$4/(3744/122*0.875) -> 0 | AS101: =$AG101*'puncte misiuni-competente'!E101/'puncte misiuni-competente'!E$4/(3744/122*0.875) -> 0 | AT101: =$AG101*'puncte misiuni-competente'!F101/'puncte misiuni-competente'!F$4/(3744/122*0.875) -> 0 | AU101: =$AG101*'puncte misiuni-competente'!G101/'puncte misiuni-competente'!G$4/(3744/122*0.875) -> 0 | AV101: =$AG101*'puncte misiuni-competente'!H101/'puncte misiuni-competente'!H$4/(3744/122*0.875) -> 0
A103: 8.1.2. Realizare listei scurte | B103: 00:00:00 | C103: 00:00:00 | D103: 00:00:00 | E103: 00:00:00 | F103: 00:00:00 | G103: 00:00:00 | H103: 00:00:00 | I103: 00:00:00 | J103: 00:00:00 | K103: 00:00:00 | L103: 00:00:00 | M103: 00:00:00 | N103: 00:00:00 | O103: 00:00:00 | P103: 00:00:00 | Q103: 00:00:00 | R103: 00:00:00 | S103: 00:00:00 | T103: 00:00:00 | U103: 00:00:00 | V103: 00:00:00 | W103: 00:00:00 | X103: 00:00:00 | Y103: 00:00:00 | Z103: 00:00:00 | AA103: 00:00:00 | AB103: 00:00:00 | AC103: 00:00:00 | AD103: 00:00:00 | AE103: 00:00:00 | AF103: 00:00:00 | AG103: =SUM(B103:AF103) -> 0 | AH103: =AG103/SUM($AG$5:$AG$136) -> 0 | AP103: =$AG103*'puncte misiuni-competente'!B103/'puncte misiuni-competente'!B$4/(3744/122*0.875) -> 0 | AQ103: =$AG103*'puncte misiuni-competente'!C103/'puncte misiuni-competente'!C$4/(3744/122*0.875) -> 0 | AR103: =$AG103*'puncte misiuni-competente'!D103/'puncte misiuni-competente'!D$4/(3744/122*0.875) -> 0 | AS103: =$AG103*'puncte misiuni-competente'!E103/'puncte misiuni-competente'!E$4/(3744/122*0.875) -> 0 | AT103: =$AG103*'puncte misiuni-competente'!F103/'puncte misiuni-competente'!F$4/(3744/122*0.875) -> 0 | AU103: =$AG103*'puncte misiuni-competente'!G103/'puncte misiuni-competente'!G$4/(3744/122*0.875) -> 0 | AV103: =$AG103*'puncte misiuni-competente'!H103/'puncte misiuni-competente'!H$4/(3744/122*0.875) -> 0
A105: 8.1.3. Managementul ofertarii | B105: 00:00:00 | C105: 00:00:00 | D105: 00:00:00 | E105: 00:00:00 | F105: 00:00:00 | G105: 00:00:00 | H105: 00:00:00 | I105: 00:00:00 | J105: 00:00:00 | K105: 00:00:00 | L105: 00:00:00 | M105: 00:00:00 | N105: 00:00:00 | O105: 00:00:00 | P105: 00:00:00 | Q105: 00:00:00 | R105: 00:00:00 | S105: 00:00:00 | T105: 00:00:00 | U105: 00:00:00 | V105: 00:00:00 | W105: 00:00:00 | X105: 00:00:00 | Y105: 00:00:00 | Z105: 00:00:00 | AA105: 00:00:00 | AB105: 00:00:00 | AC105: 00:00:00 | AD105: 00:00:00 | AE105: 00:00:00 | AF105: 00:00:00 | AG105: =SUM(B105:AF105) -> 0 | AH105: =AG105/SUM($AG$5:$AG$136) -> 0 | AP105: =$AG105*'puncte misiuni-competente'!B105/'puncte misiuni-competente'!B$4/(3744/122*0.875) -> 0 | AQ105: =$AG105*'puncte misiuni-competente'!C105/'puncte misiuni-competente'!C$4/(3744/122*0.875) -> 0 | AR105: =$AG105*'puncte misiuni-competente'!D105/'puncte misiuni-competente'!D$4/(3744/122*0.875) -> 0 | AS105: =$AG105*'puncte misiuni-competente'!E105/'puncte misiuni-competente'!E$4/(3744/122*0.875) -> 0 | AT105: =$AG105*'puncte misiuni-competente'!F105/'puncte misiuni-competente'!F$4/(3744/122*0.875) -> 0 | AU105: =$AG105*'puncte misiuni-competente'!G105/'puncte misiuni-competente'!G$4/(3744/122*0.875) -> 0 | AV105: =$AG105*'puncte misiuni-competente'!H105/'puncte misiuni-competente'!H$4/(3744/122*0.875) -> 0
A107: 8.1.4. Recomandarea ofertei potrivite | B107: 00:00:00 | C107: 00:00:00 | D107: 00:00:00 | E107: 00:00:00 | F107: 00:00:00 | G107: 00:00:00 | H107: 00:00:00 | I107: 00:00:00 | J107: 00:00:00 | K107: 00:00:00 | L107: 00:00:00 | M107: 00:00:00 | N107: 00:00:00 | O107: 00:00:00 | P107: 00:00:00 | Q107: 00:00:00 | R107: 00:00:00 | S107: 00:00:00 | T107: 00:00:00 | U107: 00:00:00 | V107: 00:00:00 | W107: 00:00:00 | X107: 00:00:00 | Y107: 00:00:00 | Z107: 00:00:00 | AA107: 00:00:00 | AB107: 00:00:00 | AC107: 00:00:00 | AD107: 00:00:00 | AE107: 00:00:00 | AF107: 00:00:00 | AG107: =SUM(B107:AF107) -> 0 | AH107: =AG107/SUM($AG$5:$AG$136) -> 0 | AP107: =$AG107*'puncte misiuni-competente'!B107/'puncte misiuni-competente'!B$4/(3744/122*0.875) -> 0 | AQ107: =$AG107*'puncte misiuni-competente'!C107/'puncte misiuni-competente'!C$4/(3744/122*0.875) -> 0 | AR107: =$AG107*'puncte misiuni-competente'!D107/'puncte misiuni-competente'!D$4/(3744/122*0.875) -> 0 | AS107: =$AG107*'puncte misiuni-competente'!E107/'puncte misiuni-competente'!E$4/(3744/122*0.875) -> 0 | AT107: =$AG107*'puncte misiuni-competente'!F107/'puncte misiuni-competente'!F$4/(3744/122*0.875) -> 0 | AU107: =$AG107*'puncte misiuni-competente'!G107/'puncte misiuni-competente'!G$4/(3744/122*0.875) -> 0 | AV107: =$AG107*'puncte misiuni-competente'!H107/'puncte misiuni-competente'!H$4/(3744/122*0.875) -> 0
A109: 8.1.5. Contractarea executantului | B109: 00:00:00 | C109: 00:00:00 | D109: 00:00:00 | E109: 00:00:00 | F109: 00:00:00 | G109: 00:00:00 | H109: 00:00:00 | I109: 00:00:00 | J109: 00:00:00 | K109: 00:00:00 | L109: 00:00:00 | M109: 00:00:00 | N109: 00:00:00 | O109: 00:00:00 | P109: 00:00:00 | Q109: 00:00:00 | R109: 00:00:00 | S109: 00:00:00 | T109: 00:00:00 | U109: 00:00:00 | V109: 00:00:00 | W109: 00:00:00 | X109: 00:00:00 | Y109: 00:00:00 | Z109: 00:00:00 | AA109: 00:00:00 | AB109: 00:00:00 | AC109: 00:00:00 | AD109: 00:00:00 | AE109: 00:00:00 | AF109: 00:00:00 | AG109: =SUM(B109:AF109) -> 0 | AH109: =AG109/SUM($AG$5:$AG$136) -> 0 | AP109: =$AG109*'puncte misiuni-competente'!B109/'puncte misiuni-competente'!B$4/(3744/122*0.875) -> 0 | AQ109: =$AG109*'puncte misiuni-competente'!C109/'puncte misiuni-competente'!C$4/(3744/122*0.875) -> 0 | AR109: =$AG109*'puncte misiuni-competente'!D109/'puncte misiuni-competente'!D$4/(3744/122*0.875) -> 0 | AS109: =$AG109*'puncte misiuni-competente'!E109/'puncte misiuni-competente'!E$4/(3744/122*0.875) -> 0 | AT109: =$AG109*'puncte misiuni-competente'!F109/'puncte misiuni-competente'!F$4/(3744/122*0.875) -> 0 | AU109: =$AG109*'puncte misiuni-competente'!G109/'puncte misiuni-competente'!G$4/(3744/122*0.875) -> 0 | AV109: =$AG109*'puncte misiuni-competente'!H109/'puncte misiuni-competente'!H$4/(3744/122*0.875) -> 0
A111: 9.1.1. Participarea la fazele determinate | B111: 00:00:00 | C111: 00:00:00 | D111: 00:00:00 | E111: 00:00:00 | F111: 00:00:00 | G111: 00:00:00 | H111: 00:00:00 | I111: 00:00:00 | J111: 00:00:00 | K111: 00:00:00 | L111: 00:00:00 | M111: 00:00:00 | N111: 00:00:00 | O111: 00:00:00 | P111: 00:00:00 | Q111: 00:00:00 | R111: 00:00:00 | S111: 00:00:00 | T111: 00:00:00 | U111: 00:00:00 | V111: 00:00:00 | W111: 00:00:00 | X111: 00:00:00 | Y111: 00:00:00 | Z111: 00:00:00 | AA111: 00:00:00 | AB111: 00:00:00 | AC111: 00:00:00 | AD111: 00:00:00 | AE111: 00:00:00 | AF111: 00:00:00 | AG111: =SUM(B111:AF111) -> 0 | AH111: =AG111/SUM($AG$5:$AG$136) -> 0 | AP111: =$AG111*'puncte misiuni-competente'!B111/'puncte misiuni-competente'!B$4/(3744/122*0.875) -> 0 | AQ111: =$AG111*'puncte misiuni-competente'!C111/'puncte misiuni-competente'!C$4/(3744/122*0.875) -> 0 | AR111: =$AG111*'puncte misiuni-competente'!D111/'puncte misiuni-competente'!D$4/(3744/122*0.875) -> 0 | AS111: =$AG111*'puncte misiuni-competente'!E111/'puncte misiuni-competente'!E$4/(3744/122*0.875) -> 0 | AT111: =$AG111*'puncte misiuni-competente'!F111/'puncte misiuni-competente'!F$4/(3744/122*0.875) -> 0 | AU111: =$AG111*'puncte misiuni-competente'!G111/'puncte misiuni-competente'!G$4/(3744/122*0.875) -> 0 | AV111: =$AG111*'puncte misiuni-competente'!H111/'puncte misiuni-competente'!H$4/(3744/122*0.875) -> 0
A113: 9.1.2. Supravegherea modalitatii de executare a lucrarilor | B113: 00:00:00 | C113: 00:00:00 | D113: 00:00:00 | E113: 00:00:00 | F113: 00:00:00 | G113: 00:00:00 | H113: 00:00:00 | I113: 00:00:00 | J113: 00:00:00 | K113: 00:00:00 | L113: 00:00:00 | M113: 00:00:00 | N113: 00:00:00 | O113: 00:00:00 | P113: 00:00:00 | Q113: 00:00:00 | R113: 00:00:00 | S113: 00:00:00 | T113: 00:00:00 | U113: 00:00:00 | V113: 00:00:00 | W113: 00:00:00 | X113: 00:00:00 | Y113: 00:00:00 | Z113: 00:00:00 | AA113: 00:00:00 | AB113: 00:00:00 | AC113: 00:00:00 | AD113: 00:00:00 | AE113: 00:00:00 | AF113: 00:00:00 | AG113: =SUM(B113:AF113) -> 0 | AH113: =AG113/SUM($AG$5:$AG$136) -> 0 | AP113: =$AG113*'puncte misiuni-competente'!B113/'puncte misiuni-competente'!B$4/(3744/122*0.875) -> 0 | AQ113: =$AG113*'puncte misiuni-competente'!C113/'puncte misiuni-competente'!C$4/(3744/122*0.875) -> 0 | AR113: =$AG113*'puncte misiuni-competente'!D113/'puncte misiuni-competente'!D$4/(3744/122*0.875) -> 0 | AS113: =$AG113*'puncte misiuni-competente'!E113/'puncte misiuni-competente'!E$4/(3744/122*0.875) -> 0 | AT113: =$AG113*'puncte misiuni-competente'!F113/'puncte misiuni-competente'!F$4/(3744/122*0.875) -> 0 | AU113: =$AG113*'puncte misiuni-competente'!G113/'puncte misiuni-competente'!G$4/(3744/122*0.875) -> 0 | AV113: =$AG113*'puncte misiuni-competente'!H113/'puncte misiuni-competente'!H$4/(3744/122*0.875) -> 0
A115: 9.1.3. Project management | B115: 00:00:00 | C115: 00:00:00 | D115: 00:00:00 | E115: 00:00:00 | F115: 00:00:00 | G115: 00:00:00 | H115: 00:00:00 | I115: 00:00:00 | J115: 00:00:00 | K115: 00:00:00 | L115: 00:00:00 | M115: 00:00:00 | N115: 00:00:00 | O115: 00:00:00 | P115: 00:00:00 | Q115: 00:00:00 | R115: 00:00:00 | S115: 00:00:00 | T115: 00:00:00 | U115: 00:00:00 | V115: 00:00:00 | W115: 00:00:00 | X115: 00:00:00 | Y115: 00:00:00 | Z115: 00:00:00 | AA115: 00:00:00 | AB115: 00:00:00 | AC115: 00:00:00 | AD115: 00:00:00 | AE115: 00:00:00 | AF115: 00:00:00 | AG115: =SUM(B115:AF115) -> 0 | AH115: =AG115/SUM($AG$5:$AG$136) -> 0 | AP115: =$AG115*'puncte misiuni-competente'!B115/'puncte misiuni-competente'!B$4/(3744/122*0.875) -> 0 | AQ115: =$AG115*'puncte misiuni-competente'!C115/'puncte misiuni-competente'!C$4/(3744/122*0.875) -> 0 | AR115: =$AG115*'puncte misiuni-competente'!D115/'puncte misiuni-competente'!D$4/(3744/122*0.875) -> 0 | AS115: =$AG115*'puncte misiuni-competente'!E115/'puncte misiuni-competente'!E$4/(3744/122*0.875) -> 0 | AT115: =$AG115*'puncte misiuni-competente'!F115/'puncte misiuni-competente'!F$4/(3744/122*0.875) -> 0 | AU115: =$AG115*'puncte misiuni-competente'!G115/'puncte misiuni-competente'!G$4/(3744/122*0.875) -> 0 | AV115: =$AG115*'puncte misiuni-competente'!H115/'puncte misiuni-competente'!H$4/(3744/122*0.875) -> 0
A117: 9.1.4. Receptia la terminarea lucrarilor | B117: 00:00:00 | C117: 00:00:00 | D117: 00:00:00 | E117: 00:00:00 | F117: 00:00:00 | G117: 00:00:00 | H117: 00:00:00 | I117: 00:00:00 | J117: 00:00:00 | K117: 00:00:00 | L117: 00:00:00 | M117: 00:00:00 | N117: 00:00:00 | O117: 00:00:00 | P117: 00:00:00 | Q117: 00:00:00 | R117: 00:00:00 | S117: 00:00:00 | T117: 00:00:00 | U117: 00:00:00 | V117: 00:00:00 | W117: 00:00:00 | X117: 00:00:00 | Y117: 00:00:00 | Z117: 00:00:00 | AA117: 00:00:00 | AB117: 00:00:00 | AC117: 00:00:00 | AD117: 00:00:00 | AE117: 00:00:00 | AF117: 00:00:00 | AG117: =SUM(B117:AF117) -> 0 | AH117: =AG117/SUM($AG$5:$AG$136) -> 0 | AP117: =$AG117*'puncte misiuni-competente'!B117/'puncte misiuni-competente'!B$4/(3744/122*0.875) -> 0 | AQ117: =$AG117*'puncte misiuni-competente'!C117/'puncte misiuni-competente'!C$4/(3744/122*0.875) -> 0 | AR117: =$AG117*'puncte misiuni-competente'!D117/'puncte misiuni-competente'!D$4/(3744/122*0.875) -> 0 | AS117: =$AG117*'puncte misiuni-competente'!E117/'puncte misiuni-competente'!E$4/(3744/122*0.875) -> 0 | AT117: =$AG117*'puncte misiuni-competente'!F117/'puncte misiuni-competente'!F$4/(3744/122*0.875) -> 0 | AU117: =$AG117*'puncte misiuni-competente'!G117/'puncte misiuni-competente'!G$4/(3744/122*0.875) -> 0 | AV117: =$AG117*'puncte misiuni-competente'!H117/'puncte misiuni-competente'!H$4/(3744/122*0.875) -> 0
A119: 9.1.5. Punerea in functiune | B119: 00:00:00 | C119: 00:00:00 | D119: 00:00:00 | E119: 00:00:00 | F119: 00:00:00 | G119: 00:00:00 | H119: 00:00:00 | I119: 00:00:00 | J119: 00:00:00 | K119: 00:00:00 | L119: 00:00:00 | M119: 00:00:00 | N119: 00:00:00 | O119: 00:00:00 | P119: 00:00:00 | Q119: 00:00:00 | R119: 00:00:00 | S119: 00:00:00 | T119: 00:00:00 | U119: 00:00:00 | V119: 00:00:00 | W119: 00:00:00 | X119: 00:00:00 | Y119: 00:00:00 | Z119: 00:00:00 | AA119: 00:00:00 | AB119: 00:00:00 | AC119: 00:00:00 | AD119: 00:00:00 | AE119: 00:00:00 | AF119: 00:00:00 | AG119: =SUM(B119:AF119) -> 0 | AH119: =AG119/SUM($AG$5:$AG$136) -> 0 | AP119: =$AG119*'puncte misiuni-competente'!B119/'puncte misiuni-competente'!B$4/(3744/122*0.875) -> 0 | AQ119: =$AG119*'puncte misiuni-competente'!C119/'puncte misiuni-competente'!C$4/(3744/122*0.875) -> 0 | AR119: =$AG119*'puncte misiuni-competente'!D119/'puncte misiuni-competente'!D$4/(3744/122*0.875) -> 0 | AS119: =$AG119*'puncte misiuni-competente'!E119/'puncte misiuni-competente'!E$4/(3744/122*0.875) -> 0 | AT119: =$AG119*'puncte misiuni-competente'!F119/'puncte misiuni-competente'!F$4/(3744/122*0.875) -> 0 | AU119: =$AG119*'puncte misiuni-competente'!G119/'puncte misiuni-competente'!G$4/(3744/122*0.875) -> 0 | AV119: =$AG119*'puncte misiuni-competente'!H119/'puncte misiuni-competente'!H$4/(3744/122*0.875) -> 0
A121: 9.2.1. Asistenta tehnica | B121: 00:00:00 | C121: 00:00:00 | D121: 00:00:00 | E121: 00:00:00 | F121: 00:00:00 | G121: 00:00:00 | H121: 00:00:00 | I121: 00:00:00 | J121: 00:00:00 | K121: 00:00:00 | L121: 00:00:00 | M121: 00:00:00 | N121: 00:00:00 | O121: 00:00:00 | P121: 00:00:00 | Q121: 00:00:00 | R121: 00:00:00 | S121: 00:00:00 | T121: 00:00:00 | U121: 00:00:00 | V121: 00:00:00 | W121: 00:00:00 | X121: 00:00:00 | Y121: 00:00:00 | Z121: 00:00:00 | AA121: 00:00:00 | AB121: 00:00:00 | AC121: 00:00:00 | AD121: 00:00:00 | AE121: 00:00:00 | AF121: 00:00:00 | AG121: =SUM(B121:AF121) -> 0 | AH121: =AG121/SUM($AG$5:$AG$136) -> 0 | AP121: =$AG121*'puncte misiuni-competente'!B121/'puncte misiuni-competente'!B$4/(3744/122*0.875) -> 0 | AQ121: =$AG121*'puncte misiuni-competente'!C121/'puncte misiuni-competente'!C$4/(3744/122*0.875) -> 0 | AR121: =$AG121*'puncte misiuni-competente'!D121/'puncte misiuni-competente'!D$4/(3744/122*0.875) -> 0 | AS121: =$AG121*'puncte misiuni-competente'!E121/'puncte misiuni-competente'!E$4/(3744/122*0.875) -> 0 | AT121: =$AG121*'puncte misiuni-competente'!F121/'puncte misiuni-competente'!F$4/(3744/122*0.875) -> 0 | AU121: =$AG121*'puncte misiuni-competente'!G121/'puncte misiuni-competente'!G$4/(3744/122*0.875) -> 0 | AV121: =$AG121*'puncte misiuni-competente'!H121/'puncte misiuni-competente'!H$4/(3744/122*0.875) -> 0
A123: 9.2.2. Proiecte de fabricatie | B123: 00:00:00 | C123: 00:00:00 | D123: 00:00:00 | E123: 00:00:00 | F123: 00:00:00 | G123: 00:00:00 | H123: 00:00:00 | I123: 00:00:00 | J123: 00:00:00 | K123: 00:00:00 | L123: 00:00:00 | M123: 00:00:00 | N123: 00:00:00 | O123: 00:00:00 | P123: 00:00:00 | Q123: 00:00:00 | R123: 00:00:00 | S123: 00:00:00 | T123: 00:00:00 | U123: 00:00:00 | V123: 00:00:00 | W123: 00:00:00 | X123: 00:00:00 | Y123: 00:00:00 | Z123: 00:00:00 | AA123: 00:00:00 | AB123: 00:00:00 | AC123: 00:00:00 | AD123: 00:00:00 | AE123: 00:00:00 | AF123: 00:00:00 | AG123: =SUM(B123:AF123) -> 0 | AH123: =AG123/SUM($AG$5:$AG$136) -> 0 | AP123: =$AG123*'puncte misiuni-competente'!B123/'puncte misiuni-competente'!B$4/(3744/122*0.875) -> 0 | AQ123: =$AG123*'puncte misiuni-competente'!C123/'puncte misiuni-competente'!C$4/(3744/122*0.875) -> 0 | AR123: =$AG123*'puncte misiuni-competente'!D123/'puncte misiuni-competente'!D$4/(3744/122*0.875) -> 0 | AS123: =$AG123*'puncte misiuni-competente'!E123/'puncte misiuni-competente'!E$4/(3744/122*0.875) -> 0 | AT123: =$AG123*'puncte misiuni-competente'!F123/'puncte misiuni-competente'!F$4/(3744/122*0.875) -> 0 | AU123: =$AG123*'puncte misiuni-competente'!G123/'puncte misiuni-competente'!G$4/(3744/122*0.875) -> 0 | AV123: =$AG123*'puncte misiuni-competente'!H123/'puncte misiuni-competente'!H$4/(3744/122*0.875) -> 0
A125: 9.2.3. Reevaluare costuri de executie | B125: 00:00:00 | C125: 00:00:00 | D125: 00:00:00 | E125: 00:00:00 | F125: 00:00:00 | G125: 00:00:00 | H125: 00:00:00 | I125: 00:00:00 | J125: 00:00:00 | K125: 00:00:00 | L125: 00:00:00 | M125: 00:00:00 | N125: 00:00:00 | O125: 00:00:00 | P125: 00:00:00 | Q125: 00:00:00 | R125: 00:00:00 | S125: 00:00:00 | T125: 00:00:00 | U125: 00:00:00 | V125: 00:00:00 | W125: 00:00:00 | X125: 00:00:00 | Y125: 00:00:00 | Z125: 00:00:00 | AA125: 00:00:00 | AB125: 00:00:00 | AC125: 00:00:00 | AD125: 00:00:00 | AE125: 00:00:00 | AF125: 00:00:00 | AG125: =SUM(B125:AF125) -> 0 | AH125: =AG125/SUM($AG$5:$AG$136) -> 0 | AP125: =$AG125*'puncte misiuni-competente'!B125/'puncte misiuni-competente'!B$4/(3744/122*0.875) -> 0 | AQ125: =$AG125*'puncte misiuni-competente'!C125/'puncte misiuni-competente'!C$4/(3744/122*0.875) -> 0 | AR125: =$AG125*'puncte misiuni-competente'!D125/'puncte misiuni-competente'!D$4/(3744/122*0.875) -> 0 | AS125: =$AG125*'puncte misiuni-competente'!E125/'puncte misiuni-competente'!E$4/(3744/122*0.875) -> 0 | AT125: =$AG125*'puncte misiuni-competente'!F125/'puncte misiuni-competente'!F$4/(3744/122*0.875) -> 0 | AU125: =$AG125*'puncte misiuni-competente'!G125/'puncte misiuni-competente'!G$4/(3744/122*0.875) -> 0 | AV125: =$AG125*'puncte misiuni-competente'!H125/'puncte misiuni-competente'!H$4/(3744/122*0.875) -> 0
A127: 9.2.4. Indicarea in proiect a producatorilor, produselor si furnizorilor | B127: 03:00:00 | C127: 00:00:00 | D127: 00:00:00 | E127: 00:00:00 | F127: 00:00:00 | G127: 00:00:00 | H127: 00:00:00 | I127: 00:00:00 | J127: 00:00:00 | K127: 00:00:00 | L127: 00:00:00 | M127: 00:00:00 | N127: 00:00:00 | O127: 00:00:00 | P127: 00:00:00 | Q127: 00:00:00 | R127: 00:00:00 | S127: 00:00:00 | T127: 00:00:00 | U127: 00:00:00 | V127: 00:00:00 | W127: 00:00:00 | X127: 00:00:00 | Y127: 00:00:00 | Z127: 00:00:00 | AA127: 00:00:00 | AB127: 00:00:00 | AC127: 00:00:00 | AD127: 00:00:00 | AE127: 00:00:00 | AF127: 00:00:00 | AG127: =SUM(B127:AF127) -> 0.125 | AH127: =AG127/SUM($AG$5:$AG$136) -> 0.009950248756 | AP127: =$AG127*'puncte misiuni-competente'!B127/'puncte misiuni-competente'!B$4/(3744/122*0.875) -> 0 | AQ127: =$AG127*'puncte misiuni-competente'!C127/'puncte misiuni-competente'!C$4/(3744/122*0.875) -> 0.0001862026862 | AR127: =$AG127*'puncte misiuni-competente'!D127/'puncte misiuni-competente'!D$4/(3744/122*0.875) -> 0.0003879222629 | AS127: =$AG127*'puncte misiuni-competente'!E127/'puncte misiuni-competente'!E$4/(3744/122*0.875) -> 0 | AT127: =$AG127*'puncte misiuni-competente'!F127/'puncte misiuni-competente'!F$4/(3744/122*0.875) -> 0.0001551689052 | AU127: =$AG127*'puncte misiuni-competente'!G127/'puncte misiuni-competente'!G$4/(3744/122*0.875) -> 0.0002738274797 | AV127: =$AG127*'puncte misiuni-competente'!H127/'puncte misiuni-competente'!H$4/(3744/122*0.875) -> 0
B128: A
A129: 10.1.1. Supraveghere in timp a constructiei | B129: 00:00:00 | C129: 00:00:00 | D129: 00:00:00 | E129: 00:00:00 | F129: 00:00:00 | G129: 00:00:00 | H129: 00:00:00 | I129: 00:00:00 | J129: 00:00:00 | K129: 00:00:00 | L129: 00:00:00 | M129: 00:00:00 | N129: 00:00:00 | O129: 00:00:00 | P129: 00:00:00 | Q129: 00:00:00 | R129: 00:00:00 | S129: 00:00:00 | T129: 00:00:00 | U129: 00:00:00 | V129: 00:00:00 | W129: 00:00:00 | X129: 00:00:00 | Y129: 00:00:00 | Z129: 00:00:00 | AA129: 00:00:00 | AB129: 00:00:00 | AC129: 00:00:00 | AD129: 00:00:00 | AE129: 00:00:00 | AF129: 00:00:00 | AG129: =SUM(B129:AF129) -> 0 | AH129: =AG129/SUM($AG$5:$AG$136) -> 0 | AP129: =$AG129*'puncte misiuni-competente'!B129/'puncte misiuni-competente'!B$4/(3744/122*0.875) -> 0 | AQ129: =$AG129*'puncte misiuni-competente'!C129/'puncte misiuni-competente'!C$4/(3744/122*0.875) -> 0 | AR129: =$AG129*'puncte misiuni-competente'!D129/'puncte misiuni-competente'!D$4/(3744/122*0.875) -> 0 | AS129: =$AG129*'puncte misiuni-competente'!E129/'puncte misiuni-competente'!E$4/(3744/122*0.875) -> 0 | AT129: =$AG129*'puncte misiuni-competente'!F129/'puncte misiuni-competente'!F$4/(3744/122*0.875) -> 0 | AU129: =$AG129*'puncte misiuni-competente'!G129/'puncte misiuni-competente'!G$4/(3744/122*0.875) -> 0 | AV129: =$AG129*'puncte misiuni-competente'!H129/'puncte misiuni-competente'!H$4/(3744/122*0.875) -> 0
A131: 10.1.2. Acordul proiectantului initial | B131: 00:00:00 | C131: 00:00:00 | D131: 00:00:00 | E131: 00:00:00 | F131: 00:00:00 | G131: 00:00:00 | H131: 00:00:00 | I131: 00:00:00 | J131: 00:00:00 | K131: 00:00:00 | L131: 00:00:00 | M131: 00:00:00 | N131: 00:00:00 | O131: 00:00:00 | P131: 00:00:00 | Q131: 00:00:00 | R131: 00:00:00 | S131: 00:00:00 | T131: 00:00:00 | U131: 00:00:00 | V131: 00:00:00 | W131: 00:00:00 | X131: 00:00:00 | Y131: 00:00:00 | Z131: 00:00:00 | AA131: 00:00:00 | AB131: 00:00:00 | AC131: 00:00:00 | AD131: 00:00:00 | AE131: 00:00:00 | AF131: 00:00:00 | AG131: =SUM(B131:AF131) -> 0 | AH131: =AG131/SUM($AG$5:$AG$136) -> 0 | AP131: =$AG131*'puncte misiuni-competente'!B131/'puncte misiuni-competente'!B$4/(3744/122*0.875) -> 0 | AQ131: =$AG131*'puncte misiuni-competente'!C131/'puncte misiuni-competente'!C$4/(3744/122*0.875) -> 0 | AR131: =$AG131*'puncte misiuni-competente'!D131/'puncte misiuni-competente'!D$4/(3744/122*0.875) -> 0 | AS131: =$AG131*'puncte misiuni-competente'!E131/'puncte misiuni-competente'!E$4/(3744/122*0.875) -> 0 | AT131: =$AG131*'puncte misiuni-competente'!F131/'puncte misiuni-competente'!F$4/(3744/122*0.875) -> 0 | AU131: =$AG131*'puncte misiuni-competente'!G131/'puncte misiuni-competente'!G$4/(3744/122*0.875) -> 0 | AV131: =$AG131*'puncte misiuni-competente'!H131/'puncte misiuni-competente'!H$4/(3744/122*0.875) -> 0
A133: 11.1.1. Sustinerea proiecului | B133: 03:00:00 | C133: 00:00:00 | D133: 00:00:00 | E133: 00:00:00 | F133: 00:00:00 | G133: 00:00:00 | H133: 00:00:00 | I133: 00:00:00 | J133: 00:00:00 | K133: 00:00:00 | L133: 00:00:00 | M133: 00:00:00 | N133: 00:00:00 | O133: 00:00:00 | P133: 00:00:00 | Q133: 00:00:00 | R133: 00:00:00 | S133: 00:00:00 | T133: 00:00:00 | U133: 00:00:00 | V133: 00:00:00 | W133: 03:00:00 | X133: 00:00:00 | Y133: 00:00:00 | Z133: 00:00:00 | AA133: 00:00:00 | AB133: 00:00:00 | AC133: 00:00:00 | AD133: 00:00:00 | AE133: 00:00:00 | AF133: 00:00:00 | AG133: =SUM(B133:AF133) -> 0.25 | AH133: =AG133/SUM($AG$5:$AG$136) -> 0.01990049751 | AP133: =$AG133*'puncte misiuni-competente'!B133/'puncte misiuni-competente'!B$4/(3744/122*0.875) -> 0.001330019187 | AQ133: =$AG133*'puncte misiuni-competente'!C133/'puncte misiuni-competente'!C$4/(3744/122*0.875) -> 0.0003724053724 | AR133: =$AG133*'puncte misiuni-competente'!D133/'puncte misiuni-competente'!D$4/(3744/122*0.875) -> 0.0007758445258 | AS133: =$AG133*'puncte misiuni-competente'!E133/'puncte misiuni-competente'!E$4/(3744/122*0.875) -> 0.0004655067155 | AT133: =$AG133*'puncte misiuni-competente'!F133/'puncte misiuni-competente'!F$4/(3744/122*0.875) -> 0.0003103378103 | AU133: =$AG133*'puncte misiuni-competente'!G133/'puncte misiuni-competente'!G$4/(3744/122*0.875) -> 0.0005476549594 | AV133: =$AG133*'puncte misiuni-competente'!H133/'puncte misiuni-competente'!H$4/(3744/122*0.875) -> 0.0008463758464
B134: B | W134: B
A135: 11.1.2. Materiale pentru marketing | B135: 00:00:00 | C135: 00:00:00 | D135: 00:00:00 | E135: 00:00:00 | F135: 00:00:00 | G135: 00:00:00 | H135: 00:00:00 | I135: 00:00:00 | J135: 00:00:00 | K135: 00:00:00 | L135: 00:00:00 | M135: 00:00:00 | N135: 00:00:00 | O135: 00:00:00 | P135: 00:00:00 | Q135: 00:00:00 | R135: 00:00:00 | S135: 00:00:00 | T135: 00:00:00 | U135: 00:00:00 | V135: 00:00:00 | W135: 04:00:00 | X135: 00:00:00 | Y135: 00:00:00 | Z135: 00:00:00 | AA135: 00:00:00 | AB135: 00:00:00 | AC135: 00:00:00 | AD135: 00:00:00 | AE135: 00:00:00 | AF135: 00:00:00 | AG135: =SUM(B135:AF135) -> 0.1666666667 | AH135: =AG135/SUM($AG$5:$AG$136) -> 0.01326699834 | AP135: =$AG135*'puncte misiuni-competente'!B135/'puncte misiuni-competente'!B$4/(3744/122*0.875) -> 0.0008866794581 | AQ135: =$AG135*'puncte misiuni-competente'!C135/'puncte misiuni-competente'!C$4/(3744/122*0.875) -> 0 | AR135: =$AG135*'puncte misiuni-competente'!D135/'puncte misiuni-competente'!D$4/(3744/122*0.875) -> 0 | AS135: =$AG135*'puncte misiuni-competente'!E135/'puncte misiuni-competente'!E$4/(3744/122*0.875) -> 0 | AT135: =$AG135*'puncte misiuni-competente'!F135/'puncte misiuni-competente'!F$4/(3744/122*0.875) -> 0 | AU135: =$AG135*'puncte misiuni-competente'!G135/'puncte misiuni-competente'!G$4/(3744/122*0.875) -> 0 | AV135: =$AG135*'puncte misiuni-competente'!H135/'puncte misiuni-competente'!H$4/(3744/122*0.875) -> 0
W136: A
A137: Total ore / zi (h) | B137: =B5+B7+B9+B11+B13+B15+B17+B19+B21+B23+B25+B27+B29+B31+B33+B35+B37+B39+B41+B43+B45+B47+B49+B51+B53+B55+B57+B59+B61+B63+B65+B67+B69+B71+B73+B75+B77+B79+B81+B83+B85+B87+B89+B91+B93+B95+B97+B99+B101+B103+B105+B107+B109+B111+B113+B115+B117+B119+B121+B123+B125+B127+B129+B131+B133+B135 -> 13:30:00 | C137: =C5+C7+C9+C11+C13+C15+C17+C19+C21+C23+C25+C27+C29+C31+C33+C35+C37+C39+C41+C43+C45+C47+C49+C51+C53+C55+C57+C59+C61+C63+C65+C67+C69+C71+C73+C75+C77+C79+C81+C83+C85+C87+C89+C91+C93+C95+C97+C99+C101+C103+C105+C107+C109+C111+C113+C115+C117+C119+C121+C123+C125+C127+C129+C131+C133+C135 -> 11:00:00 | D137: 05:30:00 | E137: 00:00:00 | F137: 08:00:00 | G137: 08:00:00 | H137: 16:00:00 | I137: 16:00:00 | J137: 16:00:00 | K137: 16:00:00 | L137: 16:00:00 | M137: 16:00:00 | N137: 16:00:00 | O137: 16:00:00 | P137: 08:00:00 | Q137: 08:00:00 | R137: 08:00:00 | S137: 08:00:00 | T137: 08:00:00 | U137: 08:00:00 | V137: 13:30:00 | W137: 0.6666666667 | X137: 16:00:00 | Y137: 10:00:00 | Z137: 08:00:00 | AA137: 08:00:00 | AB137: 08:00:00 | AC137: 00:00:00 | AD137: 00:00:00 | AE137: 00:00:00 | AF137: 00:00:00 | AG137: =SUM(B137:AF137) -> 12.5625
A138: Aport zilnic din total lunar (%) | B138: =B137/SUM($B$137:$AF$137) -> 0.0447761194 | C138: =C137/SUM($B$137:$AF$137) -> 0.03648424544 | D138: 0.01824212272 | E138: 0 | F138: 0.02653399668 | G138: 0.02653399668 | H138: 0.05306799337 | I138: 0.05306799337 | J138: 0.05306799337 | K138: 0.05306799337 | L138: 0.05306799337 | M138: 0.05306799337 | N138: 0.05306799337 | O138: 0.05306799337 | P138: 0.02653399668 | Q138: 0.02653399668 | R138: 0.02653399668 | S138: 0.02653399668 | T138: 0.02653399668 | U138: 0.02653399668 | V138: 0.0447761194 | W138: 0.05306799337 | X138: 0.05306799337 | Y138: 0.03316749585 | Z138: 0.02653399668 | AA138: 0.02653399668 | AB138: 0.02653399668 | AC138: 0 | AD138: 0 | AE138: 0 | AF138: 0 | AH138: =SUM(AH5:AH135) -> 1 | AP138: =SUM(AP5:AP136)*24 -> 1.340659341 | AQ138: =SUM(AQ5:AQ136)*24 -> 0.3932600733 | AR138: 0.7882580383 | AS138: 0.5483669109 | AT138: 0.3693019943 | AU138: 0.6265172736 | AV138: 0.7583527584

Sheet luna 1
A1: Fisa de evaluare a stagiului_v1.1
B3: arhitect stagiar | E3: Ion POPESCU | K3: arhitect indrumator | N3: Prenume NUME | U3: luna calendaristica | X3: ianuarie
B4: numar TNA | E4: 1234 | K4: numar TNA | N4: 5678 | U4: anul | X4: 2017
A5: Misiuni de baza / misiuni suplimentare | B5: 1 | C5: 2 | D5: 3 | E5: 4 | F5: 5 | G5: 6 | H5: 7 | I5: 8 | J5: 9 | K5: 10 | L5: 11 | M5: 12 | N5: 13 | O5: 14 | P5: 15 | Q5: 16 | R5: 17 | S5: 18 | T5: 19 | U5: 20 | V5: 21 | W5: 22 | X5: 23 | Y5: 24 | Z5: 25 | AA5: 26 | AB5: 27 | AC5: 28 | AD5: 29 | AE5: 30 | AF5: 31 | AG5: Total luna (h) | AH5: Total luna (%) | AP5: Doctrinare | AQ5: Tehnice | AR5: Ecologice | AS5: Relationale | AT5: Manageriale | AU5: Economice | AV5: Juridice
A6: 1.1.1. Tema pentru ofertare | B6: 00:00:00 | C6: 00:00:00 | D6: 00:00:00 | E6: 00:00:00 | F6: 00:00:00 | G6: 00:00:00 | H6: 00:00:00 | I6: 00:00:00 | J6: 00:00:00 | K6: 00:00:00 | L6: 00:00:00 | M6: 00:00:00 | N6: 00:00:00 | O6: 00:00:00 | P6: 00:00:00 | Q6: 00:00:00 | R6: 00:00:00 | S6: 00:00:00 | T6: 00:00:00 | U6: 00:00:00 | V6: 00:00:00 | W6: 00:00:00 | X6: 00:00:00 | Y6: 00:00:00 | Z6: 00:00:00 | AA6: 00:00:00 | AB6: 00:00:00 | AC6: 00:00:00 | AD6: 00:00:00 | AE6: 00:00:00 | AF6: 00:00:00 | AG6: =SUM(B6:AF6) -> 0 | AH6: =AG6/SUM($AG$6:$AG$137) ->  | AP6: =$AG6*'puncte misiuni-competente'!B5/'puncte misiuni-competente'!B$4/(3744/122*0.875) -> 0 | AQ6: =$AG6*'puncte misiuni-competente'!C5/'puncte misiuni-competente'!C$4/(3744/122*0.875) -> 0 | AR6: =$AG6*'puncte misiuni-competente'!D5/'puncte misiuni-competente'!D$4/(3744/122*0.875) -> 0 | AS6: =$AG6*'puncte misiuni-competente'!E5/'puncte misiuni-competente'!E$4/(3744/122*0.875) -> 0 | AT6: =$AG6*'puncte misiuni-competente'!F5/'puncte misiuni-competente'!F$4/(3744/122*0.875) -> 0 | AU6: =$AG6*'puncte misiuni-competente'!G5/'puncte misiuni-competente'!G$4/(3744/122*0.875) -> 0 | AV6: =$AG6*'puncte misiuni-competente'!H5/'puncte misiuni-competente'!H$4/(3744/122*0.875) -> 0
A8: 1.1.2. Oferta economica | B8: 00:00:00 | C8: 00:00:00 | D8: 00:00:00 | E8: 00:00:00 | F8: 00:00:00 | G8: 00:00:00 | H8: 00:00:00 | I8: 00:00:00 | J8: 00:00:00 | K8: 00:00:00 | L8: 00:00:00 | M8: 00:00:00 | N8: 00:00:00 | O8: 00:00:00 | P8: 00:00:00 | Q8: 00:00:00 | R8: 00:00:00 | S8: 00:00:00 | T8: 00:00:00 | U8: 00:00:00 | V8: 00:00:00 | W8: 00:00:00 | X8: 00:00:00 | Y8: 00:00:00 | Z8: 00:00:00 | AA8: 00:00:00 | AB8: 00:00:00 | AC8: 00:00:00 | AD8: 00:00:00 | AE8: 00:00:00 | AF8: 00:00:00 | AG8: =SUM(B8:AF8) -> 0 | AH8: =AG8/SUM($AG$6:$AG$137) ->  | AP8: =$AG8*'puncte misiuni-competente'!B7/'puncte misiuni-competente'!B$4/(3744/122*0.875) -> 0 | AQ8: =$AG8*'puncte misiuni-competente'!C7/'puncte misiuni-competente'!C$4/(3744/122*0.875) -> 0 | AR8: =$AG8*'puncte misiuni-competente'!D7/'puncte misiuni-competente'!D$4/(3744/122*0.875) -> 0 | AS8: =$AG8*'puncte misiuni-competente'!E7/'puncte misiuni-competente'!E$4/(3744/122*0.875) -> 0 | AT8: =$AG8*'puncte misiuni-competente'!F7/'puncte misiuni-competente'!F$4/(3744/122*0.875) -> 0 | AU8: =$AG8*'puncte misiuni-competente'!G7/'puncte misiuni-competente'!G$4/(3744/122*0.875) -> 0 | AV8: =$AG8*'puncte misiuni-competente'!H7/'puncte misiuni-competente'!H$4/(3744/122*0.875) -> 0
A10: 1.1.3 Acceptarea ofertei si încheierea contractului de proiectare | B10: 00:00:00 | C10: 00:00:00 | D10: 00:00:00 | E10: 00:00:00 | F10: 00:00:00 | G10: 00:00:00 | H10: 00:00:00 | I10: 00:00:00 | J10: 00:00:00 | K10: 00:00:00 | L10: 00:00:00 | M10: 00:00:00 | N10: 00:00:00 | O10: 00:00:00 | P10: 00:00:00 | Q10: 00:00:00 | R10: 00:00:00 | S10: 00:00:00 | T10: 00:00:00 | U10: 00:00:00 | V10: 00:00:00 | W10: 00:00:00 | X10: 00:00:00 | Y10: 00:00:00 | Z10: 00:00:00 | AA10: 00:00:00 | AB10: 00:00:00 | AC10: 00:00:00 | AD10: 00:00:00 | AE10: 00:00:00 | AF10: 00:00:00 | AG10: =SUM(B10:AF10) -> 0 | AH10: =AG10/SUM($AG$6:$AG$137) ->  | AP10: =$AG10*'puncte misiuni-competente'!B9/'puncte misiuni-competente'!B$4/(3744/122*0.875) -> 0 | AQ10: =$AG10*'puncte misiuni-competente'!C9/'puncte misiuni-competente'!C$4/(3744/122*0.875) -> 0 | AR10: =$AG10*'puncte misiuni-competente'!D9/'puncte misiuni-competente'!D$4/(3744/122*0.875) -> 0 | AS10: =$AG10*'puncte misiuni-competente'!E9/'puncte misiuni-competente'!E$4/(3744/122*0.875) -> 0 | AT10: =$AG10*'puncte misiuni-competente'!F9/'puncte misiuni-competente'!F$4/(3744/122*0.875) -> 0 | AU10: =$AG10*'puncte misiuni-competente'!G9/'puncte misiuni-competente'!G$4/(3744/122*0.875) -> 0 | AV10: =$AG10*'puncte misiuni-competente'!H9/'puncte misiuni-competente'!H$4/(3744/122*0.875) -> 0
A12: 1.1.4. Analiza contextului urbanistic, tehnic, si legislativ | B12: 00:00:00 | C12: 00:00:00 | D12: 00:00:00 | E12: 00:00:00 | F12: 00:00:00 | G12: 00:00:00 | H12: 00:00:00 | I12: 00:00:00 | J12: 00:00:00 | K12: 00:00:00 | L12: 00:00:00 | M12: 00:00:00 | N12: 00:00:00 | O12: 00:00:00 | P12: 00:00:00 | Q12: 00:00:00 | R12: 00:00:00 | S12: 00:00:00 | T12: 00:00:00 | U12: 00:00:00 | V12: 00:00:00 | W12: 00:00:00 | X12: 00:00:00 | Y12: 00:00:00 | Z12: 00:00:00 | AA12: 00:00:00 | AB12: 00:00:00 | AC12: 00:00:00 | AD12: 00:00:00 | AE12: 00:00:00 | AF12: 00:00:00 | AG12: =SUM(B12:AF12) -> 0 | AH12: =AG12/SUM($AG$6:$AG$137) ->  | AP12: =$AG12*'puncte misiuni-competente'!B11/'puncte misiuni-competente'!B$4/(3744/122*0.875) -> 0 | AQ12: =$AG12*'puncte misiuni-competente'!C11/'puncte misiuni-competente'!C$4/(3744/122*0.875) -> 0 | AR12: =$AG12*'puncte misiuni-competente'!D11/'puncte misiuni-competente'!D$4/(3744/122*0.875) -> 0 | AS12: =$AG12*'puncte misiuni-competente'!E11/'puncte misiuni-competente'!E$4/(3744/122*0.875) -> 0 | AT12: =$AG12*'puncte misiuni-competente'!F11/'puncte misiuni-competente'!F$4/(3744/122*0.875) -> 0 | AU12: =$AG12*'puncte misiuni-competente'!G11/'puncte misiuni-competente'!G$4/(3744/122*0.875) -> 0 | AV12: =$AG12*'puncte misiuni-competente'!H11/'puncte misiuni-competente'!H$4/(3744/122*0.875) -> 0
A14: 1.2.1. Consultanta imobiliara | B14: 00:00:00 | C14: 00:00:00 | D14: 00:00:00 | E14: 00:00:00 | F14: 00:00:00 | G14: 00:00:00 | H14: 00:00:00 | I14: 00:00:00 | J14: 00:00:00 | K14: 00:00:00 | L14: 00:00:00 | M14: 00:00:00 | N14: 00:00:00 | O14: 00:00:00 | P14: 00:00:00 | Q14: 00:00:00 | R14: 00:00:00 | S14: 00:00:00 | T14: 00:00:00 | U14: 00:00:00 | V14: 00:00:00 | W14: 00:00:00 | X14: 00:00:00 | Y14: 00:00:00 | Z14: 00:00:00 | AA14: 00:00:00 | AB14: 00:00:00 | AC14: 00:00:00 | AD14: 00:00:00 | AE14: 00:00:00 | AF14: 00:00:00 | AG14: =SUM(B14:AF14) -> 0 | AH14: =AG14/SUM($AG$6:$AG$137) ->  | AP14: =$AG14*'puncte misiuni-competente'!B13/'puncte misiuni-competente'!B$4/(3744/122*0.875) -> 0 | AQ14: =$AG14*'puncte misiuni-competente'!C13/'puncte misiuni-competente'!C$4/(3744/122*0.875) -> 0 | AR14: =$AG14*'puncte misiuni-competente'!D13/'puncte misiuni-competente'!D$4/(3744/122*0.875) -> 0 | AS14: =$AG14*'puncte misiuni-competente'!E13/'puncte misiuni-competente'!E$4/(3744/122*0.875) -> 0 | AT14: =$AG14*'puncte misiuni-competente'!F13/'puncte misiuni-competente'!F$4/(3744/122*0.875) -> 0 | AU14: =$AG14*'puncte misiuni-competente'!G13/'puncte misiuni-competente'!G$4/(3744/122*0.875) -> 0 | AV14: =$AG14*'puncte misiuni-competente'!H13/'puncte misiuni-competente'!H$4/(3744/122*0.875) -> 0
A16: 1.2.2. Ilustrarea de tema in scop de ofertare | B16: 00:00:00 | C16: 00:00:00 | D16: 00:00:00 | E16: 00:00:00 | F16: 00:00:00 | G16: 00:00:00 | H16: 00:00:00 | I16: 00:00:00 | J16: 00:00:00 | K16: 00:00:00 | L16: 00:00:00 | M16: 00:00:00 | N16: 00:00:00 | O16: 00:00:00 | P16: 00:00:00 | Q16: 00:00:00 | R16: 00:00:00 | S16: 00:00:00 | T16: 00:00:00 | U16: 00:00:00 | V16: 00:00:00 | W16: 00:00:00 | X16: 00:00:00 | Y16: 00:00:00 | Z16: 00:00:00 | AA16: 00:00:00 | AB16: 00:00:00 | AC16: 00:00:00 | AD16: 00:00:00 | AE16: 00:00:00 | AF16: 00:00:00 | AG16: =SUM(B16:AF16) -> 0 | AH16: =AG16/SUM($AG$6:$AG$137) ->  | AP16: =$AG16*'puncte misiuni-competente'!B15/'puncte misiuni-competente'!B$4/(3744/122*0.875) -> 0 | AQ16: =$AG16*'puncte misiuni-competente'!C15/'puncte misiuni-competente'!C$4/(3744/122*0.875) -> 0 | AR16: =$AG16*'puncte misiuni-competente'!D15/'puncte misiuni-competente'!D$4/(3744/122*0.875) -> 0 | AS16: =$AG16*'puncte misiuni-competente'!E15/'puncte misiuni-competente'!E$4/(3744/122*0.875) -> 0 | AT16: =$AG16*'puncte misiuni-competente'!F15/'puncte misiuni-competente'!F$4/(3744/122*0.875) -> 0 | AU16: =$AG16*'puncte misiuni-competente'!G15/'puncte misiuni-competente'!G$4/(3744/122*0.875) -> 0 | AV16: =$AG16*'puncte misiuni-competente'!H15/'puncte misiuni-competente'!H$4/(3744/122*0.875) -> 0
A18: 1.2.3. Studiul de prefezabilitate | B18: 00:00:00 | C18: 00:00:00 | D18: 00:00:00 | E18: 00:00:00 | F18: 00:00:00 | G18: 00:00:00 | H18: 00:00:00 | I18: 00:00:00 | J18: 00:00:00 | K18: 00:00:00 | L18: 00:00:00 | M18: 00:00:00 | N18: 00:00:00 | O18: 00:00:00 | P18: 00:00:00 | Q18: 00:00:00 | R18: 00:00:00 | S18: 00:00:00 | T18: 00:00:00 | U18: 00:00:00 | V18: 00:00:00 | W18: 00:00:00 | X18: 00:00:00 | Y18: 00:00:00 | Z18: 00:00:00 | AA18: 00:00:00 | AB18: 00:00:00 | AC18: 00:00:00 | AD18: 00:00:00 | AE18: 00:00:00 | AF18: 00:00:00 | AG18: =SUM(B18:AF18) -> 0 | AH18: =AG18/SUM($AG$6:$AG$137) ->  | AP18: =$AG18*'puncte misiuni-competente'!B17/'puncte misiuni-competente'!B$4/(3744/122*0.875) -> 0 | AQ18: =$AG18*'puncte misiuni-competente'!C17/'puncte misiuni-competente'!C$4/(3744/122*0.875) -> 0 | AR18: =$AG18*'puncte misiuni-competente'!D17/'puncte misiuni-competente'!D$4/(3744/122*0.875) -> 0 | AS18: =$AG18*'puncte misiuni-competente'!E17/'puncte misiuni-competente'!E$4/(3744/122*0.875) -> 0 | AT18: =$AG18*'puncte misiuni-competente'!F17/'puncte misiuni-competente'!F$4/(3744/122*0.875) -> 0 | AU18: =$AG18*'puncte misiuni-competente'!G17/'puncte misiuni-competente'!G$4/(3744/122*0.875) -> 0 | AV18: =$AG18*'puncte misiuni-competente'!H17/'puncte misiuni-competente'!H$4/(3744/122*0.875) -> 0
A20: 2.1.1. Tema preliminara de proiectare | B20: 00:00:00 | C20: 00:00:00 | D20: 00:00:00 | E20: 00:00:00 | F20: 00:00:00 | G20: 00:00:00 | H20: 00:00:00 | I20: 00:00:00 | J20: 00:00:00 | K20: 00:00:00 | L20: 00:00:00 | M20: 00:00:00 | N20: 00:00:00 | O20: 00:00:00 | P20: 00:00:00 | Q20: 00:00:00 | R20: 00:00:00 | S20: 00:00:00 | T20: 00:00:00 | U20: 00:00:00 | V20: 00:00:00 | W20: 00:00:00 | X20: 00:00:00 | Y20: 00:00:00 | Z20: 00:00:00 | AA20: 00:00:00 | AB20: 00:00:00 | AC20: 00:00:00 | AD20: 00:00:00 | AE20: 00:00:00 | AF20: 00:00:00 | AG20: =SUM(B20:AF20) -> 0 | AH20: =AG20/SUM($AG$6:$AG$137) ->  | AP20: =$AG20*'puncte misiuni-competente'!B19/'puncte misiuni-competente'!B$4/(3744/122*0.875) -> 0 | AQ20: =$AG20*'puncte misiuni-competente'!C19/'puncte misiuni-competente'!C$4/(3744/122*0.875) -> 0 | AR20: =$AG20*'puncte misiuni-competente'!D19/'puncte misiuni-competente'!D$4/(3744/122*0.875) -> 0 | AS20: =$AG20*'puncte misiuni-competente'!E19/'puncte misiuni-competente'!E$4/(3744/122*0.875) -> 0 | AT20: =$AG20*'puncte misiuni-competente'!F19/'puncte misiuni-competente'!F$4/(3744/122*0.875) -> 0 | AU20: =$AG20*'puncte misiuni-competente'!G19/'puncte misiuni-competente'!G$4/(3744/122*0.875) -> 0 | AV20: =$AG20*'puncte misiuni-competente'!H19/'puncte misiuni-competente'!H$4/(3744/122*0.875) -> 0
A22: 2.1.2. Documente si studii necesare | B22: 00:00:00 | C22: 00:00:00 | D22: 00:00:00 | E22: 00:00:00 | F22: 00:00:00 | G22: 00:00:00 | H22: 00:00:00 | I22: 00:00:00 | J22: 00:00:00 | K22: 00:00:00 | L22: 00:00:00 | M22: 00:00:00 | N22: 00:00:00 | O22: 00:00:00 | P22: 00:00:00 | Q22: 00:00:00 | R22: 00:00:00 | S22: 00:00:00 | T22: 00:00:00 | U22: 00:00:00 | V22: 00:00:00 | W22: 00:00:00 | X22: 00:00:00 | Y22: 00:00:00 | Z22: 00:00:00 | AA22: 00:00:00 | AB22: 00:00:00 | AC22: 00:00:00 | AD22: 00:00:00 | AE22: 00:00:00 | AF22: 00:00:00 | AG22: =SUM(B22:AF22) -> 0 | AH22: =AG22/SUM($AG$6:$AG$137) ->  | AP22: =$AG22*'puncte misiuni-competente'!B21/'puncte misiuni-competente'!B$4/(3744/122*0.875) -> 0 | AQ22: =$AG22*'puncte misiuni-competente'!C21/'puncte misiuni-competente'!C$4/(3744/122*0.875) -> 0 | AR22: =$AG22*'puncte misiuni-competente'!D21/'puncte misiuni-competente'!D$4/(3744/122*0.875) -> 0 | AS22: =$AG22*'puncte misiuni-competente'!E21/'puncte misiuni-competente'!E$4/(3744/122*0.875) -> 0 | AT22: =$AG22*'puncte misiuni-competente'!F21/'puncte misiuni-competente'!F$4/(3744/122*0.875) -> 0 | AU22: =$AG22*'puncte misiuni-competente'!G21/'puncte misiuni-competente'!G$4/(3744/122*0.875) -> 0 | AV22: =$AG22*'puncte misiuni-competente'!H21/'puncte misiuni-competente'!H$4/(3744/122*0.875) -> 0
A24: 2.1.3. Specialiști necesar a fi implicati in elaborarea proiectului | B24: 00:00:00 | C24: 00:00:00 | D24: 00:00:00 | E24: 00:00:00 | F24: 00:00:00 | G24: 00:00:00 | H24: 00:00:00 | I24: 00:00:00 | J24: 00:00:00 | K24: 00:00:00 | L24: 00:00:00 | M24: 00:00:00 | N24: 00:00:00 | O24: 00:00:00 | P24: 00:00:00 | Q24: 00:00:00 | R24: 00:00:00 | S24: 00:00:00 | T24: 00:00:00 | U24: 00:00:00 | V24: 00:00:00 | W24: 00:00:00 | X24: 00:00:00 | Y24: 00:00:00 | Z24: 00:00:00 | AA24: 00:00:00 | AB24: 00:00:00 | AC24: 00:00:00 | AD24: 00:00:00 | AE24: 00:00:00 | AF24: 00:00:00 | AG24: =SUM(B24:AF24) -> 0 | AH24: =AG24/SUM($AG$6:$AG$137) ->  | AP24: =$AG24*'puncte misiuni-competente'!B23/'puncte misiuni-competente'!B$4/(3744/122*0.875) -> 0 | AQ24: =$AG24*'puncte misiuni-competente'!C23/'puncte misiuni-competente'!C$4/(3744/122*0.875) -> 0 | AR24: =$AG24*'puncte misiuni-competente'!D23/'puncte misiuni-competente'!D$4/(3744/122*0.875) -> 0 | AS24: =$AG24*'puncte misiuni-competente'!E23/'puncte misiuni-competente'!E$4/(3744/122*0.875) -> 0 | AT24: =$AG24*'puncte misiuni-competente'!F23/'puncte misiuni-competente'!F$4/(3744/122*0.875) -> 0 | AU24: =$AG24*'puncte misiuni-competente'!G23/'puncte misiuni-competente'!G$4/(3744/122*0.875) -> 0 | AV24: =$AG24*'puncte misiuni-competente'!H23/'puncte misiuni-competente'!H$4/(3744/122*0.875) -> 0
A26: 2.1.4. Ilustrare de tema | B26: 00:00:00 | C26: 00:00:00 | D26: 00:00:00 | E26: 00:00:00 | F26: 00:00:00 | G26: 00:00:00 | H26: 00:00:00 | I26: 00:00:00 | J26: 00:00:00 | K26: 00:00:00 | L26: 00:00:00 | M26: 00:00:00 | N26: 00:00:00 | O26: 00:00:00 | P26: 00:00:00 | Q26: 00:00:00 | R26: 00:00:00 | S26: 00:00:00 | T26: 00:00:00 | U26: 00:00:00 | V26: 00:00:00 | W26: 00:00:00 | X26: 00:00:00 | Y26: 00:00:00 | Z26: 00:00:00 | AA26: 00:00:00 | AB26: 00:00:00 | AC26: 00:00:00 | AD26: 00:00:00 | AE26: 00:00:00 | AF26: 00:00:00 | AG26: =SUM(B26:AF26) -> 0 | AH26: =AG26/SUM($AG$6:$AG$137) ->  | AP26: =$AG26*'puncte misiuni-competente'!B25/'puncte misiuni-competente'!B$4/(3744/122*0.875) -> 0 | AQ26: =$AG26*'puncte misiuni-competente'!C25/'puncte misiuni-competente'!C$4/(3744/122*0.875) -> 0 | AR26: =$AG26*'puncte misiuni-competente'!D25/'puncte misiuni-competente'!D$4/(3744/122*0.875) -> 0 | AS26: =$AG26*'puncte misiuni-competente'!E25/'puncte misiuni-competente'!E$4/(3744/122*0.875) -> 0 | AT26: =$AG26*'puncte misiuni-competente'!F25/'puncte misiuni-competente'!F$4/(3744/122*0.875) -> 0 | AU26: =$AG26*'puncte misiuni-competente'!G25/'puncte misiuni-competente'!G$4/(3744/122*0.875) -> 0 | AV26: =$AG26*'puncte misiuni-competente'!H25/'puncte misiuni-competente'!H$4/(3744/122*0.875) -> 0
A28: 2.1.5. Bugetare costuri de investitie | B28: 00:00:00 | C28: 00:00:00 | D28: 00:00:00 | E28: 00:00:00 | F28: 00:00:00 | G28: 00:00:00 | H28: 00:00:00 | I28: 00:00:00 | J28: 00:00:00 | K28: 00:00:00 | L28: 00:00:00 | M28: 00:00:00 | N28: 00:00:00 | O28: 00:00:00 | P28: 00:00:00 | Q28: 00:00:00 | R28: 00:00:00 | S28: 00:00:00 | T28: 00:00:00 | U28: 00:00:00 | V28: 00:00:00 | W28: 00:00:00 | X28: 00:00:00 | Y28: 00:00:00 | Z28: 00:00:00 | AA28: 00:00:00 | AB28: 00:00:00 | AC28: 00:00:00 | AD28: 00:00:00 | AE28: 00:00:00 | AF28: 00:00:00 | AG28: =SUM(B28:AF28) -> 0 | AH28: =AG28/SUM($AG$6:$AG$137) ->  | AP28: =$AG28*'puncte misiuni-competente'!B27/'puncte misiuni-competente'!B$4/(3744/122*0.875) -> 0 | AQ28: =$AG28*'puncte misiuni-competente'!C27/'puncte misiuni-competente'!C$4/(3744/122*0.875) -> 0 | AR28: =$AG28*'puncte misiuni-competente'!D27/'puncte misiuni-competente'!D$4/(3744/122*0.875) -> 0 | AS28: =$AG28*'puncte misiuni-competente'!E27/'puncte misiuni-competente'!E$4/(3744/122*0.875) -> 0 | AT28: =$AG28*'puncte misiuni-competente'!F27/'puncte misiuni-competente'!F$4/(3744/122*0.875) -> 0 | AU28: =$AG28*'puncte misiuni-competente'!G27/'puncte misiuni-competente'!G$4/(3744/122*0.875) -> 0 | AV28: =$AG28*'puncte misiuni-competente'!H27/'puncte misiuni-competente'!H$4/(3744/122*0.875) -> 0
A30: 2.1.6. Planificarea desfasurarii investitiei | B30: 00:00:00 | C30: 00:00:00 | D30: 00:00:00 | E30: 00:00:00 | F30: 00:00:00 | G30: 00:00:00 | H30: 00:00:00 | I30: 00:00:00 | J30: 00:00:00 | K30: 00:00:00 | L30: 00:00:00 | M30: 00:00:00 | N30: 00:00:00 | O30: 00:00:00 | P30: 00:00:00 | Q30: 00:00:00 | R30: 00:00:00 | S30: 00:00:00 | T30: 00:00:00 | U30: 00:00:00 | V30: 00:00:00 | W30: 00:00:00 | X30: 00:00:00 | Y30: 00:00:00 | Z30: 00:00:00 | AA30: 00:00:00 | AB30: 00:00:00 | AC30: 00:00:00 | AD30: 00:00:00 | AE30: 00:00:00 | AF30: 00:00:00 | AG30: =SUM(B30:AF30) -> 0 | AH30: =AG30/SUM($AG$6:$AG$137) ->  | AP30: =$AG30*'puncte misiuni-competente'!B29/'puncte misiuni-competente'!B$4/(3744/122*0.875) -> 0 | AQ30: =$AG30*'puncte misiuni-competente'!C29/'puncte misiuni-competente'!C$4/(3744/122*0.875) -> 0 | AR30: =$AG30*'puncte misiuni-competente'!D29/'puncte misiuni-competente'!D$4/(3744/122*0.875) -> 0 | AS30: =$AG30*'puncte misiuni-competente'!E29/'puncte misiuni-competente'!E$4/(3744/122*0.875) -> 0 | AT30: =$AG30*'puncte misiuni-competente'!F29/'puncte misiuni-competente'!F$4/(3744/122*0.875) -> 0 | AU30: =$AG30*'puncte misiuni-competente'!G29/'puncte misiuni-competente'!G$4/(3744/122*0.875) -> 0 | AV30: =$AG30*'puncte misiuni-competente'!H29/'puncte misiuni-competente'!H$4/(3744/122*0.875) -> 0
A32: 2.1.7. Releveu | B32: 00:00:00 | C32: 00:00:00 | D32: 00:00:00 | E32: 00:00:00 | F32: 00:00:00 | G32: 00:00:00 | H32: 00:00:00 | I32: 00:00:00 | J32: 00:00:00 | K32: 00:00:00 | L32: 00:00:00 | M32: 00:00:00 | N32: 00:00:00 | O32: 00:00:00 | P32: 00:00:00 | Q32: 00:00:00 | R32: 00:00:00 | S32: 00:00:00 | T32: 00:00:00 | U32: 00:00:00 | V32: 00:00:00 | W32: 00:00:00 | X32: 00:00:00 | Y32: 00:00:00 | Z32: 00:00:00 | AA32: 00:00:00 | AB32: 00:00:00 | AC32: 00:00:00 | AD32: 00:00:00 | AE32: 00:00:00 | AF32: 00:00:00 | AG32: =SUM(B32:AF32) -> 0 | AH32: =AG32/SUM($AG$6:$AG$137) ->  | AP32: =$AG32*'puncte misiuni-competente'!B31/'puncte misiuni-competente'!B$4/(3744/122*0.875) -> 0 | AQ32: =$AG32*'puncte misiuni-competente'!C31/'puncte misiuni-competente'!C$4/(3744/122*0.875) -> 0 | AR32: =$AG32*'puncte misiuni-competente'!D31/'puncte misiuni-competente'!D$4/(3744/122*0.875) -> 0 | AS32: =$AG32*'puncte misiuni-competente'!E31/'puncte misiuni-competente'!E$4/(3744/122*0.875) -> 0 | AT32: =$AG32*'puncte misiuni-competente'!F31/'puncte misiuni-competente'!F$4/(3744/122*0.875) -> 0 | AU32: =$AG32*'puncte misiuni-competente'!G31/'puncte misiuni-competente'!G$4/(3744/122*0.875) -> 0 | AV32: =$AG32*'puncte misiuni-competente'!H31/'puncte misiuni-competente'!H$4/(3744/122*0.875) -> 0
A34: 2.2.1. Studiu de ilustrare comparativ | B34: 00:00:00 | C34: 00:00:00 | D34: 00:00:00 | E34: 00:00:00 | F34: 00:00:00 | G34: 00:00:00 | H34: 00:00:00 | I34: 00:00:00 | J34: 00:00:00 | K34: 00:00:00 | L34: 00:00:00 | M34: 00:00:00 | N34: 00:00:00 | O34: 00:00:00 | P34: 00:00:00 | Q34: 00:00:00 | R34: 00:00:00 | S34: 00:00:00 | T34: 00:00:00 | U34: 00:00:00 | V34: 00:00:00 | W34: 00:00:00 | X34: 00:00:00 | Y34: 00:00:00 | Z34: 00:00:00 | AA34: 00:00:00 | AB34: 00:00:00 | AC34: 00:00:00 | AD34: 00:00:00 | AE34: 00:00:00 | AF34: 00:00:00 | AG34: =SUM(B34:AF34) -> 0 | AH34: =AG34/SUM($AG$6:$AG$137) ->  | AP34: =$AG34*'puncte misiuni-competente'!B33/'puncte misiuni-competente'!B$4/(3744/122*0.875) -> 0 | AQ34: =$AG34*'puncte misiuni-competente'!C33/'puncte misiuni-competente'!C$4/(3744/122*0.875) -> 0 | AR34: =$AG34*'puncte misiuni-competente'!D33/'puncte misiuni-competente'!D$4/(3744/122*0.875) -> 0 | AS34: =$AG34*'puncte misiuni-competente'!E33/'puncte misiuni-competente'!E$4/(3744/122*0.875) -> 0 | AT34: =$AG34*'puncte misiuni-competente'!F33/'puncte misiuni-competente'!F$4/(3744/122*0.875) -> 0 | AU34: =$AG34*'puncte misiuni-competente'!G33/'puncte misiuni-competente'!G$4/(3744/122*0.875) -> 0 | AV34: =$AG34*'puncte misiuni-competente'!H33/'puncte misiuni-competente'!H$4/(3744/122*0.875) -> 0
A36: 2.2.2. Solicitarea, urmarirea stadiului de elaborare si ridicarea certificatului de urbanism si a avizelor | B36: 00:00:00 | C36: 00:00:00 | D36: 00:00:00 | E36: 00:00:00 | F36: 00:00:00 | G36: 00:00:00 | H36: 00:00:00 | I36: 00:00:00 | J36: 00:00:00 | K36: 00:00:00 | L36: 00:00:00 | M36: 00:00:00 | N36: 00:00:00 | O36: 00:00:00 | P36: 00:00:00 | Q36: 00:00:00 | R36: 00:00:00 | S36: 00:00:00 | T36: 00:00:00 | U36: 00:00:00 | V36: 00:00:00 | W36: 00:00:00 | X36: 00:00:00 | Y36: 00:00:00 | Z36: 00:00:00 | AA36: 00:00:00 | AB36: 00:00:00 | AC36: 00:00:00 | AD36: 00:00:00 | AE36: 00:00:00 | AF36: 00:00:00 | AG36: =SUM(B36:AF36) -> 0 | AH36: =AG36/SUM($AG$6:$AG$137) ->  | AP36: =$AG36*'puncte misiuni-competente'!B35/'puncte misiuni-competente'!B$4/(3744/122*0.875) -> 0 | AQ36: =$AG36*'puncte misiuni-competente'!C35/'puncte misiuni-competente'!C$4/(3744/122*0.875) -> 0 | AR36: =$AG36*'puncte misiuni-competente'!D35/'puncte misiuni-competente'!D$4/(3744/122*0.875) -> 0 | AS36: =$AG36*'puncte misiuni-competente'!E35/'puncte misiuni-competente'!E$4/(3744/122*0.875) -> 0 | AT36: =$AG36*'puncte misiuni-competente'!F35/'puncte misiuni-competente'!F$4/(3744/122*0.875) -> 0 | AU36: =$AG36*'puncte misiuni-competente'!G35/'puncte misiuni-competente'!G$4/(3744/122*0.875) -> 0 | AV36: =$AG36*'puncte misiuni-competente'!H35/'puncte misiuni-competente'!H$4/(3744/122*0.875) -> 0
A38: 2.2.3. Bugetare costuri de operare | B38: 00:00:00 | C38: 00:00:00 | D38: 00:00:00 | E38: 00:00:00 | F38: 00:00:00 | G38: 00:00:00 | H38: 00:00:00 | I38: 00:00:00 | J38: 00:00:00 | K38: 00:00:00 | L38: 00:00:00 | M38: 00:00:00 | N38: 00:00:00 | O38: 00:00:00 | P38: 00:00:00 | Q38: 00:00:00 | R38: 00:00:00 | S38: 00:00:00 | T38: 00:00:00 | U38: 00:00:00 | V38: 00:00:00 | W38: 00:00:00 | X38: 00:00:00 | Y38: 00:00:00 | Z38: 00:00:00 | AA38: 00:00:00 | AB38: 00:00:00 | AC38: 00:00:00 | AD38: 00:00:00 | AE38: 00:00:00 | AF38: 00:00:00 | AG38: =SUM(B38:AF38) -> 0 | AH38: =AG38/SUM($AG$6:$AG$137) ->  | AP38: =$AG38*'puncte misiuni-competente'!B37/'puncte misiuni-competente'!B$4/(3744/122*0.875) -> 0 | AQ38: =$AG38*'puncte misiuni-competente'!C37/'puncte misiuni-competente'!C$4/(3744/122*0.875) -> 0 | AR38: =$AG38*'puncte misiuni-competente'!D37/'puncte misiuni-competente'!D$4/(3744/122*0.875) -> 0 | AS38: =$AG38*'puncte misiuni-competente'!E37/'puncte misiuni-competente'!E$4/(3744/122*0.875) -> 0 | AT38: =$AG38*'puncte misiuni-competente'!F37/'puncte misiuni-competente'!F$4/(3744/122*0.875) -> 0 | AU38: =$AG38*'puncte misiuni-competente'!G37/'puncte misiuni-competente'!G$4/(3744/122*0.875) -> 0 | AV38: =$AG38*'puncte misiuni-competente'!H37/'puncte misiuni-competente'!H$4/(3744/122*0.875) -> 0
A40: 2.2.4. Consultanta privind modalitatea de modificare a regimului tehnic si economic al imobilului | B40: 00:00:00 | C40: 00:00:00 | D40: 00:00:00 | E40: 00:00:00 | F40: 00:00:00 | G40: 00:00:00 | H40: 00:00:00 | I40: 00:00:00 | J40: 00:00:00 | K40: 00:00:00 | L40: 00:00:00 | M40: 00:00:00 | N40: 00:00:00 | O40: 00:00:00 | P40: 00:00:00 | Q40: 00:00:00 | R40: 00:00:00 | S40: 00:00:00 | T40: 00:00:00 | U40: 00:00:00 | V40: 00:00:00 | W40: 00:00:00 | X40: 00:00:00 | Y40: 00:00:00 | Z40: 00:00:00 | AA40: 00:00:00 | AB40: 00:00:00 | AC40: 00:00:00 | AD40: 00:00:00 | AE40: 00:00:00 | AF40: 00:00:00 | AG40: =SUM(B40:AF40) -> 0 | AH40: =AG40/SUM($AG$6:$AG$137) ->  | AP40: =$AG40*'puncte misiuni-competente'!B39/'puncte misiuni-competente'!B$4/(3744/122*0.875) -> 0 | AQ40: =$AG40*'puncte misiuni-competente'!C39/'puncte misiuni-competente'!C$4/(3744/122*0.875) -> 0 | AR40: =$AG40*'puncte misiuni-competente'!D39/'puncte misiuni-competente'!D$4/(3744/122*0.875) -> 0 | AS40: =$AG40*'puncte misiuni-competente'!E39/'puncte misiuni-competente'!E$4/(3744/122*0.875) -> 0 | AT40: =$AG40*'puncte misiuni-competente'!F39/'puncte misiuni-competente'!F$4/(3744/122*0.875) -> 0 | AU40: =$AG40*'puncte misiuni-competente'!G39/'puncte misiuni-competente'!G$4/(3744/122*0.875) -> 0 | AV40: =$AG40*'puncte misiuni-competente'!H39/'puncte misiuni-competente'!H$4/(3744/122*0.875) -> 0
A42: 3.1.1. Concept general si de arhitectura | B42: 00:00:00 | C42: 00:00:00 | D42: 00:00:00 | E42: 00:00:00 | F42: 00:00:00 | G42: 00:00:00 | H42: 00:00:00 | I42: 00:00:00 | J42: 00:00:00 | K42: 00:00:00 | L42: 00:00:00 | M42: 00:00:00 | N42: 00:00:00 | O42: 00:00:00 | P42: 00:00:00 | Q42: 00:00:00 | R42: 00:00:00 | S42: 00:00:00 | T42: 00:00:00 | U42: 00:00:00 | V42: 00:00:00 | W42: 00:00:00 | X42: 00:00:00 | Y42: 00:00:00 | Z42: 00:00:00 | AA42: 00:00:00 | AB42: 00:00:00 | AC42: 00:00:00 | AD42: 00:00:00 | AE42: 00:00:00 | AF42: 00:00:00 | AG42: =SUM(B42:AF42) -> 0 | AH42: =AG42/SUM($AG$6:$AG$137) ->  | AP42: =$AG42*'puncte misiuni-competente'!B41/'puncte misiuni-competente'!B$4/(3744/122*0.875) -> 0 | AQ42: =$AG42*'puncte misiuni-competente'!C41/'puncte misiuni-competente'!C$4/(3744/122*0.875) -> 0 | AR42: =$AG42*'puncte misiuni-competente'!D41/'puncte misiuni-competente'!D$4/(3744/122*0.875) -> 0 | AS42: =$AG42*'puncte misiuni-competente'!E41/'puncte misiuni-competente'!E$4/(3744/122*0.875) -> 0 | AT42: =$AG42*'puncte misiuni-competente'!F41/'puncte misiuni-competente'!F$4/(3744/122*0.875) -> 0 | AU42: =$AG42*'puncte misiuni-competente'!G41/'puncte misiuni-competente'!G$4/(3744/122*0.875) -> 0 | AV42: =$AG42*'puncte misiuni-competente'!H41/'puncte misiuni-competente'!H$4/(3744/122*0.875) -> 0
A44: 3.1.2. Planificarea desfasurarii investitiei | B44: 00:00:00 | C44: 00:00:00 | D44: 00:00:00 | E44: 00:00:00 | F44: 00:00:00 | G44: 00:00:00 | H44: 00:00:00 | I44: 00:00:00 | J44: 00:00:00 | K44: 00:00:00 | L44: 00:00:00 | M44: 00:00:00 | N44: 00:00:00 | O44: 00:00:00 | P44: 00:00:00 | Q44: 00:00:00 | R44: 00:00:00 | S44: 00:00:00 | T44: 00:00:00 | U44: 00:00:00 | V44: 00:00:00 | W44: 00:00:00 | X44: 00:00:00 | Y44: 00:00:00 | Z44: 00:00:00 | AA44: 00:00:00 | AB44: 00:00:00 | AC44: 00:00:00 | AD44: 00:00:00 | AE44: 00:00:00 | AF44: 00:00:00 | AG44: =SUM(B44:AF44) -> 0 | AH44: =AG44/SUM($AG$6:$AG$137) ->  | AP44: =$AG44*'puncte misiuni-competente'!B43/'puncte misiuni-competente'!B$4/(3744/122*0.875) -> 0 | AQ44: =$AG44*'puncte misiuni-competente'!C43/'puncte misiuni-competente'!C$4/(3744/122*0.875) -> 0 | AR44: =$AG44*'puncte misiuni-competente'!D43/'puncte misiuni-competente'!D$4/(3744/122*0.875) -> 0 | AS44: =$AG44*'puncte misiuni-competente'!E43/'puncte misiuni-competente'!E$4/(3744/122*0.875) -> 0 | AT44: =$AG44*'puncte misiuni-competente'!F43/'puncte misiuni-competente'!F$4/(3744/122*0.875) -> 0 | AU44: =$AG44*'puncte misiuni-competente'!G43/'puncte misiuni-competente'!G$4/(3744/122*0.875) -> 0 | AV44: =$AG44*'puncte misiuni-competente'!H43/'puncte misiuni-competente'!H$4/(3744/122*0.875) -> 0
A46: 3.2.1. Realizare de variante suplimentare | B46: 00:00:00 | C46: 00:00:00 | D46: 00:00:00 | E46: 00:00:00 | F46: 00:00:00 | G46: 00:00:00 | H46: 00:00:00 | I46: 00:00:00 | J46: 00:00:00 | K46: 00:00:00 | L46: 00:00:00 | M46: 00:00:00 | N46: 00:00:00 | O46: 00:00:00 | P46: 00:00:00 | Q46: 00:00:00 | R46: 00:00:00 | S46: 00:00:00 | T46: 00:00:00 | U46: 00:00:00 | V46: 00:00:00 | W46: 00:00:00 | X46: 00:00:00 | Y46: 00:00:00 | Z46: 00:00:00 | AA46: 00:00:00 | AB46: 00:00:00 | AC46: 00:00:00 | AD46: 00:00:00 | AE46: 00:00:00 | AF46: 00:00:00 | AG46: =SUM(B46:AF46) -> 0 | AH46: =AG46/SUM($AG$6:$AG$137) ->  | AP46: =$AG46*'puncte misiuni-competente'!B45/'puncte misiuni-competente'!B$4/(3744/122*0.875) -> 0 | AQ46: =$AG46*'puncte misiuni-competente'!C45/'puncte misiuni-competente'!C$4/(3744/122*0.875) -> 0 | AR46: =$AG46*'puncte misiuni-competente'!D45/'puncte misiuni-competente'!D$4/(3744/122*0.875) -> 0 | AS46: =$AG46*'puncte misiuni-competente'!E45/'puncte misiuni-competente'!E$4/(3744/122*0.875) -> 0 | AT46: =$AG46*'puncte misiuni-competente'!F45/'puncte misiuni-competente'!F$4/(3744/122*0.875) -> 0 | AU46: =$AG46*'puncte misiuni-competente'!G45/'puncte misiuni-competente'!G$4/(3744/122*0.875) -> 0 | AV46: =$AG46*'puncte misiuni-competente'!H45/'puncte misiuni-competente'!H$4/(3744/122*0.875) -> 0
A48: 3.2.2. Verificarea de incadrare in buget | B48: 00:00:00 | C48: 00:00:00 | D48: 00:00:00 | E48: 00:00:00 | F48: 00:00:00 | G48: 00:00:00 | H48: 00:00:00 | I48: 00:00:00 | J48: 00:00:00 | K48: 00:00:00 | L48: 00:00:00 | M48: 00:00:00 | N48: 00:00:00 | O48: 00:00:00 | P48: 00:00:00 | Q48: 00:00:00 | R48: 00:00:00 | S48: 00:00:00 | T48: 00:00:00 | U48: 00:00:00 | V48: 00:00:00 | W48: 00:00:00 | X48: 00:00:00 | Y48: 00:00:00 | Z48: 00:00:00 | AA48: 00:00:00 | AB48: 00:00:00 | AC48: 00:00:00 | AD48: 00:00:00 | AE48: 00:00:00 | AF48: 00:00:00 | AG48: =SUM(B48:AF48) -> 0 | AH48: =AG48/SUM($AG$6:$AG$137) ->  | AP48: =$AG48*'puncte misiuni-competente'!B47/'puncte misiuni-competente'!B$4/(3744/122*0.875) -> 0 | AQ48: =$AG48*'puncte misiuni-competente'!C47/'puncte misiuni-competente'!C$4/(3744/122*0.875) -> 0 | AR48: =$AG48*'puncte misiuni-competente'!D47/'puncte misiuni-competente'!D$4/(3744/122*0.875) -> 0 | AS48: =$AG48*'puncte misiuni-competente'!E47/'puncte misiuni-competente'!E$4/(3744/122*0.875) -> 0 | AT48: =$AG48*'puncte misiuni-competente'!F47/'puncte misiuni-competente'!F$4/(3744/122*0.875) -> 0 | AU48: =$AG48*'puncte misiuni-competente'!G47/'puncte misiuni-competente'!G$4/(3744/122*0.875) -> 0 | AV48: =$AG48*'puncte misiuni-competente'!H47/'puncte misiuni-competente'!H$4/(3744/122*0.875) -> 0
A50: 3.2.3. Estimarea costului investitiei | B50: 00:00:00 | C50: 00:00:00 | D50: 00:00:00 | E50: 00:00:00 | F50: 00:00:00 | G50: 00:00:00 | H50: 00:00:00 | I50: 00:00:00 | J50: 00:00:00 | K50: 00:00:00 | L50: 00:00:00 | M50: 00:00:00 | N50: 00:00:00 | O50: 00:00:00 | P50: 00:00:00 | Q50: 00:00:00 | R50: 00:00:00 | S50: 00:00:00 | T50: 00:00:00 | U50: 00:00:00 | V50: 00:00:00 | W50: 00:00:00 | X50: 00:00:00 | Y50: 00:00:00 | Z50: 00:00:00 | AA50: 00:00:00 | AB50: 00:00:00 | AC50: 00:00:00 | AD50: 00:00:00 | AE50: 00:00:00 | AF50: 00:00:00 | AG50: =SUM(B50:AF50) -> 0 | AH50: =AG50/SUM($AG$6:$AG$137) ->  | AP50: =$AG50*'puncte misiuni-competente'!B49/'puncte misiuni-competente'!B$4/(3744/122*0.875) -> 0 | AQ50: =$AG50*'puncte misiuni-competente'!C49/'puncte misiuni-competente'!C$4/(3744/122*0.875) -> 0 | AR50: =$AG50*'puncte misiuni-competente'!D49/'puncte misiuni-competente'!D$4/(3744/122*0.875) -> 0 | AS50: =$AG50*'puncte misiuni-competente'!E49/'puncte misiuni-competente'!E$4/(3744/122*0.875) -> 0 | AT50: =$AG50*'puncte misiuni-competente'!F49/'puncte misiuni-competente'!F$4/(3744/122*0.875) -> 0 | AU50: =$AG50*'puncte misiuni-competente'!G49/'puncte misiuni-competente'!G$4/(3744/122*0.875) -> 0 | AV50: =$AG50*'puncte misiuni-competente'!H49/'puncte misiuni-competente'!H$4/(3744/122*0.875) -> 0
A52: 3.2.4. Estimarea costului de operare | B52: 00:00:00 | C52: 00:00:00 | D52: 00:00:00 | E52: 00:00:00 | F52: 00:00:00 | G52: 00:00:00 | H52: 00:00:00 | I52: 00:00:00 | J52: 00:00:00 | K52: 00:00:00 | L52: 00:00:00 | M52: 00:00:00 | N52: 00:00:00 | O52: 00:00:00 | P52: 00:00:00 | Q52: 00:00:00 | R52: 00:00:00 | S52: 00:00:00 | T52: 00:00:00 | U52: 00:00:00 | V52: 00:00:00 | W52: 00:00:00 | X52: 00:00:00 | Y52: 00:00:00 | Z52: 00:00:00 | AA52: 00:00:00 | AB52: 00:00:00 | AC52: 00:00:00 | AD52: 00:00:00 | AE52: 00:00:00 | AF52: 00:00:00 | AG52: =SUM(B52:AF52) -> 0 | AH52: =AG52/SUM($AG$6:$AG$137) ->  | AP52: =$AG52*'puncte misiuni-competente'!B51/'puncte misiuni-competente'!B$4/(3744/122*0.875) -> 0 | AQ52: =$AG52*'puncte misiuni-competente'!C51/'puncte misiuni-competente'!C$4/(3744/122*0.875) -> 0 | AR52: =$AG52*'puncte misiuni-competente'!D51/'puncte misiuni-competente'!D$4/(3744/122*0.875) -> 0 | AS52: =$AG52*'puncte misiuni-competente'!E51/'puncte misiuni-competente'!E$4/(3744/122*0.875) -> 0 | AT52: =$AG52*'puncte misiuni-competente'!F51/'puncte misiuni-competente'!F$4/(3744/122*0.875) -> 0 | AU52: =$AG52*'puncte misiuni-competente'!G51/'puncte misiuni-competente'!G$4/(3744/122*0.875) -> 0 | AV52: =$AG52*'puncte misiuni-competente'!H51/'puncte misiuni-competente'!H$4/(3744/122*0.875) -> 0
A54: 3.2.5. Proiectare pentru un impact redus asupra mediului | B54: 00:00:00 | C54: 00:00:00 | D54: 00:00:00 | E54: 00:00:00 | F54: 00:00:00 | G54: 00:00:00 | H54: 00:00:00 | I54: 00:00:00 | J54: 00:00:00 | K54: 00:00:00 | L54: 00:00:00 | M54: 00:00:00 | N54: 00:00:00 | O54: 00:00:00 | P54: 00:00:00 | Q54: 00:00:00 | R54: 00:00:00 | S54: 00:00:00 | T54: 00:00:00 | U54: 00:00:00 | V54: 00:00:00 | W54: 00:00:00 | X54: 00:00:00 | Y54: 00:00:00 | Z54: 00:00:00 | AA54: 00:00:00 | AB54: 00:00:00 | AC54: 00:00:00 | AD54: 00:00:00 | AE54: 00:00:00 | AF54: 00:00:00 | AG54: =SUM(B54:AF54) -> 0 | AH54: =AG54/SUM($AG$6:$AG$137) ->  | AP54: =$AG54*'puncte misiuni-competente'!B53/'puncte misiuni-competente'!B$4/(3744/122*0.875) -> 0 | AQ54: =$AG54*'puncte misiuni-competente'!C53/'puncte misiuni-competente'!C$4/(3744/122*0.875) -> 0 | AR54: =$AG54*'puncte misiuni-competente'!D53/'puncte misiuni-competente'!D$4/(3744/122*0.875) -> 0 | AS54: =$AG54*'puncte misiuni-competente'!E53/'puncte misiuni-competente'!E$4/(3744/122*0.875) -> 0 | AT54: =$AG54*'puncte misiuni-competente'!F53/'puncte misiuni-competente'!F$4/(3744/122*0.875) -> 0 | AU54: =$AG54*'puncte misiuni-competente'!G53/'puncte misiuni-competente'!G$4/(3744/122*0.875) -> 0 | AV54: =$AG54*'puncte misiuni-competente'!H53/'puncte misiuni-competente'!H$4/(3744/122*0.875) -> 0
A56: 4.1.1. Tema detaliata (definitiva) | B56: 00:00:00 | C56: 00:00:00 | D56: 00:00:00 | E56: 00:00:00 | F56: 00:00:00 | G56: 00:00:00 | H56: 00:00:00 | I56: 00:00:00 | J56: 00:00:00 | K56: 00:00:00 | L56: 00:00:00 | M56: 00:00:00 | N56: 00:00:00 | O56: 00:00:00 | P56: 00:00:00 | Q56: 00:00:00 | R56: 00:00:00 | S56: 00:00:00 | T56: 00:00:00 | U56: 00:00:00 | V56: 00:00:00 | W56: 00:00:00 | X56: 00:00:00 | Y56: 00:00:00 | Z56: 00:00:00 | AA56: 00:00:00 | AB56: 00:00:00 | AC56: 00:00:00 | AD56: 00:00:00 | AE56: 00:00:00 | AF56: 00:00:00 | AG56: =SUM(B56:AF56) -> 0 | AH56: =AG56/SUM($AG$6:$AG$137) ->  | AP56: =$AG56*'puncte misiuni-competente'!B55/'puncte misiuni-competente'!B$4/(3744/122*0.875) -> 0 | AQ56: =$AG56*'puncte misiuni-competente'!C55/'puncte misiuni-competente'!C$4/(3744/122*0.875) -> 0 | AR56: =$AG56*'puncte misiuni-competente'!D55/'puncte misiuni-competente'!D$4/(3744/122*0.875) -> 0 | AS56: =$AG56*'puncte misiuni-competente'!E55/'puncte misiuni-competente'!E$4/(3744/122*0.875) -> 0 | AT56: =$AG56*'puncte misiuni-competente'!F55/'puncte misiuni-competente'!F$4/(3744/122*0.875) -> 0 | AU56: =$AG56*'puncte misiuni-competente'!G55/'puncte misiuni-competente'!G$4/(3744/122*0.875) -> 0 | AV56: =$AG56*'puncte misiuni-competente'!H55/'puncte misiuni-competente'!H$4/(3744/122*0.875) -> 0
A58: 4.1.2. Proiectul definitiv prezentat la nivel schematic | B58: 00:00:00 | C58: 00:00:00 | D58: 00:00:00 | E58: 00:00:00 | F58: 00:00:00 | G58: 00:00:00 | H58: 00:00:00 | I58: 00:00:00 | J58: 00:00:00 | K58: 00:00:00 | L58: 00:00:00 | M58: 00:00:00 | N58: 00:00:00 | O58: 00:00:00 | P58: 00:00:00 | Q58: 00:00:00 | R58: 00:00:00 | S58: 00:00:00 | T58: 00:00:00 | U58: 00:00:00 | V58: 00:00:00 | W58: 00:00:00 | X58: 00:00:00 | Y58: 00:00:00 | Z58: 00:00:00 | AA58: 00:00:00 | AB58: 00:00:00 | AC58: 00:00:00 | AD58: 00:00:00 | AE58: 00:00:00 | AF58: 00:00:00 | AG58: =SUM(B58:AF58) -> 0 | AH58: =AG58/SUM($AG$6:$AG$137) ->  | AP58: =$AG58*'puncte misiuni-competente'!B57/'puncte misiuni-competente'!B$4/(3744/122*0.875) -> 0 | AQ58: =$AG58*'puncte misiuni-competente'!C57/'puncte misiuni-competente'!C$4/(3744/122*0.875) -> 0 | AR58: =$AG58*'puncte misiuni-competente'!D57/'puncte misiuni-competente'!D$4/(3744/122*0.875) -> 0 | AS58: =$AG58*'puncte misiuni-competente'!E57/'puncte misiuni-competente'!E$4/(3744/122*0.875) -> 0 | AT58: =$AG58*'puncte misiuni-competente'!F57/'puncte misiuni-competente'!F$4/(3744/122*0.875) -> 0 | AU58: =$AG58*'puncte misiuni-competente'!G57/'puncte misiuni-competente'!G$4/(3744/122*0.875) -> 0 | AV58: =$AG58*'puncte misiuni-competente'!H57/'puncte misiuni-competente'!H$4/(3744/122*0.875) -> 0
A60: 4.1.3. Planificarea desfasurarii investitiei | B60: 00:00:00 | C60: 00:00:00 | D60: 00:00:00 | E60: 00:00:00 | F60: 00:00:00 | G60: 00:00:00 | H60: 00:00:00 | I60: 00:00:00 | J60: 00:00:00 | K60: 00:00:00 | L60: 00:00:00 | M60: 00:00:00 | N60: 00:00:00 | O60: 00:00:00 | P60: 00:00:00 | Q60: 00:00:00 | R60: 00:00:00 | S60: 00:00:00 | T60: 00:00:00 | U60: 00:00:00 | V60: 00:00:00 | W60: 00:00:00 | X60: 00:00:00 | Y60: 00:00:00 | Z60: 00:00:00 | AA60: 00:00:00 | AB60: 00:00:00 | AC60: 00:00:00 | AD60: 00:00:00 | AE60: 00:00:00 | AF60: 00:00:00 | AG60: =SUM(B60:AF60) -> 0 | AH60: =AG60/SUM($AG$6:$AG$137) ->  | AP60: =$AG60*'puncte misiuni-competente'!B59/'puncte misiuni-competente'!B$4/(3744/122*0.875) -> 0 | AQ60: =$AG60*'puncte misiuni-competente'!C59/'puncte misiuni-competente'!C$4/(3744/122*0.875) -> 0 | AR60: =$AG60*'puncte misiuni-competente'!D59/'puncte misiuni-competente'!D$4/(3744/122*0.875) -> 0 | AS60: =$AG60*'puncte misiuni-competente'!E59/'puncte misiuni-competente'!E$4/(3744/122*0.875) -> 0 | AT60: =$AG60*'puncte misiuni-competente'!F59/'puncte misiuni-competente'!F$4/(3744/122*0.875) -> 0 | AU60: =$AG60*'puncte misiuni-competente'!G59/'puncte misiuni-competente'!G$4/(3744/122*0.875) -> 0 | AV60: =$AG60*'puncte misiuni-competente'!H59/'puncte misiuni-competente'!H$4/(3744/122*0.875) -> 0
A62: 4.1.4. Teme pentru realizarea proiectelor de specialitate | B62: 00:00:00 | C62: 00:00:00 | D62: 00:00:00 | E62: 00:00:00 | F62: 00:00:00 | G62: 00:00:00 | H62: 00:00:00 | I62: 00:00:00 | J62: 00:00:00 | K62: 00:00:00 | L62: 00:00:00 | M62: 00:00:00 | N62: 00:00:00 | O62: 00:00:00 | P62: 00:00:00 | Q62: 00:00:00 | R62: 00:00:00 | S62: 00:00:00 | T62: 00:00:00 | U62: 00:00:00 | V62: 00:00:00 | W62: 00:00:00 | X62: 00:00:00 | Y62: 00:00:00 | Z62: 00:00:00 | AA62: 00:00:00 | AB62: 00:00:00 | AC62: 00:00:00 | AD62: 00:00:00 | AE62: 00:00:00 | AF62: 00:00:00 | AG62: =SUM(B62:AF62) -> 0 | AH62: =AG62/SUM($AG$6:$AG$137) ->  | AP62: =$AG62*'puncte misiuni-competente'!B61/'puncte misiuni-competente'!B$4/(3744/122*0.875) -> 0 | AQ62: =$AG62*'puncte misiuni-competente'!C61/'puncte misiuni-competente'!C$4/(3744/122*0.875) -> 0 | AR62: =$AG62*'puncte misiuni-competente'!D61/'puncte misiuni-competente'!D$4/(3744/122*0.875) -> 0 | AS62: =$AG62*'puncte misiuni-competente'!E61/'puncte misiuni-competente'!E$4/(3744/122*0.875) -> 0 | AT62: =$AG62*'puncte misiuni-competente'!F61/'puncte misiuni-competente'!F$4/(3744/122*0.875) -> 0 | AU62: =$AG62*'puncte misiuni-competente'!G61/'puncte misiuni-competente'!G$4/(3744/122*0.875) -> 0 | AV62: =$AG62*'puncte misiuni-competente'!H61/'puncte misiuni-competente'!H$4/(3744/122*0.875) -> 0
A64: 4.1.5. Coordonarea preliminara a proiectului | B64: 00:00:00 | C64: 00:00:00 | D64: 00:00:00 | E64: 00:00:00 | F64: 00:00:00 | G64: 00:00:00 | H64: 00:00:00 | I64: 00:00:00 | J64: 00:00:00 | K64: 00:00:00 | L64: 00:00:00 | M64: 00:00:00 | N64: 00:00:00 | O64: 00:00:00 | P64: 00:00:00 | Q64: 00:00:00 | R64: 00:00:00 | S64: 00:00:00 | T64: 00:00:00 | U64: 00:00:00 | V64: 00:00:00 | W64: 00:00:00 | X64: 00:00:00 | Y64: 00:00:00 | Z64: 00:00:00 | AA64: 00:00:00 | AB64: 00:00:00 | AC64: 00:00:00 | AD64: 00:00:00 | AE64: 00:00:00 | AF64: 00:00:00 | AG64: =SUM(B64:AF64) -> 0 | AH64: =AG64/SUM($AG$6:$AG$137) ->  | AP64: =$AG64*'puncte misiuni-competente'!B63/'puncte misiuni-competente'!B$4/(3744/122*0.875) -> 0 | AQ64: =$AG64*'puncte misiuni-competente'!C63/'puncte misiuni-competente'!C$4/(3744/122*0.875) -> 0 | AR64: =$AG64*'puncte misiuni-competente'!D63/'puncte misiuni-competente'!D$4/(3744/122*0.875) -> 0 | AS64: =$AG64*'puncte misiuni-competente'!E63/'puncte misiuni-competente'!E$4/(3744/122*0.875) -> 0 | AT64: =$AG64*'puncte misiuni-competente'!F63/'puncte misiuni-competente'!F$4/(3744/122*0.875) -> 0 | AU64: =$AG64*'puncte misiuni-competente'!G63/'puncte misiuni-competente'!G$4/(3744/122*0.875) -> 0 | AV64: =$AG64*'puncte misiuni-competente'!H63/'puncte misiuni-competente'!H$4/(3744/122*0.875) -> 0
A66: 4.2.1. Calcularea fezabilitatii investitiei sau DALI | B66: 00:00:00 | C66: 00:00:00 | D66: 00:00:00 | E66: 00:00:00 | F66: 00:00:00 | G66: 00:00:00 | H66: 00:00:00 | I66: 00:00:00 | J66: 00:00:00 | K66: 00:00:00 | L66: 00:00:00 | M66: 00:00:00 | N66: 00:00:00 | O66: 00:00:00 | P66: 00:00:00 | Q66: 00:00:00 | R66: 00:00:00 | S66: 00:00:00 | T66: 00:00:00 | U66: 00:00:00 | V66: 00:00:00 | W66: 00:00:00 | X66: 00:00:00 | Y66: 00:00:00 | Z66: 00:00:00 | AA66: 00:00:00 | AB66: 00:00:00 | AC66: 00:00:00 | AD66: 00:00:00 | AE66: 00:00:00 | AF66: 00:00:00 | AG66: =SUM(B66:AF66) -> 0 | AH66: =AG66/SUM($AG$6:$AG$137) ->  | AP66: =$AG66*'puncte misiuni-competente'!B65/'puncte misiuni-competente'!B$4/(3744/122*0.875) -> 0 | AQ66: =$AG66*'puncte misiuni-competente'!C65/'puncte misiuni-competente'!C$4/(3744/122*0.875) -> 0 | AR66: =$AG66*'puncte misiuni-competente'!D65/'puncte misiuni-competente'!D$4/(3744/122*0.875) -> 0 | AS66: =$AG66*'puncte misiuni-competente'!E65/'puncte misiuni-competente'!E$4/(3744/122*0.875) -> 0 | AT66: =$AG66*'puncte misiuni-competente'!F65/'puncte misiuni-competente'!F$4/(3744/122*0.875) -> 0 | AU66: =$AG66*'puncte misiuni-competente'!G65/'puncte misiuni-competente'!G$4/(3744/122*0.875) -> 0 | AV66: =$AG66*'puncte misiuni-competente'!H65/'puncte misiuni-competente'!H$4/(3744/122*0.875) -> 0
A68: 4.2.2. Solicitarea, urmarirea stadiului de elaborare si ridicarea de avize si acorduri | B68: 00:00:00 | C68: 00:00:00 | D68: 00:00:00 | E68: 00:00:00 | F68: 00:00:00 | G68: 00:00:00 | H68: 00:00:00 | I68: 00:00:00 | J68: 00:00:00 | K68: 00:00:00 | L68: 00:00:00 | M68: 00:00:00 | N68: 00:00:00 | O68: 00:00:00 | P68: 00:00:00 | Q68: 00:00:00 | R68: 00:00:00 | S68: 00:00:00 | T68: 00:00:00 | U68: 00:00:00 | V68: 00:00:00 | W68: 00:00:00 | X68: 00:00:00 | Y68: 00:00:00 | Z68: 00:00:00 | AA68: 00:00:00 | AB68: 00:00:00 | AC68: 00:00:00 | AD68: 00:00:00 | AE68: 00:00:00 | AF68: 00:00:00 | AG68: =SUM(B68:AF68) -> 0 | AH68: =AG68/SUM($AG$6:$AG$137) ->  | AP68: =$AG68*'puncte misiuni-competente'!B67/'puncte misiuni-competente'!B$4/(3744/122*0.875) -> 0 | AQ68: =$AG68*'puncte misiuni-competente'!C67/'puncte misiuni-competente'!C$4/(3744/122*0.875) -> 0 | AR68: =$AG68*'puncte misiuni-competente'!D67/'puncte misiuni-competente'!D$4/(3744/122*0.875) -> 0 | AS68: =$AG68*'puncte misiuni-competente'!E67/'puncte misiuni-competente'!E$4/(3744/122*0.875) -> 0 | AT68: =$AG68*'puncte misiuni-competente'!F67/'puncte misiuni-competente'!F$4/(3744/122*0.875) -> 0 | AU68: =$AG68*'puncte misiuni-competente'!G67/'puncte misiuni-competente'!G$4/(3744/122*0.875) -> 0 | AV68: =$AG68*'puncte misiuni-competente'!H67/'puncte misiuni-competente'!H$4/(3744/122*0.875) -> 0
A70: 4.2.3. Verificare incadrarii in buget | B70: 00:00:00 | C70: 00:00:00 | D70: 00:00:00 | E70: 00:00:00 | F70: 00:00:00 | G70: 00:00:00 | H70: 00:00:00 | I70: 00:00:00 | J70: 00:00:00 | K70: 00:00:00 | L70: 00:00:00 | M70: 00:00:00 | N70: 00:00:00 | O70: 00:00:00 | P70: 00:00:00 | Q70: 00:00:00 | R70: 00:00:00 | S70: 00:00:00 | T70: 00:00:00 | U70: 00:00:00 | V70: 00:00:00 | W70: 00:00:00 | X70: 00:00:00 | Y70: 00:00:00 | Z70: 00:00:00 | AA70: 00:00:00 | AB70: 00:00:00 | AC70: 00:00:00 | AD70: 00:00:00 | AE70: 00:00:00 | AF70: 00:00:00 | AG70: =SUM(B70:AF70) -> 0 | AH70: =AG70/SUM($AG$6:$AG$137) ->  | AP70: =$AG70*'puncte misiuni-competente'!B69/'puncte misiuni-competente'!B$4/(3744/122*0.875) -> 0 | AQ70: =$AG70*'puncte misiuni-competente'!C69/'puncte misiuni-competente'!C$4/(3744/122*0.875) -> 0 | AR70: =$AG70*'puncte misiuni-competente'!D69/'puncte misiuni-competente'!D$4/(3744/122*0.875) -> 0 | AS70: =$AG70*'puncte misiuni-competente'!E69/'puncte misiuni-competente'!E$4/(3744/122*0.875) -> 0 | AT70: =$AG70*'puncte misiuni-competente'!F69/'puncte misiuni-competente'!F$4/(3744/122*0.875) -> 0 | AU70: =$AG70*'puncte misiuni-competente'!G69/'puncte misiuni-competente'!G$4/(3744/122*0.875) -> 0 | AV70: =$AG70*'puncte misiuni-competente'!H69/'puncte misiuni-competente'!H$4/(3744/122*0.875) -> 0
A72: 4.2.4. Estimarea costului investitiei | B72: 00:00:00 | C72: 00:00:00 | D72: 00:00:00 | E72: 00:00:00 | F72: 00:00:00 | G72: 00:00:00 | H72: 00:00:00 | I72: 00:00:00 | J72: 00:00:00 | K72: 00:00:00 | L72: 00:00:00 | M72: 00:00:00 | N72: 00:00:00 | O72: 00:00:00 | P72: 00:00:00 | Q72: 00:00:00 | R72: 00:00:00 | S72: 00:00:00 | T72: 00:00:00 | U72: 00:00:00 | V72: 00:00:00 | W72: 00:00:00 | X72: 00:00:00 | Y72: 00:00:00 | Z72: 00:00:00 | AA72: 00:00:00 | AB72: 00:00:00 | AC72: 00:00:00 | AD72: 00:00:00 | AE72: 00:00:00 | AF72: 00:00:00 | AG72: =SUM(B72:AF72) -> 0 | AH72: =AG72/SUM($AG$6:$AG$137) ->  | AP72: =$AG72*'puncte misiuni-competente'!B71/'puncte misiuni-competente'!B$4/(3744/122*0.875) -> 0 | AQ72: =$AG72*'puncte misiuni-competente'!C71/'puncte misiuni-competente'!C$4/(3744/122*0.875) -> 0 | AR72: =$AG72*'puncte misiuni-competente'!D71/'puncte misiuni-competente'!D$4/(3744/122*0.875) -> 0 | AS72: =$AG72*'puncte misiuni-competente'!E71/'puncte misiuni-competente'!E$4/(3744/122*0.875) -> 0 | AT72: =$AG72*'puncte misiuni-competente'!F71/'puncte misiuni-competente'!F$4/(3744/122*0.875) -> 0 | AU72: =$AG72*'puncte misiuni-competente'!G71/'puncte misiuni-competente'!G$4/(3744/122*0.875) -> 0 | AV72: =$AG72*'puncte misiuni-competente'!H71/'puncte misiuni-competente'!H$4/(3744/122*0.875) -> 0
A74: 4.2.5. Indicarea in proiect a producatorilor, produselor si furnizorilor | B74: 00:00:00 | C74: 00:00:00 | D74: 00:00:00 | E74: 00:00:00 | F74: 00:00:00 | G74: 00:00:00 | H74: 00:00:00 | I74: 00:00:00 | J74: 00:00:00 | K74: 00:00:00 | L74: 00:00:00 | M74: 00:00:00 | N74: 00:00:00 | O74: 00:00:00 | P74: 00:00:00 | Q74: 00:00:00 | R74: 00:00:00 | S74: 00:00:00 | T74: 00:00:00 | U74: 00:00:00 | V74: 00:00:00 | W74: 00:00:00 | X74: 00:00:00 | Y74: 00:00:00 | Z74: 00:00:00 | AA74: 00:00:00 | AB74: 00:00:00 | AC74: 00:00:00 | AD74: 00:00:00 | AE74: 00:00:00 | AF74: 00:00:00 | AG74: =SUM(B74:AF74) -> 0 | AH74: =AG74/SUM($AG$6:$AG$137) ->  | AP74: =$AG74*'puncte misiuni-competente'!B73/'puncte misiuni-competente'!B$4/(3744/122*0.875) -> 0 | AQ74: =$AG74*'puncte misiuni-competente'!C73/'puncte misiuni-competente'!C$4/(3744/122*0.875) -> 0 | AR74: =$AG74*'puncte misiuni-competente'!D73/'puncte misiuni-competente'!D$4/(3744/122*0.875) -> 0 | AS74: =$AG74*'puncte misiuni-competente'!E73/'puncte misiuni-competente'!E$4/(3744/122*0.875) -> 0 | AT74: =$AG74*'puncte misiuni-competente'!F73/'puncte misiuni-competente'!F$4/(3744/122*0.875) -> 0 | AU74: =$AG74*'puncte misiuni-competente'!G73/'puncte misiuni-competente'!G$4/(3744/122*0.875) -> 0 | AV74: =$AG74*'puncte misiuni-competente'!H73/'puncte misiuni-competente'!H$4/(3744/122*0.875) -> 0
A76: 5.1.1. Proiectare pentru autorizare | B76: 00:00:00 | C76: 00:00:00 | D76: 00:00:00 | E76: 00:00:00 | F76: 00:00:00 | G76: 00:00:00 | H76: 00:00:00 | I76: 00:00:00 | J76: 00:00:00 | K76: 00:00:00 | L76: 00:00:00 | M76: 00:00:00 | N76: 00:00:00 | O76: 00:00:00 | P76: 00:00:00 | Q76: 00:00:00 | R76: 00:00:00 | S76: 00:00:00 | T76: 00:00:00 | U76: 00:00:00 | V76: 00:00:00 | W76: 00:00:00 | X76: 00:00:00 | Y76: 00:00:00 | Z76: 00:00:00 | AA76: 00:00:00 | AB76: 00:00:00 | AC76: 00:00:00 | AD76: 00:00:00 | AE76: 00:00:00 | AF76: 00:00:00 | AG76: =SUM(B76:AF76) -> 0 | AH76: =AG76/SUM($AG$6:$AG$137) ->  | AP76: =$AG76*'puncte misiuni-competente'!B75/'puncte misiuni-competente'!B$4/(3744/122*0.875) -> 0 | AQ76: =$AG76*'puncte misiuni-competente'!C75/'puncte misiuni-competente'!C$4/(3744/122*0.875) -> 0 | AR76: =$AG76*'puncte misiuni-competente'!D75/'puncte misiuni-competente'!D$4/(3744/122*0.875) -> 0 | AS76: =$AG76*'puncte misiuni-competente'!E75/'puncte misiuni-competente'!E$4/(3744/122*0.875) -> 0 | AT76: =$AG76*'puncte misiuni-competente'!F75/'puncte misiuni-competente'!F$4/(3744/122*0.875) -> 0 | AU76: =$AG76*'puncte misiuni-competente'!G75/'puncte misiuni-competente'!G$4/(3744/122*0.875) -> 0 | AV76: =$AG76*'puncte misiuni-competente'!H75/'puncte misiuni-competente'!H$4/(3744/122*0.875) -> 0
A78: 5.1.2. Estimarea costurilor de constructie | B78: 00:00:00 | C78: 00:00:00 | D78: 00:00:00 | E78: 00:00:00 | F78: 00:00:00 | G78: 00:00:00 | H78: 00:00:00 | I78: 00:00:00 | J78: 00:00:00 | K78: 00:00:00 | L78: 00:00:00 | M78: 00:00:00 | N78: 00:00:00 | O78: 00:00:00 | P78: 00:00:00 | Q78: 00:00:00 | R78: 00:00:00 | S78: 00:00:00 | T78: 00:00:00 | U78: 00:00:00 | V78: 00:00:00 | W78: 00:00:00 | X78: 00:00:00 | Y78: 00:00:00 | Z78: 00:00:00 | AA78: 00:00:00 | AB78: 00:00:00 | AC78: 00:00:00 | AD78: 00:00:00 | AE78: 00:00:00 | AF78: 00:00:00 | AG78: =SUM(B78:AF78) -> 0 | AH78: =AG78/SUM($AG$6:$AG$137) ->  | AP78: =$AG78*'puncte misiuni-competente'!B77/'puncte misiuni-competente'!B$4/(3744/122*0.875) -> 0 | AQ78: =$AG78*'puncte misiuni-competente'!C77/'puncte misiuni-competente'!C$4/(3744/122*0.875) -> 0 | AR78: =$AG78*'puncte misiuni-competente'!D77/'puncte misiuni-competente'!D$4/(3744/122*0.875) -> 0 | AS78: =$AG78*'puncte misiuni-competente'!E77/'puncte misiuni-competente'!E$4/(3744/122*0.875) -> 0 | AT78: =$AG78*'puncte misiuni-competente'!F77/'puncte misiuni-competente'!F$4/(3744/122*0.875) -> 0 | AU78: =$AG78*'puncte misiuni-competente'!G77/'puncte misiuni-competente'!G$4/(3744/122*0.875) -> 0 | AV78: =$AG78*'puncte misiuni-competente'!H77/'puncte misiuni-competente'!H$4/(3744/122*0.875) -> 0
A80: 5.2.1. Depunerea documentatiilor, urmarirea stadiului de elaborare si ridicarea avizelor si a autorizatiei de construire | B80: 00:00:00 | C80: 00:00:00 | D80: 00:00:00 | E80: 00:00:00 | F80: 00:00:00 | G80: 00:00:00 | H80: 00:00:00 | I80: 00:00:00 | J80: 00:00:00 | K80: 00:00:00 | L80: 00:00:00 | M80: 00:00:00 | N80: 00:00:00 | O80: 00:00:00 | P80: 00:00:00 | Q80: 00:00:00 | R80: 00:00:00 | S80: 00:00:00 | T80: 00:00:00 | U80: 00:00:00 | V80: 00:00:00 | W80: 00:00:00 | X80: 00:00:00 | Y80: 00:00:00 | Z80: 00:00:00 | AA80: 00:00:00 | AB80: 00:00:00 | AC80: 00:00:00 | AD80: 00:00:00 | AE80: 00:00:00 | AF80: 00:00:00 | AG80: =SUM(B80:AF80) -> 0 | AH80: =AG80/SUM($AG$6:$AG$137) ->  | AP80: =$AG80*'puncte misiuni-competente'!B79/'puncte misiuni-competente'!B$4/(3744/122*0.875) -> 0 | AQ80: =$AG80*'puncte misiuni-competente'!C79/'puncte misiuni-competente'!C$4/(3744/122*0.875) -> 0 | AR80: =$AG80*'puncte misiuni-competente'!D79/'puncte misiuni-competente'!D$4/(3744/122*0.875) -> 0 | AS80: =$AG80*'puncte misiuni-competente'!E79/'puncte misiuni-competente'!E$4/(3744/122*0.875) -> 0 | AT80: =$AG80*'puncte misiuni-competente'!F79/'puncte misiuni-competente'!F$4/(3744/122*0.875) -> 0 | AU80: =$AG80*'puncte misiuni-competente'!G79/'puncte misiuni-competente'!G$4/(3744/122*0.875) -> 0 | AV80: =$AG80*'puncte misiuni-competente'!H79/'puncte misiuni-competente'!H$4/(3744/122*0.875) -> 0
A82: 6.1.1. Proiectare tehnica | B82: 00:00:00 | C82: 00:00:00 | D82: 00:00:00 | E82: 00:00:00 | F82: 00:00:00 | G82: 00:00:00 | H82: 00:00:00 | I82: 00:00:00 | J82: 00:00:00 | K82: 00:00:00 | L82: 00:00:00 | M82: 00:00:00 | N82: 00:00:00 | O82: 00:00:00 | P82: 00:00:00 | Q82: 00:00:00 | R82: 00:00:00 | S82: 00:00:00 | T82: 00:00:00 | U82: 00:00:00 | V82: 00:00:00 | W82: 00:00:00 | X82: 00:00:00 | Y82: 00:00:00 | Z82: 00:00:00 | AA82: 00:00:00 | AB82: 00:00:00 | AC82: 00:00:00 | AD82: 00:00:00 | AE82: 00:00:00 | AF82: 00:00:00 | AG82: =SUM(B82:AF82) -> 0 | AH82: =AG82/SUM($AG$6:$AG$137) ->  | AP82: =$AG82*'puncte misiuni-competente'!B81/'puncte misiuni-competente'!B$4/(3744/122*0.875) -> 0 | AQ82: =$AG82*'puncte misiuni-competente'!C81/'puncte misiuni-competente'!C$4/(3744/122*0.875) -> 0 | AR82: =$AG82*'puncte misiuni-competente'!D81/'puncte misiuni-competente'!D$4/(3744/122*0.875) -> 0 | AS82: =$AG82*'puncte misiuni-competente'!E81/'puncte misiuni-competente'!E$4/(3744/122*0.875) -> 0 | AT82: =$AG82*'puncte misiuni-competente'!F81/'puncte misiuni-competente'!F$4/(3744/122*0.875) -> 0 | AU82: =$AG82*'puncte misiuni-competente'!G81/'puncte misiuni-competente'!G$4/(3744/122*0.875) -> 0 | AV82: =$AG82*'puncte misiuni-competente'!H81/'puncte misiuni-competente'!H$4/(3744/122*0.875) -> 0
A84: 6.1.2. Coordonarea tehnica a proiectelor de specialitate | B84: 00:00:00 | C84: 00:00:00 | D84: 00:00:00 | E84: 00:00:00 | F84: 00:00:00 | G84: 00:00:00 | H84: 00:00:00 | I84: 00:00:00 | J84: 00:00:00 | K84: 00:00:00 | L84: 00:00:00 | M84: 00:00:00 | N84: 00:00:00 | O84: 00:00:00 | P84: 00:00:00 | Q84: 00:00:00 | R84: 00:00:00 | S84: 00:00:00 | T84: 00:00:00 | U84: 00:00:00 | V84: 00:00:00 | W84: 00:00:00 | X84: 00:00:00 | Y84: 00:00:00 | Z84: 00:00:00 | AA84: 00:00:00 | AB84: 00:00:00 | AC84: 00:00:00 | AD84: 00:00:00 | AE84: 00:00:00 | AF84: 00:00:00 | AG84: =SUM(B84:AF84) -> 0 | AH84: =AG84/SUM($AG$6:$AG$137) ->  | AP84: =$AG84*'puncte misiuni-competente'!B83/'puncte misiuni-competente'!B$4/(3744/122*0.875) -> 0 | AQ84: =$AG84*'puncte misiuni-competente'!C83/'puncte misiuni-competente'!C$4/(3744/122*0.875) -> 0 | AR84: =$AG84*'puncte misiuni-competente'!D83/'puncte misiuni-competente'!D$4/(3744/122*0.875) -> 0 | AS84: =$AG84*'puncte misiuni-competente'!E83/'puncte misiuni-competente'!E$4/(3744/122*0.875) -> 0 | AT84: =$AG84*'puncte misiuni-competente'!F83/'puncte misiuni-competente'!F$4/(3744/122*0.875) -> 0 | AU84: =$AG84*'puncte misiuni-competente'!G83/'puncte misiuni-competente'!G$4/(3744/122*0.875) -> 0 | AV84: =$AG84*'puncte misiuni-competente'!H83/'puncte misiuni-competente'!H$4/(3744/122*0.875) -> 0
A86: 6.2.1. Estimarea costurilor investitiei | B86: 00:00:00 | C86: 00:00:00 | D86: 00:00:00 | E86: 00:00:00 | F86: 00:00:00 | G86: 00:00:00 | H86: 00:00:00 | I86: 00:00:00 | J86: 00:00:00 | K86: 00:00:00 | L86: 00:00:00 | M86: 00:00:00 | N86: 00:00:00 | O86: 00:00:00 | P86: 00:00:00 | Q86: 00:00:00 | R86: 00:00:00 | S86: 00:00:00 | T86: 00:00:00 | U86: 00:00:00 | V86: 00:00:00 | W86: 00:00:00 | X86: 00:00:00 | Y86: 00:00:00 | Z86: 00:00:00 | AA86: 00:00:00 | AB86: 00:00:00 | AC86: 00:00:00 | AD86: 00:00:00 | AE86: 00:00:00 | AF86: 00:00:00 | AG86: =SUM(B86:AF86) -> 0 | AH86: =AG86/SUM($AG$6:$AG$137) ->  | AP86: =$AG86*'puncte misiuni-competente'!B85/'puncte misiuni-competente'!B$4/(3744/122*0.875) -> 0 | AQ86: =$AG86*'puncte misiuni-competente'!C85/'puncte misiuni-competente'!C$4/(3744/122*0.875) -> 0 | AR86: =$AG86*'puncte misiuni-competente'!D85/'puncte misiuni-competente'!D$4/(3744/122*0.875) -> 0 | AS86: =$AG86*'puncte misiuni-competente'!E85/'puncte misiuni-competente'!E$4/(3744/122*0.875) -> 0 | AT86: =$AG86*'puncte misiuni-competente'!F85/'puncte misiuni-competente'!F$4/(3744/122*0.875) -> 0 | AU86: =$AG86*'puncte misiuni-competente'!G85/'puncte misiuni-competente'!G$4/(3744/122*0.875) -> 0 | AV86: =$AG86*'puncte misiuni-competente'!H85/'puncte misiuni-competente'!H$4/(3744/122*0.875) -> 0
A88: 6.2.2. Verificare de incadrare in buget | B88: 00:00:00 | C88: 00:00:00 | D88: 00:00:00 | E88: 00:00:00 | F88: 00:00:00 | G88: 00:00:00 | H88: 00:00:00 | I88: 00:00:00 | J88: 00:00:00 | K88: 00:00:00 | L88: 00:00:00 | M88: 00:00:00 | N88: 00:00:00 | O88: 00:00:00 | P88: 00:00:00 | Q88: 00:00:00 | R88: 00:00:00 | S88: 00:00:00 | T88: 00:00:00 | U88: 00:00:00 | V88: 00:00:00 | W88: 00:00:00 | X88: 00:00:00 | Y88: 00:00:00 | Z88: 00:00:00 | AA88: 00:00:00 | AB88: 00:00:00 | AC88: 00:00:00 | AD88: 00:00:00 | AE88: 00:00:00 | AF88: 00:00:00 | AG88: =SUM(B88:AF88) -> 0 | AH88: =AG88/SUM($AG$6:$AG$137) ->  | AP88: =$AG88*'puncte misiuni-competente'!B87/'puncte misiuni-competente'!B$4/(3744/122*0.875) -> 0 | AQ88: =$AG88*'puncte misiuni-competente'!C87/'puncte misiuni-competente'!C$4/(3744/122*0.875) -> 0 | AR88: =$AG88*'puncte misiuni-competente'!D87/'puncte misiuni-competente'!D$4/(3744/122*0.875) -> 0 | AS88: =$AG88*'puncte misiuni-competente'!E87/'puncte misiuni-competente'!E$4/(3744/122*0.875) -> 0 | AT88: =$AG88*'puncte misiuni-competente'!F87/'puncte misiuni-competente'!F$4/(3744/122*0.875) -> 0 | AU88: =$AG88*'puncte misiuni-competente'!G87/'puncte misiuni-competente'!G$4/(3744/122*0.875) -> 0 | AV88: =$AG88*'puncte misiuni-competente'!H87/'puncte misiuni-competente'!H$4/(3744/122*0.875) -> 0
A90: 6.2.3. Estimarea costurilor de operare | B90: 00:00:00 | C90: 00:00:00 | D90: 00:00:00 | E90: 00:00:00 | F90: 00:00:00 | G90: 00:00:00 | H90: 00:00:00 | I90: 00:00:00 | J90: 00:00:00 | K90: 00:00:00 | L90: 00:00:00 | M90: 00:00:00 | N90: 00:00:00 | O90: 00:00:00 | P90: 00:00:00 | Q90: 00:00:00 | R90: 00:00:00 | S90: 00:00:00 | T90: 00:00:00 | U90: 00:00:00 | V90: 00:00:00 | W90: 00:00:00 | X90: 00:00:00 | Y90: 00:00:00 | Z90: 00:00:00 | AA90: 00:00:00 | AB90: 00:00:00 | AC90: 00:00:00 | AD90: 00:00:00 | AE90: 00:00:00 | AF90: 00:00:00 | AG90: =SUM(B90:AF90) -> 0 | AH90: =AG90/SUM($AG$6:$AG$137) ->  | AP90: =$AG90*'puncte misiuni-competente'!B89/'puncte misiuni-competente'!B$4/(3744/122*0.875) -> 0 | AQ90: =$AG90*'puncte misiuni-competente'!C89/'puncte misiuni-competente'!C$4/(3744/122*0.875) -> 0 | AR90: =$AG90*'puncte misiuni-competente'!D89/'puncte misiuni-competente'!D$4/(3744/122*0.875) -> 0 | AS90: =$AG90*'puncte misiuni-competente'!E89/'puncte misiuni-competente'!E$4/(3744/122*0.875) -> 0 | AT90: =$AG90*'puncte misiuni-competente'!F89/'puncte misiuni-competente'!F$4/(3744/122*0.875) -> 0 | AU90: =$AG90*'puncte misiuni-competente'!G89/'puncte misiuni-competente'!G$4/(3744/122*0.875) -> 0 | AV90: =$AG90*'puncte misiuni-competente'!H89/'puncte misiuni-competente'!H$4/(3744/122*0.875) -> 0
A92: 6.2.4. Indicarea in proiect a producatorilor, produselor si furnizorilor | B92: 00:00:00 | C92: 00:00:00 | D92: 00:00:00 | E92: 00:00:00 | F92: 00:00:00 | G92: 00:00:00 | H92: 00:00:00 | I92: 00:00:00 | J92: 00:00:00 | K92: 00:00:00 | L92: 00:00:00 | M92: 00:00:00 | N92: 00:00:00 | O92: 00:00:00 | P92: 00:00:00 | Q92: 00:00:00 | R92: 00:00:00 | S92: 00:00:00 | T92: 00:00:00 | U92: 00:00:00 | V92: 00:00:00 | W92: 00:00:00 | X92: 00:00:00 | Y92: 00:00:00 | Z92: 00:00:00 | AA92: 00:00:00 | AB92: 00:00:00 | AC92: 00:00:00 | AD92: 00:00:00 | AE92: 00:00:00 | AF92: 00:00:00 | AG92: =SUM(B92:AF92) -> 0 | AH92: =AG92/SUM($AG$6:$AG$137) ->  | AP92: =$AG92*'puncte misiuni-competente'!B91/'puncte misiuni-competente'!B$4/(3744/122*0.875) -> 0 | AQ92: =$AG92*'puncte misiuni-competente'!C91/'puncte misiuni-competente'!C$4/(3744/122*0.875) -> 0 | AR92: =$AG92*'puncte misiuni-competente'!D91/'puncte misiuni-competente'!D$4/(3744/122*0.875) -> 0 | AS92: =$AG92*'puncte misiuni-competente'!E91/'puncte misiuni-competente'!E$4/(3744/122*0.875) -> 0 | AT92: =$AG92*'puncte misiuni-competente'!F91/'puncte misiuni-competente'!F$4/(3744/122*0.875) -> 0 | AU92: =$AG92*'puncte misiuni-competente'!G91/'puncte misiuni-competente'!G$4/(3744/122*0.875) -> 0 | AV92: =$AG92*'puncte misiuni-competente'!H91/'puncte misiuni-competente'!H$4/(3744/122*0.875) -> 0
A94: 7.1.1. Proiectare de detaliu | B94: 00:00:00 | C94: 00:00:00 | D94: 00:00:00 | E94: 00:00:00 | F94: 00:00:00 | G94: 00:00:00 | H94: 00:00:00 | I94: 00:00:00 | J94: 00:00:00 | K94: 00:00:00 | L94: 00:00:00 | M94: 00:00:00 | N94: 00:00:00 | O94: 00:00:00 | P94: 00:00:00 | Q94: 00:00:00 | R94: 00:00:00 | S94: 00:00:00 | T94: 00:00:00 | U94: 00:00:00 | V94: 00:00:00 | W94: 00:00:00 | X94: 00:00:00 | Y94: 00:00:00 | Z94: 00:00:00 | AA94: 00:00:00 | AB94: 00:00:00 | AC94: 00:00:00 | AD94: 00:00:00 | AE94: 00:00:00 | AF94: 00:00:00 | AG94: =SUM(B94:AF94) -> 0 | AH94: =AG94/SUM($AG$6:$AG$137) ->  | AP94: =$AG94*'puncte misiuni-competente'!B93/'puncte misiuni-competente'!B$4/(3744/122*0.875) -> 0 | AQ94: =$AG94*'puncte misiuni-competente'!C93/'puncte misiuni-competente'!C$4/(3744/122*0.875) -> 0 | AR94: =$AG94*'puncte misiuni-competente'!D93/'puncte misiuni-competente'!D$4/(3744/122*0.875) -> 0 | AS94: =$AG94*'puncte misiuni-competente'!E93/'puncte misiuni-competente'!E$4/(3744/122*0.875) -> 0 | AT94: =$AG94*'puncte misiuni-competente'!F93/'puncte misiuni-competente'!F$4/(3744/122*0.875) -> 0 | AU94: =$AG94*'puncte misiuni-competente'!G93/'puncte misiuni-competente'!G$4/(3744/122*0.875) -> 0 | AV94: =$AG94*'puncte misiuni-competente'!H93/'puncte misiuni-competente'!H$4/(3744/122*0.875) -> 0
A96: 7.1.2. Coordonarea de detaliu a proiectelor | B96: 00:00:00 | C96: 00:00:00 | D96: 00:00:00 | E96: 00:00:00 | F96: 00:00:00 | G96: 00:00:00 | H96: 00:00:00 | I96: 00:00:00 | J96: 00:00:00 | K96: 00:00:00 | L96: 00:00:00 | M96: 00:00:00 | N96: 00:00:00 | O96: 00:00:00 | P96: 00:00:00 | Q96: 00:00:00 | R96: 00:00:00 | S96: 00:00:00 | T96: 00:00:00 | U96: 00:00:00 | V96: 00:00:00 | W96: 00:00:00 | X96: 00:00:00 | Y96: 00:00:00 | Z96: 00:00:00 | AA96: 00:00:00 | AB96: 00:00:00 | AC96: 00:00:00 | AD96: 00:00:00 | AE96: 00:00:00 | AF96: 00:00:00 | AG96: =SUM(B96:AF96) -> 0 | AH96: =AG96/SUM($AG$6:$AG$137) ->  | AP96: =$AG96*'puncte misiuni-competente'!B95/'puncte misiuni-competente'!B$4/(3744/122*0.875) -> 0 | AQ96: =$AG96*'puncte misiuni-competente'!C95/'puncte misiuni-competente'!C$4/(3744/122*0.875) -> 0 | AR96: =$AG96*'puncte misiuni-competente'!D95/'puncte misiuni-competente'!D$4/(3744/122*0.875) -> 0 | AS96: =$AG96*'puncte misiuni-competente'!E95/'puncte misiuni-competente'!E$4/(3744/122*0.875) -> 0 | AT96: =$AG96*'puncte misiuni-competente'!F95/'puncte misiuni-competente'!F$4/(3744/122*0.875) -> 0 | AU96: =$AG96*'puncte misiuni-competente'!G95/'puncte misiuni-competente'!G$4/(3744/122*0.875) -> 0 | AV96: =$AG96*'puncte misiuni-competente'!H95/'puncte misiuni-competente'!H$4/(3744/122*0.875) -> 0
A98: 7.1.3. Plan de sanatate si securitate in munca | B98: 00:00:00 | C98: 00:00:00 | D98: 00:00:00 | E98: 00:00:00 | F98: 00:00:00 | G98: 00:00:00 | H98: 00:00:00 | I98: 00:00:00 | J98: 00:00:00 | K98: 00:00:00 | L98: 00:00:00 | M98: 00:00:00 | N98: 00:00:00 | O98: 00:00:00 | P98: 00:00:00 | Q98: 00:00:00 | R98: 00:00:00 | S98: 00:00:00 | T98: 00:00:00 | U98: 00:00:00 | V98: 00:00:00 | W98: 00:00:00 | X98: 00:00:00 | Y98: 00:00:00 | Z98: 00:00:00 | AA98: 00:00:00 | AB98: 00:00:00 | AC98: 00:00:00 | AD98: 00:00:00 | AE98: 00:00:00 | AF98: 00:00:00 | AG98: =SUM(B98:AF98) -> 0 | AH98: =AG98/SUM($AG$6:$AG$137) ->  | AP98: =$AG98*'puncte misiuni-competente'!B97/'puncte misiuni-competente'!B$4/(3744/122*0.875) -> 0 | AQ98: =$AG98*'puncte misiuni-competente'!C97/'puncte misiuni-competente'!C$4/(3744/122*0.875) -> 0 | AR98: =$AG98*'puncte misiuni-competente'!D97/'puncte misiuni-competente'!D$4/(3744/122*0.875) -> 0 | AS98: =$AG98*'puncte misiuni-competente'!E97/'puncte misiuni-competente'!E$4/(3744/122*0.875) -> 0 | AT98: =$AG98*'puncte misiuni-competente'!F97/'puncte misiuni-competente'!F$4/(3744/122*0.875) -> 0 | AU98: =$AG98*'puncte misiuni-competente'!G97/'puncte misiuni-competente'!G$4/(3744/122*0.875) -> 0 | AV98: =$AG98*'puncte misiuni-competente'!H97/'puncte misiuni-competente'!H$4/(3744/122*0.875) -> 0
A100: 7.2.1. Indicarea in proiect a producatorilor, produselor si furnizorilor | B100: 00:00:00 | C100: 00:00:00 | D100: 00:00:00 | E100: 00:00:00 | F100: 00:00:00 | G100: 00:00:00 | H100: 00:00:00 | I100: 00:00:00 | J100: 00:00:00 | K100: 00:00:00 | L100: 00:00:00 | M100: 00:00:00 | N100: 00:00:00 | O100: 00:00:00 | P100: 00:00:00 | Q100: 00:00:00 | R100: 00:00:00 | S100: 00:00:00 | T100: 00:00:00 | U100: 00:00:00 | V100: 00:00:00 | W100: 00:00:00 | X100: 00:00:00 | Y100: 00:00:00 | Z100: 00:00:00 | AA100: 00:00:00 | AB100: 00:00:00 | AC100: 00:00:00 | AD100: 00:00:00 | AE100: 00:00:00 | AF100: 00:00:00 | AG100: =SUM(B100:AF100) -> 0 | AH100: =AG100/SUM($AG$6:$AG$137) ->  | AP100: =$AG100*'puncte misiuni-competente'!B99/'puncte misiuni-competente'!B$4/(3744/122*0.875) -> 0 | AQ100: =$AG100*'puncte misiuni-competente'!C99/'puncte misiuni-competente'!C$4/(3744/122*0.875) -> 0 | AR100: =$AG100*'puncte misiuni-competente'!D99/'puncte misiuni-competente'!D$4/(3744/122*0.875) -> 0 | AS100: =$AG100*'puncte misiuni-competente'!E99/'puncte misiuni-competente'!E$4/(3744/122*0.875) -> 0 | AT100: =$AG100*'puncte misiuni-competente'!F99/'puncte misiuni-competente'!F$4/(3744/122*0.875) -> 0 | AU100: =$AG100*'puncte misiuni-competente'!G99/'puncte misiuni-competente'!G$4/(3744/122*0.875) -> 0 | AV100: =$AG100*'puncte misiuni-competente'!H99/'puncte misiuni-competente'!H$4/(3744/122*0.875) -> 0
A102: 8.1.1. Organizarea documentatiei de licitatie | B102: 00:00:00 | C102: 00:00:00 | D102: 00:00:00 | E102: 00:00:00 | F102: 00:00:00 | G102: 00:00:00 | H102: 00:00:00 | I102: 00:00:00 | J102: 00:00:00 | K102: 00:00:00 | L102: 00:00:00 | M102: 00:00:00 | N102: 00:00:00 | O102: 00:00:00 | P102: 00:00:00 | Q102: 00:00:00 | R102: 00:00:00 | S102: 00:00:00 | T102: 00:00:00 | U102: 00:00:00 | V102: 00:00:00 | W102: 00:00:00 | X102: 00:00:00 | Y102: 00:00:00 | Z102: 00:00:00 | AA102: 00:00:00 | AB102: 00:00:00 | AC102: 00:00:00 | AD102: 00:00:00 | AE102: 00:00:00 | AF102: 00:00:00 | AG102: =SUM(B102:AF102) -> 0 | AH102: =AG102/SUM($AG$6:$AG$137) ->  | AP102: =$AG102*'puncte misiuni-competente'!B101/'puncte misiuni-competente'!B$4/(3744/122*0.875) -> 0 | AQ102: =$AG102*'puncte misiuni-competente'!C101/'puncte misiuni-competente'!C$4/(3744/122*0.875) -> 0 | AR102: =$AG102*'puncte misiuni-competente'!D101/'puncte misiuni-competente'!D$4/(3744/122*0.875) -> 0 | AS102: =$AG102*'puncte misiuni-competente'!E101/'puncte misiuni-competente'!E$4/(3744/122*0.875) -> 0 | AT102: =$AG102*'puncte misiuni-competente'!F101/'puncte misiuni-competente'!F$4/(3744/122*0.875) -> 0 | AU102: =$AG102*'puncte misiuni-competente'!G101/'puncte misiuni-competente'!G$4/(3744/122*0.875) -> 0 | AV102: =$AG102*'puncte misiuni-competente'!H101/'puncte misiuni-competente'!H$4/(3744/122*0.875) -> 0
A104: 8.1.2. Realizare listei scurte | B104: 00:00:00 | C104: 00:00:00 | D104: 00:00:00 | E104: 00:00:00 | F104: 00:00:00 | G104: 00:00:00 | H104: 00:00:00 | I104: 00:00:00 | J104: 00:00:00 | K104: 00:00:00 | L104: 00:00:00 | M104: 00:00:00 | N104: 00:00:00 | O104: 00:00:00 | P104: 00:00:00 | Q104: 00:00:00 | R104: 00:00:00 | S104: 00:00:00 | T104: 00:00:00 | U104: 00:00:00 | V104: 00:00:00 | W104: 00:00:00 | X104: 00:00:00 | Y104: 00:00:00 | Z104: 00:00:00 | AA104: 00:00:00 | AB104: 00:00:00 | AC104: 00:00:00 | AD104: 00:00:00 | AE104: 00:00:00 | AF104: 00:00:00 | AG104: =SUM(B104:AF104) -> 0 | AH104: =AG104/SUM($AG$6:$AG$137) ->  | AP104: =$AG104*'puncte misiuni-competente'!B103/'puncte misiuni-competente'!B$4/(3744/122*0.875) -> 0 | AQ104: =$AG104*'puncte misiuni-competente'!C103/'puncte misiuni-competente'!C$4/(3744/122*0.875) -> 0 | AR104: =$AG104*'puncte misiuni-competente'!D103/'puncte misiuni-competente'!D$4/(3744/122*0.875) -> 0 | AS104: =$AG104*'puncte misiuni-competente'!E103/'puncte misiuni-competente'!E$4/(3744/122*0.875) -> 0 | AT104: =$AG104*'puncte misiuni-competente'!F103/'puncte misiuni-competente'!F$4/(3744/122*0.875) -> 0 | AU104: =$AG104*'puncte misiuni-competente'!G103/'puncte misiuni-competente'!G$4/(3744/122*0.875) -> 0 | AV104: =$AG104*'puncte misiuni-competente'!H103/'puncte misiuni-competente'!H$4/(3744/122*0.875) -> 0
A106: 8.1.3. Managementul ofertarii | B106: 00:00:00 | C106: 00:00:00 | D106: 00:00:00 | E106: 00:00:00 | F106: 00:00:00 | G106: 00:00:00 | H106: 00:00:00 | I106: 00:00:00 | J106: 00:00:00 | K106: 00:00:00 | L106: 00:00:00 | M106: 00:00:00 | N106: 00:00:00 | O106: 00:00:00 | P106: 00:00:00 | Q106: 00:00:00 | R106: 00:00:00 | S106: 00:00:00 | T106: 00:00:00 | U106: 00:00:00 | V106: 00:00:00 | W106: 00:00:00 | X106: 00:00:00 | Y106: 00:00:00 | Z106: 00:00:00 | AA106: 00:00:00 | AB106: 00:00:00 | AC106: 00:00:00 | AD106: 00:00:00 | AE106: 00:00:00 | AF106: 00:00:00 | AG106: =SUM(B106:AF106) -> 0 | AH106: =AG106/SUM($AG$6:$AG$137) ->  | AP106: =$AG106*'puncte misiuni-competente'!B105/'puncte misiuni-competente'!B$4/(3744/122*0.875) -> 0 | AQ106: =$AG106*'puncte misiuni-competente'!C105/'puncte misiuni-competente'!C$4/(3744/122*0.875) -> 0 | AR106: =$AG106*'puncte misiuni-competente'!D105/'puncte misiuni-competente'!D$4/(3744/122*0.875) -> 0 | AS106: =$AG106*'puncte misiuni-competente'!E105/'puncte misiuni-competente'!E$4/(3744/122*0.875) -> 0 | AT106: =$AG106*'puncte misiuni-competente'!F105/'puncte misiuni-competente'!F$4/(3744/122*0.875) -> 0 | AU106: =$AG106*'puncte misiuni-competente'!G105/'puncte misiuni-competente'!G$4/(3744/122*0.875) -> 0 | AV106: =$AG106*'puncte misiuni-competente'!H105/'puncte misiuni-competente'!H$4/(3744/122*0.875) -> 0
A108: 8.1.4. Recomandarea ofertei potrivite | B108: 00:00:00 | C108: 00:00:00 | D108: 00:00:00 | E108: 00:00:00 | F108: 00:00:00 | G108: 00:00:00 | H108: 00:00:00 | I108: 00:00:00 | J108: 00:00:00 | K108: 00:00:00 | L108: 00:00:00 | M108: 00:00:00 | N108: 00:00:00 | O108: 00:00:00 | P108: 00:00:00 | Q108: 00:00:00 | R108: 00:00:00 | S108: 00:00:00 | T108: 00:00:00 | U108: 00:00:00 | V108: 00:00:00 | W108: 00:00:00 | X108: 00:00:00 | Y108: 00:00:00 | Z108: 00:00:00 | AA108: 00:00:00 | AB108: 00:00:00 | AC108: 00:00:00 | AD108: 00:00:00 | AE108: 00:00:00 | AF108: 00:00:00 | AG108: =SUM(B108:AF108) -> 0 | AH108: =AG108/SUM($AG$6:$AG$137) ->  | AP108: =$AG108*'puncte misiuni-competente'!B107/'puncte misiuni-competente'!B$4/(3744/122*0.875) -> 0 | AQ108: =$AG108*'puncte misiuni-competente'!C107/'puncte misiuni-competente'!C$4/(3744/122*0.875) -> 0 | AR108: =$AG108*'puncte misiuni-competente'!D107/'puncte misiuni-competente'!D$4/(3744/122*0.875) -> 0 | AS108: =$AG108*'puncte misiuni-competente'!E107/'puncte misiuni-competente'!E$4/(3744/122*0.875) -> 0 | AT108: =$AG108*'puncte misiuni-competente'!F107/'puncte misiuni-competente'!F$4/(3744/122*0.875) -> 0 | AU108: =$AG108*'puncte misiuni-competente'!G107/'puncte misiuni-competente'!G$4/(3744/122*0.875) -> 0 | AV108: =$AG108*'puncte misiuni-competente'!H107/'puncte misiuni-competente'!H$4/(3744/122*0.875) -> 0
A110: 8.1.5. Contractarea executantului | B110: 00:00:00 | C110: 00:00:00 | D110: 00:00:00 | E110: 00:00:00 | F110: 00:00:00 | G110: 00:00:00 | H110: 00:00:00 | I110: 00:00:00 | J110: 00:00:00 | K110: 00:00:00 | L110: 00:00:00 | M110: 00:00:00 | N110: 00:00:00 | O110: 00:00:00 | P110: 00:00:00 | Q110: 00:00:00 | R110: 00:00:00 | S110: 00:00:00 | T110: 00:00:00 | U110: 00:00:00 | V110: 00:00:00 | W110: 00:00:00 | X110: 00:00:00 | Y110: 00:00:00 | Z110: 00:00:00 | AA110: 00:00:00 | AB110: 00:00:00 | AC110: 00:00:00 | AD110: 00:00:00 | AE110: 00:00:00 | AF110: 00:00:00 | AG110: =SUM(B110:AF110) -> 0 | AH110: =AG110/SUM($AG$6:$AG$137) ->  | AP110: =$AG110*'puncte misiuni-competente'!B109/'puncte misiuni-competente'!B$4/(3744/122*0.875) -> 0 | AQ110: =$AG110*'puncte misiuni-competente'!C109/'puncte misiuni-competente'!C$4/(3744/122*0.875) -> 0 | AR110: =$AG110*'puncte misiuni-competente'!D109/'puncte misiuni-competente'!D$4/(3744/122*0.875) -> 0 | AS110: =$AG110*'puncte misiuni-competente'!E109/'puncte misiuni-competente'!E$4/(3744/122*0.875) -> 0 | AT110: =$AG110*'puncte misiuni-competente'!F109/'puncte misiuni-competente'!F$4/(3744/122*0.875) -> 0 | AU110: =$AG110*'puncte misiuni-competente'!G109/'puncte misiuni-competente'!G$4/(3744/122*0.875) -> 0 | AV110: =$AG110*'puncte misiuni-competente'!H109/'puncte misiuni-competente'!H$4/(3744/122*0.875) -> 0
A112: 9.1.1. Participarea la fazele determinate | B112: 00:00:00 | C112: 00:00:00 | D112: 00:00:00 | E112: 00:00:00 | F112: 00:00:00 | G112: 00:00:00 | H112: 00:00:00 | I112: 00:00:00 | J112: 00:00:00 | K112: 00:00:00 | L112: 00:00:00 | M112: 00:00:00 | N112: 00:00:00 | O112: 00:00:00 | P112: 00:00:00 | Q112: 00:00:00 | R112: 00:00:00 | S112: 00:00:00 | T112: 00:00:00 | U112: 00:00:00 | V112: 00:00:00 | W112: 00:00:00 | X112: 00:00:00 | Y112: 00:00:00 | Z112: 00:00:00 | AA112: 00:00:00 | AB112: 00:00:00 | AC112: 00:00:00 | AD112: 00:00:00 | AE112: 00:00:00 | AF112: 00:00:00 | AG112: =SUM(B112:AF112) -> 0 | AH112: =AG112/SUM($AG$6:$AG$137) ->  | AP112: =$AG112*'puncte misiuni-competente'!B111/'puncte misiuni-competente'!B$4/(3744/122*0.875) -> 0 | AQ112: =$AG112*'puncte misiuni-competente'!C111/'puncte misiuni-competente'!C$4/(3744/122*0.875) -> 0 | AR112: =$AG112*'puncte misiuni-competente'!D111/'puncte misiuni-competente'!D$4/(3744/122*0.875) -> 0 | AS112: =$AG112*'puncte misiuni-competente'!E111/'puncte misiuni-competente'!E$4/(3744/122*0.875) -> 0 | AT112: =$AG112*'puncte misiuni-competente'!F111/'puncte misiuni-competente'!F$4/(3744/122*0.875) -> 0 | AU112: =$AG112*'puncte misiuni-competente'!G111/'puncte misiuni-competente'!G$4/(3744/122*0.875) -> 0 | AV112: =$AG112*'puncte misiuni-competente'!H111/'puncte misiuni-competente'!H$4/(3744/122*0.875) -> 0
A114: 9.1.2. Supravegherea modalitatii de executare a lucrarilor | B114: 00:00:00 | C114: 00:00:00 | D114: 00:00:00 | E114: 00:00:00 | F114: 00:00:00 | G114: 00:00:00 | H114: 00:00:00 | I114: 00:00:00 | J114: 00:00:00 | K114: 00:00:00 | L114: 00:00:00 | M114: 00:00:00 | N114: 00:00:00 | O114: 00:00:00 | P114: 00:00:00 | Q114: 00:00:00 | R114: 00:00:00 | S114: 00:00:00 | T114: 00:00:00 | U114: 00:00:00 | V114: 00:00:00 | W114: 00:00:00 | X114: 00:00:00 | Y114: 00:00:00 | Z114: 00:00:00 | AA114: 00:00:00 | AB114: 00:00:00 | AC114: 00:00:00 | AD114: 00:00:00 | AE114: 00:00:00 | AF114: 00:00:00 | AG114: =SUM(B114:AF114) -> 0 | AH114: =AG114/SUM($AG$6:$AG$137) ->  | AP114: =$AG114*'puncte misiuni-competente'!B113/'puncte misiuni-competente'!B$4/(3744/122*0.875) -> 0 | AQ114: =$AG114*'puncte misiuni-competente'!C113/'puncte misiuni-competente'!C$4/(3744/122*0.875) -> 0 | AR114: =$AG114*'puncte misiuni-competente'!D113/'puncte misiuni-competente'!D$4/(3744/122*0.875) -> 0 | AS114: =$AG114*'puncte misiuni-competente'!E113/'puncte misiuni-competente'!E$4/(3744/122*0.875) -> 0 | AT114: =$AG114*'puncte misiuni-competente'!F113/'puncte misiuni-competente'!F$4/(3744/122*0.875) -> 0 | AU114: =$AG114*'puncte misiuni-competente'!G113/'puncte misiuni-competente'!G$4/(3744/122*0.875) -> 0 | AV114: =$AG114*'puncte misiuni-competente'!H113/'puncte misiuni-competente'!H$4/(3744/122*0.875) -> 0
A116: 9.1.3. Project management | B116: 00:00:00 | C116: 00:00:00 | D116: 00:00:00 | E116: 00:00:00 | F116: 00:00:00 | G116: 00:00:00 | H116: 00:00:00 | I116: 00:00:00 | J116: 00:00:00 | K116: 00:00:00 | L116: 00:00:00 | M116: 00:00:00 | N116: 00:00:00 | O116: 00:00:00 | P116: 00:00:00 | Q116: 00:00:00 | R116: 00:00:00 | S116: 00:00:00 | T116: 00:00:00 | U116: 00:00:00 | V116: 00:00:00 | W116: 00:00:00 | X116: 00:00:00 | Y116: 00:00:00 | Z116: 00:00:00 | AA116: 00:00:00 | AB116: 00:00:00 | AC116: 00:00:00 | AD116: 00:00:00 | AE116: 00:00:00 | AF116: 00:00:00 | AG116: =SUM(B116:AF116) -> 0 | AH116: =AG116/SUM($AG$6:$AG$137) ->  | AP116: =$AG116*'puncte misiuni-competente'!B115/'puncte misiuni-competente'!B$4/(3744/122*0.875) -> 0 | AQ116: =$AG116*'puncte misiuni-competente'!C115/'puncte misiuni-competente'!C$4/(3744/122*0.875) -> 0 | AR116: =$AG116*'puncte misiuni-competente'!D115/'puncte misiuni-competente'!D$4/(3744/122*0.875) -> 0 | AS116: =$AG116*'puncte misiuni-competente'!E115/'puncte misiuni-competente'!E$4/(3744/122*0.875) -> 0 | AT116: =$AG116*'puncte misiuni-competente'!F115/'puncte misiuni-competente'!F$4/(3744/122*0.875) -> 0 | AU116: =$AG116*'puncte misiuni-competente'!G115/'puncte misiuni-competente'!G$4/(3744/122*0.875) -> 0 | AV116: =$AG116*'puncte misiuni-competente'!H115/'puncte misiuni-competente'!H$4/(3744/122*0.875) -> 0
A118: 9.1.4. Receptia la terminarea lucrarilor | B118: 00:00:00 | C118: 00:00:00 | D118: 00:00:00 | E118: 00:00:00 | F118: 00:00:00 | G118: 00:00:00 | H118: 00:00:00 | I118: 00:00:00 | J118: 00:00:00 | K118: 00:00:00 | L118: 00:00:00 | M118: 00:00:00 | N118: 00:00:00 | O118: 00:00:00 | P118: 00:00:00 | Q118: 00:00:00 | R118: 00:00:00 | S118: 00:00:00 | T118: 00:00:00 | U118: 00:00:00 | V118: 00:00:00 | W118: 00:00:00 | X118: 00:00:00 | Y118: 00:00:00 | Z118: 00:00:00 | AA118: 00:00:00 | AB118: 00:00:00 | AC118: 00:00:00 | AD118: 00:00:00 | AE118: 00:00:00 | AF118: 00:00:00 | AG118: =SUM(B118:AF118) -> 0 | AH118: =AG118/SUM($AG$6:$AG$137) ->  | AP118: =$AG118*'puncte misiuni-competente'!B117/'puncte misiuni-competente'!B$4/(3744/122*0.875) -> 0 | AQ118: =$AG118*'puncte misiuni-competente'!C117/'puncte misiuni-competente'!C$4/(3744/122*0.875) -> 0 | AR118: =$AG118*'puncte misiuni-competente'!D117/'puncte misiuni-competente'!D$4/(3744/122*0.875) -> 0 | AS118: =$AG118*'puncte misiuni-competente'!E117/'puncte misiuni-competente'!E$4/(3744/122*0.875) -> 0 | AT118: =$AG118*'puncte misiuni-competente'!F117/'puncte misiuni-competente'!F$4/(3744/122*0.875) -> 0 | AU118: =$AG118*'puncte misiuni-competente'!G117/'puncte misiuni-competente'!G$4/(3744/122*0.875) -> 0 | AV118: =$AG118*'puncte misiuni-competente'!H117/'puncte misiuni-competente'!H$4/(3744/122*0.875) -> 0
A120: 9.1.5. Punerea in functiune | B120: 00:00:00 | C120: 00:00:00 | D120: 00:00:00 | E120: 00:00:00 | F120: 00:00:00 | G120: 00:00:00 | H120: 00:00:00 | I120: 00:00:00 | J120: 00:00:00 | K120: 00:00:00 | L120: 00:00:00 | M120: 00:00:00 | N120: 00:00:00 | O120: 00:00:00 | P120: 00:00:00 | Q120: 00:00:00 | R120: 00:00:00 | S120: 00:00:00 | T120: 00:00:00 | U120: 00:00:00 | V120: 00:00:00 | W120: 00:00:00 | X120: 00:00:00 | Y120: 00:00:00 | Z120: 00:00:00 | AA120: 00:00:00 | AB120: 00:00:00 | AC120: 00:00:00 | AD120: 00:00:00 | AE120: 00:00:00 | AF120: 00:00:00 | AG120: =SUM(B120:AF120) -> 0 | AH120: =AG120/SUM($AG$6:$AG$137) ->  | AP120: =$AG120*'puncte misiuni-competente'!B119/'puncte misiuni-competente'!B$4/(3744/122*0.875) -> 0 | AQ120: =$AG120*'puncte misiuni-competente'!C119/'puncte misiuni-competente'!C$4/(3744/122*0.875) -> 0 | AR120: =$AG120*'puncte misiuni-competente'!D119/'puncte misiuni-competente'!D$4/(3744/122*0.875) -> 0 | AS120: =$AG120*'puncte misiuni-competente'!E119/'puncte misiuni-competente'!E$4/(3744/122*0.875) -> 0 | AT120: =$AG120*'puncte misiuni-competente'!F119/'puncte misiuni-competente'!F$4/(3744/122*0.875) -> 0 | AU120: =$AG120*'puncte misiuni-competente'!G119/'puncte misiuni-competente'!G$4/(3744/122*0.875) -> 0 | AV120: =$AG120*'puncte misiuni-competente'!H119/'puncte misiuni-competente'!H$4/(3744/122*0.875) -> 0
A122: 9.2.1. Asistenta tehnica | B122: 00:00:00 | C122: 00:00:00 | D122: 00:00:00 | E122: 00:00:00 | F122: 00:00:00 | G122: 00:00:00 | H122: 00:00:00 | I122: 00:00:00 | J122: 00:00:00 | K122: 00:00:00 | L122: 00:00:00 | M122: 00:00:00 | N122: 00:00:00 | O122: 00:00:00 | P122: 00:00:00 | Q122: 00:00:00 | R122: 00:00:00 | S122: 00:00:00 | T122: 00:00:00 | U122: 00:00:00 | V122: 00:00:00 | W122: 00:00:00 | X122: 00:00:00 | Y122: 00:00:00 | Z122: 00:00:00 | AA122: 00:00:00 | AB122: 00:00:00 | AC122: 00:00:00 | AD122: 00:00:00 | AE122: 00:00:00 | AF122: 00:00:00 | AG122: =SUM(B122:AF122) -> 0 | AH122: =AG122/SUM($AG$6:$AG$137) ->  | AP122: =$AG122*'puncte misiuni-competente'!B121/'puncte misiuni-competente'!B$4/(3744/122*0.875) -> 0 | AQ122: =$AG122*'puncte misiuni-competente'!C121/'puncte misiuni-competente'!C$4/(3744/122*0.875) -> 0 | AR122: =$AG122*'puncte misiuni-competente'!D121/'puncte misiuni-competente'!D$4/(3744/122*0.875) -> 0 | AS122: =$AG122*'puncte misiuni-competente'!E121/'puncte misiuni-competente'!E$4/(3744/122*0.875) -> 0 | AT122: =$AG122*'puncte misiuni-competente'!F121/'puncte misiuni-competente'!F$4/(3744/122*0.875) -> 0 | AU122: =$AG122*'puncte misiuni-competente'!G121/'puncte misiuni-competente'!G$4/(3744/122*0.875) -> 0 | AV122: =$AG122*'puncte misiuni-competente'!H121/'puncte misiuni-competente'!H$4/(3744/122*0.875) -> 0
A124: 9.2.2. Proiecte de fabricatie | B124: 00:00:00 | C124: 00:00:00 | D124: 00:00:00 | E124: 00:00:00 | F124: 00:00:00 | G124: 00:00:00 | H124: 00:00:00 | I124: 00:00:00 | J124: 00:00:00 | K124: 00:00:00 | L124: 00:00:00 | M124: 00:00:00 | N124: 00:00:00 | O124: 00:00:00 | P124: 00:00:00 | Q124: 00:00:00 | R124: 00:00:00 | S124: 00:00:00 | T124: 00:00:00 | U124: 00:00:00 | V124: 00:00:00 | W124: 00:00:00 | X124: 00:00:00 | Y124: 00:00:00 | Z124: 00:00:00 | AA124: 00:00:00 | AB124: 00:00:00 | AC124: 00:00:00 | AD124: 00:00:00 | AE124: 00:00:00 | AF124: 00:00:00 | AG124: =SUM(B124:AF124) -> 0 | AH124: =AG124/SUM($AG$6:$AG$137) ->  | AP124: =$AG124*'puncte misiuni-competente'!B123/'puncte misiuni-competente'!B$4/(3744/122*0.875) -> 0 | AQ124: =$AG124*'puncte misiuni-competente'!C123/'puncte misiuni-competente'!C$4/(3744/122*0.875) -> 0 | AR124: =$AG124*'puncte misiuni-competente'!D123/'puncte misiuni-competente'!D$4/(3744/122*0.875) -> 0 | AS124: =$AG124*'puncte misiuni-competente'!E123/'puncte misiuni-competente'!E$4/(3744/122*0.875) -> 0 | AT124: =$AG124*'puncte misiuni-competente'!F123/'puncte misiuni-competente'!F$4/(3744/122*0.875) -> 0 | AU124: =$AG124*'puncte misiuni-competente'!G123/'puncte misiuni-competente'!G$4/(3744/122*0.875) -> 0 | AV124: =$AG124*'puncte misiuni-competente'!H123/'puncte misiuni-competente'!H$4/(3744/122*0.875) -> 0
A126: 9.2.3. Reevaluare costuri de executie | B126: 00:00:00 | C126: 00:00:00 | D126: 00:00:00 | E126: 00:00:00 | F126: 00:00:00 | G126: 00:00:00 | H126: 00:00:00 | I126: 00:00:00 | J126: 00:00:00 | K126: 00:00:00 | L126: 00:00:00 | M126: 00:00:00 | N126: 00:00:00 | O126: 00:00:00 | P126: 00:00:00 | Q126: 00:00:00 | R126: 00:00:00 | S126: 00:00:00 | T126: 00:00:00 | U126: 00:00:00 | V126: 00:00:00 | W126: 00:00:00 | X126: 00:00:00 | Y126: 00:00:00 | Z126: 00:00:00 | AA126: 00:00:00 | AB126: 00:00:00 | AC126: 00:00:00 | AD126: 00:00:00 | AE126: 00:00:00 | AF126: 00:00:00 | AG126: =SUM(B126:AF126) -> 0 | AH126: =AG126/SUM($AG$6:$AG$137) ->  | AP126: =$AG126*'puncte misiuni-competente'!B125/'puncte misiuni-competente'!B$4/(3744/122*0.875) -> 0 | AQ126: =$AG126*'puncte misiuni-competente'!C125/'puncte misiuni-competente'!C$4/(3744/122*0.875) -> 0 | AR126: =$AG126*'puncte misiuni-competente'!D125/'puncte misiuni-competente'!D$4/(3744/122*0.875) -> 0 | AS126: =$AG126*'puncte misiuni-competente'!E125/'puncte misiuni-competente'!E$4/(3744/122*0.875) -> 0 | AT126: =$AG126*'puncte misiuni-competente'!F125/'puncte misiuni-competente'!F$4/(3744/122*0.875) -> 0 | AU126: =$AG126*'puncte misiuni-competente'!G125/'puncte misiuni-competente'!G$4/(3744/122*0.875) -> 0 | AV126: =$AG126*'puncte misiuni-competente'!H125/'puncte misiuni-competente'!H$4/(3744/122*0.875) -> 0
A128: 9.2.4. Indicarea in proiect a producatorilor, produselor si furnizorilor | B128: 00:00:00 | C128: 00:00:00 | D128: 00:00:00 | E128: 00:00:00 | F128: 00:00:00 | G128: 00:00:00 | H128: 00:00:00 | I128: 00:00:00 | J128: 00:00:00 | K128: 00:00:00 | L128: 00:00:00 | M128: 00:00:00 | N128: 00:00:00 | O128: 00:00:00 | P128: 00:00:00 | Q128: 00:00:00 | R128: 00:00:00 | S128: 00:00:00 | T128: 00:00:00 | U128: 00:00:00 | V128: 00:00:00 | W128: 00:00:00 | X128: 00:00:00 | Y128: 00:00:00 | Z128: 00:00:00 | AA128: 00:00:00 | AB128: 00:00:00 | AC128: 00:00:00 | AD128: 00:00:00 | AE128: 00:00:00 | AF128: 00:00:00 | AG128: =SUM(B128:AF128) -> 0 | AH128: =AG128/SUM($AG$6:$AG$137) ->  | AP128: =$AG128*'puncte misiuni-competente'!B127/'puncte misiuni-competente'!B$4/(3744/122*0.875) -> 0 | AQ128: =$AG128*'puncte misiuni-competente'!C127/'puncte misiuni-competente'!C$4/(3744/122*0.875) -> 0 | AR128: =$AG128*'puncte misiuni-competente'!D127/'puncte misiuni-competente'!D$4/(3744/122*0.875) -> 0 | AS128: =$AG128*'puncte misiuni-competente'!E127/'puncte misiuni-competente'!E$4/(3744/122*0.875) -> 0 | AT128: =$AG128*'puncte misiuni-competente'!F127/'puncte misiuni-competente'!F$4/(3744/122*0.875) -> 0 | AU128: =$AG128*'puncte misiuni-competente'!G127/'puncte misiuni-competente'!G$4/(3744/122*0.875) -> 0 | AV128: =$AG128*'puncte misiuni-competente'!H127/'puncte misiuni-competente'!H$4/(3744/122*0.875) -> 0
A130: 10.1.1. Supraveghere in timp a constructiei | B130: 00:00:00 | C130: 00:00:00 | D130: 00:00:00 | E130: 00:00:00 | F130: 00:00:00 | G130: 00:00:00 | H130: 00:00:00 | I130: 00:00:00 | J130: 00:00:00 | K130: 00:00:00 | L130: 00:00:00 | M130: 00:00:00 | N130: 00:00:00 | O130: 00:00:00 | P130: 00:00:00 | Q130: 00:00:00 | R130: 00:00:00 | S130: 00:00:00 | T130: 00:00:00 | U130: 00:00:00 | V130: 00:00:00 | W130: 00:00:00 | X130: 00:00:00 | Y130: 00:00:00 | Z130: 00:00:00 | AA130: 00:00:00 | AB130: 00:00:00 | AC130: 00:00:00 | AD130: 00:00:00 | AE130: 00:00:00 | AF130: 00:00:00 | AG130: =SUM(B130:AF130) -> 0 | AH130: =AG130/SUM($AG$6:$AG$137) ->  | AP130: =$AG130*'puncte misiuni-competente'!B129/'puncte misiuni-competente'!B$4/(3744/122*0.875) -> 0 | AQ130: =$AG130*'puncte misiuni-competente'!C129/'puncte misiuni-competente'!C$4/(3744/122*0.875) -> 0 | AR130: =$AG130*'puncte misiuni-competente'!D129/'puncte misiuni-competente'!D$4/(3744/122*0.875) -> 0 | AS130: =$AG130*'puncte misiuni-competente'!E129/'puncte misiuni-competente'!E$4/(3744/122*0.875) -> 0 | AT130: =$AG130*'puncte misiuni-competente'!F129/'puncte misiuni-competente'!F$4/(3744/122*0.875) -> 0 | AU130: =$AG130*'puncte misiuni-competente'!G129/'puncte misiuni-competente'!G$4/(3744/122*0.875) -> 0 | AV130: =$AG130*'puncte misiuni-competente'!H129/'puncte misiuni-competente'!H$4/(3744/122*0.875) -> 0
A132: 10.1.2. Acordul proiectantului initial | B132: 00:00:00 | C132: 00:00:00 | D132: 00:00:00 | E132: 00:00:00 | F132: 00:00:00 | G132: 00:00:00 | H132: 00:00:00 | I132: 00:00:00 | J132: 00:00:00 | K132: 00:00:00 | L132: 00:00:00 | M132: 00:00:00 | N132: 00:00:00 | O132: 00:00:00 | P132: 00:00:00 | Q132: 00:00:00 | R132: 00:00:00 | S132: 00:00:00 | T132: 00:00:00 | U132: 00:00:00 | V132: 00:00:00 | W132: 00:00:00 | X132: 00:00:00 | Y132: 00:00:00 | Z132: 00:00:00 | AA132: 00:00:00 | AB132: 00:00:00 | AC132: 00:00:00 | AD132: 00:00:00 | AE132: 00:00:00 | AF132: 00:00:00 | AG132: =SUM(B132:AF132) -> 0 | AH132: =AG132/SUM($AG$6:$AG$137) ->  | AP132: =$AG132*'puncte misiuni-competente'!B131/'puncte misiuni-competente'!B$4/(3744/122*0.875) -> 0 | AQ132: =$AG132*'puncte misiuni-competente'!C131/'puncte misiuni-competente'!C$4/(3744/122*0.875) -> 0 | AR132: =$AG132*'puncte misiuni-competente'!D131/'puncte misiuni-competente'!D$4/(3744/122*0.875) -> 0 | AS132: =$AG132*'puncte misiuni-competente'!E131/'puncte misiuni-competente'!E$4/(3744/122*0.875) -> 0 | AT132: =$AG132*'puncte misiuni-competente'!F131/'puncte misiuni-competente'!F$4/(3744/122*0.875) -> 0 | AU132: =$AG132*'puncte misiuni-competente'!G131/'puncte misiuni-competente'!G$4/(3744/122*0.875) -> 0 | AV132: =$AG132*'puncte misiuni-competente'!H131/'puncte misiuni-competente'!H$4/(3744/122*0.875) -> 0
A134: 11.1.1. Sustinerea proiecului | B134: 00:00:00 | C134: 00:00:00 | D134: 00:00:00 | E134: 00:00:00 | F134: 00:00:00 | G134: 00:00:00 | H134: 00:00:00 | I134: 00:00:00 | J134: 00:00:00 | K134: 00:00:00 | L134: 00:00:00 | M134: 00:00:00 | N134: 00:00:00 | O134: 00:00:00 | P134: 00:00:00 | Q134: 00:00:00 | R134: 00:00:00 | S134: 00:00:00 | T134: 00:00:00 | U134: 00:00:00 | V134: 00:00:00 | W134: 00:00:00 | X134: 00:00:00 | Y134: 00:00:00 | Z134: 00:00:00 | AA134: 00:00:00 | AB134: 00:00:00 | AC134: 00:00:00 | AD134: 00:00:00 | AE134: 00:00:00 | AF134: 00:00:00 | AG134: =SUM(B134:AF134) -> 0 | AH134: =AG134/SUM($AG$6:$AG$137) ->  | AP134: =$AG134*'puncte misiuni-competente'!B133/'puncte misiuni-competente'!B$4/(3744/122*0.875) -> 0 | AQ134: =$AG134*'puncte misiuni-competente'!C133/'puncte misiuni-competente'!C$4/(3744/122*0.875) -> 0 | AR134: =$AG134*'puncte misiuni-competente'!D133/'puncte misiuni-competente'!D$4/(3744/122*0.875) -> 0 | AS134: =$AG134*'puncte misiuni-competente'!E133/'puncte misiuni-competente'!E$4/(3744/122*0.875) -> 0 | AT134: =$AG134*'puncte misiuni-competente'!F133/'puncte misiuni-competente'!F$4/(3744/122*0.875) -> 0 | AU134: =$AG134*'puncte misiuni-competente'!G133/'puncte misiuni-competente'!G$4/(3744/122*0.875) -> 0 | AV134: =$AG134*'puncte misiuni-competente'!H133/'puncte misiuni-competente'!H$4/(3744/122*0.875) -> 0
A136: 11.1.2. Materiale pentru marketing | B136: 00:00:00 | C136: 00:00:00 | D136: 00:00:00 | E136: 00:00:00 | F136: 00:00:00 | G136: 00:00:00 | H136: 00:00:00 | I136: 00:00:00 | J136: 00:00:00 | K136: 00:00:00 | L136: 00:00:00 | M136: 00:00:00 | N136: 00:00:00 | O136: 00:00:00 | P136: 00:00:00 | Q136: 00:00:00 | R136: 00:00:00 | S136: 00:00:00 | T136: 00:00:00 | U136: 00:00:00 | V136: 00:00:00 | W136: 00:00:00 | X136: 00:00:00 | Y136: 00:00:00 | Z136: 00:00:00 | AA136: 00:00:00 | AB136: 00:00:00 | AC136: 00:00:00 | AD136: 00:00:00 | AE136: 00:00:00 | AF136: 00:00:00 | AG136: =SUM(B136:AF136) -> 0 | AH136: =AG136/SUM($AG$6:$AG$137) ->  | AP136: =$AG136*'puncte misiuni-competente'!B135/'puncte misiuni-competente'!B$4/(3744/122*0.875) -> 0 | AQ136: =$AG136*'puncte misiuni-competente'!C135/'puncte misiuni-competente'!C$4/(3744/122*0.875) -> 0 | AR136: =$AG136*'puncte misiuni-competente'!D135/'puncte misiuni-competente'!D$4/(3744/122*0.875) -> 0 | AS136: =$AG136*'puncte misiuni-competente'!E135/'puncte misiuni-competente'!E$4/(3744/122*0.875) -> 0 | AT136: =$AG136*'puncte misiuni-competente'!F135/'puncte misiuni-competente'!F$4/(3744/122*0.875) -> 0 | AU136: =$AG136*'puncte misiuni-competente'!G135/'puncte misiuni-competente'!G$4/(3744/122*0.875) -> 0 | AV136: =$AG136*'puncte misiuni-competente'!H135/'puncte misiuni-competente'!H$4/(3744/122*0.875) -> 0
A138: Total ore / zi (h) | B138: =B6+B8+B10+B12+B14+B16+B18+B20+B22+B24+B26+B28+B30+B32+B34+B36+B38+B40+B42+B44+B46+B48+B50+B52+B54+B56+B58+B60+B62+B64+B66+B68+B70+B72+B74+B76+B78+B80+B82+B84+B86+B88+B90+B92+B94+B96+B98+B100+B102+B104+B106+B108+B110+B112+B114+B116+B118+B120+B122+B124+B126+B128+B130+B132+B134+B136 -> 00:00:00 | C138: =C6+C8+C10+C12+C14+C16+C18+C20+C22+C24+C26+C28+C30+C32+C34+C36+C38+C40+C42+C44+C46+C48+C50+C52+C54+C56+C58+C60+C62+C64+C66+C68+C70+C72+C74+C76+C78+C80+C82+C84+C86+C88+C90+C92+C94+C96+C98+C100+C102+C104+C106+C108+C110+C112+C114+C116+C118+C120+C122+C124+C126+C128+C130+C132+C134+C136 -> 00:00:00 | D138: 00:00:00 | E138: 00:00:00 | F138: 00:00:00 | G138: 00:00:00 | H138: 00:00:00 | I138: 00:00:00 | J138: 00:00:00 | K138: 00:00:00 | L138: 00:00:00 | M138: 00:00:00 | N138: 00:00:00 | O138: 00:00:00 | P138: 00:00:00 | Q138: 00:00:00 | R138: 00:00:00 | S138: 00:00:00 | T138: 00:00:00 | U138: 00:00:00 | V138: 00:00:00 | W138: 0 | X138: 00:00:00 | Y138: 00:00:00 | Z138: 00:00:00 | AA138: 00:00:00 | AB138: 00:00:00 | AC138: 00:00:00 | AD138: 00:00:00 | AE138: 00:00:00 | AF138: 00:00:00 | AG138: =SUM(B138:AF138) -> 0
A139: Aport zilnic din total lunar (%) | B139: =B138/SUM($B$138:$AF$138) ->  | C139: =C138/SUM($B$138:$AF$138) ->  | AH139: =SUM(AH6:AH136) ->  | AP139: =SUM(AP6:AP137)*24 -> 0 | AQ139: =SUM(AQ6:AQ137)*24 -> 0 | AR139: 0 | AS139: 0 | AT139: 0 | AU139: 0 | AV139: 0

Sheet luna 2
A1: Fisa de evaluare a stagiului_v1.1
B3: arhitect stagiar | E3: Ion POPESCU | K3: arhitect indrumator | N3: Prenume NUME | U3: luna calendaristica | X3: ianuarie
B4: numar TNA | E4: 1234 | K4: numar TNA | N4: 5678 | U4: anul | X4: 2017
A5: Misiuni de baza / misiuni suplimentare | B5: 1 | C5: 2 | D5: 3 | E5: 4 | F5: 5 | G5: 6 | H5: 7 | I5: 8 | J5: 9 | K5: 10 | L5: 11 | M5: 12 | N5: 13 | O5: 14 | P5: 15 | Q5: 16 | R5: 17 | S5: 18 | T5: 19 | U5: 20 | V5: 21 | W5: 22 | X5: 23 | Y5: 24 | Z5: 25 | AA5: 26 | AB5: 27 | AC5: 28 | AD5: 29 | AE5: 30 | AF5: 31 | AG5: Total luna (h) | AH5: Total luna (%) | AP5: Doctrinare | AQ5: Tehnice | AR5: Ecologice | AS5: Relationale | AT5: Manageriale | AU5: Economice | AV5: Juridice
A6: 1.1.1. Tema pentru ofertare | B6: 00:00:00 | C6: 00:00:00 | D6: 00:00:00 | E6: 00:00:00 | F6: 00:00:00 | G6: 00:00:00 | H6: 00:00:00 | I6: 00:00:00 | J6: 00:00:00 | K6: 00:00:00 | L6: 00:00:00 | M6: 00:00:00 | N6: 00:00:00 | O6: 00:00:00 | P6: 00:00:00 | Q6: 00:00:00 | R6: 00:00:00 | S6: 00:00:00 | T6: 00:00:00 | U6: 00:00:00 | V6: 00:00:00 | W6: 00:00:00 | X6: 00:00:00 | Y6: 00:00:00 | Z6: 00:00:00 | AA6: 00:00:00 | AB6: 00:00:00 | AC6: 00:00:00 | AD6: 00:00:00 | AE6: 00:00:00 | AF6: 00:00:00 | AG6: =SUM(B6:AF6) -> 0 | AH6: =AG6/SUM($AG$6:$AG$137) ->  | AP6: =$AG6*'puncte misiuni-competente'!B5/'puncte misiuni-competente'!B$4/(3744/122*0.875) -> 0 | AQ6: =$AG6*'puncte misiuni-competente'!C5/'puncte misiuni-competente'!C$4/(3744/122*0.875) -> 0 | AR6: =$AG6*'puncte misiuni-competente'!D5/'puncte misiuni-competente'!D$4/(3744/122*0.875) -> 0 | AS6: =$AG6*'puncte misiuni-competente'!E5/'puncte misiuni-competente'!E$4/(3744/122*0.875) -> 0 | AT6: =$AG6*'puncte misiuni-competente'!F5/'puncte misiuni-competente'!F$4/(3744/122*0.875) -> 0 | AU6: =$AG6*'puncte misiuni-competente'!G5/'puncte misiuni-competente'!G$4/(3744/122*0.875) -> 0 | AV6: =$AG6*'puncte misiuni-competente'!H5/'puncte misiuni-competente'!H$4/(3744/122*0.875) -> 0
A8: 1.1.2. Oferta economica | B8: 00:00:00 | C8: 00:00:00 | D8: 00:00:00 | E8: 00:00:00 | F8: 00:00:00 | G8: 00:00:00 | H8: 00:00:00 | I8: 00:00:00 | J8: 00:00:00 | K8: 00:00:00 | L8: 00:00:00 | M8: 00:00:00 | N8: 00:00:00 | O8: 00:00:00 | P8: 00:00:00 | Q8: 00:00:00 | R8: 00:00:00 | S8: 00:00:00 | T8: 00:00:00 | U8: 00:00:00 | V8: 00:00:00 | W8: 00:00:00 | X8: 00:00:00 | Y8: 00:00:00 | Z8: 00:00:00 | AA8: 00:00:00 | AB8: 00:00:00 | AC8: 00:00:00 | AD8: 00:00:00 | AE8: 00:00:00 | AF8: 00:00:00 | AG8: =SUM(B8:AF8) -> 0 | AH8: =AG8/SUM($AG$6:$AG$137) ->  | AP8: =$AG8*'puncte misiuni-competente'!B7/'puncte misiuni-competente'!B$4/(3744/122*0.875) -> 0 | AQ8: =$AG8*'puncte misiuni-competente'!C7/'puncte misiuni-competente'!C$4/(3744/122*0.875) -> 0 | AR8: =$AG8*'puncte misiuni-competente'!D7/'puncte misiuni-competente'!D$4/(3744/122*0.875) -> 0 | AS8: =$AG8*'puncte misiuni-competente'!E7/'puncte misiuni-competente'!E$4/(3744/122*0.875) -> 0 | AT8: =$AG8*'puncte misiuni-competente'!F7/'puncte misiuni-competente'!F$4/(3744/122*0.875) -> 0 | AU8: =$AG8*'puncte misiuni-competente'!G7/'puncte misiuni-competente'!G$4/(3744/122*0.875) -> 0 | AV8: =$AG8*'puncte misiuni-competente'!H7/'puncte misiuni-competente'!H$4/(3744/122*0.875) -> 0
A10: 1.1.3 Acceptarea ofertei si încheierea contractului de proiectare | B10: 00:00:00 | C10: 00:00:00 | D10: 00:00:00 | E10: 00:00:00 | F10: 00:00:00 | G10: 00:00:00 | H10: 00:00:00 | I10: 00:00:00 | J10: 00:00:00 | K10: 00:00:00 | L10: 00:00:00 | M10: 00:00:00 | N10: 00:00:00 | O10: 00:00:00 | P10: 00:00:00 | Q10: 00:00:00 | R10: 00:00:00 | S10: 00:00:00 | T10: 00:00:00 | U10: 00:00:00 | V10: 00:00:00 | W10: 00:00:00 | X10: 00:00:00 | Y10: 00:00:00 | Z10: 00:00:00 | AA10: 00:00:00 | AB10: 00:00:00 | AC10: 00:00:00 | AD10: 00:00:00 | AE10: 00:00:00 | AF10: 00:00:00 | AG10: =SUM(B10:AF10) -> 0 | AH10: =AG10/SUM($AG$6:$AG$137) ->  | AP10: =$AG10*'puncte misiuni-competente'!B9/'puncte misiuni-competente'!B$4/(3744/122*0.875) -> 0 | AQ10: =$AG10*'puncte misiuni-competente'!C9/'puncte misiuni-competente'!C$4/(3744/122*0.875) -> 0 | AR10: =$AG10*'puncte misiuni-competente'!D9/'puncte misiuni-competente'!D$4/(3744/122*0.875) -> 0 | AS10: =$AG10*'puncte misiuni-competente'!E9/'puncte misiuni-competente'!E$4/(3744/122*0.875) -> 0 | AT10: =$AG10*'puncte misiuni-competente'!F9/'puncte misiuni-competente'!F$4/(3744/122*0.875) -> 0 | AU10: =$AG10*'puncte misiuni-competente'!G9/'puncte misiuni-competente'!G$4/(3744/122*0.875) -> 0 | AV10: =$AG10*'puncte misiuni-competente'!H9/'puncte misiuni-competente'!H$4/(3744/122*0.875) -> 0
A12: 1.1.4. Analiza contextului urbanistic, tehnic, si legislativ | B12: 00:00:00 | C12: 00:00:00 | D12: 00:00:00 | E12: 00:00:00 | F12: 00:00:00 | G12: 00:00:00 | H12: 00:00:00 | I12: 00:00:00 | J12: 00:00:00 | K12: 00:00:00 | L12: 00:00:00 | M12: 00:00:00 | N12: 00:00:00 | O12: 00:00:00 | P12: 00:00:00 | Q12: 00:00:00 | R12: 00:00:00 | S12: 00:00:00 | T12: 00:00:00 | U12: 00:00:00 | V12: 00:00:00 | W12: 00:00:00 | X12: 00:00:00 | Y12: 00:00:00 | Z12: 00:00:00 | AA12: 00:00:00 | AB12: 00:00:00 | AC12: 00:00:00 | AD12: 00:00:00 | AE12: 00:00:00 | AF12: 00:00:00 | AG12: =SUM(B12:AF12) -> 0 | AH12: =AG12/SUM($AG$6:$AG$137) ->  | AP12: =$AG12*'puncte misiuni-competente'!B11/'puncte misiuni-competente'!B$4/(3744/122*0.875) -> 0 | AQ12: =$AG12*'puncte misiuni-competente'!C11/'puncte misiuni-competente'!C$4/(3744/122*0.875) -> 0 | AR12: =$AG12*'puncte misiuni-competente'!D11/'puncte misiuni-competente'!D$4/(3744/122*0.875) -> 0 | AS12: =$AG12*'puncte misiuni-competente'!E11/'puncte misiuni-competente'!E$4/(3744/122*0.875) -> 0 | AT12: =$AG12*'puncte misiuni-competente'!F11/'puncte misiuni-competente'!F$4/(3744/122*0.875) -> 0 | AU12: =$AG12*'puncte misiuni-competente'!G11/'puncte misiuni-competente'!G$4/(3744/122*0.875) -> 0 | AV12: =$AG12*'puncte misiuni-competente'!H11/'puncte misiuni-competente'!H$4/(3744/122*0.875) -> 0
A14: 1.2.1. Consultanta imobiliara | B14: 00:00:00 | C14: 00:00:00 | D14: 00:00:00 | E14: 00:00:00 | F14: 00:00:00 | G14: 00:00:00 | H14: 00:00:00 | I14: 00:00:00 | J14: 00:00:00 | K14: 00:00:00 | L14: 00:00:00 | M14: 00:00:00 | N14: 00:00:00 | O14: 00:00:00 | P14: 00:00:00 | Q14: 00:00:00 | R14: 00:00:00 | S14: 00:00:00 | T14: 00:00:00 | U14: 00:00:00 | V14: 00:00:00 | W14: 00:00:00 | X14: 00:00:00 | Y14: 00:00:00 | Z14: 00:00:00 | AA14: 00:00:00 | AB14: 00:00:00 | AC14: 00:00:00 | AD14: 00:00:00 | AE14: 00:00:00 | AF14: 00:00:00 | AG14: =SUM(B14:AF14) -> 0 | AH14: =AG14/SUM($AG$6:$AG$137) ->  | AP14: =$AG14*'puncte misiuni-competente'!B13/'puncte misiuni-competente'!B$4/(3744/122*0.875) -> 0 | AQ14: =$AG14*'puncte misiuni-competente'!C13/'puncte misiuni-competente'!C$4/(3744/122*0.875) -> 0 | AR14: =$AG14*'puncte misiuni-competente'!D13/'puncte misiuni-competente'!D$4/(3744/122*0.875) -> 0 | AS14: =$AG14*'puncte misiuni-competente'!E13/'puncte misiuni-competente'!E$4/(3744/122*0.875) -> 0 | AT14: =$AG14*'puncte misiuni-competente'!F13/'puncte misiuni-competente'!F$4/(3744/122*0.875) -> 0 | AU14: =$AG14*'puncte misiuni-competente'!G13/'puncte misiuni-competente'!G$4/(3744/122*0.875) -> 0 | AV14: =$AG14*'puncte misiuni-competente'!H13/'puncte misiuni-competente'!H$4/(3744/122*0.875) -> 0
A16: 1.2.2. Ilustrarea de tema in scop de ofertare | B16: 00:00:00 | C16: 00:00:00 | D16: 00:00:00 | E16: 00:00:00 | F16: 00:00:00 | G16: 00:00:00 | H16: 00:00:00 | I16: 00:00:00 | J16: 00:00:00 | K16: 00:00:00 | L16: 00:00:00 | M16: 00:00:00 | N16: 00:00:00 | O16: 00:00:00 | P16: 00:00:00 | Q16: 00:00:00 | R16: 00:00:00 | S16: 00:00:00 | T16: 00:00:00 | U16: 00:00:00 | V16: 00:00:00 | W16: 00:00:00 | X16: 00:00:00 | Y16: 00:00:00 | Z16: 00:00:00 | AA16: 00:00:00 | AB16: 00:00:00 | AC16: 00:00:00 | AD16: 00:00:00 | AE16: 00:00:00 | AF16: 00:00:00 | AG16: =SUM(B16:AF16) -> 0 | AH16: =AG16/SUM($AG$6:$AG$137) ->  | AP16: =$AG16*'puncte misiuni-competente'!B15/'puncte misiuni-competente'!B$4/(3744/122*0.875) -> 0 | AQ16: =$AG16*'puncte misiuni-competente'!C15/'puncte misiuni-competente'!C$4/(3744/122*0.875) -> 0 | AR16: =$AG16*'puncte misiuni-competente'!D15/'puncte misiuni-competente'!D$4/(3744/122*0.875) -> 0 | AS16: =$AG16*'puncte misiuni-competente'!E15/'puncte misiuni-competente'!E$4/(3744/122*0.875) -> 0 | AT16: =$AG16*'puncte misiuni-competente'!F15/'puncte misiuni-competente'!F$4/(3744/122*0.875) -> 0 | AU16: =$AG16*'puncte misiuni-competente'!G15/'puncte misiuni-competente'!G$4/(3744/122*0.875) -> 0 | AV16: =$AG16*'puncte misiuni-competente'!H15/'puncte misiuni-competente'!H$4/(3744/122*0.875) -> 0
A18: 1.2.3. Studiul de prefezabilitate | B18: 00:00:00 | C18: 00:00:00 | D18: 00:00:00 | E18: 00:00:00 | F18: 00:00:00 | G18: 00:00:00 | H18: 00:00:00 | I18: 00:00:00 | J18: 00:00:00 | K18: 00:00:00 | L18: 00:00:00 | M18: 00:00:00 | N18: 00:00:00 | O18: 00:00:00 | P18: 00:00:00 | Q18: 00:00:00 | R18: 00:00:00 | S18: 00:00:00 | T18: 00:00:00 | U18: 00:00:00 | V18: 00:00:00 | W18: 00:00:00 | X18: 00:00:00 | Y18: 00:00:00 | Z18: 00:00:00 | AA18: 00:00:00 | AB18: 00:00:00 | AC18: 00:00:00 | AD18: 00:00:00 | AE18: 00:00:00 | AF18: 00:00:00 | AG18: =SUM(B18:AF18) -> 0 | AH18: =AG18/SUM($AG$6:$AG$137) ->  | AP18: =$AG18*'puncte misiuni-competente'!B17/'puncte misiuni-competente'!B$4/(3744/122*0.875) -> 0 | AQ18: =$AG18*'puncte misiuni-competente'!C17/'puncte misiuni-competente'!C$4/(3744/122*0.875) -> 0 | AR18: =$AG18*'puncte misiuni-competente'!D17/'puncte misiuni-competente'!D$4/(3744/122*0.875) -> 0 | AS18: =$AG18*'puncte misiuni-competente'!E17/'puncte misiuni-competente'!E$4/(3744/122*0.875) -> 0 | AT18: =$AG18*'puncte misiuni-competente'!F17/'puncte misiuni-competente'!F$4/(3744/122*0.875) -> 0 | AU18: =$AG18*'puncte misiuni-competente'!G17/'puncte misiuni-competente'!G$4/(3744/122*0.875) -> 0 | AV18: =$AG18*'puncte misiuni-competente'!H17/'puncte misiuni-competente'!H$4/(3744/122*0.875) -> 0
A20: 2.1.1. Tema preliminara de proiectare | B20: 00:00:00 | C20: 00:00:00 | D20: 00:00:00 | E20: 00:00:00 | F20: 00:00:00 | G20: 00:00:00 | H20: 00:00:00 | I20: 00:00:00 | J20: 00:00:00 | K20: 00:00:00 | L20: 00:00:00 | M20: 00:00:00 | N20: 00:00:00 | O20: 00:00:00 | P20: 00:00:00 | Q20: 00:00:00 | R20: 00:00:00 | S20: 00:00:00 | T20: 00:00:00 | U20: 00:00:00 | V20: 00:00:00 | W20: 00:00:00 | X20: 00:00:00 | Y20: 00:00:00 | Z20: 00:00:00 | AA20: 00:00:00 | AB20: 00:00:00 | AC20: 00:00:00 | AD20: 00:00:00 | AE20: 00:00:00 | AF20: 00:00:00 | AG20: =SUM(B20:AF20) -> 0 | AH20: =AG20/SUM($AG$6:$AG$137) ->  | AP20: =$AG20*'puncte misiuni-competente'!B19/'puncte misiuni-competente'!B$4/(3744/122*0.875) -> 0 | AQ20: =$AG20*'puncte misiuni-competente'!C19/'puncte misiuni-competente'!C$4/(3744/122*0.875) -> 0 | AR20: =$AG20*'puncte misiuni-competente'!D19/'puncte misiuni-competente'!D$4/(3744/122*0.875) -> 0 | AS20: =$AG20*'puncte misiuni-competente'!E19/'puncte misiuni-competente'!E$4/(3744/122*0.875) -> 0 | AT20: =$AG20*'puncte misiuni-competente'!F19/'puncte misiuni-competente'!F$4/(3744/122*0.875) -> 0 | AU20: =$AG20*'puncte misiuni-competente'!G19/'puncte misiuni-competente'!G$4/(3744/122*0.875) -> 0 | AV20: =$AG20*'puncte misiuni-competente'!H19/'puncte misiuni-competente'!H$4/(3744/122*0.875) -> 0
A22: 2.1.2. Documente si studii necesare | B22: 00:00:00 | C22: 00:00:00 | D22: 00:00:00 | E22: 00:00:00 | F22: 00:00:00 | G22: 00:00:00 | H22: 00:00:00 | I22: 00:00:00 | J22: 00:00:00 | K22: 00:00:00 | L22: 00:00:00 | M22: 00:00:00 | N22: 00:00:00 | O22: 00:00:00 | P22: 00:00:00 | Q22: 00:00:00 | R22: 00:00:00 | S22: 00:00:00 | T22: 00:00:00 | U22: 00:00:00 | V22: 00:00:00 | W22: 00:00:00 | X22: 00:00:00 | Y22: 00:00:00 | Z22: 00:00:00 | AA22: 00:00:00 | AB22: 00:00:00 | AC22: 00:00:00 | AD22: 00:00:00 | AE22: 00:00:00 | AF22: 00:00:00 | AG22: =SUM(B22:AF22) -> 0 | AH22: =AG22/SUM($AG$6:$AG$137) ->  | AP22: =$AG22*'puncte misiuni-competente'!B21/'puncte misiuni-competente'!B$4/(3744/122*0.875) -> 0 | AQ22: =$AG22*'puncte misiuni-competente'!C21/'puncte misiuni-competente'!C$4/(3744/122*0.875) -> 0 | AR22: =$AG22*'puncte misiuni-competente'!D21/'puncte misiuni-competente'!D$4/(3744/122*0.875) -> 0 | AS22: =$AG22*'puncte misiuni-competente'!E21/'puncte misiuni-competente'!E$4/(3744/122*0.875) -> 0 | AT22: =$AG22*'puncte misiuni-competente'!F21/'puncte misiuni-competente'!F$4/(3744/122*0.875) -> 0 | AU22: =$AG22*'puncte misiuni-competente'!G21/'puncte misiuni-competente'!G$4/(3744/122*0.875) -> 0 | AV22: =$AG22*'puncte misiuni-competente'!H21/'puncte misiuni-competente'!H$4/(3744/122*0.875) -> 0
A24: 2.1.3. Specialiști necesar a fi implicati in elaborarea proiectului | B24: 00:00:00 | C24: 00:00:00 | D24: 00:00:00 | E24: 00:00:00 | F24: 00:00:00 | G24: 00:00:00 | H24: 00:00:00 | I24: 00:00:00 | J24: 00:00:00 | K24: 00:00:00 | L24: 00:00:00 | M24: 00:00:00 | N24: 00:00:00 | O24: 00:00:00 | P24: 00:00:00 | Q24: 00:00:00 | R24: 00:00:00 | S24: 00:00:00 | T24: 00:00:00 | U24: 00:00:00 | V24: 00:00:00 | W24: 00:00:00 | X24: 00:00:00 | Y24: 00:00:00 | Z24: 00:00:00 | AA24: 00:00:00 | AB24: 00:00:00 | AC24: 00:00:00 | AD24: 00:00:00 | AE24: 00:00:00 | AF24: 00:00:00 | AG24: =SUM(B24:AF24) -> 0 | AH24: =AG24/SUM($AG$6:$AG$137) ->  | AP24: =$AG24*'puncte misiuni-competente'!B23/'puncte misiuni-competente'!B$4/(3744/122*0.875) -> 0 | AQ24: =$AG24*'puncte misiuni-competente'!C23/'puncte misiuni-competente'!C$4/(3744/122*0.875) -> 0 | AR24: =$AG24*'puncte misiuni-competente'!D23/'puncte misiuni-competente'!D$4/(3744/122*0.875) -> 0 | AS24: =$AG24*'puncte misiuni-competente'!E23/'puncte misiuni-competente'!E$4/(3744/122*0.875) -> 0 | AT24: =$AG24*'puncte misiuni-competente'!F23/'puncte misiuni-competente'!F$4/(3744/122*0.875) -> 0 | AU24: =$AG24*'puncte misiuni-competente'!G23/'puncte misiuni-competente'!G$4/(3744/122*0.875) -> 0 | AV24: =$AG24*'puncte misiuni-competente'!H23/'puncte misiuni-competente'!H$4/(3744/122*0.875) -> 0
A26: 2.1.4. Ilustrare de tema | B26: 00:00:00 | C26: 00:00:00 | D26: 00:00:00 | E26: 00:00:00 | F26: 00:00:00 | G26: 00:00:00 | H26: 00:00:00 | I26: 00:00:00 | J26: 00:00:00 | K26: 00:00:00 | L26: 00:00:00 | M26: 00:00:00 | N26: 00:00:00 | O26: 00:00:00 | P26: 00:00:00 | Q26: 00:00:00 | R26: 00:00:00 | S26: 00:00:00 | T26: 00:00:00 | U26: 00:00:00 | V26: 00:00:00 | W26: 00:00:00 | X26: 00:00:00 | Y26: 00:00:00 | Z26: 00:00:00 | AA26: 00:00:00 | AB26: 00:00:00 | AC26: 00:00:00 | AD26: 00:00:00 | AE26: 00:00:00 | AF26: 00:00:00 | AG26: =SUM(B26:AF26) -> 0 | AH26: =AG26/SUM($AG$6:$AG$137) ->  | AP26: =$AG26*'puncte misiuni-competente'!B25/'puncte misiuni-competente'!B$4/(3744/122*0.875) -> 0 | AQ26: =$AG26*'puncte misiuni-competente'!C25/'puncte misiuni-competente'!C$4/(3744/122*0.875) -> 0 | AR26: =$AG26*'puncte misiuni-competente'!D25/'puncte misiuni-competente'!D$4/(3744/122*0.875) -> 0 | AS26: =$AG26*'puncte misiuni-competente'!E25/'puncte misiuni-competente'!E$4/(3744/122*0.875) -> 0 | AT26: =$AG26*'puncte misiuni-competente'!F25/'puncte misiuni-competente'!F$4/(3744/122*0.875) -> 0 | AU26: =$AG26*'puncte misiuni-competente'!G25/'puncte misiuni-competente'!G$4/(3744/122*0.875) -> 0 | AV26: =$AG26*'puncte misiuni-competente'!H25/'puncte misiuni-competente'!H$4/(3744/122*0.875) -> 0
A28: 2.1.5. Bugetare costuri de investitie | B28: 00:00:00 | C28: 00:00:00 | D28: 00:00:00 | E28: 00:00:00 | F28: 00:00:00 | G28: 00:00:00 | H28: 00:00:00 | I28: 00:00:00 | J28: 00:00:00 | K28: 00:00:00 | L28: 00:00:00 | M28: 00:00:00 | N28: 00:00:00 | O28: 00:00:00 | P28: 00:00:00 | Q28: 00:00:00 | R28: 00:00:00 | S28: 00:00:00 | T28: 00:00:00 | U28: 00:00:00 | V28: 00:00:00 | W28: 00:00:00 | X28: 00:00:00 | Y28: 00:00:00 | Z28: 00:00:00 | AA28: 00:00:00 | AB28: 00:00:00 | AC28: 00:00:00 | AD28: 00:00:00 | AE28: 00:00:00 | AF28: 00:00:00 | AG28: =SUM(B28:AF28) -> 0 | AH28: =AG28/SUM($AG$6:$AG$137) ->  | AP28: =$AG28*'puncte misiuni-competente'!B27/'puncte misiuni-competente'!B$4/(3744/122*0.875) -> 0 | AQ28: =$AG28*'puncte misiuni-competente'!C27/'puncte misiuni-competente'!C$4/(3744/122*0.875) -> 0 | AR28: =$AG28*'puncte misiuni-competente'!D27/'puncte misiuni-competente'!D$4/(3744/122*0.875) -> 0 | AS28: =$AG28*'puncte misiuni-competente'!E27/'puncte misiuni-competente'!E$4/(3744/122*0.875) -> 0 | AT28: =$AG28*'puncte misiuni-competente'!F27/'puncte misiuni-competente'!F$4/(3744/122*0.875) -> 0 | AU28: =$AG28*'puncte misiuni-competente'!G27/'puncte misiuni-competente'!G$4/(3744/122*0.875) -> 0 | AV28: =$AG28*'puncte misiuni-competente'!H27/'puncte misiuni-competente'!H$4/(3744/122*0.875) -> 0
A30: 2.1.6. Planificarea desfasurarii investitiei | B30: 00:00:00 | C30: 00:00:00 | D30: 00:00:00 | E30: 00:00:00 | F30: 00:00:00 | G30: 00:00:00 | H30: 00:00:00 | I30: 00:00:00 | J30: 00:00:00 | K30: 00:00:00 | L30: 00:00:00 | M30: 00:00:00 | N30: 00:00:00 | O30: 00:00:00 | P30: 00:00:00 | Q30: 00:00:00 | R30: 00:00:00 | S30: 00:00:00 | T30: 00:00:00 | U30: 00:00:00 | V30: 00:00:00 | W30: 00:00:00 | X30: 00:00:00 | Y30: 00:00:00 | Z30: 00:00:00 | AA30: 00:00:00 | AB30: 00:00:00 | AC30: 00:00:00 | AD30: 00:00:00 | AE30: 00:00:00 | AF30: 00:00:00 | AG30: =SUM(B30:AF30) -> 0 | AH30: =AG30/SUM($AG$6:$AG$137) ->  | AP30: =$AG30*'puncte misiuni-competente'!B29/'puncte misiuni-competente'!B$4/(3744/122*0.875) -> 0 | AQ30: =$AG30*'puncte misiuni-competente'!C29/'puncte misiuni-competente'!C$4/(3744/122*0.875) -> 0 | AR30: =$AG30*'puncte misiuni-competente'!D29/'puncte misiuni-competente'!D$4/(3744/122*0.875) -> 0 | AS30: =$AG30*'puncte misiuni-competente'!E29/'puncte misiuni-competente'!E$4/(3744/122*0.875) -> 0 | AT30: =$AG30*'puncte misiuni-competente'!F29/'puncte misiuni-competente'!F$4/(3744/122*0.875) -> 0 | AU30: =$AG30*'puncte misiuni-competente'!G29/'puncte misiuni-competente'!G$4/(3744/122*0.875) -> 0 | AV30: =$AG30*'puncte misiuni-competente'!H29/'puncte misiuni-competente'!H$4/(3744/122*0.875) -> 0
A32: 2.1.7. Releveu | B32: 00:00:00 | C32: 00:00:00 | D32: 00:00:00 | E32: 00:00:00 | F32: 00:00:00 | G32: 00:00:00 | H32: 00:00:00 | I32: 00:00:00 | J32: 00:00:00 | K32: 00:00:00 | L32: 00:00:00 | M32: 00:00:00 | N32: 00:00:00 | O32: 00:00:00 | P32: 00:00:00 | Q32: 00:00:00 | R32: 00:00:00 | S32: 00:00:00 | T32: 00:00:00 | U32: 00:00:00 | V32: 00:00:00 | W32: 00:00:00 | X32: 00:00:00 | Y32: 00:00:00 | Z32: 00:00:00 | AA32: 00:00:00 | AB32: 00:00:00 | AC32: 00:00:00 | AD32: 00:00:00 | AE32: 00:00:00 | AF32: 00:00:00 | AG32: =SUM(B32:AF32) -> 0 | AH32: =AG32/SUM($AG$6:$AG$137) ->  | AP32: =$AG32*'puncte misiuni-competente'!B31/'puncte misiuni-competente'!B$4/(3744/122*0.875) -> 0 | AQ32: =$AG32*'puncte misiuni-competente'!C31/'puncte misiuni-competente'!C$4/(3744/122*0.875) -> 0 | AR32: =$AG32*'puncte misiuni-competente'!D31/'puncte misiuni-competente'!D$4/(3744/122*0.875) -> 0 | AS32: =$AG32*'puncte misiuni-competente'!E31/'puncte misiuni-competente'!E$4/(3744/122*0.875) -> 0 | AT32: =$AG32*'puncte misiuni-competente'!F31/'puncte misiuni-competente'!F$4/(3744/122*0.875) -> 0 | AU32: =$AG32*'puncte misiuni-competente'!G31/'puncte misiuni-competente'!G$4/(3744/122*0.875) -> 0 | AV32: =$AG32*'puncte misiuni-competente'!H31/'puncte misiuni-competente'!H$4/(3744/122*0.875) -> 0
A34: 2.2.1. Studiu de ilustrare comparativ | B34: 00:00:00 | C34: 00:00:00 | D34: 00:00:00 | E34: 00:00:00 | F34: 00:00:00 | G34: 00:00:00 | H34: 00:00:00 | I34: 00:00:00 | J34: 00:00:00 | K34: 00:00:00 | L34: 00:00:00 | M34: 00:00:00 | N34: 00:00:00 | O34: 00:00:00 | P34: 00:00:00 | Q34: 00:00:00 | R34: 00:00:00 | S34: 00:00:00 | T34: 00:00:00 | U34: 00:00:00 | V34: 00:00:00 | W34: 00:00:00 | X34: 00:00:00 | Y34: 00:00:00 | Z34: 00:00:00 | AA34: 00:00:00 | AB34: 00:00:00 | AC34: 00:00:00 | AD34: 00:00:00 | AE34: 00:00:00 | AF34: 00:00:00 | AG34: =SUM(B34:AF34) -> 0 | AH34: =AG34/SUM($AG$6:$AG$137) ->  | AP34: =$AG34*'puncte misiuni-competente'!B33/'puncte misiuni-competente'!B$4/(3744/122*0.875) -> 0 | AQ34: =$AG34*'puncte misiuni-competente'!C33/'puncte misiuni-competente'!C$4/(3744/122*0.875) -> 0 | AR34: =$AG34*'puncte misiuni-competente'!D33/'puncte misiuni-competente'!D$4/(3744/122*0.875) -> 0 | AS34: =$AG34*'puncte misiuni-competente'!E33/'puncte misiuni-competente'!E$4/(3744/122*0.875) -> 0 | AT34: =$AG34*'puncte misiuni-competente'!F33/'puncte misiuni-competente'!F$4/(3744/122*0.875) -> 0 | AU34: =$AG34*'puncte misiuni-competente'!G33/'puncte misiuni-competente'!G$4/(3744/122*0.875) -> 0 | AV34: =$AG34*'puncte misiuni-competente'!H33/'puncte misiuni-competente'!H$4/(3744/122*0.875) -> 0
A36: 2.2.2. Solicitarea, urmarirea stadiului de elaborare si ridicarea certificatului de urbanism si a avizelor | B36: 00:00:00 | C36: 00:00:00 | D36: 00:00:00 | E36: 00:00:00 | F36: 00:00:00 | G36: 00:00:00 | H36: 00:00:00 | I36: 00:00:00 | J36: 00:00:00 | K36: 00:00:00 | L36: 00:00:00 | M36: 00:00:00 | N36: 00:00:00 | O36: 00:00:00 | P36: 00:00:00 | Q36: 00:00:00 | R36: 00:00:00 | S36: 00:00:00 | T36: 00:00:00 | U36: 00:00:00 | V36: 00:00:00 | W36: 00:00:00 | X36: 00:00:00 | Y36: 00:00:00 | Z36: 00:00:00 | AA36: 00:00:00 | AB36: 00:00:00 | AC36: 00:00:00 | AD36: 00:00:00 | AE36: 00:00:00 | AF36: 00:00:00 | AG36: =SUM(B36:AF36) -> 0 | AH36: =AG36/SUM($AG$6:$AG$137) ->  | AP36: =$AG36*'puncte misiuni-competente'!B35/'puncte misiuni-competente'!B$4/(3744/122*0.875) -> 0 | AQ36: =$AG36*'puncte misiuni-competente'!C35/'puncte misiuni-competente'!C$4/(3744/122*0.875) -> 0 | AR36: =$AG36*'puncte misiuni-competente'!D35/'puncte misiuni-competente'!D$4/(3744/122*0.875) -> 0 | AS36: =$AG36*'puncte misiuni-competente'!E35/'puncte misiuni-competente'!E$4/(3744/122*0.875) -> 0 | AT36: =$AG36*'puncte misiuni-competente'!F35/'puncte misiuni-competente'!F$4/(3744/122*0.875) -> 0 | AU36: =$AG36*'puncte misiuni-competente'!G35/'puncte misiuni-competente'!G$4/(3744/122*0.875) -> 0 | AV36: =$AG36*'puncte misiuni-competente'!H35/'puncte misiuni-competente'!H$4/(3744/122*0.875) -> 0
A38: 2.2.3. Bugetare costuri de operare | B38: 00:00:00 | C38: 00:00:00 | D38: 00:00:00 | E38: 00:00:00 | F38: 00:00:00 | G38: 00:00:00 | H38: 00:00:00 | I38: 00:00:00 | J38: 00:00:00 | K38: 00:00:00 | L38: 00:00:00 | M38: 00:00:00 | N38: 00:00:00 | O38: 00:00:00 | P38: 00:00:00 | Q38: 00:00:00 | R38: 00:00:00 | S38: 00:00:00 | T38: 00:00:00 | U38: 00:00:00 | V38: 00:00:00 | W38: 00:00:00 | X38: 00:00:00 | Y38: 00:00:00 | Z38: 00:00:00 | AA38: 00:00:00 | AB38: 00:00:00 | AC38: 00:00:00 | AD38: 00:00:00 | AE38: 00:00:00 | AF38: 00:00:00 | AG38: =SUM(B38:AF38) -> 0 | AH38: =AG38/SUM($AG$6:$AG$137) ->  | AP38: =$AG38*'puncte misiuni-competente'!B37/'puncte misiuni-competente'!B$4/(3744/122*0.875) -> 0 | AQ38: =$AG38*'puncte misiuni-competente'!C37/'puncte misiuni-competente'!C$4/(3744/122*0.875) -> 0 | AR38: =$AG38*'puncte misiuni-competente'!D37/'puncte misiuni-competente'!D$4/(3744/122*0.875) -> 0 | AS38: =$AG38*'puncte misiuni-competente'!E37/'puncte misiuni-competente'!E$4/(3744/122*0.875) -> 0 | AT38: =$AG38*'puncte misiuni-competente'!F37/'puncte misiuni-competente'!F$4/(3744/122*0.875) -> 0 | AU38: =$AG38*'puncte misiuni-competente'!G37/'puncte misiuni-competente'!G$4/(3744/122*0.875) -> 0 | AV38: =$AG38*'puncte misiuni-competente'!H37/'puncte misiuni-competente'!H$4/(3744/122*0.875) -> 0
A40: 2.2.4. Consultanta privind modalitatea de modificare a regimului tehnic si economic al imobilului | B40: 00:00:00 | C40: 00:00:00 | D40: 00:00:00 | E40: 00:00:00 | F40: 00:00:00 | G40: 00:00:00 | H40: 00:00:00 | I40: 00:00:00 | J40: 00:00:00 | K40: 00:00:00 | L40: 00:00:00 | M40: 00:00:00 | N40: 00:00:00 | O40: 00:00:00 | P40: 00:00:00 | Q40: 00:00:00 | R40: 00:00:00 | S40: 00:00:00 | T40: 00:00:00 | U40: 00:00:00 | V40: 00:00:00 | W40: 00:00:00 | X40: 00:00:00 | Y40: 00:00:00 | Z40: 00:00:00 | AA40: 00:00:00 | AB40: 00:00:00 | AC40: 00:00:00 | AD40: 00:00:00 | AE40: 00:00:00 | AF40: 00:00:00 | AG40: =SUM(B40:AF40) -> 0 | AH40: =AG40/SUM($AG$6:$AG$137) ->  | AP40: =$AG40*'puncte misiuni-competente'!B39/'puncte misiuni-competente'!B$4/(3744/122*0.875) -> 0 | AQ40: =$AG40*'puncte misiuni-competente'!C39/'puncte misiuni-competente'!C$4/(3744/122*0.875) -> 0 | AR40: =$AG40*'puncte misiuni-competente'!D39/'puncte misiuni-competente'!D$4/(3744/122*0.875) -> 0 | AS40: =$AG40*'puncte misiuni-competente'!E39/'puncte misiuni-competente'!E$4/(3744/122*0.875) -> 0 | AT40: =$AG40*'puncte misiuni-competente'!F39/'puncte misiuni-competente'!F$4/(3744/122*0.875) -> 0 | AU40: =$AG40*'puncte misiuni-competente'!G39/'puncte misiuni-competente'!G$4/(3744/122*0.875) -> 0 | AV40: =$AG40*'puncte misiuni-competente'!H39/'puncte misiuni-competente'!H$4/(3744/122*0.875) -> 0
A42: 3.1.1. Concept general si de arhitectura | B42: 00:00:00 | C42: 00:00:00 | D42: 00:00:00 | E42: 00:00:00 | F42: 00:00:00 | G42: 00:00:00 | H42: 00:00:00 | I42: 00:00:00 | J42: 00:00:00 | K42: 00:00:00 | L42: 00:00:00 | M42: 00:00:00 | N42: 00:00:00 | O42: 00:00:00 | P42: 00:00:00 | Q42: 00:00:00 | R42: 00:00:00 | S42: 00:00:00 | T42: 00:00:00 | U42: 00:00:00 | V42: 00:00:00 | W42: 00:00:00 | X42: 00:00:00 | Y42: 00:00:00 | Z42: 00:00:00 | AA42: 00:00:00 | AB42: 00:00:00 | AC42: 00:00:00 | AD42: 00:00:00 | AE42: 00:00:00 | AF42: 00:00:00 | AG42: =SUM(B42:AF42) -> 0 | AH42: =AG42/SUM($AG$6:$AG$137) ->  | AP42: =$AG42*'puncte misiuni-competente'!B41/'puncte misiuni-competente'!B$4/(3744/122*0.875) -> 0 | AQ42: =$AG42*'puncte misiuni-competente'!C41/'puncte misiuni-competente'!C$4/(3744/122*0.875) -> 0 | AR42: =$AG42*'puncte misiuni-competente'!D41/'puncte misiuni-competente'!D$4/(3744/122*0.875) -> 0 | AS42: =$AG42*'puncte misiuni-competente'!E41/'puncte misiuni-competente'!E$4/(3744/122*0.875) -> 0 | AT42: =$AG42*'puncte misiuni-competente'!F41/'puncte misiuni-competente'!F$4/(3744/122*0.875) -> 0 | AU42: =$AG42*'puncte misiuni-competente'!G41/'puncte misiuni-competente'!G$4/(3744/122*0.875) -> 0 | AV42: =$AG42*'puncte misiuni-competente'!H41/'puncte misiuni-competente'!H$4/(3744/122*0.875) -> 0
A44: 3.1.2. Planificarea desfasurarii investitiei | B44: 00:00:00 | C44: 00:00:00 | D44: 00:00:00 | E44: 00:00:00 | F44: 00:00:00 | G44: 00:00:00 | H44: 00:00:00 | I44: 00:00:00 | J44: 00:00:00 | K44: 00:00:00 | L44: 00:00:00 | M44: 00:00:00 | N44: 00:00:00 | O44: 00:00:00 | P44: 00:00:00 | Q44: 00:00:00 | R44: 00:00:00 | S44: 00:00:00 | T44: 00:00:00 | U44: 00:00:00 | V44: 00:00:00 | W44: 00:00:00 | X44: 00:00:00 | Y44: 00:00:00 | Z44: 00:00:00 | AA44: 00:00:00 | AB44: 00:00:00 | AC44: 00:00:00 | AD44: 00:00:00 | AE44: 00:00:00 | AF44: 00:00:00 | AG44: =SUM(B44:AF44) -> 0 | AH44: =AG44/SUM($AG$6:$AG$137) ->  | AP44: =$AG44*'puncte misiuni-competente'!B43/'puncte misiuni-competente'!B$4/(3744/122*0.875) -> 0 | AQ44: =$AG44*'puncte misiuni-competente'!C43/'puncte misiuni-competente'!C$4/(3744/122*0.875) -> 0 | AR44: =$AG44*'puncte misiuni-competente'!D43/'puncte misiuni-competente'!D$4/(3744/122*0.875) -> 0 | AS44: =$AG44*'puncte misiuni-competente'!E43/'puncte misiuni-competente'!E$4/(3744/122*0.875) -> 0 | AT44: =$AG44*'puncte misiuni-competente'!F43/'puncte misiuni-competente'!F$4/(3744/122*0.875) -> 0 | AU44: =$AG44*'puncte misiuni-competente'!G43/'puncte misiuni-competente'!G$4/(3744/122*0.875) -> 0 | AV44: =$AG44*'puncte misiuni-competente'!H43/'puncte misiuni-competente'!H$4/(3744/122*0.875) -> 0
A46: 3.2.1. Realizare de variante suplimentare | B46: 00:00:00 | C46: 00:00:00 | D46: 00:00:00 | E46: 00:00:00 | F46: 00:00:00 | G46: 00:00:00 | H46: 00:00:00 | I46: 00:00:00 | J46: 00:00:00 | K46: 00:00:00 | L46: 00:00:00 | M46: 00:00:00 | N46: 00:00:00 | O46: 00:00:00 | P46: 00:00:00 | Q46: 00:00:00 | R46: 00:00:00 | S46: 00:00:00 | T46: 00:00:00 | U46: 00:00:00 | V46: 00:00:00 | W46: 00:00:00 | X46: 00:00:00 | Y46: 00:00:00 | Z46: 00:00:00 | AA46: 00:00:00 | AB46: 00:00:00 | AC46: 00:00:00 | AD46: 00:00:00 | AE46: 00:00:00 | AF46: 00:00:00 | AG46: =SUM(B46:AF46) -> 0 | AH46: =AG46/SUM($AG$6:$AG$137) ->  | AP46: =$AG46*'puncte misiuni-competente'!B45/'puncte misiuni-competente'!B$4/(3744/122*0.875) -> 0 | AQ46: =$AG46*'puncte misiuni-competente'!C45/'puncte misiuni-competente'!C$4/(3744/122*0.875) -> 0 | AR46: =$AG46*'puncte misiuni-competente'!D45/'puncte misiuni-competente'!D$4/(3744/122*0.875) -> 0 | AS46: =$AG46*'puncte misiuni-competente'!E45/'puncte misiuni-competente'!E$4/(3744/122*0.875) -> 0 | AT46: =$AG46*'puncte misiuni-competente'!F45/'puncte misiuni-competente'!F$4/(3744/122*0.875) -> 0 | AU46: =$AG46*'puncte misiuni-competente'!G45/'puncte misiuni-competente'!G$4/(3744/122*0.875) -> 0 | AV46: =$AG46*'puncte misiuni-competente'!H45/'puncte misiuni-competente'!H$4/(3744/122*0.875) -> 0
A48: 3.2.2. Verificarea de incadrare in buget | B48: 00:00:00 | C48: 00:00:00 | D48: 00:00:00 | E48: 00:00:00 | F48: 00:00:00 | G48: 00:00:00 | H48: 00:00:00 | I48: 00:00:00 | J48: 00:00:00 | K48: 00:00:00 | L48: 00:00:00 | M48: 00:00:00 | N48: 00:00:00 | O48: 00:00:00 | P48: 00:00:00 | Q48: 00:00:00 | R48: 00:00:00 | S48: 00:00:00 | T48: 00:00:00 | U48: 00:00:00 | V48: 00:00:00 | W48: 00:00:00 | X48: 00:00:00 | Y48: 00:00:00 | Z48: 00:00:00 | AA48: 00:00:00 | AB48: 00:00:00 | AC48: 00:00:00 | AD48: 00:00:00 | AE48: 00:00:00 | AF48: 00:00:00 | AG48: =SUM(B48:AF48) -> 0 | AH48: =AG48/SUM($AG$6:$AG$137) ->  | AP48: =$AG48*'puncte misiuni-competente'!B47/'puncte misiuni-competente'!B$4/(3744/122*0.875) -> 0 | AQ48: =$AG48*'puncte misiuni-competente'!C47/'puncte misiuni-competente'!C$4/(3744/122*0.875) -> 0 | AR48: =$AG48*'puncte misiuni-competente'!D47/'puncte misiuni-competente'!D$4/(3744/122*0.875) -> 0 | AS48: =$AG48*'puncte misiuni-competente'!E47/'puncte misiuni-competente'!E$4/(3744/122*0.875) -> 0 | AT48: =$AG48*'puncte misiuni-competente'!F47/'puncte misiuni-competente'!F$4/(3744/122*0.875) -> 0 | AU48: =$AG48*'puncte misiuni-competente'!G47/'puncte misiuni-competente'!G$4/(3744/122*0.875) -> 0 | AV48: =$AG48*'puncte misiuni-competente'!H47/'puncte misiuni-competente'!H$4/(3744/122*0.875) -> 0
A50: 3.2.3. Estimarea costului investitiei | B50: 00:00:00 | C50: 00:00:00 | D50: 00:00:00 | E50: 00:00:00 | F50: 00:00:00 | G50: 00:00:00 | H50: 00:00:00 | I50: 00:00:00 | J50: 00:00:00 | K50: 00:00:00 | L50: 00:00:00 | M50: 00:00:00 | N50: 00:00:00 | O50: 00:00:00 | P50: 00:00:00 | Q50: 00:00:00 | R50: 00:00:00 | S50: 00:00:00 | T50: 00:00:00 | U50: 00:00:00 | V50: 00:00:00 | W50: 00:00:00 | X50: 00:00:00 | Y50: 00:00:00 | Z50: 00:00:00 | AA50: 00:00:00 | AB50: 00:00:00 | AC50: 00:00:00 | AD50: 00:00:00 | AE50: 00:00:00 | AF50: 00:00:00 | AG50: =SUM(B50:AF50) -> 0 | AH50: =AG50/SUM($AG$6:$AG$137) ->  | AP50: =$AG50*'puncte misiuni-competente'!B49/'puncte misiuni-competente'!B$4/(3744/122*0.875) -> 0 | AQ50: =$AG50*'puncte misiuni-competente'!C49/'puncte misiuni-competente'!C$4/(3744/122*0.875) -> 0 | AR50: =$AG50*'puncte misiuni-competente'!D49/'puncte misiuni-competente'!D$4/(3744/122*0.875) -> 0 | AS50: =$AG50*'puncte misiuni-competente'!E49/'puncte misiuni-competente'!E$4/(3744/122*0.875) -> 0 | AT50: =$AG50*'puncte misiuni-competente'!F49/'puncte misiuni-competente'!F$4/(3744/122*0.875) -> 0 | AU50: =$AG50*'puncte misiuni-competente'!G49/'puncte misiuni-competente'!G$4/(3744/122*0.875) -> 0 | AV50: =$AG50*'puncte misiuni-competente'!H49/'puncte misiuni-competente'!H$4/(3744/122*0.875) -> 0
A52: 3.2.4. Estimarea costului de operare | B52: 00:00:00 | C52: 00:00:00 | D52: 00:00:00 | E52: 00:00:00 | F52: 00:00:00 | G52: 00:00:00 | H52: 00:00:00 | I52: 00:00:00 | J52: 00:00:00 | K52: 00:00:00 | L52: 00:00:00 | M52: 00:00:00 | N52: 00:00:00 | O52: 00:00:00 | P52: 00:00:00 | Q52: 00:00:00 | R52: 00:00:00 | S52: 00:00:00 | T52: 00:00:00 | U52: 00:00:00 | V52: 00:00:00 | W52: 00:00:00 | X52: 00:00:00 | Y52: 00:00:00 | Z52: 00:00:00 | AA52: 00:00:00 | AB52: 00:00:00 | AC52: 00:00:00 | AD52: 00:00:00 | AE52: 00:00:00 | AF52: 00:00:00 | AG52: =SUM(B52:AF52) -> 0 | AH52: =AG52/SUM($AG$6:$AG$137) ->  | AP52: =$AG52*'puncte misiuni-competente'!B51/'puncte misiuni-competente'!B$4/(3744/122*0.875) -> 0 | AQ52: =$AG52*'puncte misiuni-competente'!C51/'puncte misiuni-competente'!C$4/(3744/122*0.875) -> 0 | AR52: =$AG52*'puncte misiuni-competente'!D51/'puncte misiuni-competente'!D$4/(3744/122*0.875) -> 0 | AS52: =$AG52*'puncte misiuni-competente'!E51/'puncte misiuni-competente'!E$4/(3744/122*0.875) -> 0 | AT52: =$AG52*'puncte misiuni-competente'!F51/'puncte misiuni-competente'!F$4/(3744/122*0.875) -> 0 | AU52: =$AG52*'puncte misiuni-competente'!G51/'puncte misiuni-competente'!G$4/(3744/122*0.875) -> 0 | AV52: =$AG52*'puncte misiuni-competente'!H51/'puncte misiuni-competente'!H$4/(3744/122*0.875) -> 0
A54: 3.2.5. Proiectare pentru un impact redus asupra mediului | B54: 00:00:00 | C54: 00:00:00 | D54: 00:00:00 | E54: 00:00:00 | F54: 00:00:00 | G54: 00:00:00 | H54: 00:00:00 | I54: 00:00:00 | J54: 00:00:00 | K54: 00:00:00 | L54: 00:00:00 | M54: 00:00:00 | N54: 00:00:00 | O54: 00:00:00 | P54: 00:00:00 | Q54: 00:00:00 | R54: 00:00:00 | S54: 00:00:00 | T54: 00:00:00 | U54: 00:00:00 | V54: 00:00:00 | W54: 00:00:00 | X54: 00:00:00 | Y54: 00:00:00 | Z54: 00:00:00 | AA54: 00:00:00 | AB54: 00:00:00 | AC54: 00:00:00 | AD54: 00:00:00 | AE54: 00:00:00 | AF54: 00:00:00 | AG54: =SUM(B54:AF54) -> 0 | AH54: =AG54/SUM($AG$6:$AG$137) ->  | AP54: =$AG54*'puncte misiuni-competente'!B53/'puncte misiuni-competente'!B$4/(3744/122*0.875) -> 0 | AQ54: =$AG54*'puncte misiuni-competente'!C53/'puncte misiuni-competente'!C$4/(3744/122*0.875) -> 0 | AR54: =$AG54*'puncte misiuni-competente'!D53/'puncte misiuni-competente'!D$4/(3744/122*0.875) -> 0 | AS54: =$AG54*'puncte misiuni-competente'!E53/'puncte misiuni-competente'!E$4/(3744/122*0.875) -> 0 | AT54: =$AG54*'puncte misiuni-competente'!F53/'puncte misiuni-competente'!F$4/(3744/122*0.875) -> 0 | AU54: =$AG54*'puncte misiuni-competente'!G53/'puncte misiuni-competente'!G$4/(3744/122*0.875) -> 0 | AV54: =$AG54*'puncte misiuni-competente'!H53/'puncte misiuni-competente'!H$4/(3744/122*0.875) -> 0
A56: 4.1.1. Tema detaliata (definitiva) | B56: 00:00:00 | C56: 00:00:00 | D56: 00:00:00 | E56: 00:00:00 | F56: 00:00:00 | G56: 00:00:00 | H56: 00:00:00 | I56: 00:00:00 | J56: 00:00:00 | K56: 00:00:00 | L56: 00:00:00 | M56: 00:00:00 | N56: 00:00:00 | O56: 00:00:00 | P56: 00:00:00 | Q56: 00:00:00 | R56: 00:00:00 | S56: 00:00:00 | T56: 00:00:00 | U56: 00:00:00 | V56: 00:00:00 | W56: 00:00:00 | X56: 00:00:00 | Y56: 00:00:00 | Z56: 00:00:00 | AA56: 00:00:00 | AB56: 00:00:00 | AC56: 00:00:00 | AD56: 00:00:00 | AE56: 00:00:00 | AF56: 00:00:00 | AG56: =SUM(B56:AF56) -> 0 | AH56: =AG56/SUM($AG$6:$AG$137) ->  | AP56: =$AG56*'puncte misiuni-competente'!B55/'puncte misiuni-competente'!B$4/(3744/122*0.875) -> 0 | AQ56: =$AG56*'puncte misiuni-competente'!C55/'puncte misiuni-competente'!C$4/(3744/122*0.875) -> 0 | AR56: =$AG56*'puncte misiuni-competente'!D55/'puncte misiuni-competente'!D$4/(3744/122*0.875) -> 0 | AS56: =$AG56*'puncte misiuni-competente'!E55/'puncte misiuni-competente'!E$4/(3744/122*0.875) -> 0 | AT56: =$AG56*'puncte misiuni-competente'!F55/'puncte misiuni-competente'!F$4/(3744/122*0.875) -> 0 | AU56: =$AG56*'puncte misiuni-competente'!G55/'puncte misiuni-competente'!G$4/(3744/122*0.875) -> 0 | AV56: =$AG56*'puncte misiuni-competente'!H55/'puncte misiuni-competente'!H$4/(3744/122*0.875) -> 0
A58: 4.1.2. Proiectul definitiv prezentat la nivel schematic | B58: 00:00:00 | C58: 00:00:00 | D58: 00:00:00 | E58: 00:00:00 | F58: 00:00:00 | G58: 00:00:00 | H58: 00:00:00 | I58: 00:00:00 | J58: 00:00:00 | K58: 00:00:00 | L58: 00:00:00 | M58: 00:00:00 | N58: 00:00:00 | O58: 00:00:00 | P58: 00:00:00 | Q58: 00:00:00 | R58: 00:00:00 | S58: 00:00:00 | T58: 00:00:00 | U58: 00:00:00 | V58: 00:00:00 | W58: 00:00:00 | X58: 00:00:00 | Y58: 00:00:00 | Z58: 00:00:00 | AA58: 00:00:00 | AB58: 00:00:00 | AC58: 00:00:00 | AD58: 00:00:00 | AE58: 00:00:00 | AF58: 00:00:00 | AG58: =SUM(B58:AF58) -> 0 | AH58: =AG58/SUM($AG$6:$AG$137) ->  | AP58: =$AG58*'puncte misiuni-competente'!B57/'puncte misiuni-competente'!B$4/(3744/122*0.875) -> 0 | AQ58: =$AG58*'puncte misiuni-competente'!C57/'puncte misiuni-competente'!C$4/(3744/122*0.875) -> 0 | AR58: =$AG58*'puncte misiuni-competente'!D57/'puncte misiuni-competente'!D$4/(3744/122*0.875) -> 0 | AS58: =$AG58*'puncte misiuni-competente'!E57/'puncte misiuni-competente'!E$4/(3744/122*0.875) -> 0 | AT58: =$AG58*'puncte misiuni-competente'!F57/'puncte misiuni-competente'!F$4/(3744/122*0.875) -> 0 | AU58: =$AG58*'puncte misiuni-competente'!G57/'puncte misiuni-competente'!G$4/(3744/122*0.875) -> 0 | AV58: =$AG58*'puncte misiuni-competente'!H57/'puncte misiuni-competente'!H$4/(3744/122*0.875) -> 0
A60: 4.1.3. Planificarea desfasurarii investitiei | B60: 00:00:00 | C60: 00:00:00 | D60: 00:00:00 | E60: 00:00:00 | F60: 00:00:00 | G60: 00:00:00 | H60: 00:00:00 | I60: 00:00:00 | J60: 00:00:00 | K60: 00:00:00 | L60: 00:00:00 | M60: 00:00:00 | N60: 00:00:00 | O60: 00:00:00 | P60: 00:00:00 | Q60: 00:00:00 | R60: 00:00:00 | S60: 00:00:00 | T60: 00:00:00 | U60: 00:00:00 | V60: 00:00:00 | W60: 00:00:00 | X60: 00:00:00 | Y60: 00:00:00 | Z60: 00:00:00 | AA60: 00:00:00 | AB60: 00:00:00 | AC60: 00:00:00 | AD60: 00:00:00 | AE60: 00:00:00 | AF60: 00:00:00 | AG60: =SUM(B60:AF60) -> 0 | AH60: =AG60/SUM($AG$6:$AG$137) ->  | AP60: =$AG60*'puncte misiuni-competente'!B59/'puncte misiuni-competente'!B$4/(3744/122*0.875) -> 0 | AQ60: =$AG60*'puncte misiuni-competente'!C59/'puncte misiuni-competente'!C$4/(3744/122*0.875) -> 0 | AR60: =$AG60*'puncte misiuni-competente'!D59/'puncte misiuni-competente'!D$4/(3744/122*0.875) -> 0 | AS60: =$AG60*'puncte misiuni-competente'!E59/'puncte misiuni-competente'!E$4/(3744/122*0.875) -> 0 | AT60: =$AG60*'puncte misiuni-competente'!F59/'puncte misiuni-competente'!F$4/(3744/122*0.875) -> 0 | AU60: =$AG60*'puncte misiuni-competente'!G59/'puncte misiuni-competente'!G$4/(3744/122*0.875) -> 0 | AV60: =$AG60*'puncte misiuni-competente'!H59/'puncte misiuni-competente'!H$4/(3744/122*0.875) -> 0
A62: 4.1.4. Teme pentru realizarea proiectelor de specialitate | B62: 00:00:00 | C62: 00:00:00 | D62: 00:00:00 | E62: 00:00:00 | F62: 00:00:00 | G62: 00:00:00 | H62: 00:00:00 | I62: 00:00:00 | J62: 00:00:00 | K62: 00:00:00 | L62: 00:00:00 | M62: 00:00:00 | N62: 00:00:00 | O62: 00:00:00 | P62: 00:00:00 | Q62: 00:00:00 | R62: 00:00:00 | S62: 00:00:00 | T62: 00:00:00 | U62: 00:00:00 | V62: 00:00:00 | W62: 00:00:00 | X62: 00:00:00 | Y62: 00:00:00 | Z62: 00:00:00 | AA62: 00:00:00 | AB62: 00:00:00 | AC62: 00:00:00 | AD62: 00:00:00 | AE62: 00:00:00 | AF62: 00:00:00 | AG62: =SUM(B62:AF62) -> 0 | AH62: =AG62/SUM($AG$6:$AG$137) ->  | AP62: =$AG62*'puncte misiuni-competente'!B61/'puncte misiuni-competente'!B$4/(3744/122*0.875) -> 0 | AQ62: =$AG62*'puncte misiuni-competente'!C61/'puncte misiuni-competente'!C$4/(3744/122*0.875) -> 0 | AR62: =$AG62*'puncte misiuni-competente'!D61/'puncte misiuni-competente'!D$4/(3744/122*0.875) -> 0 | AS62: =$AG62*'puncte misiuni-competente'!E61/'puncte misiuni-competente'!E$4/(3744/122*0.875) -> 0 | AT62: =$AG62*'puncte misiuni-competente'!F61/'puncte misiuni-competente'!F$4/(3744/122*0.875) -> 0 | AU62: =$AG62*'puncte misiuni-competente'!G61/'puncte misiuni-competente'!G$4/(3744/122*0.875) -> 0 | AV62: =$AG62*'puncte misiuni-competente'!H61/'puncte misiuni-competente'!H$4/(3744/122*0.875) -> 0
A64: 4.1.5. Coordonarea preliminara a proiectului | B64: 00:00:00 | C64: 00:00:00 | D64: 00:00:00 | E64: 00:00:00 | F64: 00:00:00 | G64: 00:00:00 | H64: 00:00:00 | I64: 00:00:00 | J64: 00:00:00 | K64: 00:00:00 | L64: 00:00:00 | M64: 00:00:00 | N64: 00:00:00 | O64: 00:00:00 | P64: 00:00:00 | Q64: 00:00:00 | R64: 00:00:00 | S64: 00:00:00 | T64: 00:00:00 | U64: 00:00:00 | V64: 00:00:00 | W64: 00:00:00 | X64: 00:00:00 | Y64: 00:00:00 | Z64: 00:00:00 | AA64: 00:00:00 | AB64: 00:00:00 | AC64: 00:00:00 | AD64: 00:00:00 | AE64: 00:00:00 | AF64: 00:00:00 | AG64: =SUM(B64:AF64) -> 0 | AH64: =AG64/SUM($AG$6:$AG$137) ->  | AP64: =$AG64*'puncte misiuni-competente'!B63/'puncte misiuni-competente'!B$4/(3744/122*0.875) -> 0 | AQ64: =$AG64*'puncte misiuni-competente'!C63/'puncte misiuni-competente'!C$4/(3744/122*0.875) -> 0 | AR64: =$AG64*'puncte misiuni-competente'!D63/'puncte misiuni-competente'!D$4/(3744/122*0.875) -> 0 | AS64: =$AG64*'puncte misiuni-competente'!E63/'puncte misiuni-competente'!E$4/(3744/122*0.875) -> 0 | AT64: =$AG64*'puncte misiuni-competente'!F63/'puncte misiuni-competente'!F$4/(3744/122*0.875) -> 0 | AU64: =$AG64*'puncte misiuni-competente'!G63/'puncte misiuni-competente'!G$4/(3744/122*0.875) -> 0 | AV64: =$AG64*'puncte misiuni-competente'!H63/'puncte misiuni-competente'!H$4/(3744/122*0.875) -> 0
A66: 4.2.1. Calcularea fezabilitatii investitiei sau DALI | B66: 00:00:00 | C66: 00:00:00 | D66: 00:00:00 | E66: 00:00:00 | F66: 00:00:00 | G66: 00:00:00 | H66: 00:00:00 | I66: 00:00:00 | J66: 00:00:00 | K66: 00:00:00 | L66: 00:00:00 | M66: 00:00:00 | N66: 00:00:00 | O66: 00:00:00 | P66: 00:00:00 | Q66: 00:00:00 | R66: 00:00:00 | S66: 00:00:00 | T66: 00:00:00 | U66: 00:00:00 | V66: 00:00:00 | W66: 00:00:00 | X66: 00:00:00 | Y66: 00:00:00 | Z66: 00:00:00 | AA66: 00:00:00 | AB66: 00:00:00 | AC66: 00:00:00 | AD66: 00:00:00 | AE66: 00:00:00 | AF66: 00:00:00 | AG66: =SUM(B66:AF66) -> 0 | AH66: =AG66/SUM($AG$6:$AG$137) ->  | AP66: =$AG66*'puncte misiuni-competente'!B65/'puncte misiuni-competente'!B$4/(3744/122*0.875) -> 0 | AQ66: =$AG66*'puncte misiuni-competente'!C65/'puncte misiuni-competente'!C$4/(3744/122*0.875) -> 0 | AR66: =$AG66*'puncte misiuni-competente'!D65/'puncte misiuni-competente'!D$4/(3744/122*0.875) -> 0 | AS66: =$AG66*'puncte misiuni-competente'!E65/'puncte misiuni-competente'!E$4/(3744/122*0.875) -> 0 | AT66: =$AG66*'puncte misiuni-competente'!F65/'puncte misiuni-competente'!F$4/(3744/122*0.875) -> 0 | AU66: =$AG66*'puncte misiuni-competente'!G65/'puncte misiuni-competente'!G$4/(3744/122*0.875) -> 0 | AV66: =$AG66*'puncte misiuni-competente'!H65/'puncte misiuni-competente'!H$4/(3744/122*0.875) -> 0
A68: 4.2.2. Solicitarea, urmarirea stadiului de elaborare si ridicarea de avize si acorduri | B68: 00:00:00 | C68: 00:00:00 | D68: 00:00:00 | E68: 00:00:00 | F68: 00:00:00 | G68: 00:00:00 | H68: 00:00:00 | I68: 00:00:00 | J68: 00:00:00 | K68: 00:00:00 | L68: 00:00:00 | M68: 00:00:00 | N68: 00:00:00 | O68: 00:00:00 | P68: 00:00:00 | Q68: 00:00:00 | R68: 00:00:00 | S68: 00:00:00 | T68: 00:00:00 | U68: 00:00:00 | V68: 00:00:00 | W68: 00:00:00 | X68: 00:00:00 | Y68: 00:00:00 | Z68: 00:00:00 | AA68: 00:00:00 | AB68: 00:00:00 | AC68: 00:00:00 | AD68: 00:00:00 | AE68: 00:00:00 | AF68: 00:00:00 | AG68: =SUM(B68:AF68) -> 0 | AH68: =AG68/SUM($AG$6:$AG$137) ->  | AP68: =$AG68*'puncte misiuni-competente'!B67/'puncte misiuni-competente'!B$4/(3744/122*0.875) -> 0 | AQ68: =$AG68*'puncte misiuni-competente'!C67/'puncte misiuni-competente'!C$4/(3744/122*0.875) -> 0 | AR68: =$AG68*'puncte misiuni-competente'!D67/'puncte misiuni-competente'!D$4/(3744/122*0.875) -> 0 | AS68: =$AG68*'puncte misiuni-competente'!E67/'puncte misiuni-competente'!E$4/(3744/122*0.875) -> 0 | AT68: =$AG68*'puncte misiuni-competente'!F67/'puncte misiuni-competente'!F$4/(3744/122*0.875) -> 0 | AU68: =$AG68*'puncte misiuni-competente'!G67/'puncte misiuni-competente'!G$4/(3744/122*0.875) -> 0 | AV68: =$AG68*'puncte misiuni-competente'!H67/'puncte misiuni-competente'!H$4/(3744/122*0.875) -> 0
A70: 4.2.3. Verificare incadrarii in buget | B70: 00:00:00 | C70: 00:00:00 | D70: 00:00:00 | E70: 00:00:00 | F70: 00:00:00 | G70: 00:00:00 | H70: 00:00:00 | I70: 00:00:00 | J70: 00:00:00 | K70: 00:00:00 | L70: 00:00:00 | M70: 00:00:00 | N70: 00:00:00 | O70: 00:00:00 | P70: 00:00:00 | Q70: 00:00:00 | R70: 00:00:00 | S70: 00:00:00 | T70: 00:00:00 | U70: 00:00:00 | V70: 00:00:00 | W70: 00:00:00 | X70: 00:00:00 | Y70: 00:00:00 | Z70: 00:00:00 | AA70: 00:00:00 | AB70: 00:00:00 | AC70: 00:00:00 | AD70: 00:00:00 | AE70: 00:00:00 | AF70: 00:00:00 | AG70: =SUM(B70:AF70) -> 0 | AH70: =AG70/SUM($AG$6:$AG$137) ->  | AP70: =$AG70*'puncte misiuni-competente'!B69/'puncte misiuni-competente'!B$4/(3744/122*0.875) -> 0 | AQ70: =$AG70*'puncte misiuni-competente'!C69/'puncte misiuni-competente'!C$4/(3744/122*0.875) -> 0 | AR70: =$AG70*'puncte misiuni-competente'!D69/'puncte misiuni-competente'!D$4/(3744/122*0.875) -> 0 | AS70: =$AG70*'puncte misiuni-competente'!E69/'puncte misiuni-competente'!E$4/(3744/122*0.875) -> 0 | AT70: =$AG70*'puncte misiuni-competente'!F69/'puncte misiuni-competente'!F$4/(3744/122*0.875) -> 0 | AU70: =$AG70*'puncte misiuni-competente'!G69/'puncte misiuni-competente'!G$4/(3744/122*0.875) -> 0 | AV70: =$AG70*'puncte misiuni-competente'!H69/'puncte misiuni-competente'!H$4/(3744/122*0.875) -> 0
A72: 4.2.4. Estimarea costului investitiei | B72: 00:00:00 | C72: 00:00:00 | D72: 00:00:00 | E72: 00:00:00 | F72: 00:00:00 | G72: 00:00:00 | H72: 00:00:00 | I72: 00:00:00 | J72: 00:00:00 | K72: 00:00:00 | L72: 00:00:00 | M72: 00:00:00 | N72: 00:00:00 | O72: 00:00:00 | P72: 00:00:00 | Q72: 00:00:00 | R72: 00:00:00 | S72: 00:00:00 | T72: 00:00:00 | U72: 00:00:00 | V72: 00:00:00 | W72: 00:00:00 | X72: 00:00:00 | Y72: 00:00:00 | Z72: 00:00:00 | AA72: 00:00:00 | AB72: 00:00:00 | AC72: 00:00:00 | AD72: 00:00:00 | AE72: 00:00:00 | AF72: 00:00:00 | AG72: =SUM(B72:AF72) -> 0 | AH72: =AG72/SUM($AG$6:$AG$137) ->  | AP72: =$AG72*'puncte misiuni-competente'!B71/'puncte misiuni-competente'!B$4/(3744/122*0.875) -> 0 | AQ72: =$AG72*'puncte misiuni-competente'!C71/'puncte misiuni-competente'!C$4/(3744/122*0.875) -> 0 | AR72: =$AG72*'puncte misiuni-competente'!D71/'puncte misiuni-competente'!D$4/(3744/122*0.875) -> 0 | AS72: =$AG72*'puncte misiuni-competente'!E71/'puncte misiuni-competente'!E$4/(3744/122*0.875) -> 0 | AT72: =$AG72*'puncte misiuni-competente'!F71/'puncte misiuni-competente'!F$4/(3744/122*0.875) -> 0 | AU72: =$AG72*'puncte misiuni-competente'!G71/'puncte misiuni-competente'!G$4/(3744/122*0.875) -> 0 | AV72: =$AG72*'puncte misiuni-competente'!H71/'puncte misiuni-competente'!H$4/(3744/122*0.875) -> 0
A74: 4.2.5. Indicarea in proiect a producatorilor, produselor si furnizorilor | B74: 00:00:00 | C74: 00:00:00 | D74: 00:00:00 | E74: 00:00:00 | F74: 00:00:00 | G74: 00:00:00 | H74: 00:00:00 | I74: 00:00:00 | J74: 00:00:00 | K74: 00:00:00 | L74: 00:00:00 | M74: 00:00:00 | N74: 00:00:00 | O74: 00:00:00 | P74: 00:00:00 | Q74: 00:00:00 | R74: 00:00:00 | S74: 00:00:00 | T74: 00:00:00 | U74: 00:00:00 | V74: 00:00:00 | W74: 00:00:00 | X74: 00:00:00 | Y74: 00:00:00 | Z74: 00:00:00 | AA74: 00:00:00 | AB74: 00:00:00 | AC74: 00:00:00 | AD74: 00:00:00 | AE74: 00:00:00 | AF74: 00:00:00 | AG74: =SUM(B74:AF74) -> 0 | AH74: =AG74/SUM($AG$6:$AG$137) ->  | AP74: =$AG74*'puncte misiuni-competente'!B73/'puncte misiuni-competente'!B$4/(3744/122*0.875) -> 0 | AQ74: =$AG74*'puncte misiuni-competente'!C73/'puncte misiuni-competente'!C$4/(3744/122*0.875) -> 0 | AR74: =$AG74*'puncte misiuni-competente'!D73/'puncte misiuni-competente'!D$4/(3744/122*0.875) -> 0 | AS74: =$AG74*'puncte misiuni-competente'!E73/'puncte misiuni-competente'!E$4/(3744/122*0.875) -> 0 | AT74: =$AG74*'puncte misiuni-competente'!F73/'puncte misiuni-competente'!F$4/(3744/122*0.875) -> 0 | AU74: =$AG74*'puncte misiuni-competente'!G73/'puncte misiuni-competente'!G$4/(3744/122*0.875) -> 0 | AV74: =$AG74*'puncte misiuni-competente'!H73/'puncte misiuni-competente'!H$4/(3744/122*0.875) -> 0
A76: 5.1.1. Proiectare pentru autorizare | B76: 00:00:00 | C76: 00:00:00 | D76: 00:00:00 | E76: 00:00:00 | F76: 00:00:00 | G76: 00:00:00 | H76: 00:00:00 | I76: 00:00:00 | J76: 00:00:00 | K76: 00:00:00 | L76: 00:00:00 | M76: 00:00:00 | N76: 00:00:00 | O76: 00:00:00 | P76: 00:00:00 | Q76: 00:00:00 | R76: 00:00:00 | S76: 00:00:00 | T76: 00:00:00 | U76: 00:00:00 | V76: 00:00:00 | W76: 00:00:00 | X76: 00:00:00 | Y76: 00:00:00 | Z76: 00:00:00 | AA76: 00:00:00 | AB76: 00:00:00 | AC76: 00:00:00 | AD76: 00:00:00 | AE76: 00:00:00 | AF76: 00:00:00 | AG76: =SUM(B76:AF76) -> 0 | AH76: =AG76/SUM($AG$6:$AG$137) ->  | AP76: =$AG76*'puncte misiuni-competente'!B75/'puncte misiuni-competente'!B$4/(3744/122*0.875) -> 0 | AQ76: =$AG76*'puncte misiuni-competente'!C75/'puncte misiuni-competente'!C$4/(3744/122*0.875) -> 0 | AR76: =$AG76*'puncte misiuni-competente'!D75/'puncte misiuni-competente'!D$4/(3744/122*0.875) -> 0 | AS76: =$AG76*'puncte misiuni-competente'!E75/'puncte misiuni-competente'!E$4/(3744/122*0.875) -> 0 | AT76: =$AG76*'puncte misiuni-competente'!F75/'puncte misiuni-competente'!F$4/(3744/122*0.875) -> 0 | AU76: =$AG76*'puncte misiuni-competente'!G75/'puncte misiuni-competente'!G$4/(3744/122*0.875) -> 0 | AV76: =$AG76*'puncte misiuni-competente'!H75/'puncte misiuni-competente'!H$4/(3744/122*0.875) -> 0
A78: 5.1.2. Estimarea costurilor de constructie | B78: 00:00:00 | C78: 00:00:00 | D78: 00:00:00 | E78: 00:00:00 | F78: 00:00:00 | G78: 00:00:00 | H78: 00:00:00 | I78: 00:00:00 | J78: 00:00:00 | K78: 00:00:00 | L78: 00:00:00 | M78: 00:00:00 | N78: 00:00:00 | O78: 00:00:00 | P78: 00:00:00 | Q78: 00:00:00 | R78: 00:00:00 | S78: 00:00:00 | T78: 00:00:00 | U78: 00:00:00 | V78: 00:00:00 | W78: 00:00:00 | X78: 00:00:00 | Y78: 00:00:00 | Z78: 00:00:00 | AA78: 00:00:00 | AB78: 00:00:00 | AC78: 00:00:00 | AD78: 00:00:00 | AE78: 00:00:00 | AF78: 00:00:00 | AG78: =SUM(B78:AF78) -> 0 | AH78: =AG78/SUM($AG$6:$AG$137) ->  | AP78: =$AG78*'puncte misiuni-competente'!B77/'puncte misiuni-competente'!B$4/(3744/122*0.875) -> 0 | AQ78: =$AG78*'puncte misiuni-competente'!C77/'puncte misiuni-competente'!C$4/(3744/122*0.875) -> 0 | AR78: =$AG78*'puncte misiuni-competente'!D77/'puncte misiuni-competente'!D$4/(3744/122*0.875) -> 0 | AS78: =$AG78*'puncte misiuni-competente'!E77/'puncte misiuni-competente'!E$4/(3744/122*0.875) -> 0 | AT78: =$AG78*'puncte misiuni-competente'!F77/'puncte misiuni-competente'!F$4/(3744/122*0.875) -> 0 | AU78: =$AG78*'puncte misiuni-competente'!G77/'puncte misiuni-competente'!G$4/(3744/122*0.875) -> 0 | AV78: =$AG78*'puncte misiuni-competente'!H77/'puncte misiuni-competente'!H$4/(3744/122*0.875) -> 0
A80: 5.2.1. Depunerea documentatiilor, urmarirea stadiului de elaborare si ridicarea avizelor si a autorizatiei de construire | B80: 00:00:00 | C80: 00:00:00 | D80: 00:00:00 | E80: 00:00:00 | F80: 00:00:00 | G80: 00:00:00 | H80: 00:00:00 | I80: 00:00:00 | J80: 00:00:00 | K80: 00:00:00 | L80: 00:00:00 | M80: 00:00:00 | N80: 00:00:00 | O80: 00:00:00 | P80: 00:00:00 | Q80: 00:00:00 | R80: 00:00:00 | S80: 00:00:00 | T80: 00:00:00 | U80: 00:00:00 | V80: 00:00:00 | W80: 00:00:00 | X80: 00:00:00 | Y80: 00:00:00 | Z80: 00:00:00 | AA80: 00:00:00 | AB80: 00:00:00 | AC80: 00:00:00 | AD80: 00:00:00 | AE80: 00:00:00 | AF80: 00:00:00 | AG80: =SUM(B80:AF80) -> 0 | AH80: =AG80/SUM($AG$6:$AG$137) ->  | AP80: =$AG80*'puncte misiuni-competente'!B79/'puncte misiuni-competente'!B$4/(3744/122*0.875) -> 0 | AQ80: =$AG80*'puncte misiuni-competente'!C79/'puncte misiuni-competente'!C$4/(3744/122*0.875) -> 0 | AR80: =$AG80*'puncte misiuni-competente'!D79/'puncte misiuni-competente'!D$4/(3744/122*0.875) -> 0 | AS80: =$AG80*'puncte misiuni-competente'!E79/'puncte misiuni-competente'!E$4/(3744/122*0.875) -> 0 | AT80: =$AG80*'puncte misiuni-competente'!F79/'puncte misiuni-competente'!F$4/(3744/122*0.875) -> 0 | AU80: =$AG80*'puncte misiuni-competente'!G79/'puncte misiuni-competente'!G$4/(3744/122*0.875) -> 0 | AV80: =$AG80*'puncte misiuni-competente'!H79/'puncte misiuni-competente'!H$4/(3744/122*0.875) -> 0
A82: 6.1.1. Proiectare tehnica | B82: 00:00:00 | C82: 00:00:00 | D82: 00:00:00 | E82: 00:00:00 | F82: 00:00:00 | G82: 00:00:00 | H82: 00:00:00 | I82: 00:00:00 | J82: 00:00:00 | K82: 00:00:00 | L82: 00:00:00 | M82: 00:00:00 | N82: 00:00:00 | O82: 00:00:00 | P82: 00:00:00 | Q82: 00:00:00 | R82: 00:00:00 | S82: 00:00:00 | T82: 00:00:00 | U82: 00:00:00 | V82: 00:00:00 | W82: 00:00:00 | X82: 00:00:00 | Y82: 00:00:00 | Z82: 00:00:00 | AA82: 00:00:00 | AB82: 00:00:00 | AC82: 00:00:00 | AD82: 00:00:00 | AE82: 00:00:00 | AF82: 00:00:00 | AG82: =SUM(B82:AF82) -> 0 | AH82: =AG82/SUM($AG$6:$AG$137) ->  | AP82: =$AG82*'puncte misiuni-competente'!B81/'puncte misiuni-competente'!B$4/(3744/122*0.875) -> 0 | AQ82: =$AG82*'puncte misiuni-competente'!C81/'puncte misiuni-competente'!C$4/(3744/122*0.875) -> 0 | AR82: =$AG82*'puncte misiuni-competente'!D81/'puncte misiuni-competente'!D$4/(3744/122*0.875) -> 0 | AS82: =$AG82*'puncte misiuni-competente'!E81/'puncte misiuni-competente'!E$4/(3744/122*0.875) -> 0 | AT82: =$AG82*'puncte misiuni-competente'!F81/'puncte misiuni-competente'!F$4/(3744/122*0.875) -> 0 | AU82: =$AG82*'puncte misiuni-competente'!G81/'puncte misiuni-competente'!G$4/(3744/122*0.875) -> 0 | AV82: =$AG82*'puncte misiuni-competente'!H81/'puncte misiuni-competente'!H$4/(3744/122*0.875) -> 0
A84: 6.1.2. Coordonarea tehnica a proiectelor de specialitate | B84: 00:00:00 | C84: 00:00:00 | D84: 00:00:00 | E84: 00:00:00 | F84: 00:00:00 | G84: 00:00:00 | H84: 00:00:00 | I84: 00:00:00 | J84: 00:00:00 | K84: 00:00:00 | L84: 00:00:00 | M84: 00:00:00 | N84: 00:00:00 | O84: 00:00:00 | P84: 00:00:00 | Q84: 00:00:00 | R84: 00:00:00 | S84: 00:00:00 | T84: 00:00:00 | U84: 00:00:00 | V84: 00:00:00 | W84: 00:00:00 | X84: 00:00:00 | Y84: 00:00:00 | Z84: 00:00:00 | AA84: 00:00:00 | AB84: 00:00:00 | AC84: 00:00:00 | AD84: 00:00:00 | AE84: 00:00:00 | AF84: 00:00:00 | AG84: =SUM(B84:AF84) -> 0 | AH84: =AG84/SUM($AG$6:$AG$137) ->  | AP84: =$AG84*'puncte misiuni-competente'!B83/'puncte misiuni-competente'!B$4/(3744/122*0.875) -> 0 | AQ84: =$AG84*'puncte misiuni-competente'!C83/'puncte misiuni-competente'!C$4/(3744/122*0.875) -> 0 | AR84: =$AG84*'puncte misiuni-competente'!D83/'puncte misiuni-competente'!D$4/(3744/122*0.875) -> 0 | AS84: =$AG84*'puncte misiuni-competente'!E83/'puncte misiuni-competente'!E$4/(3744/122*0.875) -> 0 | AT84: =$AG84*'puncte misiuni-competente'!F83/'puncte misiuni-competente'!F$4/(3744/122*0.875) -> 0 | AU84: =$AG84*'puncte misiuni-competente'!G83/'puncte misiuni-competente'!G$4/(3744/122*0.875) -> 0 | AV84: =$AG84*'puncte misiuni-competente'!H83/'puncte misiuni-competente'!H$4/(3744/122*0.875) -> 0
A86: 6.2.1. Estimarea costurilor investitiei | B86: 00:00:00 | C86: 00:00:00 | D86: 00:00:00 | E86: 00:00:00 | F86: 00:00:00 | G86: 00:00:00 | H86: 00:00:00 | I86: 00:00:00 | J86: 00:00:00 | K86: 00:00:00 | L86: 00:00:00 | M86: 00:00:00 | N86: 00:00:00 | O86: 00:00:00 | P86: 00:00:00 | Q86: 00:00:00 | R86: 00:00:00 | S86: 00:00:00 | T86: 00:00:00 | U86: 00:00:00 | V86: 00:00:00 | W86: 00:00:00 | X86: 00:00:00 | Y86: 00:00:00 | Z86: 00:00:00 | AA86: 00:00:00 | AB86: 00:00:00 | AC86: 00:00:00 | AD86: 00:00:00 | AE86: 00:00:00 | AF86: 00:00:00 | AG86: =SUM(B86:AF86) -> 0 | AH86: =AG86/SUM($AG$6:$AG$137) ->  | AP86: =$AG86*'puncte misiuni-competente'!B85/'puncte misiuni-competente'!B$4/(3744/122*0.875) -> 0 | AQ86: =$AG86*'puncte misiuni-competente'!C85/'puncte misiuni-competente'!C$4/(3744/122*0.875) -> 0 | AR86: =$AG86*'puncte misiuni-competente'!D85/'puncte misiuni-competente'!D$4/(3744/122*0.875) -> 0 | AS86: =$AG86*'puncte misiuni-competente'!E85/'puncte misiuni-competente'!E$4/(3744/122*0.875) -> 0 | AT86: =$AG86*'puncte misiuni-competente'!F85/'puncte misiuni-competente'!F$4/(3744/122*0.875) -> 0 | AU86: =$AG86*'puncte misiuni-competente'!G85/'puncte misiuni-competente'!G$4/(3744/122*0.875) -> 0 | AV86: =$AG86*'puncte misiuni-competente'!H85/'puncte misiuni-competente'!H$4/(3744/122*0.875) -> 0
A88: 6.2.2. Verificare de incadrare in buget | B88: 00:00:00 | C88: 00:00:00 | D88: 00:00:00 | E88: 00:00:00 | F88: 00:00:00 | G88: 00:00:00 | H88: 00:00:00 | I88: 00:00:00 | J88: 00:00:00 | K88: 00:00:00 | L88: 00:00:00 | M88: 00:00:00 | N88: 00:00:00 | O88: 00:00:00 | P88: 00:00:00 | Q88: 00:00:00 | R88: 00:00:00 | S88: 00:00:00 | T88: 00:00:00 | U88: 00:00:00 | V88: 00:00:00 | W88: 00:00:00 | X88: 00:00:00 | Y88: 00:00:00 | Z88: 00:00:00 | AA88: 00:00:00 | AB88: 00:00:00 | AC88: 00:00:00 | AD88: 00:00:00 | AE88: 00:00:00 | AF88: 00:00:00 | AG88: =SUM(B88:AF88) -> 0 | AH88: =AG88/SUM($AG$6:$AG$137) ->  | AP88: =$AG88*'puncte misiuni-competente'!B87/'puncte misiuni-competente'!B$4/(3744/122*0.875) -> 0 | AQ88: =$AG88*'puncte misiuni-competente'!C87/'puncte misiuni-competente'!C$4/(3744/122*0.875) -> 0 | AR88: =$AG88*'puncte misiuni-competente'!D87/'puncte misiuni-competente'!D$4/(3744/122*0.875) -> 0 | AS88: =$AG88*'puncte misiuni-competente'!E87/'puncte misiuni-competente'!E$4/(3744/122*0.875) -> 0 | AT88: =$AG88*'puncte misiuni-competente'!F87/'puncte misiuni-competente'!F$4/(3744/122*0.875) -> 0 | AU88: =$AG88*'puncte misiuni-competente'!G87/'puncte misiuni-competente'!G$4/(3744/122*0.875) -> 0 | AV88: =$AG88*'puncte misiuni-competente'!H87/'puncte misiuni-competente'!H$4/(3744/122*0.875) -> 0
A90: 6.2.3. Estimarea costurilor de operare | B90: 00:00:00 | C90: 00:00:00 | D90: 00:00:00 | E90: 00:00:00 | F90: 00:00:00 | G90: 00:00:00 | H90: 00:00:00 | I90: 00:00:00 | J90: 00:00:00 | K90: 00:00:00 | L90: 00:00:00 | M90: 00:00:00 | N90: 00:00:00 | O90: 00:00:00 | P90: 00:00:00 | Q90: 00:00:00 | R90: 00:00:00 | S90: 00:00:00 | T90: 00:00:00 | U90: 00:00:00 | V90: 00:00:00 | W90: 00:00:00 | X90: 00:00:00 | Y90: 00:00:00 | Z90: 00:00:00 | AA90: 00:00:00 | AB90: 00:00:00 | AC90: 00:00:00 | AD90: 00:00:00 | AE90: 00:00:00 | AF90: 00:00:00 | AG90: =SUM(B90:AF90) -> 0 | AH90: =AG90/SUM($AG$6:$AG$137) ->  | AP90: =$AG90*'puncte misiuni-competente'!B89/'puncte misiuni-competente'!B$4/(3744/122*0.875) -> 0 | AQ90: =$AG90*'puncte misiuni-competente'!C89/'puncte misiuni-competente'!C$4/(3744/122*0.875) -> 0 | AR90: =$AG90*'puncte misiuni-competente'!D89/'puncte misiuni-competente'!D$4/(3744/122*0.875) -> 0 | AS90: =$AG90*'puncte misiuni-competente'!E89/'puncte misiuni-competente'!E$4/(3744/122*0.875) -> 0 | AT90: =$AG90*'puncte misiuni-competente'!F89/'puncte misiuni-competente'!F$4/(3744/122*0.875) -> 0 | AU90: =$AG90*'puncte misiuni-competente'!G89/'puncte misiuni-competente'!G$4/(3744/122*0.875) -> 0 | AV90: =$AG90*'puncte misiuni-competente'!H89/'puncte misiuni-competente'!H$4/(3744/122*0.875) -> 0
A92: 6.2.4. Indicarea in proiect a producatorilor, produselor si furnizorilor | B92: 00:00:00 | C92: 00:00:00 | D92: 00:00:00 | E92: 00:00:00 | F92: 00:00:00 | G92: 00:00:00 | H92: 00:00:00 | I92: 00:00:00 | J92: 00:00:00 | K92: 00:00:00 | L92: 00:00:00 | M92: 00:00:00 | N92: 00:00:00 | O92: 00:00:00 | P92: 00:00:00 | Q92: 00:00:00 | R92: 00:00:00 | S92: 00:00:00 | T92: 00:00:00 | U92: 00:00:00 | V92: 00:00:00 | W92: 00:00:00 | X92: 00:00:00 | Y92: 00:00:00 | Z92: 00:00:00 | AA92: 00:00:00 | AB92: 00:00:00 | AC92: 00:00:00 | AD92: 00:00:00 | AE92: 00:00:00 | AF92: 00:00:00 | AG92: =SUM(B92:AF92) -> 0 | AH92: =AG92/SUM($AG$6:$AG$137) ->  | AP92: =$AG92*'puncte misiuni-competente'!B91/'puncte misiuni-competente'!B$4/(3744/122*0.875) -> 0 | AQ92: =$AG92*'puncte misiuni-competente'!C91/'puncte misiuni-competente'!C$4/(3744/122*0.875) -> 0 | AR92: =$AG92*'puncte misiuni-competente'!D91/'puncte misiuni-competente'!D$4/(3744/122*0.875) -> 0 | AS92: =$AG92*'puncte misiuni-competente'!E91/'puncte misiuni-competente'!E$4/(3744/122*0.875) -> 0 | AT92: =$AG92*'puncte misiuni-competente'!F91/'puncte misiuni-competente'!F$4/(3744/122*0.875) -> 0 | AU92: =$AG92*'puncte misiuni-competente'!G91/'puncte misiuni-competente'!G$4/(3744/122*0.875) -> 0 | AV92: =$AG92*'puncte misiuni-competente'!H91/'puncte misiuni-competente'!H$4/(3744/122*0.875) -> 0
A94: 7.1.1. Proiectare de detaliu | B94: 00:00:00 | C94: 00:00:00 | D94: 00:00:00 | E94: 00:00:00 | F94: 00:00:00 | G94: 00:00:00 | H94: 00:00:00 | I94: 00:00:00 | J94: 00:00:00 | K94: 00:00:00 | L94: 00:00:00 | M94: 00:00:00 | N94: 00:00:00 | O94: 00:00:00 | P94: 00:00:00 | Q94: 00:00:00 | R94: 00:00:00 | S94: 00:00:00 | T94: 00:00:00 | U94: 00:00:00 | V94: 00:00:00 | W94: 00:00:00 | X94: 00:00:00 | Y94: 00:00:00 | Z94: 00:00:00 | AA94: 00:00:00 | AB94: 00:00:00 | AC94: 00:00:00 | AD94: 00:00:00 | AE94: 00:00:00 | AF94: 00:00:00 | AG94: =SUM(B94:AF94) -> 0 | AH94: =AG94/SUM($AG$6:$AG$137) ->  | AP94: =$AG94*'puncte misiuni-competente'!B93/'puncte misiuni-competente'!B$4/(3744/122*0.875) -> 0 | AQ94: =$AG94*'puncte misiuni-competente'!C93/'puncte misiuni-competente'!C$4/(3744/122*0.875) -> 0 | AR94: =$AG94*'puncte misiuni-competente'!D93/'puncte misiuni-competente'!D$4/(3744/122*0.875) -> 0 | AS94: =$AG94*'puncte misiuni-competente'!E93/'puncte misiuni-competente'!E$4/(3744/122*0.875) -> 0 | AT94: =$AG94*'puncte misiuni-competente'!F93/'puncte misiuni-competente'!F$4/(3744/122*0.875) -> 0 | AU94: =$AG94*'puncte misiuni-competente'!G93/'puncte misiuni-competente'!G$4/(3744/122*0.875) -> 0 | AV94: =$AG94*'puncte misiuni-competente'!H93/'puncte misiuni-competente'!H$4/(3744/122*0.875) -> 0
A96: 7.1.2. Coordonarea de detaliu a proiectelor | B96: 00:00:00 | C96: 00:00:00 | D96: 00:00:00 | E96: 00:00:00 | F96: 00:00:00 | G96: 00:00:00 | H96: 00:00:00 | I96: 00:00:00 | J96: 00:00:00 | K96: 00:00:00 | L96: 00:00:00 | M96: 00:00:00 | N96: 00:00:00 | O96: 00:00:00 | P96: 00:00:00 | Q96: 00:00:00 | R96: 00:00:00 | S96: 00:00:00 | T96: 00:00:00 | U96: 00:00:00 | V96: 00:00:00 | W96: 00:00:00 | X96: 00:00:00 | Y96: 00:00:00 | Z96: 00:00:00 | AA96: 00:00:00 | AB96: 00:00:00 | AC96: 00:00:00 | AD96: 00:00:00 | AE96: 00:00:00 | AF96: 00:00:00 | AG96: =SUM(B96:AF96) -> 0 | AH96: =AG96/SUM($AG$6:$AG$137) ->  | AP96: =$AG96*'puncte misiuni-competente'!B95/'puncte misiuni-competente'!B$4/(3744/122*0.875) -> 0 | AQ96: =$AG96*'puncte misiuni-competente'!C95/'puncte misiuni-competente'!C$4/(3744/122*0.875) -> 0 | AR96: =$AG96*'puncte misiuni-competente'!D95/'puncte misiuni-competente'!D$4/(3744/122*0.875) -> 0 | AS96: =$AG96*'puncte misiuni-competente'!E95/'puncte misiuni-competente'!E$4/(3744/122*0.875) -> 0 | AT96: =$AG96*'puncte misiuni-competente'!F95/'puncte misiuni-competente'!F$4/(3744/122*0.875) -> 0 | AU96: =$AG96*'puncte misiuni-competente'!G95/'puncte misiuni-competente'!G$4/(3744/122*0.875) -> 0 | AV96: =$AG96*'puncte misiuni-competente'!H95/'puncte misiuni-competente'!H$4/(3744/122*0.875) -> 0
A98: 7.1.3. Plan de sanatate si securitate in munca | B98: 00:00:00 | C98: 00:00:00 | D98: 00:00:00 | E98: 00:00:00 | F98: 00:00:00 | G98: 00:00:00 | H98: 00:00:00 | I98: 00:00:00 | J98: 00:00:00 | K98: 00:00:00 | L98: 00:00:00 | M98: 00:00:00 | N98: 00:00:00 | O98: 00:00:00 | P98: 00:00:00 | Q98: 00:00:00 | R98: 00:00:00 | S98: 00:00:00 | T98: 00:00:00 | U98: 00:00:00 | V98: 00:00:00 | W98: 00:00:00 | X98: 00:00:00 | Y98: 00:00:00 | Z98: 00:00:00 | AA98: 00:00:00 | AB98: 00:00:00 | AC98: 00:00:00 | AD98: 00:00:00 | AE98: 00:00:00 | AF98: 00:00:00 | AG98: =SUM(B98:AF98) -> 0 | AH98: =AG98/SUM($AG$6:$AG$137) ->  | AP98: =$AG98*'puncte misiuni-competente'!B97/'puncte misiuni-competente'!B$4/(3744/122*0.875) -> 0 | AQ98: =$AG98*'puncte misiuni-competente'!C97/'puncte misiuni-competente'!C$4/(3744/122*0.875) -> 0 | AR98: =$AG98*'puncte misiuni-competente'!D97/'puncte misiuni-competente'!D$4/(3744/122*0.875) -> 0 | AS98: =$AG98*'puncte misiuni-competente'!E97/'puncte misiuni-competente'!E$4/(3744/122*0.875) -> 0 | AT98: =$AG98*'puncte misiuni-competente'!F97/'puncte misiuni-competente'!F$4/(3744/122*0.875) -> 0 | AU98: =$AG98*'puncte misiuni-competente'!G97/'puncte misiuni-competente'!G$4/(3744/122*0.875) -> 0 | AV98: =$AG98*'puncte misiuni-competente'!H97/'puncte misiuni-competente'!H$4/(3744/122*0.875) -> 0
A100: 7.2.1. Indicarea in proiect a producatorilor, produselor si furnizorilor | B100: 00:00:00 | C100: 00:00:00 | D100: 00:00:00 | E100: 00:00:00 | F100: 00:00:00 | G100: 00:00:00 | H100: 00:00:00 | I100: 00:00:00 | J100: 00:00:00 | K100: 00:00:00 | L100: 00:00:00 | M100: 00:00:00 | N100: 00:00:00 | O100: 00:00:00 | P100: 00:00:00 | Q100: 00:00:00 | R100: 00:00:00 | S100: 00:00:00 | T100: 00:00:00 | U100: 00:00:00 | V100: 00:00:00 | W100: 00:00:00 | X100: 00:00:00 | Y100: 00:00:00 | Z100: 00:00:00 | AA100: 00:00:00 | AB100: 00:00:00 | AC100: 00:00:00 | AD100: 00:00:00 | AE100: 00:00:00 | AF100: 00:00:00 | AG100: =SUM(B100:AF100) -> 0 | AH100: =AG100/SUM($AG$6:$AG$137) ->  | AP100: =$AG100*'puncte misiuni-competente'!B99/'puncte misiuni-competente'!B$4/(3744/122*0.875) -> 0 | AQ100: =$AG100*'puncte misiuni-competente'!C99/'puncte misiuni-competente'!C$4/(3744/122*0.875) -> 0 | AR100: =$AG100*'puncte misiuni-competente'!D99/'puncte misiuni-competente'!D$4/(3744/122*0.875) -> 0 | AS100: =$AG100*'puncte misiuni-competente'!E99/'puncte misiuni-competente'!E$4/(3744/122*0.875) -> 0 | AT100: =$AG100*'puncte misiuni-competente'!F99/'puncte misiuni-competente'!F$4/(3744/122*0.875) -> 0 | AU100: =$AG100*'puncte misiuni-competente'!G99/'puncte misiuni-competente'!G$4/(3744/122*0.875) -> 0 | AV100: =$AG100*'puncte misiuni-competente'!H99/'puncte misiuni-competente'!H$4/(3744/122*0.875) -> 0
A102: 8.1.1. Organizarea documentatiei de licitatie | B102: 00:00:00 | C102: 00:00:00 | D102: 00:00:00 | E102: 00:00:00 | F102: 00:00:00 | G102: 00:00:00 | H102: 00:00:00 | I102: 00:00:00 | J102: 00:00:00 | K102: 00:00:00 | L102: 00:00:00 | M102: 00:00:00 | N102: 00:00:00 | O102: 00:00:00 | P102: 00:00:00 | Q102: 00:00:00 | R102: 00:00:00 | S102: 00:00:00 | T102: 00:00:00 | U102: 00:00:00 | V102: 00:00:00 | W102: 00:00:00 | X102: 00:00:00 | Y102: 00:00:00 | Z102: 00:00:00 | AA102: 00:00:00 | AB102: 00:00:00 | AC102: 00:00:00 | AD102: 00:00:00 | AE102: 00:00:00 | AF102: 00:00:00 | AG102: =SUM(B102:AF102) -> 0 | AH102: =AG102/SUM($AG$6:$AG$137) ->  | AP102: =$AG102*'puncte misiuni-competente'!B101/'puncte misiuni-competente'!B$4/(3744/122*0.875) -> 0 | AQ102: =$AG102*'puncte misiuni-competente'!C101/'puncte misiuni-competente'!C$4/(3744/122*0.875) -> 0 | AR102: =$AG102*'puncte misiuni-competente'!D101/'puncte misiuni-competente'!D$4/(3744/122*0.875) -> 0 | AS102: =$AG102*'puncte misiuni-competente'!E101/'puncte misiuni-competente'!E$4/(3744/122*0.875) -> 0 | AT102: =$AG102*'puncte misiuni-competente'!F101/'puncte misiuni-competente'!F$4/(3744/122*0.875) -> 0 | AU102: =$AG102*'puncte misiuni-competente'!G101/'puncte misiuni-competente'!G$4/(3744/122*0.875) -> 0 | AV102: =$AG102*'puncte misiuni-competente'!H101/'puncte misiuni-competente'!H$4/(3744/122*0.875) -> 0
A104: 8.1.2. Realizare listei scurte | B104: 00:00:00 | C104: 00:00:00 | D104: 00:00:00 | E104: 00:00:00 | F104: 00:00:00 | G104: 00:00:00 | H104: 00:00:00 | I104: 00:00:00 | J104: 00:00:00 | K104: 00:00:00 | L104: 00:00:00 | M104: 00:00:00 | N104: 00:00:00 | O104: 00:00:00 | P104: 00:00:00 | Q104: 00:00:00 | R104: 00:00:00 | S104: 00:00:00 | T104: 00:00:00 | U104: 00:00:00 | V104: 00:00:00 | W104: 00:00:00 | X104: 00:00:00 | Y104: 00:00:00 | Z104: 00:00:00 | AA104: 00:00:00 | AB104: 00:00:00 | AC104: 00:00:00 | AD104: 00:00:00 | AE104: 00:00:00 | AF104: 00:00:00 | AG104: =SUM(B104:AF104) -> 0 | AH104: =AG104/SUM($AG$6:$AG$137) ->  | AP104: =$AG104*'puncte misiuni-competente'!B103/'puncte misiuni-competente'!B$4/(3744/122*0.875) -> 0 | AQ104: =$AG104*'puncte misiuni-competente'!C103/'puncte misiuni-competente'!C$4/(3744/122*0.875) -> 0 | AR104: =$AG104*'puncte misiuni-competente'!D103/'puncte misiuni-competente'!D$4/(3744/122*0.875) -> 0 | AS104: =$AG104*'puncte misiuni-competente'!E103/'puncte misiuni-competente'!E$4/(3744/122*0.875) -> 0 | AT104: =$AG104*'puncte misiuni-competente'!F103/'puncte misiuni-competente'!F$4/(3744/122*0.875) -> 0 | AU104: =$AG104*'puncte misiuni-competente'!G103/'puncte misiuni-competente'!G$4/(3744/122*0.875) -> 0 | AV104: =$AG104*'puncte misiuni-competente'!H103/'puncte misiuni-competente'!H$4/(3744/122*0.875) -> 0
A106: 8.1.3. Managementul ofertarii | B106: 00:00:00 | C106: 00:00:00 | D106: 00:00:00 | E106: 00:00:00 | F106: 00:00:00 | G106: 00:00:00 | H106: 00:00:00 | I106: 00:00:00 | J106: 00:00:00 | K106: 00:00:00 | L106: 00:00:00 | M106: 00:00:00 | N106: 00:00:00 | O106: 00:00:00 | P106: 00:00:00 | Q106: 00:00:00 | R106: 00:00:00 | S106: 00:00:00 | T106: 00:00:00 | U106: 00:00:00 | V106: 00:00:00 | W106: 00:00:00 | X106: 00:00:00 | Y106: 00:00:00 | Z106: 00:00:00 | AA106: 00:00:00 | AB106: 00:00:00 | AC106: 00:00:00 | AD106: 00:00:00 | AE106: 00:00:00 | AF106: 00:00:00 | AG106: =SUM(B106:AF106) -> 0 | AH106: =AG106/SUM($AG$6:$AG$137) ->  | AP106: =$AG106*'puncte misiuni-competente'!B105/'puncte misiuni-competente'!B$4/(3744/122*0.875) -> 0 | AQ106: =$AG106*'puncte misiuni-competente'!C105/'puncte misiuni-competente'!C$4/(3744/122*0.875) -> 0 | AR106: =$AG106*'puncte misiuni-competente'!D105/'puncte misiuni-competente'!D$4/(3744/122*0.875) -> 0 | AS106: =$AG106*'puncte misiuni-competente'!E105/'puncte misiuni-competente'!E$4/(3744/122*0.875) -> 0 | AT106: =$AG106*'puncte misiuni-competente'!F105/'puncte misiuni-competente'!F$4/(3744/122*0.875) -> 0 | AU106: =$AG106*'puncte misiuni-competente'!G105/'puncte misiuni-competente'!G$4/(3744/122*0.875) -> 0 | AV106: =$AG106*'puncte misiuni-competente'!H105/'puncte misiuni-competente'!H$4/(3744/122*0.875) -> 0
A108: 8.1.4. Recomandarea ofertei potrivite | B108: 00:00:00 | C108: 00:00:00 | D108: 00:00:00 | E108: 00:00:00 | F108: 00:00:00 | G108: 00:00:00 | H108: 00:00:00 | I108: 00:00:00 | J108: 00:00:00 | K108: 00:00:00 | L108: 00:00:00 | M108: 00:00:00 | N108: 00:00:00 | O108: 00:00:00 | P108: 00:00:00 | Q108: 00:00:00 | R108: 00:00:00 | S108: 00:00:00 | T108: 00:00:00 | U108: 00:00:00 | V108: 00:00:00 | W108: 00:00:00 | X108: 00:00:00 | Y108: 00:00:00 | Z108: 00:00:00 | AA108: 00:00:00 | AB108: 00:00:00 | AC108: 00:00:00 | AD108: 00:00:00 | AE108: 00:00:00 | AF108: 00:00:00 | AG108: =SUM(B108:AF108) -> 0 | AH108: =AG108/SUM($AG$6:$AG$137) ->  | AP108: =$AG108*'puncte misiuni-competente'!B107/'puncte misiuni-competente'!B$4/(3744/122*0.875) -> 0 | AQ108: =$AG108*'puncte misiuni-competente'!C107/'puncte misiuni-competente'!C$4/(3744/122*0.875) -> 0 | AR108: =$AG108*'puncte misiuni-competente'!D107/'puncte misiuni-competente'!D$4/(3744/122*0.875) -> 0 | AS108: =$AG108*'puncte misiuni-competente'!E107/'puncte misiuni-competente'!E$4/(3744/122*0.875) -> 0 | AT108: =$AG108*'puncte misiuni-competente'!F107/'puncte misiuni-competente'!F$4/(3744/122*0.875) -> 0 | AU108: =$AG108*'puncte misiuni-competente'!G107/'puncte misiuni-competente'!G$4/(3744/122*0.875) -> 0 | AV108: =$AG108*'puncte misiuni-competente'!H107/'puncte misiuni-competente'!H$4/(3744/122*0.875) -> 0
A110: 8.1.5. Contractarea executantului | B110: 00:00:00 | C110: 00:00:00 | D110: 00:00:00 | E110: 00:00:00 | F110: 00:00:00 | G110: 00:00:00 | H110: 00:00:00 | I110: 00:00:00 | J110: 00:00:00 | K110: 00:00:00 | L110: 00:00:00 | M110: 00:00:00 | N110: 00:00:00 | O110: 00:00:00 | P110: 00:00:00 | Q110: 00:00:00 | R110: 00:00:00 | S110: 00:00:00 | T110: 00:00:00 | U110: 00:00:00 | V110: 00:00:00 | W110: 00:00:00 | X110: 00:00:00 | Y110: 00:00:00 | Z110: 00:00:00 | AA110: 00:00:00 | AB110: 00:00:00 | AC110: 00:00:00 | AD110: 00:00:00 | AE110: 00:00:00 | AF110: 00:00:00 | AG110: =SUM(B110:AF110) -> 0 | AH110: =AG110/SUM($AG$6:$AG$137) ->  | AP110: =$AG110*'puncte misiuni-competente'!B109/'puncte misiuni-competente'!B$4/(3744/122*0.875) -> 0 | AQ110: =$AG110*'puncte misiuni-competente'!C109/'puncte misiuni-competente'!C$4/(3744/122*0.875) -> 0 | AR110: =$AG110*'puncte misiuni-competente'!D109/'puncte misiuni-competente'!D$4/(3744/122*0.875) -> 0 | AS110: =$AG110*'puncte misiuni-competente'!E109/'puncte misiuni-competente'!E$4/(3744/122*0.875) -> 0 | AT110: =$AG110*'puncte misiuni-competente'!F109/'puncte misiuni-competente'!F$4/(3744/122*0.875) -> 0 | AU110: =$AG110*'puncte misiuni-competente'!G109/'puncte misiuni-competente'!G$4/(3744/122*0.875) -> 0 | AV110: =$AG110*'puncte misiuni-competente'!H109/'puncte misiuni-competente'!H$4/(3744/122*0.875) -> 0
A112: 9.1.1. Participarea la fazele determinate | B112: 00:00:00 | C112: 00:00:00 | D112: 00:00:00 | E112: 00:00:00 | F112: 00:00:00 | G112: 00:00:00 | H112: 00:00:00 | I112: 00:00:00 | J112: 00:00:00 | K112: 00:00:00 | L112: 00:00:00 | M112: 00:00:00 | N112: 00:00:00 | O112: 00:00:00 | P112: 00:00:00 | Q112: 00:00:00 | R112: 00:00:00 | S112: 00:00:00 | T112: 00:00:00 | U112: 00:00:00 | V112: 00:00:00 | W112: 00:00:00 | X112: 00:00:00 | Y112: 00:00:00 | Z112: 00:00:00 | AA112: 00:00:00 | AB112: 00:00:00 | AC112: 00:00:00 | AD112: 00:00:00 | AE112: 00:00:00 | AF112: 00:00:00 | AG112: =SUM(B112:AF112) -> 0 | AH112: =AG112/SUM($AG$6:$AG$137) ->  | AP112: =$AG112*'puncte misiuni-competente'!B111/'puncte misiuni-competente'!B$4/(3744/122*0.875) -> 0 | AQ112: =$AG112*'puncte misiuni-competente'!C111/'puncte misiuni-competente'!C$4/(3744/122*0.875) -> 0 | AR112: =$AG112*'puncte misiuni-competente'!D111/'puncte misiuni-competente'!D$4/(3744/122*0.875) -> 0 | AS112: =$AG112*'puncte misiuni-competente'!E111/'puncte misiuni-competente'!E$4/(3744/122*0.875) -> 0 | AT112: =$AG112*'puncte misiuni-competente'!F111/'puncte misiuni-competente'!F$4/(3744/122*0.875) -> 0 | AU112: =$AG112*'puncte misiuni-competente'!G111/'puncte misiuni-competente'!G$4/(3744/122*0.875) -> 0 | AV112: =$AG112*'puncte misiuni-competente'!H111/'puncte misiuni-competente'!H$4/(3744/122*0.875) -> 0
A114: 9.1.2. Supravegherea modalitatii de executare a lucrarilor | B114: 00:00:00 | C114: 00:00:00 | D114: 00:00:00 | E114: 00:00:00 | F114: 00:00:00 | G114: 00:00:00 | H114: 00:00:00 | I114: 00:00:00 | J114: 00:00:00 | K114: 00:00:00 | L114: 00:00:00 | M114: 00:00:00 | N114: 00:00:00 | O114: 00:00:00 | P114: 00:00:00 | Q114: 00:00:00 | R114: 00:00:00 | S114: 00:00:00 | T114: 00:00:00 | U114: 00:00:00 | V114: 00:00:00 | W114: 00:00:00 | X114: 00:00:00 | Y114: 00:00:00 | Z114: 00:00:00 | AA114: 00:00:00 | AB114: 00:00:00 | AC114: 00:00:00 | AD114: 00:00:00 | AE114: 00:00:00 | AF114: 00:00:00 | AG114: =SUM(B114:AF114) -> 0 | AH114: =AG114/SUM($AG$6:$AG$137) ->  | AP114: =$AG114*'puncte misiuni-competente'!B113/'puncte misiuni-competente'!B$4/(3744/122*0.875) -> 0 | AQ114: =$AG114*'puncte misiuni-competente'!C113/'puncte misiuni-competente'!C$4/(3744/122*0.875) -> 0 | AR114: =$AG114*'puncte misiuni-competente'!D113/'puncte misiuni-competente'!D$4/(3744/122*0.875) -> 0 | AS114: =$AG114*'puncte misiuni-competente'!E113/'puncte misiuni-competente'!E$4/(3744/122*0.875) -> 0 | AT114: =$AG114*'puncte misiuni-competente'!F113/'puncte misiuni-competente'!F$4/(3744/122*0.875) -> 0 | AU114: =$AG114*'puncte misiuni-competente'!G113/'puncte misiuni-competente'!G$4/(3744/122*0.875) -> 0 | AV114: =$AG114*'puncte misiuni-competente'!H113/'puncte misiuni-competente'!H$4/(3744/122*0.875) -> 0
A116: 9.1.3. Project management | B116: 00:00:00 | C116: 00:00:00 | D116: 00:00:00 | E116: 00:00:00 | F116: 00:00:00 | G116: 00:00:00 | H116: 00:00:00 | I116: 00:00:00 | J116: 00:00:00 | K116: 00:00:00 | L116: 00:00:00 | M116: 00:00:00 | N116: 00:00:00 | O116: 00:00:00 | P116: 00:00:00 | Q116: 00:00:00 | R116: 00:00:00 | S116: 00:00:00 | T116: 00:00:00 | U116: 00:00:00 | V116: 00:00:00 | W116: 00:00:00 | X116: 00:00:00 | Y116: 00:00:00 | Z116: 00:00:00 | AA116: 00:00:00 | AB116: 00:00:00 | AC116: 00:00:00 | AD116: 00:00:00 | AE116: 00:00:00 | AF116: 00:00:00 | AG116: =SUM(B116:AF116) -> 0 | AH116: =AG116/SUM($AG$6:$AG$137) ->  | AP116: =$AG116*'puncte misiuni-competente'!B115/'puncte misiuni-competente'!B$4/(3744/122*0.875) -> 0 | AQ116: =$AG116*'puncte misiuni-competente'!C115/'puncte misiuni-competente'!C$4/(3744/122*0.875) -> 0 | AR116: =$AG116*'puncte misiuni-competente'!D115/'puncte misiuni-competente'!D$4/(3744/122*0.875) -> 0 | AS116: =$AG116*'puncte misiuni-competente'!E115/'puncte misiuni-competente'!E$4/(3744/122*0.875) -> 0 | AT116: =$AG116*'puncte misiuni-competente'!F115/'puncte misiuni-competente'!F$4/(3744/122*0.875) -> 0 | AU116: =$AG116*'puncte misiuni-competente'!G115/'puncte misiuni-competente'!G$4/(3744/122*0.875) -> 0 | AV116: =$AG116*'puncte misiuni-competente'!H115/'puncte misiuni-competente'!H$4/(3744/122*0.875) -> 0
A118: 9.1.4. Receptia la terminarea lucrarilor | B118: 00:00:00 | C118: 00:00:00 | D118: 00:00:00 | E118: 00:00:00 | F118: 00:00:00 | G118: 00:00:00 | H118: 00:00:00 | I118: 00:00:00 | J118: 00:00:00 | K118: 00:00:00 | L118: 00:00:00 | M118: 00:00:00 | N118: 00:00:00 | O118: 00:00:00 | P118: 00:00:00 | Q118: 00:00:00 | R118: 00:00:00 | S118: 00:00:00 | T118: 00:00:00 | U118: 00:00:00 | V118: 00:00:00 | W118: 00:00:00 | X118: 00:00:00 | Y118: 00:00:00 | Z118: 00:00:00 | AA118: 00:00:00 | AB118: 00:00:00 | AC118: 00:00:00 | AD118: 00:00:00 | AE118: 00:00:00 | AF118: 00:00:00 | AG118: =SUM(B118:AF118) -> 0 | AH118: =AG118/SUM($AG$6:$AG$137) ->  | AP118: =$AG118*'puncte misiuni-competente'!B117/'puncte misiuni-competente'!B$4/(3744/122*0.875) -> 0 | AQ118: =$AG118*'puncte misiuni-competente'!C117/'puncte misiuni-competente'!C$4/(3744/122*0.875) -> 0 | AR118: =$AG118*'puncte misiuni-competente'!D117/'puncte misiuni-competente'!D$4/(3744/122*0.875) -> 0 | AS118: =$AG118*'puncte misiuni-competente'!E117/'puncte misiuni-competente'!E$4/(3744/122*0.875) -> 0 | AT118: =$AG118*'puncte misiuni-competente'!F117/'puncte misiuni-competente'!F$4/(3744/122*0.875) -> 0 | AU118: =$AG118*'puncte misiuni-competente'!G117/'puncte misiuni-competente'!G$4/(3744/122*0.875) -> 0 | AV118: =$AG118*'puncte misiuni-competente'!H117/'puncte misiuni-competente'!H$4/(3744/122*0.875) -> 0
A120: 9.1.5. Punerea in functiune | B120: 00:00:00 | C120: 00:00:00 | D120: 00:00:00 | E120: 00:00:00 | F120: 00:00:00 | G120: 00:00:00 | H120: 00:00:00 | I120: 00:00:00 | J120: 00:00:00 | K120: 00:00:00 | L120: 00:00:00 | M120: 00:00:00 | N120: 00:00:00 | O120: 00:00:00 | P120: 00:00:00 | Q120: 00:00:00 | R120: 00:00:00 | S120: 00:00:00 | T120: 00:00:00 | U120: 00:00:00 | V120: 00:00:00 | W120: 00:00:00 | X120: 00:00:00 | Y120: 00:00:00 | Z120: 00:00:00 | AA120: 00:00:00 | AB120: 00:00:00 | AC120: 00:00:00 | AD120: 00:00:00 | AE120: 00:00:00 | AF120: 00:00:00 | AG120: =SUM(B120:AF120) -> 0 | AH120: =AG120/SUM($AG$6:$AG$137) ->  | AP120: =$AG120*'puncte misiuni-competente'!B119/'puncte misiuni-competente'!B$4/(3744/122*0.875) -> 0 | AQ120: =$AG120*'puncte misiuni-competente'!C119/'puncte misiuni-competente'!C$4/(3744/122*0.875) -> 0 | AR120: =$AG120*'puncte misiuni-competente'!D119/'puncte misiuni-competente'!D$4/(3744/122*0.875) -> 0 | AS120: =$AG120*'puncte misiuni-competente'!E119/'puncte misiuni-competente'!E$4/(3744/122*0.875) -> 0 | AT120: =$AG120*'puncte misiuni-competente'!F119/'puncte misiuni-competente'!F$4/(3744/122*0.875) -> 0 | AU120: =$AG120*'puncte misiuni-competente'!G119/'puncte misiuni-competente'!G$4/(3744/122*0.875) -> 0 | AV120: =$AG120*'puncte misiuni-competente'!H119/'puncte misiuni-competente'!H$4/(3744/122*0.875) -> 0
A122: 9.2.1. Asistenta tehnica | B122: 00:00:00 | C122: 00:00:00 | D122: 00:00:00 | E122: 00:00:00 | F122: 00:00:00 | G122: 00:00:00 | H122: 00:00:00 | I122: 00:00:00 | J122: 00:00:00 | K122: 00:00:00 | L122: 00:00:00 | M122: 00:00:00 | N122: 00:00:00 | O122: 00:00:00 | P122: 00:00:00 | Q122: 00:00:00 | R122: 00:00:00 | S122: 00:00:00 | T122: 00:00:00 | U122: 00:00:00 | V122: 00:00:00 | W122: 00:00:00 | X122: 00:00:00 | Y122: 00:00:00 | Z122: 00:00:00 | AA122: 00:00:00 | AB122: 00:00:00 | AC122: 00:00:00 | AD122: 00:00:00 | AE122: 00:00:00 | AF122: 00:00:00 | AG122: =SUM(B122:AF122) -> 0 | AH122: =AG122/SUM($AG$6:$AG$137) ->  | AP122: =$AG122*'puncte misiuni-competente'!B121/'puncte misiuni-competente'!B$4/(3744/122*0.875) -> 0 | AQ122: =$AG122*'puncte misiuni-competente'!C121/'puncte misiuni-competente'!C$4/(3744/122*0.875) -> 0 | AR122: =$AG122*'puncte misiuni-competente'!D121/'puncte misiuni-competente'!D$4/(3744/122*0.875) -> 0 | AS122: =$AG122*'puncte misiuni-competente'!E121/'puncte misiuni-competente'!E$4/(3744/122*0.875) -> 0 | AT122: =$AG122*'puncte misiuni-competente'!F121/'puncte misiuni-competente'!F$4/(3744/122*0.875) -> 0 | AU122: =$AG122*'puncte misiuni-competente'!G121/'puncte misiuni-competente'!G$4/(3744/122*0.875) -> 0 | AV122: =$AG122*'puncte misiuni-competente'!H121/'puncte misiuni-competente'!H$4/(3744/122*0.875) -> 0
A124: 9.2.2. Proiecte de fabricatie | B124: 00:00:00 | C124: 00:00:00 | D124: 00:00:00 | E124: 00:00:00 | F124: 00:00:00 | G124: 00:00:00 | H124: 00:00:00 | I124: 00:00:00 | J124: 00:00:00 | K124: 00:00:00 | L124: 00:00:00 | M124: 00:00:00 | N124: 00:00:00 | O124: 00:00:00 | P124: 00:00:00 | Q124: 00:00:00 | R124: 00:00:00 | S124: 00:00:00 | T124: 00:00:00 | U124: 00:00:00 | V124: 00:00:00 | W124: 00:00:00 | X124: 00:00:00 | Y124: 00:00:00 | Z124: 00:00:00 | AA124: 00:00:00 | AB124: 00:00:00 | AC124: 00:00:00 | AD124: 00:00:00 | AE124: 00:00:00 | AF124: 00:00:00 | AG124: =SUM(B124:AF124) -> 0 | AH124: =AG124/SUM($AG$6:$AG$137) ->  | AP124: =$AG124*'puncte misiuni-competente'!B123/'puncte misiuni-competente'!B$4/(3744/122*0.875) -> 0 | AQ124: =$AG124*'puncte misiuni-competente'!C123/'puncte misiuni-competente'!C$4/(3744/122*0.875) -> 0 | AR124: =$AG124*'puncte misiuni-competente'!D123/'puncte misiuni-competente'!D$4/(3744/122*0.875) -> 0 | AS124: =$AG124*'puncte misiuni-competente'!E123/'puncte misiuni-competente'!E$4/(3744/122*0.875) -> 0 | AT124: =$AG124*'puncte misiuni-competente'!F123/'puncte misiuni-competente'!F$4/(3744/122*0.875) -> 0 | AU124: =$AG124*'puncte misiuni-competente'!G123/'puncte misiuni-competente'!G$4/(3744/122*0.875) -> 0 | AV124: =$AG124*'puncte misiuni-competente'!H123/'puncte misiuni-competente'!H$4/(3744/122*0.875) -> 0
A126: 9.2.3. Reevaluare costuri de executie | B126: 00:00:00 | C126: 00:00:00 | D126: 00:00:00 | E126: 00:00:00 | F126: 00:00:00 | G126: 00:00:00 | H126: 00:00:00 | I126: 00:00:00 | J126: 00:00:00 | K126: 00:00:00 | L126: 00:00:00 | M126: 00:00:00 | N126: 00:00:00 | O126: 00:00:00 | P126: 00:00:00 | Q126: 00:00:00 | R126: 00:00:00 | S126: 00:00:00 | T126: 00:00:00 | U126: 00:00:00 | V126: 00:00:00 | W126: 00:00:00 | X126: 00:00:00 | Y126: 00:00:00 | Z126: 00:00:00 | AA126: 00:00:00 | AB126: 00:00:00 | AC126: 00:00:00 | AD126: 00:00:00 | AE126: 00:00:00 | AF126: 00:00:00 | AG126: =SUM(B126:AF126) -> 0 | AH126: =AG126/SUM($AG$6:$AG$137) ->  | AP126: =$AG126*'puncte misiuni-competente'!B125/'puncte misiuni-competente'!B$4/(3744/122*0.875) -> 0 | AQ126: =$AG126*'puncte misiuni-competente'!C125/'puncte misiuni-competente'!C$4/(3744/122*0.875) -> 0 | AR126: =$AG126*'puncte misiuni-competente'!D125/'puncte misiuni-competente'!D$4/(3744/122*0.875) -> 0 | AS126: =$AG126*'puncte misiuni-competente'!E125/'puncte misiuni-competente'!E$4/(3744/122*0.875) -> 0 | AT126: =$AG126*'puncte misiuni-competente'!F125/'puncte misiuni-competente'!F$4/(3744/122*0.875) -> 0 | AU126: =$AG126*'puncte misiuni-competente'!G125/'puncte misiuni-competente'!G$4/(3744/122*0.875) -> 0 | AV126: =$AG126*'puncte misiuni-competente'!H125/'puncte misiuni-competente'!H$4/(3744/122*0.875) -> 0
A128: 9.2.4. Indicarea in proiect a producatorilor, produselor si furnizorilor | B128: 00:00:00 | C128: 00:00:00 | D128: 00:00:00 | E128: 00:00:00 | F128: 00:00:00 | G128: 00:00:00 | H128: 00:00:00 | I128: 00:00:00 | J128: 00:00:00 | K128: 00:00:00 | L128: 00:00:00 | M128: 00:00:00 | N128: 00:00:00 | O128: 00:00:00 | P128: 00:00:00 | Q128: 00:00:00 | R128: 00:00:00 | S128: 00:00:00 | T128: 00:00:00 | U128: 00:00:00 | V128: 00:00:00 | W128: 00:00:00 | X128: 00:00:00 | Y128: 00:00:00 | Z128: 00:00:00 | AA128: 00:00:00 | AB128: 00:00:00 | AC128: 00:00:00 | AD128: 00:00:00 | AE128: 00:00:00 | AF128: 00:00:00 | AG128: =SUM(B128:AF128) -> 0 | AH128: =AG128/SUM($AG$6:$AG$137) ->  | AP128: =$AG128*'puncte misiuni-competente'!B127/'puncte misiuni-competente'!B$4/(3744/122*0.875) -> 0 | AQ128: =$AG128*'puncte misiuni-competente'!C127/'puncte misiuni-competente'!C$4/(3744/122*0.875) -> 0 | AR128: =$AG128*'puncte misiuni-competente'!D127/'puncte misiuni-competente'!D$4/(3744/122*0.875) -> 0 | AS128: =$AG128*'puncte misiuni-competente'!E127/'puncte misiuni-competente'!E$4/(3744/122*0.875) -> 0 | AT128: =$AG128*'puncte misiuni-competente'!F127/'puncte misiuni-competente'!F$4/(3744/122*0.875) -> 0 | AU128: =$AG128*'puncte misiuni-competente'!G127/'puncte misiuni-competente'!G$4/(3744/122*0.875) -> 0 | AV128: =$AG128*'puncte misiuni-competente'!H127/'puncte misiuni-competente'!H$4/(3744/122*0.875) -> 0
A130: 10.1.1. Supraveghere in timp a constructiei | B130: 00:00:00 | C130: 00:00:00 | D130: 00:00:00 | E130: 00:00:00 | F130: 00:00:00 | G130: 00:00:00 | H130: 00:00:00 | I130: 00:00:00 | J130: 00:00:00 | K130: 00:00:00 | L130: 00:00:00 | M130: 00:00:00 | N130: 00:00:00 | O130: 00:00:00 | P130: 00:00:00 | Q130: 00:00:00 | R130: 00:00:00 | S130: 00:00:00 | T130: 00:00:00 | U130: 00:00:00 | V130: 00:00:00 | W130: 00:00:00 | X130: 00:00:00 | Y130: 00:00:00 | Z130: 00:00:00 | AA130: 00:00:00 | AB130: 00:00:00 | AC130: 00:00:00 | AD130: 00:00:00 | AE130: 00:00:00 | AF130: 00:00:00 | AG130: =SUM(B130:AF130) -> 0 | AH130: =AG130/SUM($AG$6:$AG$137) ->  | AP130: =$AG130*'puncte misiuni-competente'!B129/'puncte misiuni-competente'!B$4/(3744/122*0.875) -> 0 | AQ130: =$AG130*'puncte misiuni-competente'!C129/'puncte misiuni-competente'!C$4/(3744/122*0.875) -> 0 | AR130: =$AG130*'puncte misiuni-competente'!D129/'puncte misiuni-competente'!D$4/(3744/122*0.875) -> 0 | AS130: =$AG130*'puncte misiuni-competente'!E129/'puncte misiuni-competente'!E$4/(3744/122*0.875) -> 0 | AT130: =$AG130*'puncte misiuni-competente'!F129/'puncte misiuni-competente'!F$4/(3744/122*0.875) -> 0 | AU130: =$AG130*'puncte misiuni-competente'!G129/'puncte misiuni-competente'!G$4/(3744/122*0.875) -> 0 | AV130: =$AG130*'puncte misiuni-competente'!H129/'puncte misiuni-competente'!H$4/(3744/122*0.875) -> 0
A132: 10.1.2. Acordul proiectantului initial | B132: 00:00:00 | C132: 00:00:00 | D132: 00:00:00 | E132: 00:00:00 | F132: 00:00:00 | G132: 00:00:00 | H132: 00:00:00 | I132: 00:00:00 | J132: 00:00:00 | K132: 00:00:00 | L132: 00:00:00 | M132: 00:00:00 | N132: 00:00:00 | O132: 00:00:00 | P132: 00:00:00 | Q132: 00:00:00 | R132: 00:00:00 | S132: 00:00:00 | T132: 00:00:00 | U132: 00:00:00 | V132: 00:00:00 | W132: 00:00:00 | X132: 00:00:00 | Y132: 00:00:00 | Z132: 00:00:00 | AA132: 00:00:00 | AB132: 00:00:00 | AC132: 00:00:00 | AD132: 00:00:00 | AE132: 00:00:00 | AF132: 00:00:00 | AG132: =SUM(B132:AF132) -> 0 | AH132: =AG132/SUM($AG$6:$AG$137) ->  | AP132: =$AG132*'puncte misiuni-competente'!B131/'puncte misiuni-competente'!B$4/(3744/122*0.875) -> 0 | AQ132: =$AG132*'puncte misiuni-competente'!C131/'puncte misiuni-competente'!C$4/(3744/122*0.875) -> 0 | AR132: =$AG132*'puncte misiuni-competente'!D131/'puncte misiuni-competente'!D$4/(3744/122*0.875) -> 0 | AS132: =$AG132*'puncte misiuni-competente'!E131/'puncte misiuni-competente'!E$4/(3744/122*0.875) -> 0 | AT132: =$AG132*'puncte misiuni-competente'!F131/'puncte misiuni-competente'!F$4/(3744/122*0.875) -> 0 | AU132: =$AG132*'puncte misiuni-competente'!G131/'puncte misiuni-competente'!G$4/(3744/122*0.875) -> 0 | AV132: =$AG132*'puncte misiuni-competente'!H131/'puncte misiuni-competente'!H$4/(3744/122*0.875) -> 0
A134: 11.1.1. Sustinerea proiecului | B134: 00:00:00 | C134: 00:00:00 | D134: 00:00:00 | E134: 00:00:00 | F134: 00:00:00 | G134: 00:00:00 | H134: 00:00:00 | I134: 00:00:00 | J134: 00:00:00 | K134: 00:00:00 | L134: 00:00:00 | M134: 00:00:00 | N134: 00:00:00 | O134: 00:00:00 | P134: 00:00:00 | Q134: 00:00:00 | R134: 00:00:00 | S134: 00:00:00 | T134: 00:00:00 | U134: 00:00:00 | V134: 00:00:00 | W134: 00:00:00 | X134: 00:00:00 | Y134: 00:00:00 | Z134: 00:00:00 | AA134: 00:00:00 | AB134: 00:00:00 | AC134: 00:00:00 | AD134: 00:00:00 | AE134: 00:00:00 | AF134: 00:00:00 | AG134: =SUM(B134:AF134) -> 0 | AH134: =AG134/SUM($AG$6:$AG$137) ->  | AP134: =$AG134*'puncte misiuni-competente'!B133/'puncte misiuni-competente'!B$4/(3744/122*0.875) -> 0 | AQ134: =$AG134*'puncte misiuni-competente'!C133/'puncte misiuni-competente'!C$4/(3744/122*0.875) -> 0 | AR134: =$AG134*'puncte misiuni-competente'!D133/'puncte misiuni-competente'!D$4/(3744/122*0.875) -> 0 | AS134: =$AG134*'puncte misiuni-competente'!E133/'puncte misiuni-competente'!E$4/(3744/122*0.875) -> 0 | AT134: =$AG134*'puncte misiuni-competente'!F133/'puncte misiuni-competente'!F$4/(3744/122*0.875) -> 0 | AU134: =$AG134*'puncte misiuni-competente'!G133/'puncte misiuni-competente'!G$4/(3744/122*0.875) -> 0 | AV134: =$AG134*'puncte misiuni-competente'!H133/'puncte misiuni-competente'!H$4/(3744/122*0.875) -> 0
A136: 11.1.2. Materiale pentru marketing | B136: 00:00:00 | C136: 00:00:00 | D136: 00:00:00 | E136: 00:00:00 | F136: 00:00:00 | G136: 00:00:00 | H136: 00:00:00 | I136: 00:00:00 | J136: 00:00:00 | K136: 00:00:00 | L136: 00:00:00 | M136: 00:00:00 | N136: 00:00:00 | O136: 00:00:00 | P136: 00:00:00 | Q136: 00:00:00 | R136: 00:00:00 | S136: 00:00:00 | T136: 00:00:00 | U136: 00:00:00 | V136: 00:00:00 | W136: 00:00:00 | X136: 00:00:00 | Y136: 00:00:00 | Z136: 00:00:00 | AA136: 00:00:00 | AB136: 00:00:00 | AC136: 00:00:00 | AD136: 00:00:00 | AE136: 00:00:00 | AF136: 00:00:00 | AG136: =SUM(B136:AF136) -> 0 | AH136: =AG136/SUM($AG$6:$AG$137) ->  | AP136: =$AG136*'puncte misiuni-competente'!B135/'puncte misiuni-competente'!B$4/(3744/122*0.875) -> 0 | AQ136: =$AG136*'puncte misiuni-competente'!C135/'puncte misiuni-competente'!C$4/(3744/122*0.875) -> 0 | AR136: =$AG136*'puncte misiuni-competente'!D135/'puncte misiuni-competente'!D$4/(3744/122*0.875) -> 0 | AS136: =$AG136*'puncte misiuni-competente'!E135/'puncte misiuni-competente'!E$4/(3744/122*0.875) -> 0 | AT136: =$AG136*'puncte misiuni-competente'!F135/'puncte misiuni-competente'!F$4/(3744/122*0.875) -> 0 | AU136: =$AG136*'puncte misiuni-competente'!G135/'puncte misiuni-competente'!G$4/(3744/122*0.875) -> 0 | AV136: =$AG136*'puncte misiuni-competente'!H135/'puncte misiuni-competente'!H$4/(3744/122*0.875) -> 0
A138: Total ore / zi (h) | B138: =B6+B8+B10+B12+B14+B16+B18+B20+B22+B24+B26+B28+B30+B32+B34+B36+B38+B40+B42+B44+B46+B48+B50+B52+B54+B56+B58+B60+B62+B64+B66+B68+B70+B72+B74+B76+B78+B80+B82+B84+B86+B88+B90+B92+B94+B96+B98+B100+B102+B104+B106+B108+B110+B112+B114+B116+B118+B120+B122+B124+B126+B128+B130+B132+B134+B136 -> 00:00:00 | C138: =C6+C8+C10+C12+C14+C16+C18+C20+C22+C24+C26+C28+C30+C32+C34+C36+C38+C40+C42+C44+C46+C48+C50+C52+C54+C56+C58+C60+C62+C64+C66+C68+C70+C72+C74+C76+C78+C80+C82+C84+C86+C88+C90+C92+C94+C96+C98+C100+C102+C104+C106+C108+C110+C112+C114+C116+C118+C120+C122+C124+C126+C128+C130+C132+C134+C136 -> 00:00:00 | D138: 00:00:00 | E138: 00:00:00 | F138: 00:00:00 | G138: 00:00:00 | H138: 00:00:00 | I138: 00:00:00 | J138: 00:00:00 | K138: 00:00:00 | L138: 00:00:00 | M138: 00:00:00 | N138: 00:00:00 | O138: 00:00:00 | P138: 00:00:00 | Q138: 00:00:00 | R138: 00:00:00 | S138: 00:00:00 | T138: 00:00:00 | U138: 00:00:00 | V138: 00:00:00 | W138: 0 | X138: 00:00:00 | Y138: 00:00:00 | Z138: 00:00:00 | AA138: 00:00:00 | AB138: 00:00:00 | AC138: 00:00:00 | AD138: 00:00:00 | AE138: 00:00:00 | AF138: 00:00:00 | AG138: =SUM(B138:AF138) -> 0
A139: Aport zilnic din total lunar (%) | B139: =B138/SUM($B$138:$AF$138) ->  | C139: =C138/SUM($B$138:$AF$138) ->  | AH139: =SUM(AH6:AH136) ->  | AP139: =SUM(AP6:AP137)*24 -> 0 | AQ139: =SUM(AQ6:AQ137)*24 -> 0 | AR139: 0 | AS139: 0 | AT139: 0 | AU139: 0 | AV139: 0

Sheet luna 3
A1: Fisa de evaluare a stagiului_v1.1
B3: arhitect stagiar | E3: Ion POPESCU | K3: arhitect indrumator | N3: Prenume NUME | U3: luna calendaristica | X3: ianuarie
B4: numar TNA | E4: 1234 | K4: numar TNA | N4: 5678 | U4: anul | X4: 2017
A5: Misiuni de baza / misiuni suplimentare | B5: 1 | C5: 2 | D5: 3 | E5: 4 | F5: 5 | G5: 6 | H5: 7 | I5: 8 | J5: 9 | K5: 10 | L5: 11 | M5: 12 | N5: 13 | O5: 14 | P5: 15 | Q5: 16 | R5: 17 | S5: 18 | T5: 19 | U5: 20 | V5: 21 | W5: 22 | X5: 23 | Y5: 24 | Z5: 25 | AA5: 26 | AB5: 27 | AC5: 28 | AD5: 29 | AE5: 30 | AF5: 31 | AG5: Total luna (h) | AH5: Total luna (%) | AP5: Doctrinare | AQ5: Tehnice | AR5: Ecologice | AS5: Relationale | AT5: Manageriale | AU5: Economice | AV5: Juridice
A6: 1.1.1. Tema pentru ofertare | B6: 00:00:00 | C6: 00:00:00 | D6: 00:00:00 | E6: 00:00:00 | F6: 00:00:00 | G6: 00:00:00 | H6: 00:00:00 | I6: 00:00:00 | J6: 00:00:00 | K6: 00:00:00 | L6: 00:00:00 | M6: 00:00:00 | N6: 00:00:00 | O6: 00:00:00 | P6: 00:00:00 | Q6: 00:00:00 | R6: 00:00:00 | S6: 00:00:00 | T6: 00:00:00 | U6: 00:00:00 | V6: 00:00:00 | W6: 00:00:00 | X6: 00:00:00 | Y6: 00:00:00 | Z6: 00:00:00 | AA6: 00:00:00 | AB6: 00:00:00 | AC6: 00:00:00 | AD6: 00:00:00 | AE6: 00:00:00 | AF6: 00:00:00 | AG6: =SUM(B6:AF6) -> 0 | AH6: =AG6/SUM($AG$6:$AG$137) ->  | AP6: =$AG6*'puncte misiuni-competente'!B5/'puncte misiuni-competente'!B$4/(3744/122*0.875) -> 0 | AQ6: =$AG6*'puncte misiuni-competente'!C5/'puncte misiuni-competente'!C$4/(3744/122*0.875) -> 0 | AR6: =$AG6*'puncte misiuni-competente'!D5/'puncte misiuni-competente'!D$4/(3744/122*0.875) -> 0 | AS6: =$AG6*'puncte misiuni-competente'!E5/'puncte misiuni-competente'!E$4/(3744/122*0.875) -> 0 | AT6: =$AG6*'puncte misiuni-competente'!F5/'puncte misiuni-competente'!F$4/(3744/122*0.875) -> 0 | AU6: =$AG6*'puncte misiuni-competente'!G5/'puncte misiuni-competente'!G$4/(3744/122*0.875) -> 0 | AV6: =$AG6*'puncte misiuni-competente'!H5/'puncte misiuni-competente'!H$4/(3744/122*0.875) -> 0
A8: 1.1.2. Oferta economica | B8: 00:00:00 | C8: 00:00:00 | D8: 00:00:00 | E8: 00:00:00 | F8: 00:00:00 | G8: 00:00:00 | H8: 00:00:00 | I8: 00:00:00 | J8: 00:00:00 | K8: 00:00:00 | L8: 00:00:00 | M8: 00:00:00 | N8: 00:00:00 | O8: 00:00:00 | P8: 00:00:00 | Q8: 00:00:00 | R8: 00:00:00 | S8: 00:00:00 | T8: 00:00:00 | U8: 00:00:00 | V8: 00:00:00 | W8: 00:00:00 | X8: 00:00:00 | Y8: 00:00:00 | Z8: 00:00:00 | AA8: 00:00:00 | AB8: 00:00:00 | AC8: 00:00:00 | AD8: 00:00:00 | AE8: 00:00:00 | AF8: 00:00:00 | AG8: =SUM(B8:AF8) -> 0 | AH8: =AG8/SUM($AG$6:$AG$137) ->  | AP8: =$AG8*'puncte misiuni-competente'!B7/'puncte misiuni-competente'!B$4/(3744/122*0.875) -> 0 | AQ8: =$AG8*'puncte misiuni-competente'!C7/'puncte misiuni-competente'!C$4/(3744/122*0.875) -> 0 | AR8: =$AG8*'puncte misiuni-competente'!D7/'puncte misiuni-competente'!D$4/(3744/122*0.875) -> 0 | AS8: =$AG8*'puncte misiuni-competente'!E7/'puncte misiuni-competente'!E$4/(3744/122*0.875) -> 0 | AT8: =$AG8*'puncte misiuni-competente'!F7/'puncte misiuni-competente'!F$4/(3744/122*0.875) -> 0 | AU8: =$AG8*'puncte misiuni-competente'!G7/'puncte misiuni-competente'!G$4/(3744/122*0.875) -> 0 | AV8: =$AG8*'puncte misiuni-competente'!H7/'puncte misiuni-competente'!H$4/(3744/122*0.875) -> 0
A10: 1.1.3 Acceptarea ofertei si încheierea contractului de proiectare | B10: 00:00:00 | C10: 00:00:00 | D10: 00:00:00 | E10: 00:00:00 | F10: 00:00:00 | G10: 00:00:00 | H10: 00:00:00 | I10: 00:00:00 | J10: 00:00:00 | K10: 00:00:00 | L10: 00:00:00 | M10: 00:00:00 | N10: 00:00:00 | O10: 00:00:00 | P10: 00:00:00 | Q10: 00:00:00 | R10: 00:00:00 | S10: 00:00:00 | T10: 00:00:00 | U10: 00:00:00 | V10: 00:00:00 | W10: 00:00:00 | X10: 00:00:00 | Y10: 00:00:00 | Z10: 00:00:00 | AA10: 00:00:00 | AB10: 00:00:00 | AC10: 00:00:00 | AD10: 00:00:00 | AE10: 00:00:00 | AF10: 00:00:00 | AG10: =SUM(B10:AF10) -> 0 | AH10: =AG10/SUM($AG$6:$AG$137) ->  | AP10: =$AG10*'puncte misiuni-competente'!B9/'puncte misiuni-competente'!B$4/(3744/122*0.875) -> 0 | AQ10: =$AG10*'puncte misiuni-competente'!C9/'puncte misiuni-competente'!C$4/(3744/122*0.875) -> 0 | AR10: =$AG10*'puncte misiuni-competente'!D9/'puncte misiuni-competente'!D$4/(3744/122*0.875) -> 0 | AS10: =$AG10*'puncte misiuni-competente'!E9/'puncte misiuni-competente'!E$4/(3744/122*0.875) -> 0 | AT10: =$AG10*'puncte misiuni-competente'!F9/'puncte misiuni-competente'!F$4/(3744/122*0.875) -> 0 | AU10: =$AG10*'puncte misiuni-competente'!G9/'puncte misiuni-competente'!G$4/(3744/122*0.875) -> 0 | AV10: =$AG10*'puncte misiuni-competente'!H9/'puncte misiuni-competente'!H$4/(3744/122*0.875) -> 0
A12: 1.1.4. Analiza contextului urbanistic, tehnic, si legislativ | B12: 00:00:00 | C12: 00:00:00 | D12: 00:00:00 | E12: 00:00:00 | F12: 00:00:00 | G12: 00:00:00 | H12: 00:00:00 | I12: 00:00:00 | J12: 00:00:00 | K12: 00:00:00 | L12: 00:00:00 | M12: 00:00:00 | N12: 00:00:00 | O12: 00:00:00 | P12: 00:00:00 | Q12: 00:00:00 | R12: 00:00:00 | S12: 00:00:00 | T12: 00:00:00 | U12: 00:00:00 | V12: 00:00:00 | W12: 00:00:00 | X12: 00:00:00 | Y12: 00:00:00 | Z12: 00:00:00 | AA12: 00:00:00 | AB12: 00:00:00 | AC12: 00:00:00 | AD12: 00:00:00 | AE12: 00:00:00 | AF12: 00:00:00 | AG12: =SUM(B12:AF12) -> 0 | AH12: =AG12/SUM($AG$6:$AG$137) ->  | AP12: =$AG12*'puncte misiuni-competente'!B11/'puncte misiuni-competente'!B$4/(3744/122*0.875) -> 0 | AQ12: =$AG12*'puncte misiuni-competente'!C11/'puncte misiuni-competente'!C$4/(3744/122*0.875) -> 0 | AR12: =$AG12*'puncte misiuni-competente'!D11/'puncte misiuni-competente'!D$4/(3744/122*0.875) -> 0 | AS12: =$AG12*'puncte misiuni-competente'!E11/'puncte misiuni-competente'!E$4/(3744/122*0.875) -> 0 | AT12: =$AG12*'puncte misiuni-competente'!F11/'puncte misiuni-competente'!F$4/(3744/122*0.875) -> 0 | AU12: =$AG12*'puncte misiuni-competente'!G11/'puncte misiuni-competente'!G$4/(3744/122*0.875) -> 0 | AV12: =$AG12*'puncte misiuni-competente'!H11/'puncte misiuni-competente'!H$4/(3744/122*0.875) -> 0
A14: 1.2.1. Consultanta imobiliara | B14: 00:00:00 | C14: 00:00:00 | D14: 00:00:00 | E14: 00:00:00 | F14: 00:00:00 | G14: 00:00:00 | H14: 00:00:00 | I14: 00:00:00 | J14: 00:00:00 | K14: 00:00:00 | L14: 00:00:00 | M14: 00:00:00 | N14: 00:00:00 | O14: 00:00:00 | P14: 00:00:00 | Q14: 00:00:00 | R14: 00:00:00 | S14: 00:00:00 | T14: 00:00:00 | U14: 00:00:00 | V14: 00:00:00 | W14: 00:00:00 | X14: 00:00:00 | Y14: 00:00:00 | Z14: 00:00:00 | AA14: 00:00:00 | AB14: 00:00:00 | AC14: 00:00:00 | AD14: 00:00:00 | AE14: 00:00:00 | AF14: 00:00:00 | AG14: =SUM(B14:AF14) -> 0 | AH14: =AG14/SUM($AG$6:$AG$137) ->  | AP14: =$AG14*'puncte misiuni-competente'!B13/'puncte misiuni-competente'!B$4/(3744/122*0.875) -> 0 | AQ14: =$AG14*'puncte misiuni-competente'!C13/'puncte misiuni-competente'!C$4/(3744/122*0.875) -> 0 | AR14: =$AG14*'puncte misiuni-competente'!D13/'puncte misiuni-competente'!D$4/(3744/122*0.875) -> 0 | AS14: =$AG14*'puncte misiuni-competente'!E13/'puncte misiuni-competente'!E$4/(3744/122*0.875) -> 0 | AT14: =$AG14*'puncte misiuni-competente'!F13/'puncte misiuni-competente'!F$4/(3744/122*0.875) -> 0 | AU14: =$AG14*'puncte misiuni-competente'!G13/'puncte misiuni-competente'!G$4/(3744/122*0.875) -> 0 | AV14: =$AG14*'puncte misiuni-competente'!H13/'puncte misiuni-competente'!H$4/(3744/122*0.875) -> 0
A16: 1.2.2. Ilustrarea de tema in scop de ofertare | B16: 00:00:00 | C16: 00:00:00 | D16: 00:00:00 | E16: 00:00:00 | F16: 00:00:00 | G16: 00:00:00 | H16: 00:00:00 | I16: 00:00:00 | J16: 00:00:00 | K16: 00:00:00 | L16: 00:00:00 | M16: 00:00:00 | N16: 00:00:00 | O16: 00:00:00 | P16: 00:00:00 | Q16: 00:00:00 | R16: 00:00:00 | S16: 00:00:00 | T16: 00:00:00 | U16: 00:00:00 | V16: 00:00:00 | W16: 00:00:00 | X16: 00:00:00 | Y16: 00:00:00 | Z16: 00:00:00 | AA16: 00:00:00 | AB16: 00:00:00 | AC16: 00:00:00 | AD16: 00:00:00 | AE16: 00:00:00 | AF16: 00:00:00 | AG16: =SUM(B16:AF16) -> 0 | AH16: =AG16/SUM($AG$6:$AG$137) ->  | AP16: =$AG16*'puncte misiuni-competente'!B15/'puncte misiuni-competente'!B$4/(3744/122*0.875) -> 0 | AQ16: =$AG16*'puncte misiuni-competente'!C15/'puncte misiuni-competente'!C$4/(3744/122*0.875) -> 0 | AR16: =$AG16*'puncte misiuni-competente'!D15/'puncte misiuni-competente'!D$4/(3744/122*0.875) -> 0 | AS16: =$AG16*'puncte misiuni-competente'!E15/'puncte misiuni-competente'!E$4/(3744/122*0.875) -> 0 | AT16: =$AG16*'puncte misiuni-competente'!F15/'puncte misiuni-competente'!F$4/(3744/122*0.875) -> 0 | AU16: =$AG16*'puncte misiuni-competente'!G15/'puncte misiuni-competente'!G$4/(3744/122*0.875) -> 0 | AV16: =$AG16*'puncte misiuni-competente'!H15/'puncte misiuni-competente'!H$4/(3744/122*0.875) -> 0
A18: 1.2.3. Studiul de prefezabilitate | B18: 00:00:00 | C18: 00:00:00 | D18: 00:00:00 | E18: 00:00:00 | F18: 00:00:00 | G18: 00:00:00 | H18: 00:00:00 | I18: 00:00:00 | J18: 00:00:00 | K18: 00:00:00 | L18: 00:00:00 | M18: 00:00:00 | N18: 00:00:00 | O18: 00:00:00 | P18: 00:00:00 | Q18: 00:00:00 | R18: 00:00:00 | S18: 00:00:00 | T18: 00:00:00 | U18: 00:00:00 | V18: 00:00:00 | W18: 00:00:00 | X18: 00:00:00 | Y18: 00:00:00 | Z18: 00:00:00 | AA18: 00:00:00 | AB18: 00:00:00 | AC18: 00:00:00 | AD18: 00:00:00 | AE18: 00:00:00 | AF18: 00:00:00 | AG18: =SUM(B18:AF18) -> 0 | AH18: =AG18/SUM($AG$6:$AG$137) ->  | AP18: =$AG18*'puncte misiuni-competente'!B17/'puncte misiuni-competente'!B$4/(3744/122*0.875) -> 0 | AQ18: =$AG18*'puncte misiuni-competente'!C17/'puncte misiuni-competente'!C$4/(3744/122*0.875) -> 0 | AR18: =$AG18*'puncte misiuni-competente'!D17/'puncte misiuni-competente'!D$4/(3744/122*0.875) -> 0 | AS18: =$AG18*'puncte misiuni-competente'!E17/'puncte misiuni-competente'!E$4/(3744/122*0.875) -> 0 | AT18: =$AG18*'puncte misiuni-competente'!F17/'puncte misiuni-competente'!F$4/(3744/122*0.875) -> 0 | AU18: =$AG18*'puncte misiuni-competente'!G17/'puncte misiuni-competente'!G$4/(3744/122*0.875) -> 0 | AV18: =$AG18*'puncte misiuni-competente'!H17/'puncte misiuni-competente'!H$4/(3744/122*0.875) -> 0
A20: 2.1.1. Tema preliminara de proiectare | B20: 00:00:00 | C20: 00:00:00 | D20: 00:00:00 | E20: 00:00:00 | F20: 00:00:00 | G20: 00:00:00 | H20: 00:00:00 | I20: 00:00:00 | J20: 00:00:00 | K20: 00:00:00 | L20: 00:00:00 | M20: 00:00:00 | N20: 00:00:00 | O20: 00:00:00 | P20: 00:00:00 | Q20: 00:00:00 | R20: 00:00:00 | S20: 00:00:00 | T20: 00:00:00 | U20: 00:00:00 | V20: 00:00:00 | W20: 00:00:00 | X20: 00:00:00 | Y20: 00:00:00 | Z20: 00:00:00 | AA20: 00:00:00 | AB20: 00:00:00 | AC20: 00:00:00 | AD20: 00:00:00 | AE20: 00:00:00 | AF20: 00:00:00 | AG20: =SUM(B20:AF20) -> 0 | AH20: =AG20/SUM($AG$6:$AG$137) ->  | AP20: =$AG20*'puncte misiuni-competente'!B19/'puncte misiuni-competente'!B$4/(3744/122*0.875) -> 0 | AQ20: =$AG20*'puncte misiuni-competente'!C19/'puncte misiuni-competente'!C$4/(3744/122*0.875) -> 0 | AR20: =$AG20*'puncte misiuni-competente'!D19/'puncte misiuni-competente'!D$4/(3744/122*0.875) -> 0 | AS20: =$AG20*'puncte misiuni-competente'!E19/'puncte misiuni-competente'!E$4/(3744/122*0.875) -> 0 | AT20: =$AG20*'puncte misiuni-competente'!F19/'puncte misiuni-competente'!F$4/(3744/122*0.875) -> 0 | AU20: =$AG20*'puncte misiuni-competente'!G19/'puncte misiuni-competente'!G$4/(3744/122*0.875) -> 0 | AV20: =$AG20*'puncte misiuni-competente'!H19/'puncte misiuni-competente'!H$4/(3744/122*0.875) -> 0
A22: 2.1.2. Documente si studii necesare | B22: 00:00:00 | C22: 00:00:00 | D22: 00:00:00 | E22: 00:00:00 | F22: 00:00:00 | G22: 00:00:00 | H22: 00:00:00 | I22: 00:00:00 | J22: 00:00:00 | K22: 00:00:00 | L22: 00:00:00 | M22: 00:00:00 | N22: 00:00:00 | O22: 00:00:00 | P22: 00:00:00 | Q22: 00:00:00 | R22: 00:00:00 | S22: 00:00:00 | T22: 00:00:00 | U22: 00:00:00 | V22: 00:00:00 | W22: 00:00:00 | X22: 00:00:00 | Y22: 00:00:00 | Z22: 00:00:00 | AA22: 00:00:00 | AB22: 00:00:00 | AC22: 00:00:00 | AD22: 00:00:00 | AE22: 00:00:00 | AF22: 00:00:00 | AG22: =SUM(B22:AF22) -> 0 | AH22: =AG22/SUM($AG$6:$AG$137) ->  | AP22: =$AG22*'puncte misiuni-competente'!B21/'puncte misiuni-competente'!B$4/(3744/122*0.875) -> 0 | AQ22: =$AG22*'puncte misiuni-competente'!C21/'puncte misiuni-competente'!C$4/(3744/122*0.875) -> 0 | AR22: =$AG22*'puncte misiuni-competente'!D21/'puncte misiuni-competente'!D$4/(3744/122*0.875) -> 0 | AS22: =$AG22*'puncte misiuni-competente'!E21/'puncte misiuni-competente'!E$4/(3744/122*0.875) -> 0 | AT22: =$AG22*'puncte misiuni-competente'!F21/'puncte misiuni-competente'!F$4/(3744/122*0.875) -> 0 | AU22: =$AG22*'puncte misiuni-competente'!G21/'puncte misiuni-competente'!G$4/(3744/122*0.875) -> 0 | AV22: =$AG22*'puncte misiuni-competente'!H21/'puncte misiuni-competente'!H$4/(3744/122*0.875) -> 0
A24: 2.1.3. Specialiști necesar a fi implicati in elaborarea proiectului | B24: 00:00:00 | C24: 00:00:00 | D24: 00:00:00 | E24: 00:00:00 | F24: 00:00:00 | G24: 00:00:00 | H24: 00:00:00 | I24: 00:00:00 | J24: 00:00:00 | K24: 00:00:00 | L24: 00:00:00 | M24: 00:00:00 | N24: 00:00:00 | O24: 00:00:00 | P24: 00:00:00 | Q24: 00:00:00 | R24: 00:00:00 | S24: 00:00:00 | T24: 00:00:00 | U24: 00:00:00 | V24: 00:00:00 | W24: 00:00:00 | X24: 00:00:00 | Y24: 00:00:00 | Z24: 00:00:00 | AA24: 00:00:00 | AB24: 00:00:00 | AC24: 00:00:00 | AD24: 00:00:00 | AE24: 00:00:00 | AF24: 00:00:00 | AG24: =SUM(B24:AF24) -> 0 | AH24: =AG24/SUM($AG$6:$AG$137) ->  | AP24: =$AG24*'puncte misiuni-competente'!B23/'puncte misiuni-competente'!B$4/(3744/122*0.875) -> 0 | AQ24: =$AG24*'puncte misiuni-competente'!C23/'puncte misiuni-competente'!C$4/(3744/122*0.875) -> 0 | AR24: =$AG24*'puncte misiuni-competente'!D23/'puncte misiuni-competente'!D$4/(3744/122*0.875) -> 0 | AS24: =$AG24*'puncte misiuni-competente'!E23/'puncte misiuni-competente'!E$4/(3744/122*0.875) -> 0 | AT24: =$AG24*'puncte misiuni-competente'!F23/'puncte misiuni-competente'!F$4/(3744/122*0.875) -> 0 | AU24: =$AG24*'puncte misiuni-competente'!G23/'puncte misiuni-competente'!G$4/(3744/122*0.875) -> 0 | AV24: =$AG24*'puncte misiuni-competente'!H23/'puncte misiuni-competente'!H$4/(3744/122*0.875) -> 0
A26: 2.1.4. Ilustrare de tema | B26: 00:00:00 | C26: 00:00:00 | D26: 00:00:00 | E26: 00:00:00 | F26: 00:00:00 | G26: 00:00:00 | H26: 00:00:00 | I26: 00:00:00 | J26: 00:00:00 | K26: 00:00:00 | L26: 00:00:00 | M26: 00:00:00 | N26: 00:00:00 | O26: 00:00:00 | P26: 00:00:00 | Q26: 00:00:00 | R26: 00:00:00 | S26: 00:00:00 | T26: 00:00:00 | U26: 00:00:00 | V26: 00:00:00 | W26: 00:00:00 | X26: 00:00:00 | Y26: 00:00:00 | Z26: 00:00:00 | AA26: 00:00:00 | AB26: 00:00:00 | AC26: 00:00:00 | AD26: 00:00:00 | AE26: 00:00:00 | AF26: 00:00:00 | AG26: =SUM(B26:AF26) -> 0 | AH26: =AG26/SUM($AG$6:$AG$137) ->  | AP26: =$AG26*'puncte misiuni-competente'!B25/'puncte misiuni-competente'!B$4/(3744/122*0.875) -> 0 | AQ26: =$AG26*'puncte misiuni-competente'!C25/'puncte misiuni-competente'!C$4/(3744/122*0.875) -> 0 | AR26: =$AG26*'puncte misiuni-competente'!D25/'puncte misiuni-competente'!D$4/(3744/122*0.875) -> 0 | AS26: =$AG26*'puncte misiuni-competente'!E25/'puncte misiuni-competente'!E$4/(3744/122*0.875) -> 0 | AT26: =$AG26*'puncte misiuni-competente'!F25/'puncte misiuni-competente'!F$4/(3744/122*0.875) -> 0 | AU26: =$AG26*'puncte misiuni-competente'!G25/'puncte misiuni-competente'!G$4/(3744/122*0.875) -> 0 | AV26: =$AG26*'puncte misiuni-competente'!H25/'puncte misiuni-competente'!H$4/(3744/122*0.875) -> 0
A28: 2.1.5. Bugetare costuri de investitie | B28: 00:00:00 | C28: 00:00:00 | D28: 00:00:00 | E28: 00:00:00 | F28: 00:00:00 | G28: 00:00:00 | H28: 00:00:00 | I28: 00:00:00 | J28: 00:00:00 | K28: 00:00:00 | L28: 00:00:00 | M28: 00:00:00 | N28: 00:00:00 | O28: 00:00:00 | P28: 00:00:00 | Q28: 00:00:00 | R28: 00:00:00 | S28: 00:00:00 | T28: 00:00:00 | U28: 00:00:00 | V28: 00:00:00 | W28: 00:00:00 | X28: 00:00:00 | Y28: 00:00:00 | Z28: 00:00:00 | AA28: 00:00:00 | AB28: 00:00:00 | AC28: 00:00:00 | AD28: 00:00:00 | AE28: 00:00:00 | AF28: 00:00:00 | AG28: =SUM(B28:AF28) -> 0 | AH28: =AG28/SUM($AG$6:$AG$137) ->  | AP28: =$AG28*'puncte misiuni-competente'!B27/'puncte misiuni-competente'!B$4/(3744/122*0.875) -> 0 | AQ28: =$AG28*'puncte misiuni-competente'!C27/'puncte misiuni-competente'!C$4/(3744/122*0.875) -> 0 | AR28: =$AG28*'puncte misiuni-competente'!D27/'puncte misiuni-competente'!D$4/(3744/122*0.875) -> 0 | AS28: =$AG28*'puncte misiuni-competente'!E27/'puncte misiuni-competente'!E$4/(3744/122*0.875) -> 0 | AT28: =$AG28*'puncte misiuni-competente'!F27/'puncte misiuni-competente'!F$4/(3744/122*0.875) -> 0 | AU28: =$AG28*'puncte misiuni-competente'!G27/'puncte misiuni-competente'!G$4/(3744/122*0.875) -> 0 | AV28: =$AG28*'puncte misiuni-competente'!H27/'puncte misiuni-competente'!H$4/(3744/122*0.875) -> 0
A30: 2.1.6. Planificarea desfasurarii investitiei | B30: 00:00:00 | C30: 00:00:00 | D30: 00:00:00 | E30: 00:00:00 | F30: 00:00:00 | G30: 00:00:00 | H30: 00:00:00 | I30: 00:00:00 | J30: 00:00:00 | K30: 00:00:00 | L30: 00:00:00 | M30: 00:00:00 | N30: 00:00:00 | O30: 00:00:00 | P30: 00:00:00 | Q30: 00:00:00 | R30: 00:00:00 | S30: 00:00:00 | T30: 00:00:00 | U30: 00:00:00 | V30: 00:00:00 | W30: 00:00:00 | X30: 00:00:00 | Y30: 00:00:00 | Z30: 00:00:00 | AA30: 00:00:00 | AB30: 00:00:00 | AC30: 00:00:00 | AD30: 00:00:00 | AE30: 00:00:00 | AF30: 00:00:00 | AG30: =SUM(B30:AF30) -> 0 | AH30: =AG30/SUM($AG$6:$AG$137) ->  | AP30: =$AG30*'puncte misiuni-competente'!B29/'puncte misiuni-competente'!B$4/(3744/122*0.875) -> 0 | AQ30: =$AG30*'puncte misiuni-competente'!C29/'puncte misiuni-competente'!C$4/(3744/122*0.875) -> 0 | AR30: =$AG30*'puncte misiuni-competente'!D29/'puncte misiuni-competente'!D$4/(3744/122*0.875) -> 0 | AS30: =$AG30*'puncte misiuni-competente'!E29/'puncte misiuni-competente'!E$4/(3744/122*0.875) -> 0 | AT30: =$AG30*'puncte misiuni-competente'!F29/'puncte misiuni-competente'!F$4/(3744/122*0.875) -> 0 | AU30: =$AG30*'puncte misiuni-competente'!G29/'puncte misiuni-competente'!G$4/(3744/122*0.875) -> 0 | AV30: =$AG30*'puncte misiuni-competente'!H29/'puncte misiuni-competente'!H$4/(3744/122*0.875) -> 0
A32: 2.1.7. Releveu | B32: 00:00:00 | C32: 00:00:00 | D32: 00:00:00 | E32: 00:00:00 | F32: 00:00:00 | G32: 00:00:00 | H32: 00:00:00 | I32: 00:00:00 | J32: 00:00:00 | K32: 00:00:00 | L32: 00:00:00 | M32: 00:00:00 | N32: 00:00:00 | O32: 00:00:00 | P32: 00:00:00 | Q32: 00:00:00 | R32: 00:00:00 | S32: 00:00:00 | T32: 00:00:00 | U32: 00:00:00 | V32: 00:00:00 | W32: 00:00:00 | X32: 00:00:00 | Y32: 00:00:00 | Z32: 00:00:00 | AA32: 00:00:00 | AB32: 00:00:00 | AC32: 00:00:00 | AD32: 00:00:00 | AE32: 00:00:00 | AF32: 00:00:00 | AG32: =SUM(B32:AF32) -> 0 | AH32: =AG32/SUM($AG$6:$AG$137) ->  | AP32: =$AG32*'puncte misiuni-competente'!B31/'puncte misiuni-competente'!B$4/(3744/122*0.875) -> 0 | AQ32: =$AG32*'puncte misiuni-competente'!C31/'puncte misiuni-competente'!C$4/(3744/122*0.875) -> 0 | AR32: =$AG32*'puncte misiuni-competente'!D31/'puncte misiuni-competente'!D$4/(3744/122*0.875) -> 0 | AS32: =$AG32*'puncte misiuni-competente'!E31/'puncte misiuni-competente'!E$4/(3744/122*0.875) -> 0 | AT32: =$AG32*'puncte misiuni-competente'!F31/'puncte misiuni-competente'!F$4/(3744/122*0.875) -> 0 | AU32: =$AG32*'puncte misiuni-competente'!G31/'puncte misiuni-competente'!G$4/(3744/122*0.875) -> 0 | AV32: =$AG32*'puncte misiuni-competente'!H31/'puncte misiuni-competente'!H$4/(3744/122*0.875) -> 0
A34: 2.2.1. Studiu de ilustrare comparativ | B34: 00:00:00 | C34: 00:00:00 | D34: 00:00:00 | E34: 00:00:00 | F34: 00:00:00 | G34: 00:00:00 | H34: 00:00:00 | I34: 00:00:00 | J34: 00:00:00 | K34: 00:00:00 | L34: 00:00:00 | M34: 00:00:00 | N34: 00:00:00 | O34: 00:00:00 | P34: 00:00:00 | Q34: 00:00:00 | R34: 00:00:00 | S34: 00:00:00 | T34: 00:00:00 | U34: 00:00:00 | V34: 00:00:00 | W34: 00:00:00 | X34: 00:00:00 | Y34: 00:00:00 | Z34: 00:00:00 | AA34: 00:00:00 | AB34: 00:00:00 | AC34: 00:00:00 | AD34: 00:00:00 | AE34: 00:00:00 | AF34: 00:00:00 | AG34: =SUM(B34:AF34) -> 0 | AH34: =AG34/SUM($AG$6:$AG$137) ->  | AP34: =$AG34*'puncte misiuni-competente'!B33/'puncte misiuni-competente'!B$4/(3744/122*0.875) -> 0 | AQ34: =$AG34*'puncte misiuni-competente'!C33/'puncte misiuni-competente'!C$4/(3744/122*0.875) -> 0 | AR34: =$AG34*'puncte misiuni-competente'!D33/'puncte misiuni-competente'!D$4/(3744/122*0.875) -> 0 | AS34: =$AG34*'puncte misiuni-competente'!E33/'puncte misiuni-competente'!E$4/(3744/122*0.875) -> 0 | AT34: =$AG34*'puncte misiuni-competente'!F33/'puncte misiuni-competente'!F$4/(3744/122*0.875) -> 0 | AU34: =$AG34*'puncte misiuni-competente'!G33/'puncte misiuni-competente'!G$4/(3744/122*0.875) -> 0 | AV34: =$AG34*'puncte misiuni-competente'!H33/'puncte misiuni-competente'!H$4/(3744/122*0.875) -> 0
A36: 2.2.2. Solicitarea, urmarirea stadiului de elaborare si ridicarea certificatului de urbanism si a avizelor | B36: 00:00:00 | C36: 00:00:00 | D36: 00:00:00 | E36: 00:00:00 | F36: 00:00:00 | G36: 00:00:00 | H36: 00:00:00 | I36: 00:00:00 | J36: 00:00:00 | K36: 00:00:00 | L36: 00:00:00 | M36: 00:00:00 | N36: 00:00:00 | O36: 00:00:00 | P36: 00:00:00 | Q36: 00:00:00 | R36: 00:00:00 | S36: 00:00:00 | T36: 00:00:00 | U36: 00:00:00 | V36: 00:00:00 | W36: 00:00:00 | X36: 00:00:00 | Y36: 00:00:00 | Z36: 00:00:00 | AA36: 00:00:00 | AB36: 00:00:00 | AC36: 00:00:00 | AD36: 00:00:00 | AE36: 00:00:00 | AF36: 00:00:00 | AG36: =SUM(B36:AF36) -> 0 | AH36: =AG36/SUM($AG$6:$AG$137) ->  | AP36: =$AG36*'puncte misiuni-competente'!B35/'puncte misiuni-competente'!B$4/(3744/122*0.875) -> 0 | AQ36: =$AG36*'puncte misiuni-competente'!C35/'puncte misiuni-competente'!C$4/(3744/122*0.875) -> 0 | AR36: =$AG36*'puncte misiuni-competente'!D35/'puncte misiuni-competente'!D$4/(3744/122*0.875) -> 0 | AS36: =$AG36*'puncte misiuni-competente'!E35/'puncte misiuni-competente'!E$4/(3744/122*0.875) -> 0 | AT36: =$AG36*'puncte misiuni-competente'!F35/'puncte misiuni-competente'!F$4/(3744/122*0.875) -> 0 | AU36: =$AG36*'puncte misiuni-competente'!G35/'puncte misiuni-competente'!G$4/(3744/122*0.875) -> 0 | AV36: =$AG36*'puncte misiuni-competente'!H35/'puncte misiuni-competente'!H$4/(3744/122*0.875) -> 0
A38: 2.2.3. Bugetare costuri de operare | B38: 00:00:00 | C38: 00:00:00 | D38: 00:00:00 | E38: 00:00:00 | F38: 00:00:00 | G38: 00:00:00 | H38: 00:00:00 | I38: 00:00:00 | J38: 00:00:00 | K38: 00:00:00 | L38: 00:00:00 | M38: 00:00:00 | N38: 00:00:00 | O38: 00:00:00 | P38: 00:00:00 | Q38: 00:00:00 | R38: 00:00:00 | S38: 00:00:00 | T38: 00:00:00 | U38: 00:00:00 | V38: 00:00:00 | W38: 00:00:00 | X38: 00:00:00 | Y38: 00:00:00 | Z38: 00:00:00 | AA38: 00:00:00 | AB38: 00:00:00 | AC38: 00:00:00 | AD38: 00:00:00 | AE38: 00:00:00 | AF38: 00:00:00 | AG38: =SUM(B38:AF38) -> 0 | AH38: =AG38/SUM($AG$6:$AG$137) ->  | AP38: =$AG38*'puncte misiuni-competente'!B37/'puncte misiuni-competente'!B$4/(3744/122*0.875) -> 0 | AQ38: =$AG38*'puncte misiuni-competente'!C37/'puncte misiuni-competente'!C$4/(3744/122*0.875) -> 0 | AR38: =$AG38*'puncte misiuni-competente'!D37/'puncte misiuni-competente'!D$4/(3744/122*0.875) -> 0 | AS38: =$AG38*'puncte misiuni-competente'!E37/'puncte misiuni-competente'!E$4/(3744/122*0.875) -> 0 | AT38: =$AG38*'puncte misiuni-competente'!F37/'puncte misiuni-competente'!F$4/(3744/122*0.875) -> 0 | AU38: =$AG38*'puncte misiuni-competente'!G37/'puncte misiuni-competente'!G$4/(3744/122*0.875) -> 0 | AV38: =$AG38*'puncte misiuni-competente'!H37/'puncte misiuni-competente'!H$4/(3744/122*0.875) -> 0
A40: 2.2.4. Consultanta privind modalitatea de modificare a regimului tehnic si economic al imobilului | B40: 00:00:00 | C40: 00:00:00 | D40: 00:00:00 | E40: 00:00:00 | F40: 00:00:00 | G40: 00:00:00 | H40: 00:00:00 | I40: 00:00:00 | J40: 00:00:00 | K40: 00:00:00 | L40: 00:00:00 | M40: 00:00:00 | N40: 00:00:00 | O40: 00:00:00 | P40: 00:00:00 | Q40: 00:00:00 | R40: 00:00:00 | S40: 00:00:00 | T40: 00:00:00 | U40: 00:00:00 | V40: 00:00:00 | W40: 00:00:00 | X40: 00:00:00 | Y40: 00:00:00 | Z40: 00:00:00 | AA40: 00:00:00 | AB40: 00:00:00 | AC40: 00:00:00 | AD40: 00:00:00 | AE40: 00:00:00 | AF40: 00:00:00 | AG40: =SUM(B40:AF40) -> 0 | AH40: =AG40/SUM($AG$6:$AG$137) ->  | AP40: =$AG40*'puncte misiuni-competente'!B39/'puncte misiuni-competente'!B$4/(3744/122*0.875) -> 0 | AQ40: =$AG40*'puncte misiuni-competente'!C39/'puncte misiuni-competente'!C$4/(3744/122*0.875) -> 0 | AR40: =$AG40*'puncte misiuni-competente'!D39/'puncte misiuni-competente'!D$4/(3744/122*0.875) -> 0 | AS40: =$AG40*'puncte misiuni-competente'!E39/'puncte misiuni-competente'!E$4/(3744/122*0.875) -> 0 | AT40: =$AG40*'puncte misiuni-competente'!F39/'puncte misiuni-competente'!F$4/(3744/122*0.875) -> 0 | AU40: =$AG40*'puncte misiuni-competente'!G39/'puncte misiuni-competente'!G$4/(3744/122*0.875) -> 0 | AV40: =$AG40*'puncte misiuni-competente'!H39/'puncte misiuni-competente'!H$4/(3744/122*0.875) -> 0
A42: 3.1.1. Concept general si de arhitectura | B42: 00:00:00 | C42: 00:00:00 | D42: 00:00:00 | E42: 00:00:00 | F42: 00:00:00 | G42: 00:00:00 | H42: 00:00:00 | I42: 00:00:00 | J42: 00:00:00 | K42: 00:00:00 | L42: 00:00:00 | M42: 00:00:00 | N42: 00:00:00 | O42: 00:00:00 | P42: 00:00:00 | Q42: 00:00:00 | R42: 00:00:00 | S42: 00:00:00 | T42: 00:00:00 | U42: 00:00:00 | V42: 00:00:00 | W42: 00:00:00 | X42: 00:00:00 | Y42: 00:00:00 | Z42: 00:00:00 | AA42: 00:00:00 | AB42: 00:00:00 | AC42: 00:00:00 | AD42: 00:00:00 | AE42: 00:00:00 | AF42: 00:00:00 | AG42: =SUM(B42:AF42) -> 0 | AH42: =AG42/SUM($AG$6:$AG$137) ->  | AP42: =$AG42*'puncte misiuni-competente'!B41/'puncte misiuni-competente'!B$4/(3744/122*0.875) -> 0 | AQ42: =$AG42*'puncte misiuni-competente'!C41/'puncte misiuni-competente'!C$4/(3744/122*0.875) -> 0 | AR42: =$AG42*'puncte misiuni-competente'!D41/'puncte misiuni-competente'!D$4/(3744/122*0.875) -> 0 | AS42: =$AG42*'puncte misiuni-competente'!E41/'puncte misiuni-competente'!E$4/(3744/122*0.875) -> 0 | AT42: =$AG42*'puncte misiuni-competente'!F41/'puncte misiuni-competente'!F$4/(3744/122*0.875) -> 0 | AU42: =$AG42*'puncte misiuni-competente'!G41/'puncte misiuni-competente'!G$4/(3744/122*0.875) -> 0 | AV42: =$AG42*'puncte misiuni-competente'!H41/'puncte misiuni-competente'!H$4/(3744/122*0.875) -> 0
